Workbook

Sheet Notes
A1: EhlersLoops.xlsm; Traders Tip spreadsheet created for the June 2022 Issue
A2: Coded beginning 2022-April-13 by Ronald McAllister (rpmac_xltt@sprynet.com)
A4: This Workbook demonstrates an EXCEL version of the ideas presented
A5: by John Ehlers in an article titled "Ehlers Loops part 1", which originally appeared in the June 2022 issue of
A6: "Technical Analysis of Stocks and Commodities" magazine.
A9: * * * * * * * * * * * * * * * *
A10: March 15 2022 - for the May 2022 traders tip
A11: Built an alternative method to show/hide a series on a chart. This is driven by a user check box settings in the
A12: clutter control area and uses the "visible" property of a given series.
A13: Check box labels change on the fly to reflect changes to indicator parameters as the chnges happen.
A14: Set up paralel price charts to contrast indicator settings as Mr. Apirine has done in the May 2022 article.
A15: Chart visibilities controlled by check box settings.
A16: Changed chart window shade logic to show all of the Volume Chart or overlay the upper portion of the
A17: volume chart to provide more vertical space for other charts. This partial overlay leaves the volume chart
A18: date labels visible so that no other chart needs to have labels providing more vertical spaceof actual charting.
A19: Refined my dynamic horizontal Tick interval and Tick Lable placement settings logic.
A21: January 18 2022 - Random "Name of Company" Retrieval Errors
A22: For the last couple of months my data retrievals would randomly get a soft error on the company name.
A23: By soft I mean that the HTML Get request for a summary for the InputPriceData tab target symbol would have a good return code but the company name field would contain garbage.
A24: Simply clicking the get data button on the InputPriceData tab to rerun the data retrieval would fix" it.
A25: Remarkably, the historical pricing data is always retrieved and is correct.
A27: Sunday (Jan 16) while working on this spreadsheet, five out of six tries for the same symbol displayed junk in the company name.
A28: So I set a trap to copy the HTML text to disc for the bad return and the good return so that I could compare them.
A29: (for those with a technical bent Notepad++ has a really nice Compare addin)
A30: As it turns out the correct required data is present in both versions.
A31: But the formatting of the new version does not contain the landmarks I was using to parse out what was needed.
A33: I think Yahoo Finance is experimenting with a new/upgraded HTML generator and perhaps does not have it installed on all of their servers.
A34: So the randomness of the "failure" is probably an artifact of which server answered my HTML request.
A36: The result is that I spent the last day and a half comparing the two formats and have come up with a new set of landmarks
A37: that are common to both formats. It requires a few extra steps to ignore minor internal differences in these landmarks and the result is
A38: code that does not care which HTML format is returned.
A40: The fix - What Changed:
A41: Complete rewrite of:
A42: VBA Procedure: ExtractCompanyIdFromSummaryText as found in VBA Module: InputPriceDataLoader
A44: Retrofiting to older Traders Tips spreadsheets:
A45: For those of you with some familiarity with the EXCEL VBA editor, you can try the following copy and paste steps.
A47: First we need to grab a copy of the corrected ExtractCompanyIdFromSummaryText Sub.
A48: Open the VBA editor in this spreadsheet and navigate to module InputPriceDataLoader and then to procedure ExtractCompanyIdFromSummaryText
A49: Copy all of procedure ExtractCompanyIdFromSummaryText from the beginning Sub statement to and including the closing End Sub statement to a new Notepad or Notepad++ text document.
A50: Close this workbook, but do not close the Notepad or Notepad++ document.
A52: Now for the target of your retrofit attempt.
A53: Make a backup copy of this retrofit target spreadsheet in case you have a problem and need to start over with a fresh copy.
A54: Open the retrofit target.
A55: Open the VBA editor in this target spreadsheet and navigate to module InputPriceDataLoader and then to procedure ExtractCompanyIdFromSummaryText
A57: Delete all of the ExtractCompanyIdFromSummaryText procedure starting with the begining Sub statement to and including the closing End Sub statement.
A59: Do not close the VBA editor or the spread sheet.
A61: Navigate (Alt-Tab) to your Notepad or Notepad++ instance and select all of the text (Ctrl-a). Then Copy the selected text (Ctrl-c).
A62: Navigate (Alt-Tab) back to the VBA editor window. The VBA editor cursor should still be on the line where you just deleted the old version of ExtractCompanyIdFromSummaryText.
A63: This is probably a blank line just above a line that reads "Sub FormatPriceHistory(..."
A64: If there is no blank line above the "Sub FormatPriceHistory(..." line then click on the "S" of Sub and press enter to insert a blank line.
A65: Move your mouse cursor to this blank line and left-click to be sure of the VBA cursor location.
A66: Then (Ctrl-v) to paste the new version of ExtractCompanyIdFromSummaryText that you copied from the Notepad or Notepad++ text document.
A68: You are done with the tricky part. Close the VBA editor and save the now retrofitted spreadsheet.
A70: Go to the inputPriceData tab and retrieve some data to verify that nothing is broken.
A71: Easter egg time: (Curious minds want to know...)
A72: If the data retrieval encounters a new format HTML response, the company name this code will display will have an asterisk(*) as a prefix.
A74: Foot Note: Today (Jan 19 2022) I have not encountered a single instance of the new format HTML while testing this spreadsheet for submission to the editors.
A75: So maybe YahooFinance is not test/using the new version right now?
A77: New for May 2021
A78: Upgraded the data download logic to do a better job of catching the common data download errors and provide a more graceful resolution.
A79: This includes better user notification of the nature of the error and some user control over how the error should be handled.
A80: User notification comes in the form of a MSGbox display that includes the (sometimes cryptic) description of the error and offers the user three options.
A82: Abort - If I could customize the title, I would rename this button to "Debug"
A83: This choice places you in Debug mode at the failing VBA statement.
A84: Unless you are feeling good about your VBA (and Network) debugging skills, this is probably not for you.
A86: Retry
A87: Lets the code retry the failed download request.
A88: This is a reasonable option if the download request timed out (similar to video buffering) or your network connection has dropped out..
A89: Probably a good idea to make sure your internet connection is alive and well before you select Retry.
A91: Ignore
A92: Lets the code fall thru to a (hopefully) graceful error completion with the error indicated at the top of the InputPriceData tab
A94: New for August 2020
A95: Restructured my Symbol-Not-Found detection and now stop further processing in the not found case
A97: New with the May 2020 version of my T-Tips template: VBA to implement a "Perpetual" U.S. Markets Closed Holiday Calendar.
A99: Why we need one: The Yahoo Finance recently has begun having occasional filtration problems where bars for U.S. Market Closed Holidays
A100: make their way onto the Historical Data web page and into the Historical Data download.
A102: While testing this May 2020 spreadsheet with different symbols, I found that I sometimes had bars with the text "null" in the price fields.
A103: My code always translates the "null" text price values to zeros.
A104: The resulting zeros cause real problems with indicator computations and the amount of blank space below price candles on the price chart.
A106: "null" price bars can be valid for very lightly traded penny sheet symbols which may not trade every day the markets are open.
A107: But is definitely not normal for symbols on the big boards.
A109: A closer look determined that these "bars" were for holiday dates when the US markets are normally closed.
A110: I found it interesting that some times the next download for the same symbol would not contain any of these "holiday" bars. Weird!
A112: My approach here was to write code to determine if the DATE on a null price values bar falls on one of the 9 market closed U.S. Holidays.
A113: If the bar date corresponds to one of these market closed holidays, I drop the bar before it reaches the InputPriceData tab.
A114: If the date is not a holiday, I let the bar through with the resulting zero values.
A116: No messy tables to update over the years as there are good solid rules that can be used in VBA or any other programming language to determine
A117: the dates for U.S. Market Closed Holidays for any given calendar year.
A119: This workbook contains and uses VBA macros and may take advantage of user defined VBA Class structures.
A120: Input Data:
A121: The data in this workbook is sorted date-descending (most recent date at the top). All cell formulas and
A122: VBA routines are built assuming this date sequence.
A124: ERROR 9 (already fixed in this spreadsheet)
A125: On or about Jan 29, 2020 Yahoo Finance changed the format of the split factor expression used their historical data downloads.
A126: The Split expression went from using "/" as in "New Share Number/Old Share Number",
A127: to using ":" as in "New Share Number:Old Share Number".
A128: This caused the then current version of my VBA code to fail with a "Runtime Error '9': subscript out of range".
A130: Fix for this ERROR 9
A131: For T-Tip spreadsheets from September 2018 up to present:
A132: Selecting the Debug option takes one into the VBA at the code line which causes the failure:
A133: CellArray(C_A_RowNdx, C_A_ColNdx + 1) = SplitFactors(1)
A134: Two lines above the failing VBA line is a line that reads:
A135: SplitFactors = Split(CsvColumns(CsvColNdx), "/")
A136: Change the / to a :
A137: The corrected line should now read
A138: SplitFactors = Split(CsvColumns(CsvColNdx), ":")
A140: If you are fixing several spreadsheets and do not want to use the failure to find the fix location,
A141: you can use VBA’s FIND dialog (Ctrl F) to look for the substring
A142: SplitFactors =
A143: Do include one space and the equal sign in your FIND string
A144: Select the "Current Project" option
A145: There should only be one instance.
A147: T-Tip spreadsheets prior to the September 2018 spreadsheet do not hard fail.
A149: They just get weird results in the split columns of the Input Price Data tab (soft fail).
A150: These older spreadsheets used different data retrieval and formatting logic.
A152: To fix these older spreadsheets:
A153: In the VBA editor, use find (CTRL-F).
A154: Select the "Current Project" option, and search for the following:
A155: OtherChar:="/"
A156: You are looking for a hit in a line reading:
A157: Other:=True, OtherChar:="/", _
A158: This line is part of a multiline block of code starting with a line that reads:
A159: SplitRange.Offset(0, 1).Resize(SpRows, 1).TextToColumns
A160: Change the / to a : so that the line reads
A161: Other:=True, OtherChar:=":", _
A164: 2019-04-04 Finally came up with a mechanism to align the left location and overall length of the cursor scroll bar so that the left most and right most
A165: scroll bar thumb positions visually align reasonably well with the left and right ends of the price chart horizontal axis.
A166: Makes it a little easier to visually align the Thumb and thus the cursor with points of interest on the charts.
A168: Older:
B169: My sincere apologies to our Macintosh based readers: Neither MSXML nor WinHttpRequest are supported in your environment. So as it stands this version of the spreadsheet will not work for you.
B170: See "Why this approach does not work for Macintosh" below.
B171: I am investigating cURL as a non-Querytable based approach for the Macintosh environment.
A173: The new Yahoo Finance history download interface has changed rather radically. The biggest hurdle being a pseudo-security requirement of adding a
B174: crumb character string to any URL requesting any type of history download. That crumb must match up (by way of some sort of hash algorithm) with
B175: the Yahoo Finance cookie that must also be sent with any request to the new Yahoo History down load interface.
B177: A crumb value is returned, buried in the HTML for any of what I call the "entry level" Yahoo Finance web pages (no crumb security requirement for entry level pages).
B178: A crumb may come with other Yahoo Finance pages. A crumb may even accompany some of the secured pages as well. I have not checked.
B180: Entry level pages are the top level pages of the various Yahoo Finance dialogs and include: Quote Lookup, Stock Summary Quote, and any of the pages
B181: with links in the horizontal row with the "Summary" link on the quote summary page such as Options, Historical Data, and the rest.
B183: To date I have found no way to get at this crumb value using any native EXCEL capabilities.
B185: So this crumb requirement effectively shuts out any solution that attempts to exclusively use built-in facilities of EXCEL, which is to say a purely Querytables solution.
B187: The approach built for this Traders Tip spreadsheet uses WINHTTP calls to Load the InputPriceData worksheet.
B189: First I call to get the HTML text for the Yahoo Summary Quote page using the requested symbol. From this HTML text I extract the full company name,
B190: the market it trades, the market status and time stamp, and finally the associated crumb string. There is a bunch of other useful bits buried in this HTML
B191: text that do not necessarily appear on the web page your browser presents. Perhaps some day I will go after and build a worksheet with these other bits.
B193: Next I add the freshly extracted crumb string to the URLs I use in three separate WINHTTP calls to retrieve Price history, Split history, and Dividend history respectively.
B195: From there VBA code proceeds as in the past to fill in the cell formulas and formatting that make the "prettied up" InputPriceData sheet.
A197: Why this approach works for Windows:
B198: WINHTTP maintains a temporary computer memory cache where cookies are maintained for as long as the WINHTTP object is instantiated.
B199: WINHTTP updates this cache any time a "set cookie" header accompanies a web response.
B200: Subsequent WINHTTP calls automatically search this cache for cookies and add any "appropriate" cookies to the headers
B201: of any web requests that get sent out.
B202: This cookie handling automation means that even if the response to our WINHTTP call for the Summary web page includes a new version of
B203: the Yahoo Finance cookie, the imbedded Crumb value will always match the cookie newly installed in the cache!
A206: Why this approach does not work for Macintosh:
B207: For what it is worth, the Macintosh version of the MS Office suite of products do in fact maintain a special, shared amongst themselves only, cookie cache.
B208: They automate cookie handling into and from this cache JUST for the Office products and any Querytable activity they might originate.
B210: This cache is not tied to, nor shared with, any browser that might be installed on the MAC. And I have not found anything with HTTP capabilities similar to
B211: MSXML that can work with that Office product cookie cache.
B213: When working in the MAC EXCEL environment, I have not yet become conversant with a Mac based WINHTTP like capability.
B214: So l currently have no mechanism to replicate the non-Querytable data retrieval process I am using in Windows environments.
B215: A software product called CURL has been suggested as providing this capability in the MAC environment.
B216: A version of CURL is available for the Windows So some day I may explore its capabilities and how to access those capabilities from VBA.
A218: Calculation and Chart Worksheet Usage Comments:
C219: In General, Items in Bolded BLUE are items you may freely change to play what-if games.
C220: Be sure to have a backup copy of the spreadsheet before you alter anything else.
A222: Features carried forward from the June 2016 version of my T-Tips Template
A223: Added a pair of buttons near cell F12 that will allow the user to step the charting window forward or backward one bar for each click.
A224: I find this to be a good way to test my understanding of the author's ideas as I step through the evolution of the price behavior and the indicators.
B226: First: In the "Help! I would like to plot data" area.
B227: Added button to resolve #NA problems by locating the bar in the input data with a slightly more recent date than what the user actually requested.
B228: I find this particularly useful when I have a general idea of where I want to be date wise. Now I can pick a set of dates "out of the air".
B229: If either (or both) of my date specifications fall between dates that are available in the price history,
B230: this button will resolve them to the dates of the nearest, slightly more recent input bars.
B231: I can then refine my data interval search as necessary from there.
B232: Really great when working with Weekly or Monthly studies!
C233: 2016Jun11 - added logic to the "I would like to chart.." button to detect #N/A values and terminate
C234: gracefully with a message instead of blowing up in the charting logic.
B236: Second: In the "Price Chart Windowing Controls" area. (A11 and A12)
B237: When retrieving data for a new symbol or when changing from daily to weekly or monthly data, there was the possibility that the
B238: residual settings in A11 and A12 would fall outside of the number bars available on the input data tab after the new data retrieval.
B239: In certain combinations, this could create a serious error in the chart sizing logic and crash the spreadsheet.
B240: I have taken this opportunity to update the validity checking logic used in the chart sizing macros
B241: to adjust these values as necessary so that they fall within the boundaries of the newly retrieved input data.
A242: Features carried forward from the October 2015 Traders Tips Template
B243: Improved automation: changes to any of the following will automatically initiate calculations appropriate to reflect a change.
C244: Changing either of cells A11 (pan) or A12 (zoom) will automatically initiate the same chart sizing macros that the manual
C245: "Set Chart" button uses.

Sheet InputPriceData
A1: FedEx Corporation (FDX) -NYSE (Daily)
M2: To retrieve data for symbols traded on non US Exchanges, | II2: 241.79
A3: Request Online Yahoo History for: | F3: Market State == > | G3: As of | H3: 12:53:00 | I3: EDT. Market open. | M3: you will need to append the dot-suffix for the exchange to the symbol.
A4: Symbol | B4: FDX | D4: Valid | I4: =OFFSET(I4,-2,0,1,1) -> 0 | M4: The following links provide a description of how to use the exchange suffix
A5: From | B5: 1950-10-01 | D5: Data | M5: along with a list of suffixes for the major world exchanges. | AD5: Trailing 12 Div return (Cur Close)
A6: To | B6: =NOW() -> 2022-04-17T12:41:22.070 | D6: Types | E6: =VLOOKUP(B7,D7:E10,2,FALSE) -> d | M6: https://help.yahoo.com/kb/finance/SLN2310.html
A7: Data Type | B7: Daily | D7: Daily | E7: d | M7: And
A8: Crumb | B8: gIJudwlNR7T | D8: Weekly | E8: w | M8: https://www.stockmarketeye.com/users-guide/ticker-symbols-and-data-providers/data-providers.html
A9: Available Data | D9: Monthly | E9: m
A10: Bar Count: | B10: 11098 | M10: You may search on “exchange suffixes” for additional discussions | AD10: =OFFSET(AC15,1,0,1,1)/OFFSET(N15,1,0,1,1) -> 0.0146591742
A11: From: | B11: =IF(B10<=0,"",OFFSET(B15,B10,IF(HistReqDataType="v",1,0),1,1)) -> 1978-04-12 | W11: Trailing 12 Month Dividend Returns
A12: To: | B12: =IF(B10<=0,"",IF(HistReqDataType="v",OFFSET(B15,2,1,1,1),OFFSET(B15,1,0,1,1))) -> 2022-04-12 | W12: Raw Close price on Dividend date | X12: Div Year and Month | Y12: Looking for year ago Div Year and Month | Z12: Year ago Div Date we found | AA12: row offset to year ago div Date | AB12: Same month flag | AC12: Trailing 12 Div Total | AD12: Trailing 12 Div return
Q13: Split History | S13: 5 | T13: Running | U13: Dividend History
B14: Raw Data Values | H14: Adjusted | I14: Price Adjust | J14: Vol Adjust | K14: Adjusted Values | P14: Last | Q14: Effective | R14: Shares | T14: Vol Adjust | V14: 80
A15: RelRow | B15: Date | C15: Open | D15: High | E15: Low | F15: Close | G15: Volume | H15: Close | I15: Factor | J15: Factor | K15: Open | L15: High | M15: Low | N15: Close | O15: Volume | P15: Trade | Q15: 44664 | R15: New | S15: Old | T15: 1 | U15: Date | V15: $ / Share
A16: 1 | B16: 2022-04-12 | C16: 204.130005 | D16: 207.169998 | E16: 203.580093 | F16: 204.649994 | G16: 699435 | H16: 204.649994 | I16: =IF(F16=0,1,H16/F16) -> 1 | J16: =INDEX(OFFSET($T$15,0,0,$S$13+1,1),MATCH(B16,OFFSET($Q$15,0,0,$S$13+1,1),-1)) -> 1 | K16: =ROUND($I16*C16,2) -> 204.13 | L16: =ROUND($I16*D16,2) -> 207.17 | M16: =ROUND($I16*E16,2) -> 203.58 | N16: =ROUND($I16*F16,2) -> 204.65 | O16: =G16*J16 -> 699435 | Q16: 1999-05-07 | R16: 2 | S16: 1 | T16: 2 | U16: 2022-03-04 | V16: 0.75 | W16: =(INDEX(OFFSET($F$15,1,0,$B$10,1),MATCH(U16,OFFSET($B$15,1,0,$B$10,1),-1))) -> 214.539993 | X16: =YEAR(U16)&RIGHT("0"&MONTH(U16),2) -> 202203 | Y16: =YEAR(U16)-1&RIGHT("0"&MONTH(U16),2) -> 202103 | Z16: =OFFSET(U15,AA16,0,1,1) -> 2021-03-05 | AA16: =MATCH(Y16,OFFSET($X$15,A16,0,$V$14+1-A16,1),-1) -> 5 | AB16: =IF(OR(AND(YEAR(U16)=YEAR(Z16),MONTH(U16)=MONTH(Z16)),MONTH(U16)=MONTH(Z16)),1,0) -> 1 | AC16: =(V16+IF(AA16-AB16=0,0,IFERROR(SUM(OFFSET(V16,1,0,AA16-AB16-1,1)),0))) -> 3 | AD16: =AC16/(INDEX(OFFSET($F$15,1,0,$B$10,1),MATCH(U16,OFFSET($B$15,1,0,$B$10,1),-1))) -> 0.01398340681
A17: 2 | B17: 2022-04-11 | C17: 199.610001 | D17: 207.649994 | E17: 199.610001 | F17: 204.119995 | G17: 2079900 | H17: 204.119995 | I17: =IF(F17=0,1,H17/F17) -> 1 | J17: =INDEX(OFFSET($T$15,0,0,$S$13+1,1),MATCH(B17,OFFSET($Q$15,0,0,$S$13+1,1),-1)) -> 1 | K17: =ROUND($I17*C17,2) -> 199.61 | L17: =ROUND($I17*D17,2) -> 207.65 | M17: =ROUND($I17*E17,2) -> 199.61 | N17: =ROUND($I17*F17,2) -> 204.12 | O17: =G17*J17 -> 2079900 | Q17: 1996-11-05 | R17: 2 | S17: 1 | T17: 4 | U17: 2021-12-10 | V17: 0.75 | W17: =(INDEX(OFFSET($F$15,1,0,$B$10,1),MATCH(U17,OFFSET($B$15,1,0,$B$10,1),-1))) -> 246.279999 | X17: =YEAR(U17)&RIGHT("0"&MONTH(U17),2) -> 202112 | Y17: =YEAR(U17)-1&RIGHT("0"&MONTH(U17),2) -> 202012 | Z17: =OFFSET(U16,AA17,0,1,1) -> 2020-12-11 | AA17: =MATCH(Y17,OFFSET($X$15,A17,0,$V$14+1-A17,1),-1) -> 5 | AB17: =IF(OR(AND(YEAR(U17)=YEAR(Z17),MONTH(U17)=MONTH(Z17)),MONTH(U17)=MONTH(Z17)),1,0) -> 1 | AC17: =(V17+IF(AA17-AB17=0,0,IFERROR(SUM(OFFSET(V17,1,0,AA17-AB17-1,1)),0))) -> 2.9 | AD17: =AC17/(INDEX(OFFSET($F$15,1,0,$B$10,1),MATCH(U17,OFFSET($B$15,1,0,$B$10,1),-1))) -> 0.01177521525
A18: 3 | B18: 2022-04-08 | C18: 202.089996 | D18: 203.679993 | E18: 199.589996 | F18: 201.520004 | G18: 2320800 | H18: 201.520004 | I18: 1 | J18: 1 | K18: 202.09 | L18: 203.68 | M18: 199.59 | N18: 201.52 | O18: 2320800 | Q18: 1983-11-01 | R18: 2 | S18: 1 | T18: 8 | U18: 2021-09-02 | V18: 0.75 | W18: 267.089996 | X18: 202109 | Y18: 202009 | Z18: 2020-09-03 | AA18: 5 | AB18: 1 | AC18: 2.8 | AD18: 0.01048335783
A19: 4 | B19: 2022-04-07 | C19: 203.720001 | D19: 205.039993 | E19: 199.210007 | F19: 203.770004 | G19: 3223300 | H19: 203.770004 | I19: 1 | J19: 1 | K19: 203.72 | L19: 205.04 | M19: 199.21 | N19: 203.77 | O19: 3223300 | Q19: 1980-11-03 | R19: 2 | S19: 1 | T19: 16 | U19: 2021-06-25 | V19: 0.75 | W19: 291.950012 | X19: 202106 | Y19: 202006 | Z19: 2020-06-26 | AA19: 5 | AB19: 1 | AC19: 2.7 | AD19: 0.009248158551
A20: 5 | B20: 2022-04-06 | C20: 209.5 | D20: 209.5 | E20: 203.550003 | F20: 204 | G20: 3492800 | H20: 204 | I20: 1 | J20: 1 | K20: 209.5 | L20: 209.5 | M20: 203.55 | N20: 204 | O20: 3492800 | Q20: 1978-09-26 | R20: 2 | S20: 1 | T20: 32 | U20: 2021-03-05 | V20: 0.65 | W20: 257.290009 | X20: 202103 | Y20: 202003 | Z20: 2020-03-06 | AA20: 5 | AB20: 1 | AC20: 2.6 | AD20: 0.01010532826
A21: 6 | B21: 2022-04-05 | C21: 215.330002 | D21: 218.839996 | E21: 210.669998 | F21: 211.029999 | G21: 3124100 | H21: 211.029999 | I21: 1 | J21: 1 | K21: 215.33 | L21: 218.84 | M21: 210.67 | N21: 211.03 | O21: 3124100 | U21: 2020-12-11 | V21: 0.65 | W21: 289.470001 | X21: 202012 | Y21: 201912 | Z21: 2019-12-06 | AA21: 5 | AB21: 1 | AC21: 2.6 | AD21: 0.008981932466
A22: 7 | B22: 2022-04-04 | C22: 218.389999 | D22: 220.860001 | E22: 216.740005 | F22: 217.990005 | G22: 3479800 | H22: 217.990005 | I22: 1 | J22: 1 | K22: 218.39 | L22: 220.86 | M22: 216.74 | N22: 217.99 | O22: 3479800 | U22: 2020-09-03 | V22: 0.65 | W22: 220.970001 | X22: 202009 | Y22: 201909 | Z22: 2019-09-06 | AA22: 5 | AB22: 1 | AC22: 2.6 | AD22: 0.01176630306
A23: 8 | B23: 2022-04-01 | C23: 231.389999 | D23: 231.679993 | E23: 221 | F23: 221.25 | G23: 3432700 | H23: 221.25 | I23: 1 | J23: 1 | K23: 231.39 | L23: 231.68 | M23: 221 | N23: 221.25 | O23: 3432700 | U23: 2020-06-26 | V23: 0.65 | W23: 130.080002 | X23: 202006 | Y23: 201906 | Z23: 2019-06-21 | AA23: 5 | AB23: 1 | AC23: 2.6 | AD23: 0.01998769957
A24: 9 | B24: 2022-03-31 | C24: 233.320007 | D24: 235.830002 | E24: 231.279999 | F24: 231.389999 | G24: 1778600 | H24: 231.389999 | I24: 1 | J24: 1 | K24: 233.32 | L24: 235.83 | M24: 231.28 | N24: 231.39 | O24: 1778600 | U24: 2020-03-06 | V24: 0.65 | W24: 127.68 | X24: 202003 | Y24: 201903 | Z24: 2019-03-08 | AA24: 5 | AB24: 1 | AC24: 2.6 | AD24: 0.02036340852
A25: 10 | B25: 2022-03-30 | C25: 237.25 | D25: 238.190002 | E25: 234.149994 | F25: 235.25 | G25: 2111300 | H25: 235.25 | I25: 1 | J25: 1 | K25: 237.25 | L25: 238.19 | M25: 234.15 | N25: 235.25 | O25: 2111300 | U25: 2019-12-06 | V25: 0.65 | W25: 156.610001 | X25: 201912 | Y25: 201812 | Z25: 2018-12-07 | AA25: 5 | AB25: 1 | AC25: 2.6 | AD25: 0.01660174946
A26: 11 | B26: 2022-03-29 | C26: 236.75 | D26: 241.570007 | E26: 236.050003 | F26: 238.570007 | G26: 4055800 | H26: 238.570007 | I26: 1 | J26: 1 | K26: 236.75 | L26: 241.57 | M26: 236.05 | N26: 238.57 | O26: 4055800 | U26: 2019-09-06 | V26: 0.65 | W26: 161.869995 | X26: 201909 | Y26: 201809 | Z26: 2018-09-07 | AA26: 5 | AB26: 1 | AC26: 2.6 | AD26: 0.01606227269
A27: 12 | B27: 2022-03-28 | C27: 226.839996 | D27: 230.160004 | E27: 225.619995 | F27: 230.050003 | G27: 1728100 | H27: 230.050003 | I27: 1 | J27: 1 | K27: 226.84 | L27: 230.16 | M27: 225.62 | N27: 230.05 | O27: 1728100 | U27: 2019-06-21 | V27: 0.65 | W27: 165.350006 | X27: 201906 | Y27: 201806 | Z27: 2018-06-22 | AA27: 5 | AB27: 1 | AC27: 2.6 | AD27: 0.01572422078
A28: 13 | B28: 2022-03-25 | C28: 225.990005 | D28: 227.050003 | E28: 223.960007 | F28: 226.559998 | G28: 1452900 | H28: 226.559998 | I28: 1 | J28: 1 | K28: 225.99 | L28: 227.05 | M28: 223.96 | N28: 226.56 | O28: 1452900 | U28: 2019-03-08 | V28: 0.65 | W28: 171.779999 | X28: 201903 | Y28: 201803 | Z28: 2018-03-09 | AA28: 5 | AB28: 1 | AC28: 2.6 | AD28: 0.0151356387
A29: 14 | B29: 2022-03-24 | C29: 222.679993 | D29: 225.449997 | E29: 220.610001 | F29: 225.119995 | G29: 2006600 | H29: 225.119995 | I29: 1 | J29: 1 | K29: 222.68 | L29: 225.45 | M29: 220.61 | N29: 225.12 | O29: 2006600 | U29: 2018-12-07 | V29: 0.65 | W29: 201.389999 | X29: 201812 | Y29: 201712 | Z29: 2017-12-08 | AA29: 5 | AB29: 1 | AC29: 2.45 | AD29: 0.01216545018
A30: 15 | B30: 2022-03-23 | C30: 224.740005 | D30: 226.070007 | E30: 221.059998 | F30: 221.470001 | G30: 1733600 | H30: 221.470001 | I30: 1 | J30: 1 | K30: 224.74 | L30: 226.07 | M30: 221.06 | N30: 221.47 | O30: 1733600 | U30: 2018-09-07 | V30: 0.65 | W30: 245.970001 | X30: 201809 | Y30: 201709 | Z30: 2017-09-08 | AA30: 5 | AB30: 1 | AC30: 2.3 | AD30: 0.009350733791
A31: 16 | B31: 2022-03-22 | C31: 223.089996 | D31: 228.699997 | E31: 222.490005 | F31: 226.570007 | G31: 2627700 | H31: 226.570007 | I31: 1 | J31: 1 | K31: 223.09 | L31: 228.7 | M31: 222.49 | N31: 226.57 | O31: 2627700 | U31: 2018-06-22 | V31: 0.65 | W31: 241.770004 | X31: 201806 | Y31: 201706 | Z31: 2017-06-20 | AA31: 5 | AB31: 1 | AC31: 2.15 | AD31: 0.00889274916
A32: 17 | B32: 2022-03-21 | C32: 217.720001 | D32: 223.199997 | E32: 217.470001 | F32: 222.160004 | G32: 3434400 | H32: 222.160004 | I32: 1 | J32: 1 | K32: 217.72 | L32: 223.2 | M32: 217.47 | N32: 222.16 | O32: 3434400 | U32: 2018-03-09 | V32: 0.5 | W32: 247.119995 | X32: 201803 | Y32: 201703 | Z32: 2017-03-09 | AA32: 5 | AB32: 1 | AC32: 2 | AD32: 0.00809323422
A33: 18 | B33: 2022-03-18 | C33: 220 | D33: 220.190002 | E33: 212.929993 | F33: 218.910004 | G33: 9268400 | H33: 218.910004 | I33: 1 | J33: 1 | K33: 220 | L33: 220.19 | M33: 212.93 | N33: 218.91 | O33: 9268400 | U33: 2017-12-08 | V33: 0.5 | W33: 240.729996 | X33: 201712 | Y33: 201612 | Z33: 2016-12-08 | AA33: 5 | AB33: 1 | AC33: 1.9 | AD33: 0.007892659958
A34: 19 | B34: 2022-03-17 | C34: 221.729996 | D34: 229.419998 | E34: 220.389999 | F34: 227.979996 | G34: 5701400 | H34: 227.979996 | I34: 1 | J34: 1 | K34: 221.73 | L34: 229.42 | M34: 220.39 | N34: 227.98 | O34: 5701400 | U34: 2017-09-08 | V34: 0.5 | W34: 210.479996 | X34: 201709 | Y34: 201609 | Z34: 2016-09-08 | AA34: 5 | AB34: 1 | AC34: 1.8 | AD34: 0.008551881576
A35: 20 | B35: 2022-03-16 | C35: 218.919998 | D35: 226.020004 | E35: 218.75 | F35: 225.929993 | G35: 3088000 | H35: 225.929993 | I35: 1 | J35: 1 | K35: 218.92 | L35: 226.02 | M35: 218.75 | N35: 225.93 | O35: 3088000 | U35: 2017-06-20 | V35: 0.5 | W35: 208.949997 | X35: 201706 | Y35: 201606 | Z35: 2016-06-14 | AA35: 5 | AB35: 1 | AC35: 1.7 | AD35: 0.0081359178
A36: 21 | B36: 2022-03-15 | C36: 214.789993 | D36: 217.580002 | E36: 211.929993 | F36: 216.229996 | G36: 1858400 | H36: 216.229996 | I36: 1 | J36: 1 | K36: 214.79 | L36: 217.58 | M36: 211.93 | N36: 216.23 | O36: 1858400 | U36: 2017-03-09 | V36: 0.4 | W36: 191.309998 | X36: 201703 | Y36: 201603 | Z36: 2016-03-10 | AA36: 5 | AB36: 1 | AC36: 1.6 | AD36: 0.008363389351
A37: 22 | B37: 2022-03-14 | C37: 212.509995 | D37: 214.919998 | E37: 208.809998 | F37: 211.130005 | G37: 2180700 | H37: 211.130005 | I37: 1 | J37: 1 | K37: 212.51 | L37: 214.92 | M37: 208.81 | N37: 211.13 | O37: 2180700 | U37: 2016-12-08 | V37: 0.4 | W37: 197.070007 | X37: 201612 | Y37: 201512 | Z37: 2015-12-10 | AA37: 5 | AB37: 1 | AC37: 1.45 | AD37: 0.007357791386
A38: 23 | B38: 2022-03-11 | C38: 220 | D38: 220.410004 | E38: 212.729996 | F38: 213.179993 | G38: 2346300 | H38: 213.179993 | I38: 1 | J38: 1 | K38: 220 | L38: 220.41 | M38: 212.73 | N38: 213.18 | O38: 2346300 | U38: 2016-09-08 | V38: 0.4 | W38: 165.399994 | X38: 201609 | Y38: 201509 | Z38: 2015-09-08 | AA38: 5 | AB38: 1 | AC38: 1.3 | AD38: 0.007859734263
A39: 24 | B39: 2022-03-10 | C39: 212.800003 | D39: 219.720001 | E39: 212.350006 | F39: 219.279999 | G39: 2535300 | H39: 219.279999 | I39: 1 | J39: 1 | K39: 212.8 | L39: 219.72 | M39: 212.35 | N39: 219.28 | O39: 2535300 | U39: 2016-06-14 | V39: 0.4 | W39: 159.75 | X39: 201606 | Y39: 201506 | Z39: 2015-06-16 | AA39: 5 | AB39: 1 | AC39: 1.15 | AD39: 0.007198748044
A40: 25 | B40: 2022-03-09 | C40: 209 | D40: 218.410004 | E40: 209 | F40: 216.720001 | G40: 3192400 | H40: 216.720001 | I40: 1 | J40: 1 | K40: 209 | L40: 218.41 | M40: 209 | N40: 216.72 | O40: 3192400 | U40: 2016-03-10 | V40: 0.25 | W40: 141.610001 | X40: 201603 | Y40: 201503 | Z40: 2015-03-09 | AA40: 5 | AB40: 1 | AC40: 1 | AD40: 0.007061648139
A41: 26 | B41: 2022-03-08 | C41: 202.580002 | D41: 209.369995 | E41: 199.029999 | F41: 203.990005 | G41: 2928200 | H41: 203.990005 | I41: 1 | J41: 1 | K41: 202.58 | L41: 209.37 | M41: 199.03 | N41: 203.99 | O41: 2928200 | U41: 2015-12-10 | V41: 0.25 | W41: 148.490005 | X41: 201512 | Y41: 201412 | Z41: 2014-12-10 | AA41: 5 | AB41: 1 | AC41: 0.95 | AD41: 0.006397737006
A42: 27 | B42: 2022-03-07 | C42: 212 | D42: 213.369995 | E42: 200.639999 | F42: 201.089996 | G42: 3471100 | H42: 201.089996 | I42: 1 | J42: 1 | K42: 212 | L42: 213.37 | M42: 200.64 | N42: 201.09 | O42: 3471100 | U42: 2015-09-08 | V42: 0.25 | W42: 153.289993 | X42: 201509 | Y42: 201409 | Z42: 2014-09-08 | AA42: 5 | AB42: 1 | AC42: 0.9 | AD42: 0.005871224745
A43: 28 | B43: 2022-03-04 | C43: 218 | D43: 219 | E43: 212.300003 | F43: 214.539993 | G43: 2457300 | H43: 214.539993 | I43: 1 | J43: 1 | K43: 218 | L43: 219 | M43: 212.3 | N43: 214.54 | O43: 2457300 | U43: 2015-06-16 | V43: 0.25 | W43: 182.130005 | X43: 201506 | Y43: 201406 | Z43: 2014-06-17 | AA43: 5 | AB43: 1 | AC43: 0.85 | AD43: 0.004666995974
A44: 29 | B44: 2022-03-03 | C44: 222.630005 | D44: 224.949997 | E44: 220.199997 | F44: 221.309998 | G44: 2467700 | H44: 220.559998 | I44: 0.9966110885 | J44: 1 | K44: 221.88 | L44: 224.19 | M44: 219.45 | N44: 220.56 | O44: 2467700 | U44: 2015-03-09 | V44: 0.2 | W44: 172.910004 | X44: 201503 | Y44: 201403 | Z44: 2014-03-07 | AA44: 5 | AB44: 1 | AC44: 0.8 | AD44: 0.004626684295
A45: 30 | B45: 2022-03-02 | C45: 216.440002 | D45: 222.580002 | E45: 214.300003 | F45: 219.25 | G45: 2270600 | H45: 218.506989 | I45: 0.9966111243 | J45: 1 | K45: 215.71 | L45: 221.83 | M45: 213.57 | N45: 218.51 | O45: 2270600 | U45: 2014-12-10 | V45: 0.2 | W45: 176.460007 | X45: 201412 | Y45: 201312 | Z45: 2013-12-10 | AA45: 5 | AB45: 1 | AC45: 0.75 | AD45: 0.004250254847
A46: 31 | B46: 2022-03-01 | C46: 221.039993 | D46: 221.949997 | E46: 212.639999 | F46: 214.910004 | G46: 2081800 | H46: 214.181702 | I46: 0.9966111303 | J46: 1 | K46: 220.29 | L46: 221.2 | M46: 211.92 | N46: 214.18 | O46: 2081800 | U46: 2014-09-08 | V46: 0.2 | W46: 152.399994 | X46: 201409 | Y46: 201309 | Z46: 2013-09-06 | AA46: 5 | AB46: 1 | AC46: 0.7 | AD46: 0.004593176034
A47: 32 | B47: 2022-02-28 | C47: 217.179993 | D47: 222.639999 | E47: 215.710007 | F47: 222.270004 | G47: 2477700 | H47: 221.516754 | I47: 0.9966111037 | J47: 1 | K47: 216.44 | L47: 221.89 | M47: 214.98 | N47: 221.52 | O47: 2477700 | U47: 2014-06-17 | V47: 0.2 | W47: 140.309998 | X47: 201406 | Y47: 201306 | Z47: 2013-06-13 | AA47: 5 | AB47: 1 | AC47: 0.65 | AD47: 0.004632599311
A48: 33 | B48: 2022-02-25 | C48: 216.539993 | D48: 222.639999 | E48: 216.160004 | F48: 220.720001 | G48: 1963900 | H48: 219.972 | I48: 0.9966110865 | J48: 1 | K48: 215.81 | L48: 221.89 | M48: 215.43 | N48: 219.97 | O48: 1963900 | U48: 2014-03-07 | V48: 0.15 | W48: 137.429993 | X48: 201403 | Y48: 201303 | Z48: 2013-03-07 | AA48: 5 | AB48: 1 | AC48: 0.6 | AD48: 0.004365859205
A49: 34 | B49: 2022-02-24 | C49: 208 | D49: 216.570007 | E49: 206.309998 | F49: 215.919998 | G49: 3002400 | H49: 215.188278 | I49: 0.9966111522 | J49: 1 | K49: 207.3 | L49: 215.84 | M49: 205.61 | N49: 215.19 | O49: 3002400 | U49: 2013-12-10 | V49: 0.15 | W49: 138.490005 | X49: 201312 | Y49: 201212 | Z49: 2013-03-07 | AA49: 4 | AB49: 0 | AC49: 0.59 | AD49: 0.004260235242
A50: 35 | B50: 2022-02-23 | C50: 218.679993 | D50: 220.039993 | E50: 214.75 | F50: 214.839996 | G50: 2253300 | H50: 214.111923 | I50: 0.9966110919 | J50: 1 | K50: 217.94 | L50: 219.29 | M50: 214.02 | N50: 214.11 | O50: 2253300 | U50: 2013-09-06 | V50: 0.15 | W50: 108.160004 | X50: 201309 | Y50: 201209 | Z50: 2012-09-06 | AA50: 5 | AB50: 1 | AC50: 0.58 | AD50: 0.005362425837
A51: 36 | B51: 2022-02-22 | C51: 220.149994 | D51: 221.649994 | E51: 216.330002 | F51: 217.789993 | G51: 2521400 | H51: 217.051926 | I51: 0.9966111069 | J51: 1 | K51: 219.4 | L51: 220.9 | M51: 215.6 | N51: 217.05 | O51: 2521400 | U51: 2013-06-13 | V51: 0.15 | W51: 99.580002 | X51: 201306 | Y51: 201206 | Z51: 2012-06-14 | AA51: 5 | AB51: 1 | AC51: 0.57 | AD51: 0.005724040857
A52: 37 | B52: 2022-02-18 | C52: 223.630005 | D52: 225.070007 | E52: 220.809998 | F52: 222.229996 | G52: 1658500 | H52: 221.476883 | I52: 0.9966111101 | J52: 1 | K52: 222.87 | L52: 224.31 | M52: 220.06 | N52: 221.48 | O52: 1658500 | U52: 2013-03-07 | V52: 0.14 | W52: 106.959999 | X52: 201303 | Y52: 201203 | Z52: 2012-03-08 | AA52: 5 | AB52: 1 | AC52: 0.56 | AD52: 0.005235602143
A53: 38 | B53: 2022-02-17 | C53: 227.429993 | D53: 227.860001 | E53: 224.100006 | F53: 224.369995 | G53: 1415900 | H53: 223.609634 | I53: 0.9966111289 | J53: 1 | K53: 226.66 | L53: 227.09 | M53: 223.34 | N53: 223.61 | O53: 1415900 | U53: 2012-11-19 | V53: 0.14 | W53: 87 | X53: 201211 | Y53: 201111 | Z53: 2011-12-09 | AA53: 5 | AB53: 0 | AC53: 0.68 | AD53: 0.007816091954
A54: 39 | B54: 2022-02-16 | C54: 229 | D54: 230.389999 | E54: 224.419998 | F54: 229.009995 | G54: 2443600 | H54: 228.233902 | I54: 0.9966110955 | J54: 1 | K54: 228.22 | L54: 229.61 | M54: 223.66 | N54: 228.23 | O54: 2443600 | U54: 2012-09-06 | V54: 0.14 | W54: 87.540001 | X54: 201209 | Y54: 201109 | Z54: 2011-09-08 | AA54: 5 | AB54: 1 | AC54: 0.54 | AD54: 0.006168608566
A55: 40 | B55: 2022-02-15 | C55: 231.720001 | D55: 234.169998 | E55: 230.009995 | F55: 230.399994 | G55: 2617000 | H55: 229.619202 | I55: 0.9966111457 | J55: 1 | K55: 230.93 | L55: 233.38 | M55: 229.23 | N55: 229.62 | O55: 2617000 | U55: 2012-06-14 | V55: 0.14 | W55: 86.839996 | X55: 201206 | Y55: 201106 | Z55: 2011-06-15 | AA55: 5 | AB55: 1 | AC55: 0.53 | AD55: 0.00610317854
A56: 41 | B56: 2022-02-14 | C56: 231.330002 | D56: 232.220001 | E56: 226.970001 | F56: 228.460007 | G56: 2510300 | H56: 227.685776 | I56: 0.9966110874 | J56: 1 | K56: 230.55 | L56: 231.43 | M56: 226.2 | N56: 227.69 | O56: 2510300 | U56: 2012-03-08 | V56: 0.13 | W56: 90.989998 | X56: 201203 | Y56: 201103 | Z56: 2011-03-16 | AA56: 5 | AB56: 1 | AC56: 0.52 | AD56: 0.005714913852
A57: 42 | B57: 2022-02-11 | C57: 240.050003 | D57: 240.5 | E57: 231.229996 | F57: 232.210007 | G57: 4681000 | H57: 231.42308 | I57: 0.9966111409 | J57: 1 | K57: 239.24 | L57: 239.68 | M57: 230.45 | N57: 231.42 | O57: 4681000 | U57: 2011-12-09 | V57: 0.13 | W57: 83.239998 | X57: 201112 | Y57: 201012 | Z57: 2011-03-16 | AA57: 4 | AB57: 0 | AC57: 0.51 | AD57: 0.006126862233
A58: 43 | B58: 2022-02-10 | C58: 242.380005 | D58: 243.820007 | E58: 239.539993 | F58: 240.410004 | G58: 2614000 | H58: 239.595276 | I58: 0.9966110894 | J58: 1 | K58: 241.56 | L58: 242.99 | M58: 238.73 | N58: 239.6 | O58: 2614000 | U58: 2011-09-08 | V58: 0.13 | W58: 74.989998 | X58: 201109 | Y58: 201009 | Z58: 2010-09-08 | AA58: 5 | AB58: 1 | AC58: 0.5 | AD58: 0.006667555852
A59: 44 | B59: 2022-02-09 | C59: 245.789993 | D59: 248.600006 | E59: 243.610001 | F59: 244.240005 | G59: 1729200 | H59: 243.412308 | I59: 0.9966111326 | J59: 1 | K59: 244.96 | L59: 247.76 | M59: 242.78 | N59: 243.41 | O59: 1729200 | U59: 2011-06-15 | V59: 0.13 | W59: 86.489998 | X59: 201106 | Y59: 201006 | Z59: 2010-06-15 | AA59: 5 | AB59: 1 | AC59: 0.49 | AD59: 0.005665394974
A60: 45 | B60: 2022-02-08 | C60: 244.740005 | D60: 246.320007 | E60: 243 | F60: 243.860001 | G60: 1983100 | H60: 243.033585 | I60: 0.9966111047 | J60: 1 | K60: 243.91 | L60: 245.49 | M60: 242.18 | N60: 243.03 | O60: 1983100 | U60: 2011-03-16 | V60: 0.12 | W60: 85.279999 | X60: 201103 | Y60: 201003 | Z60: 2010-03-09 | AA60: 5 | AB60: 1 | AC60: 0.48 | AD60: 0.00562851789
A61: 46 | B61: 2022-02-07 | C61: 244.899994 | D61: 245.539993 | E61: 242.619995 | F61: 243.729996 | G61: 1622600 | H61: 242.904022 | I61: 0.9966111106 | J61: 1 | K61: 244.07 | L61: 244.71 | M61: 241.8 | N61: 242.9 | O61: 1622600 | U61: 2010-11-18 | V61: 0.12 | W61: 87.089996 | X61: 201011 | Y61: 200911 | Z61: 2009-12-10 | AA61: 5 | AB61: 0 | AC61: 0.58 | AD61: 0.006659777548
A62: 47 | B62: 2022-02-04 | C62: 246.240005 | D62: 247.070007 | E62: 242.039993 | F62: 244.110001 | G62: 2142000 | H62: 243.282745 | I62: 0.9966111343 | J62: 1 | K62: 245.41 | L62: 246.23 | M62: 241.22 | N62: 243.28 | O62: 2142000 | U62: 2010-09-08 | V62: 0.12 | W62: 83.809998 | X62: 201009 | Y62: 200909 | Z62: 2009-09-08 | AA62: 5 | AB62: 1 | AC62: 0.46 | AD62: 0.005488605309
A63: 48 | B63: 2022-02-03 | C63: 249.880005 | D63: 251.380005 | E63: 247.059998 | F63: 247.320007 | G63: 1803300 | H63: 246.481873 | I63: 0.9966111355 | J63: 1 | K63: 249.03 | L63: 250.53 | M63: 246.22 | N63: 246.48 | O63: 1803300 | U63: 2010-06-15 | V63: 0.12 | W63: 83.010002 | X63: 201006 | Y63: 200906 | Z63: 2009-06-16 | AA63: 5 | AB63: 1 | AC63: 0.45 | AD63: 0.00542103348
A64: 49 | B64: 2022-02-02 | C64: 253.440002 | D64: 253.5 | E64: 248.850006 | F64: 251.820007 | G64: 1746900 | H64: 250.966614 | I64: 0.9966110993 | J64: 1 | K64: 252.58 | L64: 252.64 | M64: 248.01 | N64: 250.97 | O64: 1746900 | U64: 2010-03-09 | V64: 0.11 | W64: 86.849998 | X64: 201003 | Y64: 200903 | Z64: 2009-03-09 | AA64: 5 | AB64: 1 | AC64: 0.44 | AD64: 0.005066206219
A65: 50 | B65: 2022-02-01 | C65: 254.779999 | D65: 256.48999 | E65: 251.300003 | F65: 252 | G65: 4598800 | H65: 251.145996 | I65: 0.9966110952 | J65: 1 | K65: 253.92 | L65: 255.62 | M65: 250.45 | N65: 251.15 | O65: 4598800 | U65: 2009-12-10 | V65: 0.11 | W65: 88.040001 | X65: 200912 | Y65: 200812 | Z65: 2008-12-10 | AA65: 5 | AB65: 1 | AC65: 0.44 | AD65: 0.004997728249
A66: 51 | B66: 2022-01-31 | C66: 244.029999 | D66: 246.160004 | E66: 241 | F66: 245.860001 | G66: 3395900 | H66: 245.02681 | I66: 0.9966111161 | J66: 1 | K66: 243.2 | L66: 245.33 | M66: 240.18 | N66: 245.03 | O66: 3395900 | U66: 2009-09-08 | V66: 0.11 | W66: 70.93 | X66: 200909 | Y66: 200809 | Z66: 2008-09-08 | AA66: 5 | AB66: 1 | AC66: 0.44 | AD66: 0.006203299027
A67: 52 | B67: 2022-01-28 | C67: 241.139999 | D67: 244.910004 | E67: 239.130005 | F67: 244.779999 | G67: 2287600 | H67: 243.95047 | I67: 0.9966111243 | J67: 1 | K67: 240.32 | L67: 244.08 | M67: 238.32 | N67: 243.95 | O67: 2287600 | U67: 2009-06-16 | V67: 0.11 | W67: 51.419998 | X67: 200906 | Y67: 200806 | Z67: 2008-06-11 | AA67: 5 | AB67: 1 | AC67: 0.44 | AD67: 0.008556982052
A68: 53 | B68: 2022-01-27 | C68: 245.25 | D68: 247.639999 | E68: 239.679993 | F68: 241.929993 | G68: 1865700 | H68: 241.110123 | I68: 0.9966111271 | J68: 1 | K68: 244.42 | L68: 246.8 | M68: 238.87 | N68: 241.11 | O68: 1865700 | U68: 2009-03-09 | V68: 0.11 | W68: 34.279999 | X68: 200903 | Y68: 200803 | Z68: 2008-03-07 | AA68: 5 | AB68: 1 | AC68: 0.44 | AD68: 0.01283547295
A69: 54 | B69: 2022-01-26 | C69: 245.809998 | D69: 248.25 | E69: 241.220001 | F69: 243.160004 | G69: 2010800 | H69: 242.335968 | I69: 0.9966111368 | J69: 1 | K69: 244.98 | L69: 247.41 | M69: 240.4 | N69: 242.34 | O69: 2010800 | U69: 2008-12-10 | V69: 0.11 | W69: 61.02 | X69: 200812 | Y69: 200712 | Z69: 2007-12-10 | AA69: 5 | AB69: 1 | AC69: 0.43 | AD69: 0.007046869879
A70: 55 | B70: 2022-01-25 | C70: 241.740005 | D70: 246.740005 | E70: 239.009995 | F70: 244.039993 | G70: 2032200 | H70: 243.212967 | I70: 0.9966111046 | J70: 1 | K70: 240.92 | L70: 245.9 | M70: 238.2 | N70: 243.21 | O70: 2032200 | U70: 2008-09-08 | V70: 0.11 | W70: 84.860001 | X70: 200809 | Y70: 200709 | Z70: 2007-09-06 | AA70: 5 | AB70: 1 | AC70: 0.42 | AD70: 0.004949328247
A71: 56 | B71: 2022-01-24 | C71: 239.559998 | D71: 245.949997 | E71: 236.850006 | F71: 245.720001 | G71: 3051500 | H71: 244.887283 | I71: 0.9966111102 | J71: 1 | K71: 238.75 | L71: 245.12 | M71: 236.05 | N71: 244.89 | O71: 3051500 | U71: 2008-06-11 | V71: 0.11 | W71: 86.57 | X71: 200806 | Y71: 200706 | Z71: 2007-06-07 | AA71: 5 | AB71: 1 | AC71: 0.41 | AD71: 0.00473605175
A72: 57 | B72: 2022-01-21 | C72: 249.630005 | D72: 249.990005 | E72: 243.940002 | F72: 244.910004 | G72: 3063600 | H72: 244.080032 | I72: 0.9966111143 | J72: 1 | K72: 248.78 | L72: 249.14 | M72: 243.11 | N72: 244.08 | O72: 3063600 | U72: 2008-03-07 | V72: 0.1 | W72: 86.699997 | X72: 200803 | Y72: 200703 | Z72: 2007-03-08 | AA72: 5 | AB72: 1 | AC72: 0.4 | AD72: 0.00461361031
A73: 58 | B73: 2022-01-20 | C73: 253.720001 | D73: 256 | E73: 250.639999 | F73: 250.740005 | G73: 1671600 | H73: 249.890274 | I73: 0.9966111072 | J73: 1 | K73: 252.86 | L73: 255.13 | M73: 249.79 | N73: 249.89 | O73: 1671600 | U73: 2007-12-10 | V73: 0.1 | W73: 100.870003 | X73: 200712 | Y73: 200612 | Z73: 2006-12-08 | AA73: 5 | AB73: 1 | AC73: 0.39 | AD73: 0.00386636253
A74: 59 | B74: 2022-01-19 | C74: 253.330002 | D74: 255.809998 | E74: 252.179993 | F74: 252.190002 | G74: 1302800 | H74: 251.335358 | I74: 0.9966111107 | J74: 1 | K74: 252.47 | L74: 254.94 | M74: 251.33 | N74: 251.34 | O74: 1302800 | U74: 2007-09-06 | V74: 0.1 | W74: 110.169998 | X74: 200709 | Y74: 200609 | Z74: 2006-09-07 | AA74: 5 | AB74: 1 | AC74: 0.38 | AD74: 0.003449214912
A75: 60 | B75: 2022-01-18 | C75: 252.660004 | D75: 254.240005 | E75: 250.25 | F75: 253.330002 | G75: 1918700 | H75: 252.471497 | I75: 0.9966111199 | J75: 1 | K75: 251.8 | L75: 253.38 | M75: 249.4 | N75: 252.47 | O75: 1918700 | U75: 2007-06-07 | V75: 0.1 | W75: 107.400002 | X75: 200706 | Y75: 200606 | Z75: 2006-06-08 | AA75: 5 | AB75: 1 | AC75: 0.37 | AD75: 0.003445065113
A76: 61 | B76: 2022-01-14 | C76: 254.589996 | D76: 256.660004 | E76: 253.259995 | F76: 256.220001 | G76: 1393600 | H76: 255.3517 | I76: 0.9966111116 | J76: 1 | K76: 253.73 | L76: 255.79 | M76: 252.4 | N76: 255.35 | O76: 1393600 | U76: 2007-03-08 | V76: 0.09 | W76: 113.589996 | X76: 200703 | Y76: 200603 | Z76: 2006-03-09 | AA76: 5 | AB76: 1 | AC76: 0.36 | AD76: 0.003169293183
A77: 62 | B77: 2022-01-13 | C77: 257.209991 | D77: 260.109985 | E77: 256.299988 | F77: 257.670013 | G77: 1658500 | H77: 256.796814 | I77: 0.9966111734 | J77: 1 | K77: 256.34 | L77: 259.23 | M77: 255.43 | N77: 256.8 | O77: 1658500 | U77: 2006-12-08 | V77: 0.09 | W77: 115.300003 | X77: 200612 | Y77: 200512 | Z77: 2005-12-09 | AA77: 5 | AB77: 1 | AC77: 0.35 | AD77: 0.003035559331
A78: 63 | B78: 2022-01-12 | C78: 256.079987 | D78: 259.01001 | E78: 254.779999 | F78: 256.209991 | G78: 1413500 | H78: 255.341721 | I78: 0.9966111002 | J78: 1 | K78: 255.21 | L78: 258.13 | M78: 253.92 | N78: 255.34 | O78: 1413500 | U78: 2006-09-07 | V78: 0.09 | W78: 100.5 | X78: 200609 | Y78: 200509 | Z78: 2005-09-08 | AA78: 5 | AB78: 1 | AC78: 0.34 | AD78: 0.003383084577
A79: 64 | B79: 2022-01-11 | C79: 256.549988 | D79: 257.390015 | E79: 252.139999 | F79: 255.539993 | G79: 2018300 | H79: 254.673996 | I79: 0.9966111097 | J79: 1 | K79: 255.68 | L79: 256.52 | M79: 251.29 | N79: 254.67 | O79: 2018300 | U79: 2006-06-08 | V79: 0.09 | W79: 107.760002 | X79: 200606 | Y79: 200506 | Z79: 2005-06-08 | AA79: 5 | AB79: 1 | AC79: 0.33 | AD79: 0.003062360745
A80: 65 | B80: 2022-01-10 | C80: 262.619995 | D80: 262.619995 | E80: 252.509995 | F80: 256.549988 | G80: 4553800 | H80: 255.680573 | I80: 0.9966111283 | J80: 1 | K80: 261.73 | L80: 261.73 | M80: 251.65 | N80: 255.68 | O80: 4553800 | U80: 2006-03-09 | V80: 0.08 | W80: 112.349998 | X80: 200603 | Y80: 200503 | Z80: 2005-03-09 | AA80: 5 | AB80: 1 | AC80: 0.32 | AD80: 0.002848242151
A81: 66 | B81: 2022-01-07 | C81: 262.690002 | D81: 266.609985 | E81: 262.040009 | F81: 263.98999 | G81: 1646000 | H81: 263.095367 | I81: =IF(F81=0,1,H81/F81) -> 0.996611148 | J81: =INDEX(OFFSET($T$15,0,0,$S$13+1,1),MATCH(B81,OFFSET($Q$15,0,0,$S$13+1,1),-1)) -> 1 | K81: =ROUND($I81*C81,2) -> 261.8 | L81: =ROUND($I81*D81,2) -> 265.71 | M81: =ROUND($I81*E81,2) -> 261.15 | N81: =ROUND($I81*F81,2) -> 263.1 | O81: =G81*J81 -> 1646000 | U81: 2005-12-09 | V81: 0.08 | W81: =(INDEX(OFFSET($F$15,1,0,$B$10,1),MATCH(U81,OFFSET($B$15,1,0,$B$10,1),-1))) -> 98.080002 | X81: =YEAR(U81)&RIGHT("0"&MONTH(U81),2) -> 200512 | Y81: =YEAR(U81)-1&RIGHT("0"&MONTH(U81),2) -> 200412 | Z81: =OFFSET(U80,AA81,0,1,1) -> 2004-12-09 | AA81: =MATCH(Y81,OFFSET($X$15,A81,0,$V$14+1-A81,1),-1) -> 5 | AB81: =IF(OR(AND(YEAR(U81)=YEAR(Z81),MONTH(U81)=MONTH(Z81)),MONTH(U81)=MONTH(Z81)),1,0) -> 1 | AC81: =(V81+IF(AA81-AB81=0,0,IFERROR(SUM(OFFSET(V81,1,0,AA81-AB81-1,1)),0))) -> 0.31 | AD81: =AC81/(INDEX(OFFSET($F$15,1,0,$B$10,1),MATCH(U81,OFFSET($B$15,1,0,$B$10,1),-1))) -> 0.003160685091
A82: 67 | B82: 2022-01-06 | C82: 261.98999 | D82: 265.01001 | E82: 260.130005 | F82: 263.190002 | G82: 1857800 | H82: 262.298096 | I82: 0.9966111707 | J82: 1 | K82: 261.1 | L82: 264.11 | M82: 259.25 | N82: 262.3 | O82: 1857800 | U82: 2005-09-08 | V82: 0.08 | W82: 80.300003 | X82: 200509 | Y82: 200409 | Z82: 2004-09-08 | AA82: 5 | AB82: 1 | AC82: 0.3 | AD82: 0.003735989898
A83: 68 | B83: 2022-01-05 | C83: 265 | D83: 266.790009 | E83: 261.859985 | F83: 262.130005 | G83: 2437600 | H83: 261.241669 | I83: 0.9966110862 | J83: 1 | K83: 264.1 | L83: 265.89 | M83: 260.97 | N83: 261.24 | O83: 2437600 | U83: 2005-06-08 | V83: 0.08 | W83: 89.699997 | X83: 200506 | Y83: 200406 | Z83: 2004-06-08 | AA83: 5 | AB83: 1 | AC83: 0.29 | AD83: 0.003232998993
A84: 69 | B84: 2022-01-04 | C84: 259.649994 | D84: 265.940002 | E84: 259.309998 | F84: 264.910004 | G84: 2586600 | H84: 264.012268 | I84: 0.9966111661 | J84: 1 | K84: 258.77 | L84: 265.04 | M84: 258.43 | N84: 264.01 | O84: 2586600 | U84: 2005-03-09 | V84: 0.07 | W84: 99.57 | X84: 200503 | Y84: 200403 | Z84: 2004-03-09 | AA84: 5 | AB84: 1 | AC84: 0.28 | AD84: 0.002812091996
A85: 70 | B85: 2022-01-03 | C85: 259.799988 | D85: 261.690002 | E85: 256.959991 | F85: 258.549988 | G85: 1752400 | H85: 257.673798 | I85: 0.9966111389 | J85: 1 | K85: 258.92 | L85: 260.8 | M85: 256.09 | N85: 257.67 | O85: 1752400 | U85: 2004-12-09 | V85: 0.07 | W85: 99.610001 | X85: 200412 | Y85: 200312 | Z85: 2003-12-10 | AA85: 5 | AB85: 1 | AC85: 0.27 | AD85: 0.002710571201
A86: 71 | B86: 2021-12-31 | C86: 257.570007 | D86: 260.23999 | E86: 256.929993 | F86: 258.640015 | G86: 1272300 | H86: 257.763519 | I86: 0.9966111354 | J86: 1 | K86: 256.7 | L86: 259.36 | M86: 256.06 | N86: 257.76 | O86: 1272300 | U86: 2004-09-08 | V86: 0.07 | W86: 83.830002 | X86: 200409 | Y86: 200309 | Z86: 2003-09-08 | AA86: 5 | AB86: 1 | AC86: 0.26 | AD86: 0.003101514897
A87: 72 | B87: 2021-12-30 | C87: 257.890015 | D87: 260.209991 | E87: 257.5 | F87: 258.559998 | G87: 1785300 | H87: 257.683777 | I87: 0.9966111502 | J87: 1 | K87: 257.02 | L87: 259.33 | M87: 256.63 | N87: 257.68 | O87: 1785300 | U87: 2004-06-08 | V87: 0.07 | W87: 76.470001 | X87: 200406 | Y87: 200306 | Z87: 2003-06-10 | AA87: 5 | AB87: 1 | AC87: 0.24 | AD87: 0.00313848564
A88: 73 | B88: 2021-12-29 | C88: 256.480011 | D88: 258.51001 | E88: 256.23999 | F88: 257.48999 | G88: 1467400 | H88: 256.617401 | I88: 0.9966111731 | J88: 1 | K88: 255.61 | L88: 257.63 | M88: 255.37 | N88: 256.62 | O88: 1467400 | U88: 2004-03-09 | V88: 0.06 | W88: 68.550003 | X88: 200403 | Y88: 200303 | Z88: 2003-03-06 | AA88: 5 | AB88: 1 | AC88: 0.22 | AD88: 0.00320933611
A89: 74 | B89: 2021-12-28 | C89: 256.019989 | D89: 258.359985 | E89: 255.479996 | F89: 256.440002 | G89: 1342400 | H89: 255.570953 | I89: 0.996611102 | J89: 1 | K89: 255.15 | L89: 257.48 | M89: 254.61 | N89: 255.57 | O89: 1342400 | U89: 2003-12-10 | V89: 0.06 | W89: 72.040001 | X89: 200312 | Y89: 200212 | Z89: 2002-12-10 | AA89: 5 | AB89: 1 | AC89: 0.21 | AD89: 0.002915047156
A90: 75 | B90: 2021-12-27 | C90: 254.990005 | D90: 257.200012 | E90: 254.350006 | F90: 256.25 | G90: 1478600 | H90: 255.381592 | I90: 0.9966110907 | J90: 1 | K90: 254.13 | L90: 256.33 | M90: 253.49 | N90: 255.38 | O90: 1478600 | U90: 2003-09-08 | V90: 0.05 | W90: 66.559998 | X90: 200309 | Y90: 200209 | Z90: 2002-09-05 | AA90: 5 | AB90: 1 | AC90: 0.2 | AD90: 0.003004807783
A91: 76 | B91: 2021-12-23 | C91: 250.869995 | D91: 256.230011 | E91: 250.649994 | F91: 253.820007 | G91: 2099300 | H91: 252.959839 | I91: 0.9966111103 | J91: 1 | K91: 250.02 | L91: 255.36 | M91: 249.8 | N91: 252.96 | O91: 2099300 | U91: 2003-06-10 | V91: 0.05 | W91: 63.669998 | X91: 200306 | Y91: 200206 | Z91: 2002-06-13 | AA91: 5 | AB91: 1 | AC91: 0.2 | AD91: 0.003141196895
A92: 77 | B92: 2021-12-22 | C92: 252.350006 | D92: 252.740005 | E92: 249.300003 | F92: 249.960007 | G92: 2324300 | H92: 249.112915 | I92: 0.9966110899 | J92: 1 | K92: 251.49 | L92: 251.88 | M92: 248.46 | N92: 249.11 | O92: 2324300 | U92: 2003-03-06 | V92: 0.05 | W92: 51.029999 | X92: 200303 | Y92: 200203 | Z92: 2002-06-13 | AA92: 4 | AB92: 0 | AC92: 0.2 | AD92: 0.003919263255
A93: 78 | B93: 2021-12-21 | C93: 248.279999 | D93: 252.759995 | E93: 247.820007 | F93: 251.949997 | G93: 2528100 | H93: 251.096161 | I93: 0.9966110895 | J93: 1 | K93: 247.44 | L93: 251.9 | M93: 246.98 | N93: 251.1 | O93: 2528100 | U93: 2002-12-10 | V93: 0.05 | W93: 53.380001 | X93: 200212 | Y93: 200112 | Z93: 2002-06-13 | AA93: 3 | AB93: 0 | AC93: 0.15 | AD93: 0.002810041161
A94: 79 | B94: 2021-12-20 | C94: 250.300003 | D94: 252.880005 | E94: 245.449997 | F94: 245.550003 | G94: 2759100 | H94: 244.717865 | I94: 0.9966111261 | J94: 1 | K94: 249.45 | L94: 252.02 | M94: 244.62 | N94: 244.72 | O94: 2759100 | U94: 2002-09-05 | V94: 0.05 | W94: 45.830002 | X94: 200209 | Y94: 200109 | Z94: 2002-06-13 | AA94: 2 | AB94: 0 | AC94: 0.1 | AD94: 0.002181976776
A95: 80 | B95: 2021-12-17 | C95: 253.740005 | D95: 260.5 | E95: 248.059998 | F95: 250.320007 | G95: 10117300 | H95: 249.471695 | I95: 0.9966110899 | J95: 1 | K95: 252.88 | L95: 259.62 | M95: 247.22 | N95: 249.47 | O95: 10117300 | U95: 2002-06-13 | V95: 0.05 | W95: 56.740002 | X95: 200206 | Y95: 200106 | Z95: 2002-06-13 | AA95: 1 | AB95: 1 | AC95: 0.05 | AD95: 0.0008812125174
A96: 81 | B96: 2021-12-16 | C96: 242.570007 | D96: 244.75 | E96: 238.419998 | F96: 238.520004 | G96: 4465900 | H96: 237.711685 | I96: 0.996611106 | J96: 1 | K96: 241.75 | L96: 243.92 | M96: 237.61 | N96: 237.71 | O96: 4465900
A97: 82 | B97: 2021-12-15 | C97: 240.039993 | D97: 242.240005 | E97: 239.009995 | F97: 240.779999 | G97: 1699800 | H97: 239.96402 | I97: 0.9966111014 | J97: 1 | K97: 239.23 | L97: 241.42 | M97: 238.2 | N97: 239.96 | O97: 1699800
A98: 83 | B98: 2021-12-14 | C98: 240 | D98: 244.880005 | E98: 239.360001 | F98: 240.039993 | G98: 1687800 | H98: 239.226532 | I98: 0.9966111439 | J98: 1 | K98: 239.19 | L98: 244.05 | M98: 238.55 | N98: 239.23 | O98: 1687800
A99: 84 | B99: 2021-12-13 | C99: 244.720001 | D99: 245.479996 | E99: 240.5 | F99: 240.899994 | G99: 1690800 | H99: 240.083618 | I99: 0.9966111415 | J99: 1 | K99: 243.89 | L99: 244.65 | M99: 239.68 | N99: 240.08 | O99: 1690800
A100: 85 | B100: 2021-12-10 | C100: 245.789993 | D100: 248.300003 | E100: 244.5 | F100: 246.279999 | G100: 1275300 | H100: 245.445389 | I100: 0.9966111337 | J100: 1 | K100: 244.96 | L100: 247.46 | M100: 243.67 | N100: 245.45 | O100: 1275300
A101: 86 | B101: 2021-12-09 | C101: 243.5 | D101: 247.369995 | E101: 243.100006 | F101: 245.25 | G101: 1279000 | H101: 243.671417 | I101: 0.9935633721 | J101: 1 | K101: 241.93 | L101: 245.78 | M101: 241.54 | N101: 243.67 | O101: 1279000
A102: 87 | B102: 2021-12-08 | C102: 247.550003 | D102: 247.550003 | E102: 243.779999 | F102: 244.75 | G102: 1295500 | H102: 243.174652 | I102: 0.9935634402 | J102: 1 | K102: 245.96 | L102: 245.96 | M102: 242.21 | N102: 243.17 | O102: 1295500
A103: 88 | B103: 2021-12-07 | C103: 247.130005 | D103: 248.990005 | E103: 246.199997 | F103: 247.059998 | G103: 1694800 | H103: 245.469772 | I103: 0.9935634016 | J103: 1 | K103: 245.54 | L103: 247.39 | M103: 244.62 | N103: 245.47 | O103: 1694800
A104: 89 | B104: 2021-12-06 | C104: 243 | D104: 246.979996 | E104: 242.220001 | F104: 245.050003 | G104: 1829500 | H104: 243.472717 | I104: 0.9935634116 | J104: 1 | K104: 241.44 | L104: 245.39 | M104: 240.66 | N104: 243.47 | O104: 1829500
A105: 90 | B105: 2021-12-03 | C105: 236.630005 | D105: 241.360001 | E105: 236.380005 | F105: 240.839996 | G105: 2438300 | H105: 239.28981 | I105: 0.9935634196 | J105: 1 | K105: 235.11 | L105: 239.81 | M105: 234.86 | N105: 239.29 | O105: 2438300
A106: 91 | B106: 2021-12-02 | C106: 227.789993 | D106: 237.229996 | E106: 227.399994 | F106: 235.300003 | G106: 2143100 | H106: 233.785477 | I106: 0.9935634255 | J106: 1 | K106: 226.32 | L106: 235.7 | M106: 225.94 | N106: 233.79 | O106: 2143100
A107: 92 | B107: 2021-12-01 | C107: 235 | D107: 238.190002 | E107: 227.610001 | F107: 227.779999 | G107: 2337300 | H107: 226.313873 | I107: 0.993563412 | J107: 1 | K107: 233.49 | L107: 236.66 | M107: 226.14 | N107: 226.31 | O107: 2337300
A108: 93 | B108: 2021-11-30 | C108: 238.199997 | D108: 239.009995 | E108: 229.910004 | F108: 230.369995 | G108: 3366000 | H108: 228.887207 | I108: 0.99356345 | J108: 1 | K108: 236.67 | L108: 237.47 | M108: 228.43 | N108: 228.89 | O108: 3366000
A109: 94 | B109: 2021-11-29 | C109: 240 | D109: 241.589996 | E109: 237.080002 | F109: 240.570007 | G109: 1695300 | H109: 239.021545 | I109: 0.9935633622 | J109: 1 | K109: 238.46 | L109: 240.03 | M109: 235.55 | N109: 239.02 | O109: 1695300
A110: 95 | B110: 2021-11-26 | C110: 237.309998 | D110: 239.410004 | E110: 235.509995 | F110: 238.149994 | G110: 1775800 | H110: 236.617111 | I110: 0.9935633717 | J110: 1 | K110: 235.78 | L110: 237.87 | M110: 233.99 | N110: 236.62 | O110: 1775800
A111: 96 | B111: 2021-11-24 | C111: 245 | D111: 246.889999 | E111: 243.559998 | F111: 243.570007 | G111: 1646000 | H111: 242.002243 | I111: 0.9935633947 | J111: 1 | K111: 243.42 | L111: 245.3 | M111: 241.99 | N111: 242 | O111: 1646000
A112: 97 | B112: 2021-11-23 | C112: 247 | D112: 247.699997 | E112: 244.380005 | F112: 246.429993 | G112: 1422600 | H112: 244.843826 | I112: 0.9935634174 | J112: 1 | K112: 245.41 | L112: 246.11 | M112: 242.81 | N112: 244.84 | O112: 1422600
A113: 98 | B113: 2021-11-22 | C113: 242.690002 | D113: 251.100006 | E113: 242.039993 | F113: 247.990005 | G113: 2185700 | H113: 246.393784 | I113: 0.9935633656 | J113: 1 | K113: 241.13 | L113: 249.48 | M113: 240.48 | N113: 246.39 | O113: 2185700
A114: 99 | B114: 2021-11-19 | C114: 244.979996 | D114: 246.199997 | E114: 242.539993 | F114: 242.690002 | G114: 2029900 | H114: 241.127914 | I114: 0.9935634431 | J114: 1 | K114: 243.4 | L114: 244.62 | M114: 240.98 | N114: 241.13 | O114: 2029900
A115: 100 | B115: 2021-11-18 | C115: 247.940002 | D115: 248.979996 | E115: 241.240005 | F115: 244.720001 | G115: 2335700 | H115: 243.144836 | I115: 0.993563399 | J115: 1 | K115: 246.34 | L115: 247.38 | M115: 239.69 | N115: 243.14 | O115: 2335700
A116: 101 | B116: 2021-11-17 | C116: 252.610001 | D116: 253.320007 | E116: 247.169998 | F116: 247.350006 | G116: 2104900 | H116: 245.757919 | I116: 0.9935634245 | J116: 1 | K116: 250.98 | L116: 251.69 | M116: 245.58 | N116: 245.76 | O116: 2104900
A117: 102 | B117: 2021-11-16 | C117: 252 | D117: 255.300003 | E117: 251.679993 | F117: 253.179993 | G117: 1608900 | H117: 251.550369 | I117: 0.9935633777 | J117: 1 | K117: 250.38 | L117: 253.66 | M117: 250.06 | N117: 251.55 | O117: 1608900
A118: 103 | B118: 2021-11-15 | C118: 254.5 | D118: 255.25 | E118: 250.25 | F118: 252.300003 | G118: 1993200 | H118: 250.676056 | I118: 0.9935634285 | J118: 1 | K118: 252.86 | L118: 253.61 | M118: 248.64 | N118: 250.68 | O118: 1993200
A119: 104 | B119: 2021-11-12 | C119: 251.940002 | D119: 254.880005 | E119: 250.960007 | F119: 253.880005 | G119: 2115500 | H119: 252.24588 | I119: 0.9935633962 | J119: 1 | K119: 250.32 | L119: 253.24 | M119: 249.34 | N119: 252.25 | O119: 2115500
A120: 105 | B120: 2021-11-11 | C120: 249.419998 | D120: 253.199997 | E120: 248.729996 | F120: 250.990005 | G120: 2050400 | H120: 249.374481 | I120: 0.9935633931 | J120: 1 | K120: 247.81 | L120: 251.57 | M120: 247.13 | N120: 249.37 | O120: 2050400
A121: 106 | B121: 2021-11-10 | C121: 247.710007 | D121: 250.699997 | E121: 246.589996 | F121: 248.520004 | G121: 1859900 | H121: 246.92038 | I121: 0.9935633994 | J121: 1 | K121: 246.12 | L121: 249.09 | M121: 245 | N121: 246.92 | O121: 1859900
A122: 107 | B122: 2021-11-09 | C122: 250 | D122: 250.490005 | E122: 246.100006 | F122: 249.479996 | G122: 1832100 | H122: 247.874191 | I122: 0.9935633918 | J122: 1 | K122: 248.39 | L122: 248.88 | M122: 244.52 | N122: 247.87 | O122: 1832100
A123: 108 | B123: 2021-11-08 | C123: 244.820007 | D123: 249.639999 | E123: 244.619995 | F123: 248.529999 | G123: 2612200 | H123: 246.930313 | I123: 0.9935634088 | J123: 1 | K123: 243.24 | L123: 248.03 | M123: 243.05 | N123: 246.93 | O123: 2612200
A124: 109 | B124: 2021-11-05 | C124: 246.559998 | D124: 246.779999 | E124: 241.440002 | F124: 242.770004 | G124: 1984600 | H124: 241.207382 | I124: 0.9935633646 | J124: 1 | K124: 244.97 | L124: 245.19 | M124: 239.89 | N124: 241.21 | O124: 1984600
A125: 110 | B125: 2021-11-04 | C125: 241.740005 | D125: 245.550003 | E125: 240.669998 | F125: 245.009995 | G125: 2889600 | H125: 243.432968 | I125: 0.9935634177 | J125: 1 | K125: 240.18 | L125: 243.97 | M125: 239.12 | N125: 243.43 | O125: 2889600
A126: 111 | B126: 2021-11-03 | C126: 235.419998 | D126: 240.479996 | E126: 234.619995 | F126: 240.020004 | G126: 2029600 | H126: 238.475098 | I126: 0.9935634282 | J126: 1 | K126: 233.9 | L126: 238.93 | M126: 233.11 | N126: 238.48 | O126: 2029600
A127: 112 | B127: 2021-11-02 | C127: 236.470001 | D127: 237.380005 | E127: 235 | F127: 235.770004 | G127: 1489400 | H127: 234.252441 | I127: 0.9935633754 | J127: 1 | K127: 234.95 | L127: 235.85 | M127: 233.49 | N127: 234.25 | O127: 1489400
A128: 113 | B128: 2021-11-01 | C128: 237.279999 | D128: 237.410004 | E128: 234.690002 | F128: 235.639999 | G128: 1431700 | H128: 234.123276 | I128: 0.993563389 | J128: 1 | K128: 235.75 | L128: 235.88 | M128: 233.18 | N128: 234.12 | O128: 1431700
A129: 114 | B129: 2021-10-29 | C129: 233.919998 | D129: 238.369995 | E129: 233.550003 | F129: 235.529999 | G129: 1999900 | H129: 234.013977 | I129: 0.9935633592 | J129: 1 | K129: 232.41 | L129: 236.84 | M129: 232.05 | N129: 234.01 | O129: 1999900
A130: 115 | B130: 2021-10-28 | C130: 235.559998 | D130: 236.139999 | E130: 233.149994 | F130: 235.960007 | G130: 1718700 | H130: 234.441223 | I130: 0.9935633838 | J130: 1 | K130: 234.04 | L130: 234.62 | M130: 231.65 | N130: 234.44 | O130: 1718700
A131: 116 | B131: 2021-10-27 | C131: 238.5 | D131: 240 | E131: 235.080002 | F131: 235.289993 | G131: 2677000 | H131: 233.775528 | I131: 0.9935634109 | J131: 1 | K131: 236.96 | L131: 238.46 | M131: 233.57 | N131: 233.78 | O131: 2677000
A132: 117 | B132: 2021-10-26 | C132: 238.990005 | D132: 241.289993 | E132: 236.899994 | F132: 237.830002 | G132: 3065400 | H132: 236.299194 | I132: 0.9935634361 | J132: 1 | K132: 237.45 | L132: 239.74 | M132: 235.38 | N132: 236.3 | O132: 3065400
A133: 118 | B133: 2021-10-25 | C133: 233.339996 | D133: 236.279999 | E133: 232.5 | F133: 235.399994 | G133: 2545800 | H133: 233.884827 | I133: 0.9935634365 | J133: 1 | K133: 231.84 | L133: 234.76 | M133: 231 | N133: 233.88 | O133: 2545800
A134: 119 | B134: 2021-10-22 | C134: 232.869995 | D134: 234.699997 | E134: 232.360001 | F134: 232.979996 | G134: 2577400 | H134: 231.480408 | I134: 0.9935634474 | J134: 1 | K134: 231.37 | L134: 233.19 | M134: 230.86 | N134: 231.48 | O134: 2577400
A135: 120 | B135: 2021-10-21 | C135: 231.300003 | D135: 233.360001 | E135: 230.630005 | F135: 232.839996 | G135: 3833400 | H135: 231.341309 | I135: 0.9935634469 | J135: 1 | K135: 229.81 | L135: 231.86 | M135: 229.15 | N135: 231.34 | O135: 3833400
A136: 121 | B136: 2021-10-20 | C136: 230.330002 | D136: 231.960007 | E136: 229.160004 | F136: 231.300003 | G136: 2516900 | H136: 229.811218 | I136: 0.9935634026 | J136: 1 | K136: 228.85 | L136: 230.47 | M136: 227.68 | N136: 229.81 | O136: 2516900
A137: 122 | B137: 2021-10-19 | C137: 229.149994 | D137: 230.389999 | E137: 227.679993 | F137: 229.320007 | G137: 2088100 | H137: 227.843964 | I137: 0.993563392 | J137: 1 | K137: 227.68 | L137: 228.91 | M137: 226.21 | N137: 227.84 | O137: 2088100
A138: 123 | B138: 2021-10-18 | C138: 228.020004 | D138: 229.75 | E138: 226.679993 | F138: 227.979996 | G138: 2676800 | H138: 226.512589 | I138: 0.9935634397 | J138: 1 | K138: 226.55 | L138: 228.27 | M138: 225.22 | N138: 226.51 | O138: 2676800
A139: 124 | B139: 2021-10-15 | C139: 228.350006 | D139: 229.5 | E139: 227.330002 | F139: 229.119995 | G139: 4177900 | H139: 227.645233 | I139: 0.993563364 | J139: 1 | K139: 226.88 | L139: 228.02 | M139: 225.87 | N139: 227.65 | O139: 4177900
A140: 125 | B140: 2021-10-14 | C140: 226.399994 | D140: 228.570007 | E140: 225.770004 | F140: 227.449997 | G140: 2841400 | H140: 225.985992 | I140: 0.9935633985 | J140: 1 | K140: 224.94 | L140: 227.1 | M140: 224.32 | N140: 225.99 | O140: 2841400
A141: 126 | B141: 2021-10-13 | C141: 222.020004 | D141: 225.429993 | E141: 219.509995 | F141: 223.729996 | G141: 4595300 | H141: 222.289932 | I141: 0.9935633843 | J141: 1 | K141: 220.59 | L141: 223.98 | M141: 218.1 | N141: 222.29 | O141: 4595300
A142: 127 | B142: 2021-10-12 | C142: 219.820007 | D142: 222.080002 | E142: 219.679993 | F142: 221.320007 | G142: 2541500 | H142: 219.895462 | I142: 0.9935634152 | J142: 1 | K142: 218.41 | L142: 220.65 | M142: 218.27 | N142: 219.9 | O142: 2541500
A143: 128 | B143: 2021-10-11 | C143: 224.029999 | D143: 224.580002 | E143: 219.360001 | F143: 219.820007 | G143: 2884700 | H143: 218.405121 | I143: 0.9935634339 | J143: 1 | K143: 222.59 | L143: 223.13 | M143: 217.95 | N143: 218.41 | O143: 2884700
A144: 129 | B144: 2021-10-08 | C144: 222.399994 | D144: 223.940002 | E144: 221.419998 | F144: 223.440002 | G144: 2365000 | H144: 222.001801 | I144: 0.9935633683 | J144: 1 | K144: 220.97 | L144: 222.5 | M144: 219.99 | N144: 222 | O144: 2365000
A145: 130 | B145: 2021-10-07 | C145: 227 | D145: 227.660004 | E145: 222.479996 | F145: 222.949997 | G145: 3954100 | H145: 221.514969 | I145: =IF(F145=0,1,H145/F145) -> 0.9935634536 | J145: =INDEX(OFFSET($T$15,0,0,$S$13+1,1),MATCH(B145,OFFSET($Q$15,0,0,$S$13+1,1),-1)) -> 1 | K145: =ROUND($I145*C145,2) -> 225.54 | L145: =ROUND($I145*D145,2) -> 226.19 | M145: =ROUND($I145*E145,2) -> 221.05 | N145: =ROUND($I145*F145,2) -> 221.51 | O145: =G145*J145 -> 3954100
A146: 131 | B146: 2021-10-06 | C146: 222.080002 | D146: 224.940002 | E146: 219.830002 | F146: 224.199997 | G146: 3652900 | H146: 222.756912 | I146: 0.9935634031 | J146: 1 | K146: 220.65 | L146: 223.49 | M146: 218.42 | N146: 222.76 | O146: 3652900
A147: 132 | B147: 2021-10-05 | C147: 217.5 | D147: 226.460007 | E147: 216.339996 | F147: 224.270004 | G147: 5326900 | H147: 222.826462 | I147: 0.9935633746 | J147: 1 | K147: 216.1 | L147: 225 | M147: 214.95 | N147: 222.83 | O147: 5326900
A148: 133 | B148: 2021-10-04 | C148: 221.240005 | D148: 224 | E148: 217.259995 | F148: 217.869995 | G148: 3924100 | H148: 216.467651 | I148: 0.9935633909 | J148: 1 | K148: 219.82 | L148: 222.56 | M148: 215.86 | N148: 216.47 | O148: 3924100
A149: 134 | B149: 2021-10-01 | C149: 220.009995 | D149: 224.100006 | E149: 218.179993 | F149: 222.529999 | G149: 4033100 | H149: 221.097672 | I149: 0.9935634431 | J149: 1 | K149: 218.59 | L149: 222.66 | M149: 216.78 | N149: 221.1 | O149: 4033100
A150: 135 | B150: 2021-09-30 | C150: 221.589996 | D150: 223.169998 | E150: 219.029999 | F150: 219.289993 | G150: 3858600 | H150: 217.87851 | I150: 0.9935633953 | J150: 1 | K150: 220.16 | L150: 221.73 | M150: 217.62 | N150: 217.88 | O150: 3858600
A151: 136 | B151: 2021-09-29 | C151: 223 | D151: 224.240005 | E151: 220.800003 | F151: 221.089996 | G151: 3737200 | H151: 219.666916 | I151: 0.9935633451 | J151: 1 | K151: 221.56 | L151: 222.8 | M151: 219.38 | N151: 219.67 | O151: 3737200
A152: 137 | B152: 2021-09-28 | C152: 225.820007 | D152: 228.050003 | E152: 221.759995 | F152: 222.399994 | G152: 4717700 | H152: 220.968491 | I152: 0.9935633856 | J152: 1 | K152: 224.37 | L152: 226.58 | M152: 220.33 | N152: 220.97 | O152: 4717700
A153: 138 | B153: 2021-09-27 | C153: 226 | D153: 229.25 | E153: 225.679993 | F153: 226.509995 | G153: 4335500 | H153: 225.052032 | I153: 0.9935633613 | J153: 1 | K153: 224.55 | L153: 227.77 | M153: 224.23 | N153: 225.05 | O153: 4335500
A154: 139 | B154: 2021-09-24 | C154: 228 | D154: 229 | E154: 226.600006 | F154: 226.639999 | G154: 4973400 | H154: 225.181213 | I154: 0.9935634221 | J154: 1 | K154: 226.53 | L154: 227.53 | M154: 225.14 | N154: 225.18 | O154: 4973400
A155: 140 | B155: 2021-09-23 | C155: 229.070007 | D155: 231.289993 | E155: 228.080002 | F155: 228.919998 | G155: 7092700 | H155: 227.446533 | I155: 0.9935634064 | J155: 1 | K155: 227.6 | L155: 229.8 | M155: 226.61 | N155: 227.45 | O155: 7092700
A156: 141 | B156: 2021-09-22 | C156: 234.179993 | D156: 234.979996 | E156: 228.979996 | F156: 229.080002 | G156: 17792400 | H156: 227.605499 | I156: 0.9935633709 | J156: 1 | K156: 232.67 | L156: 233.47 | M156: 227.51 | N156: 227.61 | O156: 17792400
A157: 142 | B157: 2021-09-21 | C157: 253 | D157: 253.880005 | E157: 248.779999 | F157: 252.070007 | G157: 4481100 | H157: 250.44754 | I157: 0.993563427 | J157: 1 | K157: 251.37 | L157: 252.25 | M157: 247.18 | N157: 250.45 | O157: 4481100
A158: 143 | B158: 2021-09-20 | C158: 252.110001 | D158: 253.979996 | E158: 248.160004 | F158: 250.800003 | G158: 3474500 | H158: 249.185699 | I158: 0.9935633813 | J158: 1 | K158: 250.49 | L158: 252.35 | M158: 246.56 | N158: 249.19 | O158: 3474500
A159: 144 | B159: 2021-09-17 | C159: 255.399994 | D159: 257.709991 | E159: 254.089996 | F159: 255.220001 | G159: 3082400 | H159: 253.577255 | I159: 0.993563412 | J159: 1 | K159: 253.76 | L159: 256.05 | M159: 252.45 | N159: 253.58 | O159: 3082400
A160: 145 | B160: 2021-09-16 | C160: 257.970001 | D160: 259.410004 | E160: 256.040009 | F160: 258.380005 | G160: 1711900 | H160: 256.716919 | I160: 0.9935634106 | J160: 1 | K160: 256.31 | L160: 257.74 | M160: 254.39 | N160: 256.72 | O160: 1711900
A161: 146 | B161: 2021-09-15 | C161: 256.309998 | D161: 259.649994 | E161: 254.880005 | F161: 256.589996 | G161: 2285900 | H161: 254.938431 | I161: 0.9935634085 | J161: 1 | K161: 254.66 | L161: 257.98 | M161: 253.24 | N161: 254.94 | O161: 2285900
A162: 147 | B162: 2021-09-14 | C162: 262.209991 | D162: 262.959991 | E162: 254.710007 | F162: 255.199997 | G162: 2583500 | H162: 253.557373 | I162: 0.9935633855 | J162: 1 | K162: 260.52 | L162: 261.27 | M162: 253.07 | N162: 253.56 | O162: 2583500
A163: 148 | B163: 2021-09-13 | C163: 259.459991 | D163: 261.899994 | E163: 257.75 | F163: 261.859985 | G163: 1848000 | H163: 260.1745 | I163: 0.9935634114 | J163: 1 | K163: 257.79 | L163: 260.21 | M163: 256.09 | N163: 260.17 | O163: 1848000
A164: 149 | B164: 2021-09-10 | C164: 261.540009 | D164: 262.220001 | E164: 257.23999 | F164: 257.549988 | G164: 1717500 | H164: 255.892258 | I164: 0.9935634631 | J164: 1 | K164: 259.86 | L164: 260.53 | M164: 255.58 | N164: 255.89 | O164: 1717500
A165: 150 | B165: 2021-09-09 | C165: 259.130005 | D165: 262.730011 | E165: 257.290009 | F165: 259.220001 | G165: 2132800 | H165: 257.551483 | I165: 0.993563313 | J165: 1 | K165: 257.46 | L165: 261.04 | M165: 255.63 | N165: 257.55 | O165: 2132800
A166: 151 | B166: 2021-09-08 | C166: 263.25 | D166: 263.290009 | E166: 258.839996 | F166: 261.019989 | G166: 1963200 | H166: 259.339905 | I166: 0.9935633895 | J166: 1 | K166: 261.56 | L166: 261.6 | M166: 257.17 | N166: 259.34 | O166: 1963200
A167: 152 | B167: 2021-09-07 | C167: 266.309998 | D167: 267.369995 | E167: 262.959991 | F167: 263.640015 | G167: 1634500 | H167: 261.943054 | I167: 0.9935633405 | J167: 1 | K167: 264.6 | L167: 265.65 | M167: 261.27 | N167: 261.94 | O167: 1634500
A168: 153 | B168: 2021-09-03 | C168: 266.549988 | D168: 268.579987 | E168: 264.890015 | F168: 266.040009 | G168: 1524800 | H168: 264.327606 | I168: 0.9935633629 | J168: 1 | K168: 264.83 | L168: 266.85 | M168: 263.19 | N168: 264.33 | O168: 1524800
A169: 154 | B169: 2021-09-02 | C169: 266.309998 | D169: 268.980011 | E169: 266.25 | F169: 267.089996 | G169: 1311300 | H169: 265.37085 | I169: 0.9935634205 | J169: 1 | K169: 264.6 | L169: 267.25 | M169: 264.54 | N169: 265.37 | O169: 1311300
A170: 155 | B170: 2021-09-01 | C170: 266.089996 | D170: 267.440002 | E170: 263.540009 | F170: 265.929993 | G170: 1760600 | H170: 263.473145 | I170: 0.9907612978 | J170: 1 | K170: 263.63 | L170: 264.97 | M170: 261.11 | N170: 263.47 | O170: 1760600
A171: 156 | B171: 2021-08-31 | C171: 266.059998 | D171: 266.929993 | E171: 264.679993 | F171: 265.690002 | G171: 1637600 | H171: 263.235352 | I171: 0.9907612256 | J171: 1 | K171: 263.6 | L171: 264.46 | M171: 262.23 | N171: 263.24 | O171: 1637600
A172: 157 | B172: 2021-08-30 | C172: 268.75 | D172: 268.850006 | E172: 265.440002 | F172: 265.540009 | G172: 1761600 | H172: 263.086761 | I172: 0.9907612867 | J172: 1 | K172: 266.27 | L172: 266.37 | M172: 262.99 | N172: 263.09 | O172: 1761600
A173: 158 | B173: 2021-08-27 | C173: 267.450012 | D173: 269.25 | E173: 266.910004 | F173: 267.899994 | G173: 1551700 | H173: 265.424957 | I173: 0.9907613398 | J173: 1 | K173: 264.98 | L173: 266.76 | M173: 264.44 | N173: 265.42 | O173: 1551700
A174: 159 | B174: 2021-08-26 | C174: 269.940002 | D174: 269.940002 | E174: 266.790009 | F174: 267.459991 | G174: 1312100 | H174: 264.989014 | I174: 0.990761321 | J174: 1 | K174: 267.45 | L174: 267.45 | M174: 264.33 | N174: 264.99 | O174: 1312100
A175: 160 | B175: 2021-08-25 | C175: 268 | D175: 271.850006 | E175: 267.309998 | F175: 270.369995 | G175: 2116200 | H175: 267.872101 | I175: 0.9907612011 | J175: 1 | K175: 265.52 | L175: 269.34 | M175: 264.84 | N175: 267.87 | O175: 2116200
A176: 161 | B176: 2021-08-24 | C176: 266.779999 | D176: 269.079987 | E176: 266.299988 | F176: 267.809998 | G176: 2111700 | H176: 265.335754 | I176: 0.9907611963 | J176: 1 | K176: 264.32 | L176: 266.59 | M176: 263.84 | N176: 265.34 | O176: 2111700
A177: 162 | B177: 2021-08-23 | C177: 268 | D177: 269.140015 | E177: 266.670013 | F177: 266.899994 | G177: 2041400 | H177: 264.434174 | I177: 0.9907612587 | J177: 1 | K177: 265.52 | L177: 266.65 | M177: 264.21 | N177: 264.43 | O177: 2041400
A178: 163 | B178: 2021-08-20 | C178: 266.399994 | D178: 268.5 | E178: 264.070007 | F178: 266.549988 | G178: 2404600 | H178: 264.087402 | I178: 0.9907612601 | J178: 1 | K178: 263.94 | L178: 266.02 | M178: 261.63 | N178: 264.09 | O178: 2404600
A179: 164 | B179: 2021-08-19 | C179: 270 | D179: 270.730011 | E179: 265.040009 | F179: 267.559998 | G179: 3101100 | H179: 265.088074 | I179: 0.9907612348 | J179: 1 | K179: 267.51 | L179: 268.23 | M179: 262.59 | N179: 265.09 | O179: 3101100
A180: 165 | B180: 2021-08-18 | C180: 276.059998 | D180: 277.630005 | E180: 272.420013 | F180: 272.76001 | G180: 2136600 | H180: 270.240051 | I180: 0.9907612593 | J180: 1 | K180: 273.51 | L180: 275.07 | M180: 269.9 | N180: 270.24 | O180: 2136600
A181: 166 | B181: 2021-08-17 | C181: 279.209991 | D181: 280.5 | E181: 274.790009 | F181: 277.859985 | G181: 2939900 | H181: 275.292908 | I181: 0.990761257 | J181: 1 | K181: 276.63 | L181: 277.91 | M181: 272.25 | N181: 275.29 | O181: 2939900
A182: 167 | B182: 2021-08-16 | C182: 276.799988 | D182: 282.880005 | E182: 275.160004 | F182: 281.660004 | G182: 2757900 | H182: 279.057831 | I182: 0.9907612974 | J182: 1 | K182: 274.24 | L182: 280.27 | M182: 272.62 | N182: 279.06 | O182: 2757900
A183: 168 | B183: 2021-08-13 | C183: 275.230011 | D183: 278.75 | E183: 274.76001 | F183: 277.179993 | G183: 1946200 | H183: 274.619202 | I183: 0.9907612704 | J183: 1 | K183: 272.69 | L183: 276.17 | M183: 272.22 | N183: 274.62 | O183: 1946200
A184: 169 | B184: 2021-08-12 | C184: 276.5 | D184: 278.609985 | E184: 273.690002 | F184: 276.100006 | G184: 1211200 | H184: 273.549194 | I184: 0.9907612751 | J184: 1 | K184: 273.95 | L184: 276.04 | M184: 271.16 | N184: 273.55 | O184: 1211200
A185: 170 | B185: 2021-08-11 | C185: 272.420013 | D185: 277.160004 | E185: 271.26001 | F185: 276.269989 | G185: 2017800 | H185: 273.717621 | I185: 0.9907613273 | J185: 1 | K185: 269.9 | L185: 274.6 | M185: 268.75 | N185: 273.72 | O185: 2017800
A186: 171 | B186: 2021-08-10 | C186: 272.5 | D186: 274.369995 | E186: 270.959991 | F186: 271.26001 | G186: 2144700 | H186: 268.753937 | I186: 0.9907613621 | J186: 1 | K186: 269.98 | L186: 271.84 | M186: 268.46 | N186: 268.75 | O186: 2144700
A187: 172 | B187: 2021-08-09 | C187: 275.049988 | D187: 275.980011 | E187: 272.559998 | F187: 272.670013 | G187: 1847600 | H187: 270.150879 | I187: 0.9907612356 | J187: 1 | K187: 272.51 | L187: 273.43 | M187: 270.04 | N187: 270.15 | O187: 1847600
A188: 173 | B188: 2021-08-06 | C188: 276.670013 | D188: 278.450012 | E188: 275.029999 | F188: 276.269989 | G188: 1701800 | H188: 273.717621 | I188: 0.9907613273 | J188: 1 | K188: 274.11 | L188: 275.88 | M188: 272.49 | N188: 273.72 | O188: 1701800
A189: 174 | B189: 2021-08-05 | C189: 275.899994 | D189: 277.779999 | E189: 274.670013 | F189: 275.799988 | G189: 2089700 | H189: 273.251953 | I189: 0.990761294 | J189: 1 | K189: 273.35 | L189: 275.21 | M189: 272.13 | N189: 273.25 | O189: 2089700
A190: 175 | B190: 2021-08-04 | C190: 279.329987 | D190: 280.290009 | E190: 275.079987 | F190: 275.119995 | G190: 1978800 | H190: 272.578217 | I190: 0.9907612022 | J190: 1 | K190: 276.75 | L190: 277.7 | M190: 272.54 | N190: 272.58 | O190: 1978800
A191: 176 | B191: 2021-08-03 | C191: 276.279999 | D191: 281.709991 | E191: 274.25 | F191: 280.809998 | G191: 2151100 | H191: 278.215668 | I191: 0.990761262 | J191: 1 | K191: 273.73 | L191: 279.11 | M191: 271.72 | N191: 278.22 | O191: 2151100
A192: 177 | B192: 2021-08-02 | C192: 280.790009 | D192: 282.609985 | E192: 275.390015 | F192: 276.160004 | G192: 2490400 | H192: 273.608643 | I192: 0.9907612943 | J192: 1 | K192: 278.2 | L192: 280 | M192: 272.85 | N192: 273.61 | O192: 2490400
A193: 178 | B193: 2021-07-30 | C193: 280 | D193: 282 | E193: 277.790009 | F193: 279.950012 | G193: 2337200 | H193: 277.363617 | I193: 0.9907612256 | J193: 1 | K193: 277.41 | L193: 279.39 | M193: 275.22 | N193: 277.36 | O193: 2337200
A194: 179 | B194: 2021-07-29 | C194: 281.829987 | D194: 284.649994 | E194: 281.190002 | F194: 281.920013 | G194: 1820800 | H194: 279.31543 | I194: 0.9907612696 | J194: 1 | K194: 279.23 | L194: 282.02 | M194: 278.59 | N194: 279.32 | O194: 1820800
A195: 180 | B195: 2021-07-28 | C195: 284.209991 | D195: 284.299988 | E195: 280.279999 | F195: 281.829987 | G195: 2732100 | H195: 279.226227 | I195: 0.9907612386 | J195: 1 | K195: 281.58 | L195: 281.67 | M195: 277.69 | N195: 279.23 | O195: 2732100
A196: 181 | B196: 2021-07-27 | C196: 287.5 | D196: 288.380005 | E196: 279.119995 | F196: 282.630005 | G196: 4837200 | H196: 280.01886 | I196: 0.9907612605 | J196: 1 | K196: 284.84 | L196: 285.72 | M196: 276.54 | N196: 280.02 | O196: 4837200
A197: 182 | B197: 2021-07-26 | C197: 296.089996 | D197: 298.5 | E197: 295.649994 | F197: 297.5 | G197: 1205500 | H197: 294.751465 | I197: 0.9907612269 | J197: 1 | K197: 293.35 | L197: 295.74 | M197: 292.92 | N197: 294.75 | O197: 1205500
A198: 183 | B198: 2021-07-23 | C198: 297.799988 | D198: 298.660004 | E198: 296.089996 | F198: 297.070007 | G198: 1000600 | H198: 294.325439 | I198: 0.990761208 | J198: 1 | K198: 295.05 | L198: 295.9 | M198: 293.35 | N198: 294.33 | O198: 1000600
A199: 184 | B199: 2021-07-22 | C199: 297.549988 | D199: 298.850006 | E199: 296.059998 | F199: 296.619995 | G199: 981800 | H199: 293.879608 | I199: 0.990761287 | J199: 1 | K199: 294.8 | L199: 296.09 | M199: 293.32 | N199: 293.88 | O199: 981800
A200: 185 | B200: 2021-07-21 | C200: 297.51001 | D200: 301.950012 | E200: 297.329987 | F200: 298.350006 | G200: 1339000 | H200: 295.593597 | I200: 0.9907611565 | J200: 1 | K200: 294.76 | L200: 299.16 | M200: 294.58 | N200: 295.59 | O200: 1339000
... 4300 more rows

Sheet CalculationsAndCharts
A1: EhlersLoops.xlsm
A2: =InputPriceData!A1 -> FedEx Corporation (FDX) -NYSE (Daily) | G2: ="Ehlers Loops: " & $A$2 -> Ehlers Loops: FedEx Corporation (FDX) -NYSE (Daily)
A4: User Charting Controls | E4: Click to Shift Chart One Bar:
A5: Data Control | C5: TRUE
A6: =MIN(InputPriceData!$B$10) -> 11098 | B6: Available Input Data Rows | E6: Earliest: | F6: =OFFSET(InputPriceData!B15,CalculationsAndCharts!A6,0,1,1) -> 1978-04-12
A7: =MAX(A33:A56896) -> 2700 | B7: Available Calculation Rows | E7: Latest: | F7: =OFFSET(InputPriceData!B15,1,0,1,1) -> 2022-04-12
A8: =MIN(AvailableInputRows-DataPanRows,A7) -> 2700 | B8: Logically Available for Calc / Plot | E8: $ Change: | F8: =G33-G34 -> -10.13
A10: Historical Price Windowing Specifications | F10: Click to Shift
A11: 92 | B11: Input Data Offset (Pan) | F11: Points to Plot
A12: 63 | B12: Data Points to Plot (Zoom)
B13: First: | C13: =OFFSET(B32,A12,0,1,1) -> 2021-09-01
B14: ="Last: " & IF(OFFSET(InputPriceData!P15,1+A11,0,1,1)="","",TEXT(OFFSET(InputPriceData!P15,1+A11,0,1,1),"H:MM AM/PM")) -> Last: | C14: =B33 -> 2021-11-30
A15: User Controls | C15: Coefs
A16: 125 | B16: HP Period | C16: HP a1 | D16: HP b1
C17: =EXP(-1.414*3.14159/A16) -> 0.9650863825 | D17: =2*C17*COS(RADIANS(1.414*180/A16)) -> 1.928954059
C18: HP c1 | D18: HP c2 | E18: HP c3
C19: =(1+D19-E19)/4 -> 0.9650864461 | D19: =D17 -> 1.928954059 | E19: =-C17*C17 -> -0.9313917257
A21: 20 | B21: LP Period | C21: SS a1 | D21: SS b1
C22: =EXP(-1.414*3.14159/A21) -> 0.8008269377 | D22: =2*C22*COS(RADIANS(1.414*180/A21)) -> 1.562308736
C23: SS c1 | D23: SS c2 | E23: SS c3
C24: =1-D24-E24 -> 0.07901504796 | D24: =D22 -> 1.562308736 | E24: =-C22*C22 -> -0.6413237842
A25: Help! I would like to plot data
A26: From | B26: 2021-09-01 | C26: =OFFSET(InputPriceData!$A$15,MATCH(B26,OFFSET(InputPriceData!B15,1,0,InputPriceData!$B$10,1),0),0,1,1)-C27 -> 63 | E26: 42
A27: To | B27: 2021-11-30 | C27: =OFFSET(InputPriceData!$A$15,MATCH(B27,OFFSET(InputPriceData!$B$15,1,0,InputPriceData!$B$10,1),0),0,1,1)-1 -> 92 | E27: =$A$12-$E$26+1 -> 22
H28: Value @ Cursor => | I28: =OFFSET(A32,$E$27,0,1,1)&"(RR)" -> 22(RR) | J28: =OFFSET($B$32,$E$27,0,1,1) -> 2021-10-29 | K28: =TEXT(OFFSET(D32,$E$27,0,1,1),"#,##0.00")&"(o)" -> 232.41(o) | L28: =TEXT(OFFSET(E32,$E$27,0,1,1),"#,##0.00")&"(h)" -> 236.84(h) | M28: =TEXT(OFFSET(F32,$E$27,0,1,1),"#,##0.00")&"(l)" -> 232.05(l) | N28: =TEXT(OFFSET(G32,$E$27,0,1,1),"#,##0.00")&"(c)" -> 234.01(c) | O28: =TEXT(OFFSET(C32,$E$27,0,1,1),"#,##0.00,,""M""")&"(v)" -> 2.00M(v)
E29: Cursor ==> | AY29: Work Area For Chart Cursors
B30: =LogicallyAvailableRows -> 2700 | C30: <== Calculation Rel Row Limits ==> | H30: =B30-3+1 -> 2698 | M30: =B30-3+1 -> 2698
A31: Rel Row | B31: =InputPriceData!A1 -> FedEx Corporation (FDX) -NYSE (Daily) | H31: Smooth Price and Scale to Std Dev | M31: Smooth Volume and Scale to Std Dev | AW31: Used To Color Vol Bars | BM31: LoopChart Cursor
B32: Date | C32: Volume | D32: Open | E32: High | F32: Low | G32: Close | H32: HP | I32: Price | J32: PriceMS | K32: Sqrt(PrMS) | L32: PriceRMS (Y-Axis) | M32: VolHP | N32: Vol | O32: VolMS | P32: Sqrt(VolMS) | Q32: VolRMS (X-Axis) | AW32: Up Vol | AX32: Dn Vol | AY32: Volume Cursor | AZ32: =MAX(OFFSET(C33,0,0,A12,1)) -> 17792400 | BA32: Price Chart Cursor | BC32: Indicator 01 Cursor | BE32: Indicator 02 Cursor | BG32: Indicator 03 Cursor | BI32: Indicator 04 Cursor | BK32: Price Chart2 Cursor | BM32: =OFFSET($B$32,$E$27,0,1,1) -> 2021-10-29
A33: 1 | B33: =IF($A33>$B$30,NA(),IF($A33>$A$8,"",OFFSET(InputPriceData!$B$15,$A33+$A$11,0,1,1))) -> 2021-11-30 | C33: =IF($A33>$B$30,NA(),IF($A33>$A$8,"",OFFSET(InputPriceData!$G$15,CalculationsAndCharts!$A33+$A$11,IF($C$5,8,0),1,1))) -> 3366000 | D33: =IF($A33>$B$30,NA(),IF($A33>$A$8,"",OFFSET(InputPriceData!$C$15,CalculationsAndCharts!$A33+$A$11,IF($C$5,8,0),1,1))) -> 236.67 | E33: =IF($A33>$B$30,NA(),IF($A33>$A$8,"",OFFSET(InputPriceData!$D$15,CalculationsAndCharts!$A33+$A$11,IF($C$5,8,0),1,1))) -> 237.47 | F33: =IF($A33>$B$30,NA(),IF($A33>$A$8,"",OFFSET(InputPriceData!$E$15,CalculationsAndCharts!$A33+$A$11,IF($C$5,8,0),1,1))) -> 228.43 | G33: =IF($A33>$B$30,NA(),IF($A33>$A$8,"",OFFSET(InputPriceData!$F$15,CalculationsAndCharts!$A33+$A$11,IF($C$5,8,0),1,1))) -> 228.89 | H33: =IF($A33>$H$30+2,NA(),IF($A33>$H$30,0,$C$19*($G33-2*$G34+$G35)+$D$19*H34+$E$19*H35)) -> -5.16127326 | I33: =IF($A33>$H$30+2,NA(),IF($A33>$H$30,0,$C$24*(H33+H34)/2+$D$24*I34+$E$24*I35)) -> 10.09813681 | J33: =IF($A33>$H$30,NA(),IF($A33=$H$30,I33*I33,0.0242*I33*I33+0.9758*J34)) -> 217.9323164 | K33: =IF($A33>$H$30,NA(),IF(J33=0,0,SQRT(J33))) -> 14.76253082 | L33: =IF($A33>$H$30,NA(),IF(J33=0,0,I33/K33)) -> 0.6840383217 | M33: =IF($A33>$M$30+2,NA(),IF($A33>$M$30,0,$C$19*($C33-2*$C34+$C35)+$D$19*M34+$E$19*M35)) -> 1243273.443 | N33: =IF($A33>$M$30+2,NA(),IF($A33>$M$30,0,$C$24*(M33+M34)/2+$D$24*N34+$E$24*N35)) -> -406459.8369 | O33: =IF($A33>$M$30,NA(),IF($A33=$M$30,N33*N33,0.0242*N33*N33+0.9758*O34)) -> 1.214696774e+12 | P33: =IF($A33>$M$30,NA(),IF(O33=0,0,SQRT(O33))) -> 1102132.829 | Q33: =IF($A33>$M$30,NA(),IF(O33=0,0,N33/P33)) -> -0.368793875 | AW33: =IF(G33>=D33,C33,NA()) ->  | AX33: =IF(G33<D33,C33,NA()) -> 3366000 | AY33: =$E$27 -> 22 | AZ33: 0 | BA33: =$E$27 -> 22 | BB33: 214.95 | BC33: =$E$27 -> 22 | BE33: =$E$27 -> 22 | BG33: =$E$27 -> 22 | BH33: -1.895721835 | BI33: =$E$27 -> 22 | BJ33: -1.226879228 | BK33: =$E$27 -> 22 | BL33: -1.895721835 | BM33: =OFFSET($Q$32,$E$27,0,1,1) -> -1.030646042 | BN33: =OFFSET($L$32,$E$27,0,1,1) -> 1.493682983
A34: 2 | B34: =IF(A34>$B$30,NA(),IF($A34>$A$8,"",OFFSET(InputPriceData!$B$15,$A34+$A$11,0,1,1))) -> 2021-11-29 | C34: =IF(A34>$B$30,NA(),IF($A34>$A$8,"",OFFSET(InputPriceData!$G$15,CalculationsAndCharts!$A34+$A$11,IF($C$5,8,0),1,1))) -> 1695300 | D34: =IF(A34>$B$30,NA(),IF(A34>$A$8,"",OFFSET(InputPriceData!$C$15,CalculationsAndCharts!$A34+$A$11,IF($C$5,8,0),1,1))) -> 238.46 | E34: =IF(A34>$B$30,NA(),IF(A34>$A$8,"",OFFSET(InputPriceData!$D$15,CalculationsAndCharts!$A34+$A$11,IF($C$5,8,0),1,1))) -> 240.03 | F34: =IF(A34>$B$30,NA(),IF(A34>$A$8,"",OFFSET(InputPriceData!$E$15,CalculationsAndCharts!$A34+$A$11,IF($C$5,8,0),1,1))) -> 235.55 | G34: =IF(A34>$B$30,NA(),IF(A34>$A$8,"",OFFSET(InputPriceData!$F$15,CalculationsAndCharts!$A34+$A$11,IF($C$5,8,0),1,1))) -> 239.02 | H34: =IF(A34>$H$30+2,NA(),IF(A34>$H$30,0,$C$19*(G34-2*G35+G36)+$D$19*H35+$E$19*H36)) -> 4.908065086 | I34: =IF(A34>$H$30+2,NA(),IF(A34>$H$30,0,$C$24*(H34+H35)/2+$D$24*I35+$E$24*I36)) -> 12.42225434 | J34: =IF($A34>$H$30,NA(),IF($A34=$H$30,I34*I34,0.0242*I34*I34+0.9758*J35)) -> 220.8081421 | K34: =IF(A34>$H$30,NA(),IF(J34=0,0,SQRT(J34))) -> 14.85961447 | L34: =IF(A34>$H$30,NA(),IF(J34=0,0,I34/K34)) -> 0.8359742014 | M34: =IF($A34>$M$30+2,NA(),IF($A34>$M$30,0,$C$19*($C34-2*$C35+$C36)+$D$19*M35+$E$19*M36)) -> -428310.1087 | N34: =IF($A34>$M$30+2,NA(),IF($A34>$M$30,0,$C$24*(M34+M35)/2+$D$24*N35+$E$24*N36)) -> -485764.7894 | O34: =IF($A34>$M$30,NA(),IF($A34=$M$30,N34*N34,0.0242*N34*N34+0.9758*O35)) -> 1.240724228e+12 | P34: =IF($A34>$M$30,NA(),IF(O34=0,0,SQRT(O34))) -> 1113878.013 | Q34: =IF($A34>$M$30,NA(),IF(O34=0,0,N34/P34)) -> -0.4361023234 | AW34: 1695300 | AY34: =$E$27 -> 22 | AZ34: =CEILING(AZ32,10^INT(LOG10(AZ32))/8) -> 18750000 | BA34: =$E$27 -> 22 | BB34: 267.25 | BC34: =$E$27 -> 22 | BD34: 0 | BE34: =$E$27 -> 22 | BF34: 0 | BG34: =$E$27 -> 22 | BH34: 1.748741769 | BI34: =$E$27 -> 22 | BJ34: 3.841500535 | BK34: =$E$27 -> 22 | BL34: 1.748741769
A35: 3 | B35: =IF(A35>$B$30,NA(),IF($A35>$A$8,"",OFFSET(InputPriceData!$B$15,$A35+$A$11,0,1,1))) -> 2021-11-26 | C35: =IF(A35>$B$30,NA(),IF($A35>$A$8,"",OFFSET(InputPriceData!$G$15,CalculationsAndCharts!$A35+$A$11,IF($C$5,8,0),1,1))) -> 1775800 | D35: =IF(A35>$B$30,NA(),IF(A35>$A$8,"",OFFSET(InputPriceData!$C$15,CalculationsAndCharts!$A35+$A$11,IF($C$5,8,0),1,1))) -> 235.78 | E35: =IF(A35>$B$30,NA(),IF(A35>$A$8,"",OFFSET(InputPriceData!$D$15,CalculationsAndCharts!$A35+$A$11,IF($C$5,8,0),1,1))) -> 237.87 | F35: =IF(A35>$B$30,NA(),IF(A35>$A$8,"",OFFSET(InputPriceData!$E$15,CalculationsAndCharts!$A35+$A$11,IF($C$5,8,0),1,1))) -> 233.99 | G35: =IF(A35>$B$30,NA(),IF(A35>$A$8,"",OFFSET(InputPriceData!$F$15,CalculationsAndCharts!$A35+$A$11,IF($C$5,8,0),1,1))) -> 236.62 | H35: 2.722991937 | I35: 14.50009538 | J35: 222.4572474 | K35: 14.91500075 | L35: 0.972182008 | M35: -407352.321 | N35: -499369.5257 | O35: 1.265642361e+12 | P35: 1125007.716 | Q35: -0.4438809784 | AW35: 1775800
A36: 4 | B36: =IF(A36>$B$30,NA(),IF($A36>$A$8,"",OFFSET(InputPriceData!$B$15,$A36+$A$11,0,1,1))) -> 2021-11-24 | C36: =IF(A36>$B$30,NA(),IF($A36>$A$8,"",OFFSET(InputPriceData!$G$15,CalculationsAndCharts!$A36+$A$11,IF($C$5,8,0),1,1))) -> 1646000 | D36: =IF(A36>$B$30,NA(),IF(A36>$A$8,"",OFFSET(InputPriceData!$C$15,CalculationsAndCharts!$A36+$A$11,IF($C$5,8,0),1,1))) -> 243.42 | E36: =IF(A36>$B$30,NA(),IF(A36>$A$8,"",OFFSET(InputPriceData!$D$15,CalculationsAndCharts!$A36+$A$11,IF($C$5,8,0),1,1))) -> 245.3 | F36: =IF(A36>$B$30,NA(),IF(A36>$A$8,"",OFFSET(InputPriceData!$E$15,CalculationsAndCharts!$A36+$A$11,IF($C$5,8,0),1,1))) -> 241.99 | G36: =IF(A36>$B$30,NA(),IF(A36>$A$8,"",OFFSET(InputPriceData!$F$15,CalculationsAndCharts!$A36+$A$11,IF($C$5,8,0),1,1))) -> 242 | H36: 8.431290076 | I36: 16.42361592 | J36: 222.7599205 | K36: 14.9251439 | L36: 1.100399167 | M36: -601692.5729 | N36: -510537.0247 | O36: 1.290846084e+12 | P36: 1136154.076 | Q36: -0.4493554488 | AX36: 1646000
A37: 5 | B37: =IF(A37>$B$30,NA(),IF($A37>$A$8,"",OFFSET(InputPriceData!$B$15,$A37+$A$11,0,1,1))) -> 2021-11-23 | C37: =IF(A37>$B$30,NA(),IF($A37>$A$8,"",OFFSET(InputPriceData!$G$15,CalculationsAndCharts!$A37+$A$11,IF($C$5,8,0),1,1))) -> 1422600 | D37: =IF(A37>$B$30,NA(),IF(A37>$A$8,"",OFFSET(InputPriceData!$C$15,CalculationsAndCharts!$A37+$A$11,IF($C$5,8,0),1,1))) -> 245.41 | E37: =IF(A37>$B$30,NA(),IF(A37>$A$8,"",OFFSET(InputPriceData!$D$15,CalculationsAndCharts!$A37+$A$11,IF($C$5,8,0),1,1))) -> 246.11 | F37: =IF(A37>$B$30,NA(),IF(A37>$A$8,"",OFFSET(InputPriceData!$E$15,CalculationsAndCharts!$A37+$A$11,IF($C$5,8,0),1,1))) -> 242.81 | G37: =IF(A37>$B$30,NA(),IF(A37>$A$8,"",OFFSET(InputPriceData!$F$15,CalculationsAndCharts!$A37+$A$11,IF($C$5,8,0),1,1))) -> 244.84 | H37: 11.90611791 | I37: 18.08656035 | J37: 221.5949268 | K37: 14.88606485 | L37: 1.214999432 | M37: -905759.7119 | N37: -527209.191 | O37: 1.316395164e+12 | P37: 1147342.653 | Q37: -0.4595045687 | AX37: 1422600
A38: 6 | B38: =IF(A38>$B$30,NA(),IF($A38>$A$8,"",OFFSET(InputPriceData!$B$15,$A38+$A$11,0,1,1))) -> 2021-11-22 | C38: =IF(A38>$B$30,NA(),IF($A38>$A$8,"",OFFSET(InputPriceData!$G$15,CalculationsAndCharts!$A38+$A$11,IF($C$5,8,0),1,1))) -> 2185700 | D38: =IF(A38>$B$30,NA(),IF(A38>$A$8,"",OFFSET(InputPriceData!$C$15,CalculationsAndCharts!$A38+$A$11,IF($C$5,8,0),1,1))) -> 241.13 | E38: =IF(A38>$B$30,NA(),IF(A38>$A$8,"",OFFSET(InputPriceData!$D$15,CalculationsAndCharts!$A38+$A$11,IF($C$5,8,0),1,1))) -> 249.48 | F38: =IF(A38>$B$30,NA(),IF(A38>$A$8,"",OFFSET(InputPriceData!$E$15,CalculationsAndCharts!$A38+$A$11,IF($C$5,8,0),1,1))) -> 240.48 | G38: =IF(A38>$B$30,NA(),IF(A38>$A$8,"",OFFSET(InputPriceData!$F$15,CalculationsAndCharts!$A38+$A$11,IF($C$5,8,0),1,1))) -> 246.39 | H38: 14.26907981 | I38: 19.70401888 | J38: 218.9777968 | K38: 14.79789839 | L38: 1.331541706 | M38: -207666.1357 | N38: -581113.9658 | O38: 1.342148786e+12 | P38: 1158511.453 | Q38: -0.5016039888 | AW38: 2185700
A39: 7 | B39: =IF(A39>$B$30,NA(),IF($A39>$A$8,"",OFFSET(InputPriceData!$B$15,$A39+$A$11,0,1,1))) -> 2021-11-19 | C39: =IF(A39>$B$30,NA(),IF($A39>$A$8,"",OFFSET(InputPriceData!$G$15,CalculationsAndCharts!$A39+$A$11,IF($C$5,8,0),1,1))) -> 2029900 | D39: =IF(A39>$B$30,NA(),IF(A39>$A$8,"",OFFSET(InputPriceData!$C$15,CalculationsAndCharts!$A39+$A$11,IF($C$5,8,0),1,1))) -> 243.4 | E39: =IF(A39>$B$30,NA(),IF(A39>$A$8,"",OFFSET(InputPriceData!$D$15,CalculationsAndCharts!$A39+$A$11,IF($C$5,8,0),1,1))) -> 244.62 | F39: =IF(A39>$B$30,NA(),IF(A39>$A$8,"",OFFSET(InputPriceData!$E$15,CalculationsAndCharts!$A39+$A$11,IF($C$5,8,0),1,1))) -> 240.98 | G39: =IF(A39>$B$30,NA(),IF(A39>$A$8,"",OFFSET(InputPriceData!$F$15,CalculationsAndCharts!$A39+$A$11,IF($C$5,8,0),1,1))) -> 241.13 | H39: 9.712393358 | I39: 21.41089738 | J39: 214.7798591 | K39: 14.65536963 | L39: 1.46095922 | M39: -409748.8181 | N39: -662159.9624 | O39: 1.367059443e+12 | P39: 1169213.173 | Q39: -0.5663295436 | AX39: 2029900
A40: 8 | B40: =IF(A40>$B$30,NA(),IF($A40>$A$8,"",OFFSET(InputPriceData!$B$15,$A40+$A$11,0,1,1))) -> 2021-11-18 | C40: =IF(A40>$B$30,NA(),IF($A40>$A$8,"",OFFSET(InputPriceData!$G$15,CalculationsAndCharts!$A40+$A$11,IF($C$5,8,0),1,1))) -> 2335700 | D40: =IF(A40>$B$30,NA(),IF(A40>$A$8,"",OFFSET(InputPriceData!$C$15,CalculationsAndCharts!$A40+$A$11,IF($C$5,8,0),1,1))) -> 246.34 | E40: =IF(A40>$B$30,NA(),IF(A40>$A$8,"",OFFSET(InputPriceData!$D$15,CalculationsAndCharts!$A40+$A$11,IF($C$5,8,0),1,1))) -> 247.38 | F40: =IF(A40>$B$30,NA(),IF(A40>$A$8,"",OFFSET(InputPriceData!$E$15,CalculationsAndCharts!$A40+$A$11,IF($C$5,8,0),1,1))) -> 239.69 | G40: =IF(A40>$B$30,NA(),IF(A40>$A$8,"",OFFSET(InputPriceData!$F$15,CalculationsAndCharts!$A40+$A$11,IF($C$5,8,0),1,1))) -> 243.14 | H40: 12.32763715 | I40: 22.91176804 | J40: 208.7373818 | K40: 14.4477466 | L40: 1.585836787 | M40: -147345.7437 | N40: -744985.4132 | O40: 1.390088965e+12 | P40: 1179020.341 | Q40: -0.6318681596 | AX40: 2335700
A41: 9 | B41: =IF(A41>$B$30,NA(),IF($A41>$A$8,"",OFFSET(InputPriceData!$B$15,$A41+$A$11,0,1,1))) -> 2021-11-17 | C41: =IF(A41>$B$30,NA(),IF($A41>$A$8,"",OFFSET(InputPriceData!$G$15,CalculationsAndCharts!$A41+$A$11,IF($C$5,8,0),1,1))) -> 2104900 | D41: =IF(A41>$B$30,NA(),IF(A41>$A$8,"",OFFSET(InputPriceData!$C$15,CalculationsAndCharts!$A41+$A$11,IF($C$5,8,0),1,1))) -> 250.98 | E41: =IF(A41>$B$30,NA(),IF(A41>$A$8,"",OFFSET(InputPriceData!$D$15,CalculationsAndCharts!$A41+$A$11,IF($C$5,8,0),1,1))) -> 251.69 | F41: =IF(A41>$B$30,NA(),IF(A41>$A$8,"",OFFSET(InputPriceData!$E$15,CalculationsAndCharts!$A41+$A$11,IF($C$5,8,0),1,1))) -> 245.58 | G41: =IF(A41>$B$30,NA(),IF(A41>$A$8,"",OFFSET(InputPriceData!$F$15,CalculationsAndCharts!$A41+$A$11,IF($C$5,8,0),1,1))) -> 245.76 | H41: 15.73532886 | I41: 23.78690047 | J41: 200.895279 | K41: 14.17375317 | L41: 1.678235833 | M41: -421240.3101 | N41: -816664.9931 | O41: 1.410799228e+12 | P41: 1187770.697 | Q41: -0.6875611559 | AX41: 2104900
A42: 10 | B42: =IF(A42>$B$30,NA(),IF($A42>$A$8,"",OFFSET(InputPriceData!$B$15,$A42+$A$11,0,1,1))) -> 2021-11-16 | C42: =IF(A42>$B$30,NA(),IF($A42>$A$8,"",OFFSET(InputPriceData!$G$15,CalculationsAndCharts!$A42+$A$11,IF($C$5,8,0),1,1))) -> 1608900 | D42: =IF(A42>$B$30,NA(),IF(A42>$A$8,"",OFFSET(InputPriceData!$C$15,CalculationsAndCharts!$A42+$A$11,IF($C$5,8,0),1,1))) -> 250.38 | E42: =IF(A42>$B$30,NA(),IF(A42>$A$8,"",OFFSET(InputPriceData!$D$15,CalculationsAndCharts!$A42+$A$11,IF($C$5,8,0),1,1))) -> 253.66 | F42: =IF(A42>$B$30,NA(),IF(A42>$A$8,"",OFFSET(InputPriceData!$E$15,CalculationsAndCharts!$A42+$A$11,IF($C$5,8,0),1,1))) -> 250.06 | G42: =IF(A42>$B$30,NA(),IF(A42>$A$8,"",OFFSET(InputPriceData!$F$15,CalculationsAndCharts!$A42+$A$11,IF($C$5,8,0),1,1))) -> 251.55 | H42: 22.63753559 | I42: 23.94954476 | J42: 191.8451695 | K42: 13.85081837 | L42: 1.729106838 | M42: -989002.1161 | N42: -862841.6423 | O42: 1.429247016e+12 | P42: 1195511.194 | Q42: -0.7217344733 | AW42: 1608900
A43: 11 | B43: =IF(A43>$B$30,NA(),IF($A43>$A$8,"",OFFSET(InputPriceData!$B$15,$A43+$A$11,0,1,1))) -> 2021-11-15 | C43: =IF(A43>$B$30,NA(),IF($A43>$A$8,"",OFFSET(InputPriceData!$G$15,CalculationsAndCharts!$A43+$A$11,IF($C$5,8,0),1,1))) -> 1993200 | D43: =IF(A43>$B$30,NA(),IF(A43>$A$8,"",OFFSET(InputPriceData!$C$15,CalculationsAndCharts!$A43+$A$11,IF($C$5,8,0),1,1))) -> 252.86 | E43: =IF(A43>$B$30,NA(),IF(A43>$A$8,"",OFFSET(InputPriceData!$D$15,CalculationsAndCharts!$A43+$A$11,IF($C$5,8,0),1,1))) -> 253.61 | F43: =IF(A43>$B$30,NA(),IF(A43>$A$8,"",OFFSET(InputPriceData!$E$15,CalculationsAndCharts!$A43+$A$11,IF($C$5,8,0),1,1))) -> 248.64 | G43: =IF(A43>$B$30,NA(),IF(A43>$A$8,"",OFFSET(InputPriceData!$F$15,CalculationsAndCharts!$A43+$A$11,IF($C$5,8,0),1,1))) -> 250.68 | H43: 23.08798864 | I43: 23.61630703 | J43: 182.3780659 | K43: 13.50474235 | L43: 1.748741769 | M43: -683851.6167 | N43: -915411.5964 | O43: 1.446228961e+12 | P43: 1202592.6 | Q43: -0.761198428 | AX43: 1993200
A44: 12 | B44: =IF(A44>$B$30,NA(),IF($A44>$A$8,"",OFFSET(InputPriceData!$B$15,$A44+$A$11,0,1,1))) -> 2021-11-12 | C44: =IF(A44>$B$30,NA(),IF($A44>$A$8,"",OFFSET(InputPriceData!$G$15,CalculationsAndCharts!$A44+$A$11,IF($C$5,8,0),1,1))) -> 2115500 | D44: =IF(A44>$B$30,NA(),IF(A44>$A$8,"",OFFSET(InputPriceData!$C$15,CalculationsAndCharts!$A44+$A$11,IF($C$5,8,0),1,1))) -> 250.32 | E44: =IF(A44>$B$30,NA(),IF(A44>$A$8,"",OFFSET(InputPriceData!$D$15,CalculationsAndCharts!$A44+$A$11,IF($C$5,8,0),1,1))) -> 253.24 | F44: =IF(A44>$B$30,NA(),IF(A44>$A$8,"",OFFSET(InputPriceData!$E$15,CalculationsAndCharts!$A44+$A$11,IF($C$5,8,0),1,1))) -> 249.34 | G44: =IF(A44>$B$30,NA(),IF(A44>$A$8,"",OFFSET(InputPriceData!$F$15,CalculationsAndCharts!$A44+$A$11,IF($C$5,8,0),1,1))) -> 252.25 | H44: 26.03946767 | I44: 23.00385647 | J44: 173.0692775 | K44: 13.15557971 | L44: 1.748600744 | M44: -625911.5992 | N44: -987651.1937 | O44: 1.461313675e+12 | P44: 1208848.078 | Q44: -0.8170184591 | AW44: 2115500
A45: 13 | B45: =IF(A45>$B$30,NA(),IF($A45>$A$8,"",OFFSET(InputPriceData!$B$15,$A45+$A$11,0,1,1))) -> 2021-11-11 | C45: =IF(A45>$B$30,NA(),IF($A45>$A$8,"",OFFSET(InputPriceData!$G$15,CalculationsAndCharts!$A45+$A$11,IF($C$5,8,0),1,1))) -> 2050400 | D45: =IF(A45>$B$30,NA(),IF(A45>$A$8,"",OFFSET(InputPriceData!$C$15,CalculationsAndCharts!$A45+$A$11,IF($C$5,8,0),1,1))) -> 247.81 | E45: =IF(A45>$B$30,NA(),IF(A45>$A$8,"",OFFSET(InputPriceData!$D$15,CalculationsAndCharts!$A45+$A$11,IF($C$5,8,0),1,1))) -> 251.57 | F45: =IF(A45>$B$30,NA(),IF(A45>$A$8,"",OFFSET(InputPriceData!$E$15,CalculationsAndCharts!$A45+$A$11,IF($C$5,8,0),1,1))) -> 247.13 | G45: =IF(A45>$B$30,NA(),IF(A45>$A$8,"",OFFSET(InputPriceData!$F$15,CalculationsAndCharts!$A45+$A$11,IF($C$5,8,0),1,1))) -> 249.37 | H45: 24.52922105 | I45: 22.24106357 | J45: 164.2377373 | K45: 12.8155272 | L45: 1.735477849 | M45: -756244.965 | N45: -1059293.309 | O45: 1.473363053e+12 | P45: 1213821.673 | Q45: -0.872692697 | AW45: 2050400
A46: 14 | B46: =IF(A46>$B$30,NA(),IF($A46>$A$8,"",OFFSET(InputPriceData!$B$15,$A46+$A$11,0,1,1))) -> 2021-11-10 | C46: =IF(A46>$B$30,NA(),IF($A46>$A$8,"",OFFSET(InputPriceData!$G$15,CalculationsAndCharts!$A46+$A$11,IF($C$5,8,0),1,1))) -> 1859900 | D46: =IF(A46>$B$30,NA(),IF(A46>$A$8,"",OFFSET(InputPriceData!$C$15,CalculationsAndCharts!$A46+$A$11,IF($C$5,8,0),1,1))) -> 246.12 | E46: =IF(A46>$B$30,NA(),IF(A46>$A$8,"",OFFSET(InputPriceData!$D$15,CalculationsAndCharts!$A46+$A$11,IF($C$5,8,0),1,1))) -> 249.09 | F46: =IF(A46>$B$30,NA(),IF(A46>$A$8,"",OFFSET(InputPriceData!$E$15,CalculationsAndCharts!$A46+$A$11,IF($C$5,8,0),1,1))) -> 245 | G46: =IF(A46>$B$30,NA(),IF(A46>$A$8,"",OFFSET(InputPriceData!$F$15,CalculationsAndCharts!$A46+$A$11,IF($C$5,8,0),1,1))) -> 246.92 | H46: 23.28908386 | I46: 21.42661083 | J46: 156.0430893 | K46: 12.49172083 | L46: 1.715264944 | M46: -1024136.257 | N46: -1125636.689 | O46: 1.482074377e+12 | P46: 1217404.771 | Q46: -0.9246199091 | AW46: 1859900
A47: 15 | B47: =IF(A47>$B$30,NA(),IF($A47>$A$8,"",OFFSET(InputPriceData!$B$15,$A47+$A$11,0,1,1))) -> 2021-11-09 | C47: =IF(A47>$B$30,NA(),IF($A47>$A$8,"",OFFSET(InputPriceData!$G$15,CalculationsAndCharts!$A47+$A$11,IF($C$5,8,0),1,1))) -> 1832100 | D47: =IF(A47>$B$30,NA(),IF(A47>$A$8,"",OFFSET(InputPriceData!$C$15,CalculationsAndCharts!$A47+$A$11,IF($C$5,8,0),1,1))) -> 248.39 | E47: =IF(A47>$B$30,NA(),IF(A47>$A$8,"",OFFSET(InputPriceData!$D$15,CalculationsAndCharts!$A47+$A$11,IF($C$5,8,0),1,1))) -> 248.88 | F47: =IF(A47>$B$30,NA(),IF(A47>$A$8,"",OFFSET(InputPriceData!$E$15,CalculationsAndCharts!$A47+$A$11,IF($C$5,8,0),1,1))) -> 244.52 | G47: =IF(A47>$B$30,NA(),IF(A47>$A$8,"",OFFSET(InputPriceData!$F$15,CalculationsAndCharts!$A47+$A$11,IF($C$5,8,0),1,1))) -> 247.87 | H47: 25.41964359 | I47: 20.46251965 | J47: 148.5272369 | K47: 12.1871751 | L47: 1.679020732 | M47: -1140494.628 | N47: -1200075.838 | O47: 1.487406819e+12 | P47: 1219592.891 | Q47: -0.9839970753 | AX47: 1832100
A48: 16 | B48: =IF(A48>$B$30,NA(),IF($A48>$A$8,"",OFFSET(InputPriceData!$B$15,$A48+$A$11,0,1,1))) -> 2021-11-08 | C48: =IF(A48>$B$30,NA(),IF($A48>$A$8,"",OFFSET(InputPriceData!$G$15,CalculationsAndCharts!$A48+$A$11,IF($C$5,8,0),1,1))) -> 2612200 | D48: =IF(A48>$B$30,NA(),IF(A48>$A$8,"",OFFSET(InputPriceData!$C$15,CalculationsAndCharts!$A48+$A$11,IF($C$5,8,0),1,1))) -> 243.24 | E48: =IF(A48>$B$30,NA(),IF(A48>$A$8,"",OFFSET(InputPriceData!$D$15,CalculationsAndCharts!$A48+$A$11,IF($C$5,8,0),1,1))) -> 248.03 | F48: =IF(A48>$B$30,NA(),IF(A48>$A$8,"",OFFSET(InputPriceData!$E$15,CalculationsAndCharts!$A48+$A$11,IF($C$5,8,0),1,1))) -> 243.05 | G48: =IF(A48>$B$30,NA(),IF(A48>$A$8,"",OFFSET(InputPriceData!$F$15,CalculationsAndCharts!$A48+$A$11,IF($C$5,8,0),1,1))) -> 246.93 | H48: 25.68224171 | I48: 19.43873581 | J48: 141.8265432 | K48: 11.90909498 | L48: 1.632259701 | M48: -425312.0729 | N48: -1301638.117 | O48: 1.488578002e+12 | P48: 1220072.949 | Q48: -1.066852697 | AW48: 2612200
A49: 17 | B49: =IF(A49>$B$30,NA(),IF($A49>$A$8,"",OFFSET(InputPriceData!$B$15,$A49+$A$11,0,1,1))) -> 2021-11-05 | C49: =IF(A49>$B$30,NA(),IF($A49>$A$8,"",OFFSET(InputPriceData!$G$15,CalculationsAndCharts!$A49+$A$11,IF($C$5,8,0),1,1))) -> 1984600 | D49: =IF(A49>$B$30,NA(),IF(A49>$A$8,"",OFFSET(InputPriceData!$C$15,CalculationsAndCharts!$A49+$A$11,IF($C$5,8,0),1,1))) -> 244.97 | E49: =IF(A49>$B$30,NA(),IF(A49>$A$8,"",OFFSET(InputPriceData!$D$15,CalculationsAndCharts!$A49+$A$11,IF($C$5,8,0),1,1))) -> 245.19 | F49: =IF(A49>$B$30,NA(),IF(A49>$A$8,"",OFFSET(InputPriceData!$E$15,CalculationsAndCharts!$A49+$A$11,IF($C$5,8,0),1,1))) -> 239.89 | G49: =IF(A49>$B$30,NA(),IF(A49>$A$8,"",OFFSET(InputPriceData!$F$15,CalculationsAndCharts!$A49+$A$11,IF($C$5,8,0),1,1))) -> 241.21 | H49: 20.94404218 | I49: 18.59543708 | J49: 135.9727644 | K49: 11.66073602 | L49: 1.594705262 | M49: -1114960.529 | N49: -1396090.293 | O49: 1.48347701e+12 | P49: 1217980.71 | Q49: -1.146233501 | AX49: 1984600
A50: 18 | B50: =IF(A50>$B$30,NA(),IF($A50>$A$8,"",OFFSET(InputPriceData!$B$15,$A50+$A$11,0,1,1))) -> 2021-11-04 | C50: =IF(A50>$B$30,NA(),IF($A50>$A$8,"",OFFSET(InputPriceData!$G$15,CalculationsAndCharts!$A50+$A$11,IF($C$5,8,0),1,1))) -> 2889600 | D50: =IF(A50>$B$30,NA(),IF(A50>$A$8,"",OFFSET(InputPriceData!$C$15,CalculationsAndCharts!$A50+$A$11,IF($C$5,8,0),1,1))) -> 240.18 | E50: =IF(A50>$B$30,NA(),IF(A50>$A$8,"",OFFSET(InputPriceData!$D$15,CalculationsAndCharts!$A50+$A$11,IF($C$5,8,0),1,1))) -> 243.97 | F50: =IF(A50>$B$30,NA(),IF(A50>$A$8,"",OFFSET(InputPriceData!$E$15,CalculationsAndCharts!$A50+$A$11,IF($C$5,8,0),1,1))) -> 239.12 | G50: =IF(A50>$B$30,NA(),IF(A50>$A$8,"",OFFSET(InputPriceData!$F$15,CalculationsAndCharts!$A50+$A$11,IF($C$5,8,0),1,1))) -> 243.43 | H50: 24.02924486 | I50: 17.86175301 | J50: 130.7692556 | K50: 11.43543859 | L50: 1.561964841 | M50: -264447.3542 | N50: -1466245.795 | O50: 1.471930275e+12 | P50: 1213231.336 | Q50: -1.208545931 | AW50: 2889600
A51: 19 | B51: =IF(A51>$B$30,NA(),IF($A51>$A$8,"",OFFSET(InputPriceData!$B$15,$A51+$A$11,0,1,1))) -> 2021-11-03 | C51: =IF(A51>$B$30,NA(),IF($A51>$A$8,"",OFFSET(InputPriceData!$G$15,CalculationsAndCharts!$A51+$A$11,IF($C$5,8,0),1,1))) -> 2029600 | D51: =IF(A51>$B$30,NA(),IF(A51>$A$8,"",OFFSET(InputPriceData!$C$15,CalculationsAndCharts!$A51+$A$11,IF($C$5,8,0),1,1))) -> 233.9 | E51: =IF(A51>$B$30,NA(),IF(A51>$A$8,"",OFFSET(InputPriceData!$D$15,CalculationsAndCharts!$A51+$A$11,IF($C$5,8,0),1,1))) -> 238.93 | F51: =IF(A51>$B$30,NA(),IF(A51>$A$8,"",OFFSET(InputPriceData!$E$15,CalculationsAndCharts!$A51+$A$11,IF($C$5,8,0),1,1))) -> 233.11 | G51: =IF(A51>$B$30,NA(),IF(A51>$A$8,"",OFFSET(InputPriceData!$F$15,CalculationsAndCharts!$A51+$A$11,IF($C$5,8,0),1,1))) -> 238.48 | H51: 19.84943274 | I51: 17.28755299 | J51: 126.1000552 | K51: 11.22942809 | L51: 1.539486504 | M51: -1179443.424 | N51: -1479962.75 | O51: 1.455117092e+12 | P51: 1206282.343 | Q51: -1.226879228 | AW51: 2029600
A52: 20 | B52: =IF(A52>$B$30,NA(),IF($A52>$A$8,"",OFFSET(InputPriceData!$B$15,$A52+$A$11,0,1,1))) -> 2021-11-02 | C52: =IF(A52>$B$30,NA(),IF($A52>$A$8,"",OFFSET(InputPriceData!$G$15,CalculationsAndCharts!$A52+$A$11,IF($C$5,8,0),1,1))) -> 1489400 | D52: =IF(A52>$B$30,NA(),IF(A52>$A$8,"",OFFSET(InputPriceData!$C$15,CalculationsAndCharts!$A52+$A$11,IF($C$5,8,0),1,1))) -> 234.95 | E52: =IF(A52>$B$30,NA(),IF(A52>$A$8,"",OFFSET(InputPriceData!$D$15,CalculationsAndCharts!$A52+$A$11,IF($C$5,8,0),1,1))) -> 235.85 | F52: =IF(A52>$B$30,NA(),IF(A52>$A$8,"",OFFSET(InputPriceData!$E$15,CalculationsAndCharts!$A52+$A$11,IF($C$5,8,0),1,1))) -> 233.49 | G52: =IF(A52>$B$30,NA(),IF(A52>$A$8,"",OFFSET(InputPriceData!$F$15,CalculationsAndCharts!$A52+$A$11,IF($C$5,8,0),1,1))) -> 234.25 | H52: 16.05582357 | I52: 16.9653461 | J52: 121.815593 | K52: 11.03701015 | L52: 1.537132419 | M52: -1827383.83 | N52: -1407958.835 | O52: 1.436884689e+12 | P52: 1198701.251 | Q52: -1.174570256 | AX52: 1489400
A53: 21 | B53: =IF(A53>$B$30,NA(),IF($A53>$A$8,"",OFFSET(InputPriceData!$B$15,$A53+$A$11,0,1,1))) -> 2021-11-01 | C53: =IF(A53>$B$30,NA(),IF($A53>$A$8,"",OFFSET(InputPriceData!$G$15,CalculationsAndCharts!$A53+$A$11,IF($C$5,8,0),1,1))) -> 1431700 | D53: =IF(A53>$B$30,NA(),IF(A53>$A$8,"",OFFSET(InputPriceData!$C$15,CalculationsAndCharts!$A53+$A$11,IF($C$5,8,0),1,1))) -> 235.75 | E53: =IF(A53>$B$30,NA(),IF(A53>$A$8,"",OFFSET(InputPriceData!$D$15,CalculationsAndCharts!$A53+$A$11,IF($C$5,8,0),1,1))) -> 235.88 | F53: =IF(A53>$B$30,NA(),IF(A53>$A$8,"",OFFSET(InputPriceData!$E$15,CalculationsAndCharts!$A53+$A$11,IF($C$5,8,0),1,1))) -> 233.18 | G53: =IF(A53>$B$30,NA(),IF(A53>$A$8,"",OFFSET(InputPriceData!$F$15,CalculationsAndCharts!$A53+$A$11,IF($C$5,8,0),1,1))) -> 234.12 | H53: 16.18907203 | I53: 16.58457627 | J53: 117.6985828 | K53: 10.84889777 | L53: 1.528687672 | M53: -2018314.927 | N53: -1307445.567 | O53: 1.423357108e+12 | P53: 1193045.308 | Q53: -1.095889282 | AX53: 1431700
A54: 22 | B54: =IF(A54>$B$30,NA(),IF($A54>$A$8,"",OFFSET(InputPriceData!$B$15,$A54+$A$11,0,1,1))) -> 2021-10-29 | C54: =IF(A54>$B$30,NA(),IF($A54>$A$8,"",OFFSET(InputPriceData!$G$15,CalculationsAndCharts!$A54+$A$11,IF($C$5,8,0),1,1))) -> 1999900 | D54: =IF(A54>$B$30,NA(),IF(A54>$A$8,"",OFFSET(InputPriceData!$C$15,CalculationsAndCharts!$A54+$A$11,IF($C$5,8,0),1,1))) -> 232.41 | E54: =IF(A54>$B$30,NA(),IF(A54>$A$8,"",OFFSET(InputPriceData!$D$15,CalculationsAndCharts!$A54+$A$11,IF($C$5,8,0),1,1))) -> 236.84 | F54: =IF(A54>$B$30,NA(),IF(A54>$A$8,"",OFFSET(InputPriceData!$E$15,CalculationsAndCharts!$A54+$A$11,IF($C$5,8,0),1,1))) -> 232.05 | G54: =IF(A54>$B$30,NA(),IF(A54>$A$8,"",OFFSET(InputPriceData!$F$15,CalculationsAndCharts!$A54+$A$11,IF($C$5,8,0),1,1))) -> 234.01 | H54: 16.31048885 | I54: 15.9339144 | J54: 113.7962873 | K54: 10.66753426 | L54: 1.493682983 | M54: -1569484.99 | N54: -1226539.31 | O54: 1.416262852e+12 | P54: 1190068.423 | Q54: -1.030646042 | AW54: 1999900
A55: 23 | B55: =IF(A55>$B$30,NA(),IF($A55>$A$8,"",OFFSET(InputPriceData!$B$15,$A55+$A$11,0,1,1))) -> 2021-10-28 | C55: =IF(A55>$B$30,NA(),IF($A55>$A$8,"",OFFSET(InputPriceData!$G$15,CalculationsAndCharts!$A55+$A$11,IF($C$5,8,0),1,1))) -> 1718700 | D55: =IF(A55>$B$30,NA(),IF(A55>$A$8,"",OFFSET(InputPriceData!$C$15,CalculationsAndCharts!$A55+$A$11,IF($C$5,8,0),1,1))) -> 234.04 | E55: =IF(A55>$B$30,NA(),IF(A55>$A$8,"",OFFSET(InputPriceData!$D$15,CalculationsAndCharts!$A55+$A$11,IF($C$5,8,0),1,1))) -> 234.62 | F55: =IF(A55>$B$30,NA(),IF(A55>$A$8,"",OFFSET(InputPriceData!$E$15,CalculationsAndCharts!$A55+$A$11,IF($C$5,8,0),1,1))) -> 231.65 | G55: =IF(A55>$B$30,NA(),IF(A55>$A$8,"",OFFSET(InputPriceData!$F$15,CalculationsAndCharts!$A55+$A$11,IF($C$5,8,0),1,1))) -> 234.44 | H55: 16.95769662 | I55: 14.9582704 | J55: 110.3219495 | K55: 10.50342561 | L55: 1.42413256 | M55: -1963614.118 | N55: -1170286.558 | O55: 1.414077069e+12 | P55: 1189149.725 | Q55: -0.9841372643 | AW55: 1718700
A56: 24 | B56: =IF(A56>$B$30,NA(),IF($A56>$A$8,"",OFFSET(InputPriceData!$B$15,$A56+$A$11,0,1,1))) -> 2021-10-27 | C56: =IF(A56>$B$30,NA(),IF($A56>$A$8,"",OFFSET(InputPriceData!$G$15,CalculationsAndCharts!$A56+$A$11,IF($C$5,8,0),1,1))) -> 2677000 | D56: =IF(A56>$B$30,NA(),IF(A56>$A$8,"",OFFSET(InputPriceData!$C$15,CalculationsAndCharts!$A56+$A$11,IF($C$5,8,0),1,1))) -> 236.96 | E56: =IF(A56>$B$30,NA(),IF(A56>$A$8,"",OFFSET(InputPriceData!$D$15,CalculationsAndCharts!$A56+$A$11,IF($C$5,8,0),1,1))) -> 238.46 | F56: =IF(A56>$B$30,NA(),IF(A56>$A$8,"",OFFSET(InputPriceData!$E$15,CalculationsAndCharts!$A56+$A$11,IF($C$5,8,0),1,1))) -> 233.57 | G56: =IF(A56>$B$30,NA(),IF(A56>$A$8,"",OFFSET(InputPriceData!$F$15,CalculationsAndCharts!$A56+$A$11,IF($C$5,8,0),1,1))) -> 233.78 | H56: 16.47876423 | I56: 13.64344497 | J56: 107.5089188 | K56: 10.36865077 | L56: 1.315836098 | M56: -1097295.322 | N56: -1156036.341 | O56: 1.415180836e+12 | P56: 1189613.734 | Q56: -0.9717745413 | AX56: 2677000
A57: 25 | B57: =IF(A57>$B$30,NA(),IF($A57>$A$8,"",OFFSET(InputPriceData!$B$15,$A57+$A$11,0,1,1))) -> 2021-10-26 | C57: =IF(A57>$B$30,NA(),IF($A57>$A$8,"",OFFSET(InputPriceData!$G$15,CalculationsAndCharts!$A57+$A$11,IF($C$5,8,0),1,1))) -> 3065400 | D57: =IF(A57>$B$30,NA(),IF(A57>$A$8,"",OFFSET(InputPriceData!$C$15,CalculationsAndCharts!$A57+$A$11,IF($C$5,8,0),1,1))) -> 237.45 | E57: =IF(A57>$B$30,NA(),IF(A57>$A$8,"",OFFSET(InputPriceData!$D$15,CalculationsAndCharts!$A57+$A$11,IF($C$5,8,0),1,1))) -> 239.74 | F57: =IF(A57>$B$30,NA(),IF(A57>$A$8,"",OFFSET(InputPriceData!$E$15,CalculationsAndCharts!$A57+$A$11,IF($C$5,8,0),1,1))) -> 235.38 | G57: =IF(A57>$B$30,NA(),IF(A57>$A$8,"",OFFSET(InputPriceData!$F$15,CalculationsAndCharts!$A57+$A$11,IF($C$5,8,0),1,1))) -> 236.3 | H57: 19.21646599 | I57: 11.97210339 | J57: 105.5587661 | K57: 10.27417958 | L57: 1.165261255 | M57: -754806.9117 | N57: -1179946.992 | O57: 1.417134117e+12 | P57: 1190434.424 | Q57: -0.9911902482 | AX57: 3065400
A58: 26 | B58: =IF(A58>$B$30,NA(),IF($A58>$A$8,"",OFFSET(InputPriceData!$B$15,$A58+$A$11,0,1,1))) -> 2021-10-25 | C58: =IF(A58>$B$30,NA(),IF($A58>$A$8,"",OFFSET(InputPriceData!$G$15,CalculationsAndCharts!$A58+$A$11,IF($C$5,8,0),1,1))) -> 2545800 | D58: =IF(A58>$B$30,NA(),IF(A58>$A$8,"",OFFSET(InputPriceData!$C$15,CalculationsAndCharts!$A58+$A$11,IF($C$5,8,0),1,1))) -> 231.84 | E58: =IF(A58>$B$30,NA(),IF(A58>$A$8,"",OFFSET(InputPriceData!$D$15,CalculationsAndCharts!$A58+$A$11,IF($C$5,8,0),1,1))) -> 234.76 | F58: =IF(A58>$B$30,NA(),IF(A58>$A$8,"",OFFSET(InputPriceData!$E$15,CalculationsAndCharts!$A58+$A$11,IF($C$5,8,0),1,1))) -> 231 | G58: =IF(A58>$B$30,NA(),IF(A58>$A$8,"",OFFSET(InputPriceData!$F$15,CalculationsAndCharts!$A58+$A$11,IF($C$5,8,0),1,1))) -> 233.88 | H58: 16.98682558 | I58: 10.08992192 | J58: 104.6220021 | K58: 10.22848973 | L58: 0.9864527604 | M58: -1325963.065 | N58: -1185948.729 | O58: 1.41775063e+12 | P58: 1190693.34 | Q58: -0.9960152534 | AW58: 2545800
A59: 27 | B59: =IF(A59>$B$30,NA(),IF($A59>$A$8,"",OFFSET(InputPriceData!$B$15,$A59+$A$11,0,1,1))) -> 2021-10-22 | C59: =IF(A59>$B$30,NA(),IF($A59>$A$8,"",OFFSET(InputPriceData!$G$15,CalculationsAndCharts!$A59+$A$11,IF($C$5,8,0),1,1))) -> 2577400 | D59: =IF(A59>$B$30,NA(),IF(A59>$A$8,"",OFFSET(InputPriceData!$C$15,CalculationsAndCharts!$A59+$A$11,IF($C$5,8,0),1,1))) -> 231.37 | E59: =IF(A59>$B$30,NA(),IF(A59>$A$8,"",OFFSET(InputPriceData!$D$15,CalculationsAndCharts!$A59+$A$11,IF($C$5,8,0),1,1))) -> 233.19 | F59: =IF(A59>$B$30,NA(),IF(A59>$A$8,"",OFFSET(InputPriceData!$E$15,CalculationsAndCharts!$A59+$A$11,IF($C$5,8,0),1,1))) -> 230.86 | G59: =IF(A59>$B$30,NA(),IF(A59>$A$8,"",OFFSET(InputPriceData!$F$15,CalculationsAndCharts!$A59+$A$11,IF($C$5,8,0),1,1))) -> 231.48 | H59: 14.56921027 | I59: 8.142177662 | J59: 104.6918264 | K59: 10.23190238 | L59: 0.7957638138 | M59: -1364580.81 | N59: -1177372.734 | O59: 1.418030283e+12 | P59: 1190810.767 | Q59: -0.9887152242 | AW59: 2577400
A60: 28 | B60: =IF(A60>$B$30,NA(),IF($A60>$A$8,"",OFFSET(InputPriceData!$B$15,$A60+$A$11,0,1,1))) -> 2021-10-21 | C60: =IF(A60>$B$30,NA(),IF($A60>$A$8,"",OFFSET(InputPriceData!$G$15,CalculationsAndCharts!$A60+$A$11,IF($C$5,8,0),1,1))) -> 3833400 | D60: =IF(A60>$B$30,NA(),IF(A60>$A$8,"",OFFSET(InputPriceData!$C$15,CalculationsAndCharts!$A60+$A$11,IF($C$5,8,0),1,1))) -> 229.81 | E60: =IF(A60>$B$30,NA(),IF(A60>$A$8,"",OFFSET(InputPriceData!$D$15,CalculationsAndCharts!$A60+$A$11,IF($C$5,8,0),1,1))) -> 231.86 | F60: =IF(A60>$B$30,NA(),IF(A60>$A$8,"",OFFSET(InputPriceData!$E$15,CalculationsAndCharts!$A60+$A$11,IF($C$5,8,0),1,1))) -> 229.15 | G60: =IF(A60>$B$30,NA(),IF(A60>$A$8,"",OFFSET(InputPriceData!$F$15,CalculationsAndCharts!$A60+$A$11,IF($C$5,8,0),1,1))) -> 231.34 | H60: 14.27713678 | I60: 6.045891809 | J60: 105.6440725 | K60: 10.27833024 | L60: 0.5882173142 | M60: -133776.9902 | N60: -1184686.621 | O60: 1.418819516e+12 | P60: 1191142.106 | Q60: -0.994580424 | AW60: 3833400
A61: 29 | B61: =IF(A61>$B$30,NA(),IF($A61>$A$8,"",OFFSET(InputPriceData!$B$15,$A61+$A$11,0,1,1))) -> 2021-10-20 | C61: =IF(A61>$B$30,NA(),IF($A61>$A$8,"",OFFSET(InputPriceData!$G$15,CalculationsAndCharts!$A61+$A$11,IF($C$5,8,0),1,1))) -> 2516900 | D61: =IF(A61>$B$30,NA(),IF(A61>$A$8,"",OFFSET(InputPriceData!$C$15,CalculationsAndCharts!$A61+$A$11,IF($C$5,8,0),1,1))) -> 228.85 | E61: =IF(A61>$B$30,NA(),IF(A61>$A$8,"",OFFSET(InputPriceData!$D$15,CalculationsAndCharts!$A61+$A$11,IF($C$5,8,0),1,1))) -> 230.47 | F61: =IF(A61>$B$30,NA(),IF(A61>$A$8,"",OFFSET(InputPriceData!$E$15,CalculationsAndCharts!$A61+$A$11,IF($C$5,8,0),1,1))) -> 227.68 | G61: =IF(A61>$B$30,NA(),IF(A61>$A$8,"",OFFSET(InputPriceData!$F$15,CalculationsAndCharts!$A61+$A$11,IF($C$5,8,0),1,1))) -> 229.81 | H61: 12.48589632 | I61: 3.809338959 | J61: 107.3575472 | K61: 10.36134872 | L61: 0.3676489483 | M61: -1477524.121 | N61: -1142433.74 | O61: 1.41919988e+12 | P61: 1191301.758 | Q61: -0.9589793116 | AW61: 2516900
A62: 30 | B62: =IF(A62>$B$30,NA(),IF($A62>$A$8,"",OFFSET(InputPriceData!$B$15,$A62+$A$11,0,1,1))) -> 2021-10-19 | C62: =IF(A62>$B$30,NA(),IF($A62>$A$8,"",OFFSET(InputPriceData!$G$15,CalculationsAndCharts!$A62+$A$11,IF($C$5,8,0),1,1))) -> 2088100 | D62: =IF(A62>$B$30,NA(),IF(A62>$A$8,"",OFFSET(InputPriceData!$C$15,CalculationsAndCharts!$A62+$A$11,IF($C$5,8,0),1,1))) -> 227.68 | E62: =IF(A62>$B$30,NA(),IF(A62>$A$8,"",OFFSET(InputPriceData!$D$15,CalculationsAndCharts!$A62+$A$11,IF($C$5,8,0),1,1))) -> 228.91 | F62: =IF(A62>$B$30,NA(),IF(A62>$A$8,"",OFFSET(InputPriceData!$E$15,CalculationsAndCharts!$A62+$A$11,IF($C$5,8,0),1,1))) -> 226.21 | G62: =IF(A62>$B$30,NA(),IF(A62>$A$8,"",OFFSET(InputPriceData!$F$15,CalculationsAndCharts!$A62+$A$11,IF($C$5,8,0),1,1))) -> 227.84 | H62: 10.07411307 | I62: 1.501289867 | J62: 109.6601553 | K62: 10.47187449 | L62: 0.1433640051 | M62: -1996573.377 | N62: -1035056.123 | O62: 1.422028215e+12 | P62: 1192488.245 | Q62: -0.8679801473 | AW62: 2088100
A63: 31 | B63: =IF(A63>$B$30,NA(),IF($A63>$A$8,"",OFFSET(InputPriceData!$B$15,$A63+$A$11,0,1,1))) -> 2021-10-18 | C63: =IF(A63>$B$30,NA(),IF($A63>$A$8,"",OFFSET(InputPriceData!$G$15,CalculationsAndCharts!$A63+$A$11,IF($C$5,8,0),1,1))) -> 2676800 | D63: =IF(A63>$B$30,NA(),IF(A63>$A$8,"",OFFSET(InputPriceData!$C$15,CalculationsAndCharts!$A63+$A$11,IF($C$5,8,0),1,1))) -> 226.55 | E63: =IF(A63>$B$30,NA(),IF(A63>$A$8,"",OFFSET(InputPriceData!$D$15,CalculationsAndCharts!$A63+$A$11,IF($C$5,8,0),1,1))) -> 228.27 | F63: =IF(A63>$B$30,NA(),IF(A63>$A$8,"",OFFSET(InputPriceData!$E$15,CalculationsAndCharts!$A63+$A$11,IF($C$5,8,0),1,1))) -> 225.22 | G63: =IF(A63>$B$30,NA(),IF(A63>$A$8,"",OFFSET(InputPriceData!$F$15,CalculationsAndCharts!$A63+$A$11,IF($C$5,8,0),1,1))) -> 226.51 | H63: 8.12145964 | I63: -0.8927948511 | J63: 112.3238487 | K63: 10.59829461 | L63: -0.08423948226 | M63: -1494321.562 | N63: -954114.7361 | O63: 1.430725311e+12 | P63: 1196129.304 | Q63: -0.7976685574 | AX63: 2676800
A64: 32 | B64: =IF(A64>$B$30,NA(),IF($A64>$A$8,"",OFFSET(InputPriceData!$B$15,$A64+$A$11,0,1,1))) -> 2021-10-15 | C64: =IF(A64>$B$30,NA(),IF($A64>$A$8,"",OFFSET(InputPriceData!$G$15,CalculationsAndCharts!$A64+$A$11,IF($C$5,8,0),1,1))) -> 4177900 | D64: =IF(A64>$B$30,NA(),IF(A64>$A$8,"",OFFSET(InputPriceData!$C$15,CalculationsAndCharts!$A64+$A$11,IF($C$5,8,0),1,1))) -> 226.88 | E64: =IF(A64>$B$30,NA(),IF(A64>$A$8,"",OFFSET(InputPriceData!$D$15,CalculationsAndCharts!$A64+$A$11,IF($C$5,8,0),1,1))) -> 228.02 | F64: =IF(A64>$B$30,NA(),IF(A64>$A$8,"",OFFSET(InputPriceData!$E$15,CalculationsAndCharts!$A64+$A$11,IF($C$5,8,0),1,1))) -> 225.87 | G64: =IF(A64>$B$30,NA(),IF(A64>$A$8,"",OFFSET(InputPriceData!$F$15,CalculationsAndCharts!$A64+$A$11,IF($C$5,8,0),1,1))) -> 227.65 | H64: 8.563070473 | I64: -3.394929505 | J64: 115.0897308 | K64: 10.7279882 | L64: -0.3164553728 | M64: -5754.175479 | N64: -925401.9498 | O64: 1.443631078e+12 | P64: 1201511.997 | Q64: -0.7701978445 | AW64: 4177900
A65: 33 | B65: =IF(A65>$B$30,NA(),IF($A65>$A$8,"",OFFSET(InputPriceData!$B$15,$A65+$A$11,0,1,1))) -> 2021-10-14 | C65: =IF(A65>$B$30,NA(),IF($A65>$A$8,"",OFFSET(InputPriceData!$G$15,CalculationsAndCharts!$A65+$A$11,IF($C$5,8,0),1,1))) -> 2841400 | D65: =IF(A65>$B$30,NA(),IF(A65>$A$8,"",OFFSET(InputPriceData!$C$15,CalculationsAndCharts!$A65+$A$11,IF($C$5,8,0),1,1))) -> 224.94 | E65: =IF(A65>$B$30,NA(),IF(A65>$A$8,"",OFFSET(InputPriceData!$D$15,CalculationsAndCharts!$A65+$A$11,IF($C$5,8,0),1,1))) -> 227.1 | F65: =IF(A65>$B$30,NA(),IF(A65>$A$8,"",OFFSET(InputPriceData!$E$15,CalculationsAndCharts!$A65+$A$11,IF($C$5,8,0),1,1))) -> 224.32 | G65: =IF(A65>$B$30,NA(),IF(A65>$A$8,"",OFFSET(InputPriceData!$F$15,CalculationsAndCharts!$A65+$A$11,IF($C$5,8,0),1,1))) -> 225.99 | H65: 6.113504875 | I65: -5.850350153 | J65: 117.6581396 | K65: 10.84703368 | L65: -0.5393502342 | M65: -1347775.854 | N65: -859024.8893 | O65: 1.458195279e+12 | P65: 1207557.568 | Q65: -0.711373861 | AW65: 2841400
A66: 34 | B66: =IF(A66>$B$30,NA(),IF($A66>$A$8,"",OFFSET(InputPriceData!$B$15,$A66+$A$11,0,1,1))) -> 2021-10-13 | C66: =IF(A66>$B$30,NA(),IF($A66>$A$8,"",OFFSET(InputPriceData!$G$15,CalculationsAndCharts!$A66+$A$11,IF($C$5,8,0),1,1))) -> 4595300 | D66: =IF(A66>$B$30,NA(),IF(A66>$A$8,"",OFFSET(InputPriceData!$C$15,CalculationsAndCharts!$A66+$A$11,IF($C$5,8,0),1,1))) -> 220.59 | E66: =IF(A66>$B$30,NA(),IF(A66>$A$8,"",OFFSET(InputPriceData!$D$15,CalculationsAndCharts!$A66+$A$11,IF($C$5,8,0),1,1))) -> 223.98 | F66: =IF(A66>$B$30,NA(),IF(A66>$A$8,"",OFFSET(InputPriceData!$E$15,CalculationsAndCharts!$A66+$A$11,IF($C$5,8,0),1,1))) -> 218.1 | G66: =IF(A66>$B$30,NA(),IF(A66>$A$8,"",OFFSET(InputPriceData!$F$15,CalculationsAndCharts!$A66+$A$11,IF($C$5,8,0),1,1))) -> 222.29 | H66: 1.35369811 | I66: -8.054104065 | J66: 119.7272555 | K66: 10.94199504 | L66: -0.7360727212 | M66: 417074.3789 | N66: -733069.2718 | O66: 1.476058131e+12 | P66: 1214931.328 | Q66: -0.6033832984 | AW66: 4595300
A67: 35 | B67: =IF(A67>$B$30,NA(),IF($A67>$A$8,"",OFFSET(InputPriceData!$B$15,$A67+$A$11,0,1,1))) -> 2021-10-12 | C67: =IF(A67>$B$30,NA(),IF($A67>$A$8,"",OFFSET(InputPriceData!$G$15,CalculationsAndCharts!$A67+$A$11,IF($C$5,8,0),1,1))) -> 2541500 | D67: =IF(A67>$B$30,NA(),IF(A67>$A$8,"",OFFSET(InputPriceData!$C$15,CalculationsAndCharts!$A67+$A$11,IF($C$5,8,0),1,1))) -> 218.41 | E67: =IF(A67>$B$30,NA(),IF(A67>$A$8,"",OFFSET(InputPriceData!$D$15,CalculationsAndCharts!$A67+$A$11,IF($C$5,8,0),1,1))) -> 220.65 | F67: =IF(A67>$B$30,NA(),IF(A67>$A$8,"",OFFSET(InputPriceData!$E$15,CalculationsAndCharts!$A67+$A$11,IF($C$5,8,0),1,1))) -> 218.27 | G67: =IF(A67>$B$30,NA(),IF(A67>$A$8,"",OFFSET(InputPriceData!$F$15,CalculationsAndCharts!$A67+$A$11,IF($C$5,8,0),1,1))) -> 219.9 | H67: -2.402877441 | I67: -10.03804388 | J67: 121.0877593 | K67: 11.00398834 | L67: -0.9122186952 | M67: -1634614.577 | N67: -503685.279 | O67: 1.499337241e+12 | P67: 1224474.271 | Q67: -0.4113481931 | AW67: 2541500
A68: 36 | B68: =IF(A68>$B$30,NA(),IF($A68>$A$8,"",OFFSET(InputPriceData!$B$15,$A68+$A$11,0,1,1))) -> 2021-10-11 | C68: =IF(A68>$B$30,NA(),IF($A68>$A$8,"",OFFSET(InputPriceData!$G$15,CalculationsAndCharts!$A68+$A$11,IF($C$5,8,0),1,1))) -> 2884700 | D68: =IF(A68>$B$30,NA(),IF(A68>$A$8,"",OFFSET(InputPriceData!$C$15,CalculationsAndCharts!$A68+$A$11,IF($C$5,8,0),1,1))) -> 222.59 | E68: =IF(A68>$B$30,NA(),IF(A68>$A$8,"",OFFSET(InputPriceData!$D$15,CalculationsAndCharts!$A68+$A$11,IF($C$5,8,0),1,1))) -> 223.13 | F68: =IF(A68>$B$30,NA(),IF(A68>$A$8,"",OFFSET(InputPriceData!$E$15,CalculationsAndCharts!$A68+$A$11,IF($C$5,8,0),1,1))) -> 217.95 | G68: =IF(A68>$B$30,NA(),IF(A68>$A$8,"",OFFSET(InputPriceData!$F$15,CalculationsAndCharts!$A68+$A$11,IF($C$5,8,0),1,1))) -> 218.41 | H68: -5.497322297 | I68: -11.95943493 | J68: 121.5918334 | K68: 11.0268687 | L68: -1.084572171 | M68: -1349441.438 | N68: -158959.7033 | O68: 1.530229277e+12 | P68: 1237024.364 | Q68: -0.1285016754 | AX68: 2884700
A69: 37 | B69: =IF(A69>$B$30,NA(),IF($A69>$A$8,"",OFFSET(InputPriceData!$B$15,$A69+$A$11,0,1,1))) -> 2021-10-08 | C69: =IF(A69>$B$30,NA(),IF($A69>$A$8,"",OFFSET(InputPriceData!$G$15,CalculationsAndCharts!$A69+$A$11,IF($C$5,8,0),1,1))) -> 2365000 | D69: =IF(A69>$B$30,NA(),IF(A69>$A$8,"",OFFSET(InputPriceData!$C$15,CalculationsAndCharts!$A69+$A$11,IF($C$5,8,0),1,1))) -> 220.97 | E69: =IF(A69>$B$30,NA(),IF(A69>$A$8,"",OFFSET(InputPriceData!$D$15,CalculationsAndCharts!$A69+$A$11,IF($C$5,8,0),1,1))) -> 222.5 | F69: =IF(A69>$B$30,NA(),IF(A69>$A$8,"",OFFSET(InputPriceData!$E$15,CalculationsAndCharts!$A69+$A$11,IF($C$5,8,0),1,1))) -> 219.99 | G69: =IF(A69>$B$30,NA(),IF(A69>$A$8,"",OFFSET(InputPriceData!$F$15,CalculationsAndCharts!$A69+$A$11,IF($C$5,8,0),1,1))) -> 222 | H69: -3.54154485 | I69: -13.96861202 | J69: 121.0602109 | K69: 11.00273652 | L69: -1.269557986 | M69: -1933846.959 | N69: 214319.9499 | O69: 1.567552559e+12 | P69: 1252019.392 | Q69: 0.1711794172 | AW69: 2365000
A70: 38 | B70: =IF(A70>$B$30,NA(),IF($A70>$A$8,"",OFFSET(InputPriceData!$B$15,$A70+$A$11,0,1,1))) -> 2021-10-07 | C70: =IF(A70>$B$30,NA(),IF($A70>$A$8,"",OFFSET(InputPriceData!$G$15,CalculationsAndCharts!$A70+$A$11,IF($C$5,8,0),1,1))) -> 3954100 | D70: =IF(A70>$B$30,NA(),IF(A70>$A$8,"",OFFSET(InputPriceData!$C$15,CalculationsAndCharts!$A70+$A$11,IF($C$5,8,0),1,1))) -> 225.54 | E70: =IF(A70>$B$30,NA(),IF(A70>$A$8,"",OFFSET(InputPriceData!$D$15,CalculationsAndCharts!$A70+$A$11,IF($C$5,8,0),1,1))) -> 226.19 | F70: =IF(A70>$B$30,NA(),IF(A70>$A$8,"",OFFSET(InputPriceData!$E$15,CalculationsAndCharts!$A70+$A$11,IF($C$5,8,0),1,1))) -> 221.05 | G70: =IF(A70>$B$30,NA(),IF(A70>$A$8,"",OFFSET(InputPriceData!$F$15,CalculationsAndCharts!$A70+$A$11,IF($C$5,8,0),1,1))) -> 221.51 | H70: -5.6600328 | I70: -15.93727407 | J70: 119.2234634 | K70: 10.91894974 | L70: -1.459597714 | M70: -371150.1792 | N70: 567699.2608 | O70: 1.605288972e+12 | P70: 1266999.989 | Q70: 0.4480657188 | AX70: 3954100
A71: 39 | B71: =IF(A71>$B$30,NA(),IF($A71>$A$8,"",OFFSET(InputPriceData!$B$15,$A71+$A$11,0,1,1))) -> 2021-10-06 | C71: =IF(A71>$B$30,NA(),IF($A71>$A$8,"",OFFSET(InputPriceData!$G$15,CalculationsAndCharts!$A71+$A$11,IF($C$5,8,0),1,1))) -> 3652900 | D71: =IF(A71>$B$30,NA(),IF(A71>$A$8,"",OFFSET(InputPriceData!$C$15,CalculationsAndCharts!$A71+$A$11,IF($C$5,8,0),1,1))) -> 220.65 | E71: =IF(A71>$B$30,NA(),IF(A71>$A$8,"",OFFSET(InputPriceData!$D$15,CalculationsAndCharts!$A71+$A$11,IF($C$5,8,0),1,1))) -> 223.49 | F71: =IF(A71>$B$30,NA(),IF(A71>$A$8,"",OFFSET(InputPriceData!$E$15,CalculationsAndCharts!$A71+$A$11,IF($C$5,8,0),1,1))) -> 218.42 | G71: =IF(A71>$B$30,NA(),IF(A71>$A$8,"",OFFSET(InputPriceData!$F$15,CalculationsAndCharts!$A71+$A$11,IF($C$5,8,0),1,1))) -> 222.76 | H71: -6.116811883 | I71: -17.61023421 | J71: 115.8810649 | K71: 10.76480677 | L71: -1.635908064 | M71: -651055.3804 | N71: 906775.7182 | O71: 1.637107744e+12 | P71: 1279495.113 | Q71: 0.7086980708 | AW71: 3652900
A72: 40 | B72: =IF(A72>$B$30,NA(),IF($A72>$A$8,"",OFFSET(InputPriceData!$B$15,$A72+$A$11,0,1,1))) -> 2021-10-05 | C72: =IF(A72>$B$30,NA(),IF($A72>$A$8,"",OFFSET(InputPriceData!$G$15,CalculationsAndCharts!$A72+$A$11,IF($C$5,8,0),1,1))) -> 5326900 | D72: =IF(A72>$B$30,NA(),IF(A72>$A$8,"",OFFSET(InputPriceData!$C$15,CalculationsAndCharts!$A72+$A$11,IF($C$5,8,0),1,1))) -> 216.1 | E72: =IF(A72>$B$30,NA(),IF(A72>$A$8,"",OFFSET(InputPriceData!$D$15,CalculationsAndCharts!$A72+$A$11,IF($C$5,8,0),1,1))) -> 225 | F72: =IF(A72>$B$30,NA(),IF(A72>$A$8,"",OFFSET(InputPriceData!$E$15,CalculationsAndCharts!$A72+$A$11,IF($C$5,8,0),1,1))) -> 214.95 | G72: =IF(A72>$B$30,NA(),IF(A72>$A$8,"",OFFSET(InputPriceData!$F$15,CalculationsAndCharts!$A72+$A$11,IF($C$5,8,0),1,1))) -> 222.83 | H72: -7.813917726 | I72: -18.77463921 | J72: 111.0638988 | K72: 10.53868582 | L72: -1.781497193 | M72: 1096781.28 | N72: 1260797.705 | O72: 1.657316543e+12 | P72: 1287368.068 | Q72: 0.9793607093 | AW72: 5326900
A73: 41 | B73: =IF(A73>$B$30,NA(),IF($A73>$A$8,"",OFFSET(InputPriceData!$B$15,$A73+$A$11,0,1,1))) -> 2021-10-04 | C73: =IF(A73>$B$30,NA(),IF($A73>$A$8,"",OFFSET(InputPriceData!$G$15,CalculationsAndCharts!$A73+$A$11,IF($C$5,8,0),1,1))) -> 3924100 | D73: =IF(A73>$B$30,NA(),IF(A73>$A$8,"",OFFSET(InputPriceData!$C$15,CalculationsAndCharts!$A73+$A$11,IF($C$5,8,0),1,1))) -> 219.82 | E73: =IF(A73>$B$30,NA(),IF(A73>$A$8,"",OFFSET(InputPriceData!$D$15,CalculationsAndCharts!$A73+$A$11,IF($C$5,8,0),1,1))) -> 222.56 | F73: =IF(A73>$B$30,NA(),IF(A73>$A$8,"",OFFSET(InputPriceData!$E$15,CalculationsAndCharts!$A73+$A$11,IF($C$5,8,0),1,1))) -> 215.86 | G73: =IF(A73>$B$30,NA(),IF(A73>$A$8,"",OFFSET(InputPriceData!$F$15,CalculationsAndCharts!$A73+$A$11,IF($C$5,8,0),1,1))) -> 216.47 | H73: -16.2782016 | I73: -19.13529105 | J73: 105.0765644 | K73: 10.25068604 | L73: -1.866732721 | M73: -217611.8705 | N73: 1684935.291 | O73: 1.658995656e+12 | P73: 1288020.052 | Q73: 1.308159207 | AX73: 3924100
A74: 42 | B74: =IF(A74>$B$30,NA(),IF($A74>$A$8,"",OFFSET(InputPriceData!$B$15,$A74+$A$11,0,1,1))) -> 2021-10-01 | C74: =IF(A74>$B$30,NA(),IF($A74>$A$8,"",OFFSET(InputPriceData!$G$15,CalculationsAndCharts!$A74+$A$11,IF($C$5,8,0),1,1))) -> 4033100 | D74: =IF(A74>$B$30,NA(),IF(A74>$A$8,"",OFFSET(InputPriceData!$C$15,CalculationsAndCharts!$A74+$A$11,IF($C$5,8,0),1,1))) -> 218.59 | E74: =IF(A74>$B$30,NA(),IF(A74>$A$8,"",OFFSET(InputPriceData!$D$15,CalculationsAndCharts!$A74+$A$11,IF($C$5,8,0),1,1))) -> 222.66 | F74: =IF(A74>$B$30,NA(),IF(A74>$A$8,"",OFFSET(InputPriceData!$E$15,CalculationsAndCharts!$A74+$A$11,IF($C$5,8,0),1,1))) -> 216.78 | G74: =IF(A74>$B$30,NA(),IF(A74>$A$8,"",OFFSET(InputPriceData!$F$15,CalculationsAndCharts!$A74+$A$11,IF($C$5,8,0),1,1))) -> 221.1 | H74: -13.9357962 | I74: -18.82420932 | J74: 98.60166815 | K74: 9.929837267 | L74: -1.895721835 | M74: -61764.44328 | N74: 2192847.453 | O74: 1.629731182e+12 | P74: 1276609.252 | Q74: 1.71771233 | AW74: 4033100
A75: 43 | B75: =IF(A75>$B$30,NA(),IF($A75>$A$8,"",OFFSET(InputPriceData!$B$15,$A75+$A$11,0,1,1))) -> 2021-09-30 | C75: =IF(A75>$B$30,NA(),IF($A75>$A$8,"",OFFSET(InputPriceData!$G$15,CalculationsAndCharts!$A75+$A$11,IF($C$5,8,0),1,1))) -> 3858600 | D75: =IF(A75>$B$30,NA(),IF(A75>$A$8,"",OFFSET(InputPriceData!$C$15,CalculationsAndCharts!$A75+$A$11,IF($C$5,8,0),1,1))) -> 220.16 | E75: =IF(A75>$B$30,NA(),IF(A75>$A$8,"",OFFSET(InputPriceData!$D$15,CalculationsAndCharts!$A75+$A$11,IF($C$5,8,0),1,1))) -> 221.73 | F75: =IF(A75>$B$30,NA(),IF(A75>$A$8,"",OFFSET(InputPriceData!$E$15,CalculationsAndCharts!$A75+$A$11,IF($C$5,8,0),1,1))) -> 217.62 | G75: =IF(A75>$B$30,NA(),IF(A75>$A$8,"",OFFSET(InputPriceData!$F$15,CalculationsAndCharts!$A75+$A$11,IF($C$5,8,0),1,1))) -> 217.88 | H75: -19.51835855 | I75: -17.88116417 | J75: 92.25904634 | K75: 9.605157278 | L75: -1.861621174 | M75: -188031.4219 | N75: 2697439.294 | O75: 1.550895212e+12 | P75: 1245349.434 | Q75: 2.166009974 | AX75: 3858600
A76: 44 | B76: =IF(A76>$B$30,NA(),IF($A76>$A$8,"",OFFSET(InputPriceData!$B$15,$A76+$A$11,0,1,1))) -> 2021-09-29 | C76: =IF(A76>$B$30,NA(),IF($A76>$A$8,"",OFFSET(InputPriceData!$G$15,CalculationsAndCharts!$A76+$A$11,IF($C$5,8,0),1,1))) -> 3737200 | D76: =IF(A76>$B$30,NA(),IF(A76>$A$8,"",OFFSET(InputPriceData!$C$15,CalculationsAndCharts!$A76+$A$11,IF($C$5,8,0),1,1))) -> 221.56 | E76: =IF(A76>$B$30,NA(),IF(A76>$A$8,"",OFFSET(InputPriceData!$D$15,CalculationsAndCharts!$A76+$A$11,IF($C$5,8,0),1,1))) -> 222.8 | F76: =IF(A76>$B$30,NA(),IF(A76>$A$8,"",OFFSET(InputPriceData!$E$15,CalculationsAndCharts!$A76+$A$11,IF($C$5,8,0),1,1))) -> 219.38 | G76: =IF(A76>$B$30,NA(),IF(A76>$A$8,"",OFFSET(InputPriceData!$F$15,CalculationsAndCharts!$A76+$A$11,IF($C$5,8,0),1,1))) -> 219.67 | H76: -20.26981465 | I76: -16.26850703 | J76: 86.6175798 | K76: 9.306856601 | L76: -1.748013076 | M76: -268086.3852 | N76: 3136507.261 | O76: 1.408907241e+12 | P76: 1186973.985 | Q76: 2.642439767 | AX76: 3737200
A77: 45 | B77: =IF(A77>$B$30,NA(),IF($A77>$A$8,"",OFFSET(InputPriceData!$B$15,$A77+$A$11,0,1,1))) -> 2021-09-28 | C77: =IF(A77>$B$30,NA(),IF($A77>$A$8,"",OFFSET(InputPriceData!$G$15,CalculationsAndCharts!$A77+$A$11,IF($C$5,8,0),1,1))) -> 4717700 | D77: =IF(A77>$B$30,NA(),IF(A77>$A$8,"",OFFSET(InputPriceData!$C$15,CalculationsAndCharts!$A77+$A$11,IF($C$5,8,0),1,1))) -> 224.37 | E77: =IF(A77>$B$30,NA(),IF(A77>$A$8,"",OFFSET(InputPriceData!$D$15,CalculationsAndCharts!$A77+$A$11,IF($C$5,8,0),1,1))) -> 226.58 | F77: =IF(A77>$B$30,NA(),IF(A77>$A$8,"",OFFSET(InputPriceData!$E$15,CalculationsAndCharts!$A77+$A$11,IF($C$5,8,0),1,1))) -> 220.33 | G77: =IF(A77>$B$30,NA(),IF(A77>$A$8,"",OFFSET(InputPriceData!$F$15,CalculationsAndCharts!$A77+$A$11,IF($C$5,8,0),1,1))) -> 220.97 | H77: -21.53130042 | I77: -14.20062521 | J77: 82.20199142 | K77: 9.066531389 | L77: -1.566268797 | M77: 788426.4331 | N77: 3406599.552 | O77: 1.199872349e+12 | P77: 1095386.849 | Q77: 3.109951114 | AX77: 4717700
A78: 46 | B78: =IF(A78>$B$30,NA(),IF($A78>$A$8,"",OFFSET(InputPriceData!$B$15,$A78+$A$11,0,1,1))) -> 2021-09-27 | C78: =IF(A78>$B$30,NA(),IF($A78>$A$8,"",OFFSET(InputPriceData!$G$15,CalculationsAndCharts!$A78+$A$11,IF($C$5,8,0),1,1))) -> 4335500 | D78: =IF(A78>$B$30,NA(),IF(A78>$A$8,"",OFFSET(InputPriceData!$C$15,CalculationsAndCharts!$A78+$A$11,IF($C$5,8,0),1,1))) -> 224.55 | E78: =IF(A78>$B$30,NA(),IF(A78>$A$8,"",OFFSET(InputPriceData!$D$15,CalculationsAndCharts!$A78+$A$11,IF($C$5,8,0),1,1))) -> 227.77 | F78: =IF(A78>$B$30,NA(),IF(A78>$A$8,"",OFFSET(InputPriceData!$E$15,CalculationsAndCharts!$A78+$A$11,IF($C$5,8,0),1,1))) -> 224.23 | G78: =IF(A78>$B$30,NA(),IF(A78>$A$8,"",OFFSET(InputPriceData!$F$15,CalculationsAndCharts!$A78+$A$11,IF($C$5,8,0),1,1))) -> 225.05 | H78: -19.94878616 | I78: -11.80170226 | J78: 79.23946886 | K78: 8.9016554 | L78: -1.325787365 | M78: 508702.6652 | N78: 3440088.112 | O78: 9.418254491e+11 | P78: 970476.9184 | Q78: 3.544739754 | AW78: 4335500
A79: 47 | B79: =IF(A79>$B$30,NA(),IF($A79>$A$8,"",OFFSET(InputPriceData!$B$15,$A79+$A$11,0,1,1))) -> 2021-09-24 | C79: =IF(A79>$B$30,NA(),IF($A79>$A$8,"",OFFSET(InputPriceData!$G$15,CalculationsAndCharts!$A79+$A$11,IF($C$5,8,0),1,1))) -> 4973400 | D79: =IF(A79>$B$30,NA(),IF(A79>$A$8,"",OFFSET(InputPriceData!$C$15,CalculationsAndCharts!$A79+$A$11,IF($C$5,8,0),1,1))) -> 226.53 | E79: =IF(A79>$B$30,NA(),IF(A79>$A$8,"",OFFSET(InputPriceData!$D$15,CalculationsAndCharts!$A79+$A$11,IF($C$5,8,0),1,1))) -> 227.53 | F79: =IF(A79>$B$30,NA(),IF(A79>$A$8,"",OFFSET(InputPriceData!$E$15,CalculationsAndCharts!$A79+$A$11,IF($C$5,8,0),1,1))) -> 225.14 | G79: =IF(A79>$B$30,NA(),IF(A79>$A$8,"",OFFSET(InputPriceData!$F$15,CalculationsAndCharts!$A79+$A$11,IF($C$5,8,0),1,1))) -> 225.18 | H79: -22.29038813 | I79: -9.162380986 | J79: 77.75044947 | K79: 8.817621531 | L79: -1.039098917 | M79: 1264046.361 | N79: 3148373.05 | O79: 6.716926199e+11 | P79: 819568.5572 | Q79: 3.841500535 | AX79: 4973400
A80: 48 | B80: =IF(A80>$B$30,NA(),IF($A80>$A$8,"",OFFSET(InputPriceData!$B$15,$A80+$A$11,0,1,1))) -> 2021-09-23 | C80: =IF(A80>$B$30,NA(),IF($A80>$A$8,"",OFFSET(InputPriceData!$G$15,CalculationsAndCharts!$A80+$A$11,IF($C$5,8,0),1,1))) -> 7092700 | D80: =IF(A80>$B$30,NA(),IF(A80>$A$8,"",OFFSET(InputPriceData!$C$15,CalculationsAndCharts!$A80+$A$11,IF($C$5,8,0),1,1))) -> 227.6 | E80: =IF(A80>$B$30,NA(),IF(A80>$A$8,"",OFFSET(InputPriceData!$D$15,CalculationsAndCharts!$A80+$A$11,IF($C$5,8,0),1,1))) -> 229.8 | F80: =IF(A80>$B$30,NA(),IF(A80>$A$8,"",OFFSET(InputPriceData!$E$15,CalculationsAndCharts!$A80+$A$11,IF($C$5,8,0),1,1))) -> 226.61 | G80: =IF(A80>$B$30,NA(),IF(A80>$A$8,"",OFFSET(InputPriceData!$F$15,CalculationsAndCharts!$A80+$A$11,IF($C$5,8,0),1,1))) -> 227.45 | H80: -22.52872011 | I80: -6.520155486 | J80: 77.59671881 | K80: 8.808899978 | L80: -0.7401781724 | M80: 3606714.191 | N80: 2414816.933 | O80: 4.425252107e+11 | P80: 665225.684 | Q80: 3.630071706 | AX80: 7092700
A81: 49 | B81: =IF(A81>$B$30,NA(),IF($A81>$A$8,"",OFFSET(InputPriceData!$B$15,$A81+$A$11,0,1,1))) -> 2021-09-22 | C81: =IF(A81>$B$30,NA(),IF($A81>$A$8,"",OFFSET(InputPriceData!$G$15,CalculationsAndCharts!$A81+$A$11,IF($C$5,8,0),1,1))) -> 17792400 | D81: =IF(A81>$B$30,NA(),IF(A81>$A$8,"",OFFSET(InputPriceData!$C$15,CalculationsAndCharts!$A81+$A$11,IF($C$5,8,0),1,1))) -> 232.67 | E81: =IF(A81>$B$30,NA(),IF(A81>$A$8,"",OFFSET(InputPriceData!$D$15,CalculationsAndCharts!$A81+$A$11,IF($C$5,8,0),1,1))) -> 233.47 | F81: =IF(A81>$B$30,NA(),IF(A81>$A$8,"",OFFSET(InputPriceData!$E$15,CalculationsAndCharts!$A81+$A$11,IF($C$5,8,0),1,1))) -> 227.51 | G81: =IF(A81>$B$30,NA(),IF(A81>$A$8,"",OFFSET(InputPriceData!$F$15,CalculationsAndCharts!$A81+$A$11,IF($C$5,8,0),1,1))) -> 227.61 | H81: -24.91197821 | I81: -4.35787188 | J81: 78.46681499 | K81: 8.858149637 | L81: -0.4919618722 | M81: 15003319.2 | N81: 1273534.914 | O81: 3.088816999e+11 | P81: 555771.2658 | Q81: 2.291473116 | AX81: 17792400
A82: 50 | B82: =IF(A82>$B$30,NA(),IF($A82>$A$8,"",OFFSET(InputPriceData!$B$15,$A82+$A$11,0,1,1))) -> 2021-09-21 | C82: =IF(A82>$B$30,NA(),IF($A82>$A$8,"",OFFSET(InputPriceData!$G$15,CalculationsAndCharts!$A82+$A$11,IF($C$5,8,0),1,1))) -> 4481100 | D82: =IF(A82>$B$30,NA(),IF(A82>$A$8,"",OFFSET(InputPriceData!$C$15,CalculationsAndCharts!$A82+$A$11,IF($C$5,8,0),1,1))) -> 251.37 | E82: =IF(A82>$B$30,NA(),IF(A82>$A$8,"",OFFSET(InputPriceData!$D$15,CalculationsAndCharts!$A82+$A$11,IF($C$5,8,0),1,1))) -> 252.25 | F82: =IF(A82>$B$30,NA(),IF(A82>$A$8,"",OFFSET(InputPriceData!$E$15,CalculationsAndCharts!$A82+$A$11,IF($C$5,8,0),1,1))) -> 247.18 | G82: =IF(A82>$B$30,NA(),IF(A82>$A$8,"",OFFSET(InputPriceData!$F$15,CalculationsAndCharts!$A82+$A$11,IF($C$5,8,0),1,1))) -> 250.45 | H82: -3.905103152 | I82: -3.371854285 | J82: 79.94182378 | K82: 8.941019169 | L82: -0.3771219166 | M82: 2320515.153 | N82: 483490.7682 | O82: 2.763188496e+11 | P82: 525660.3938 | Q82: 0.9197778145 | AX82: 4481100
A83: 51 | B83: =IF(A83>$B$30,NA(),IF($A83>$A$8,"",OFFSET(InputPriceData!$B$15,$A83+$A$11,0,1,1))) -> 2021-09-20 | C83: =IF(A83>$B$30,NA(),IF($A83>$A$8,"",OFFSET(InputPriceData!$G$15,CalculationsAndCharts!$A83+$A$11,IF($C$5,8,0),1,1))) -> 3474500 | D83: =IF(A83>$B$30,NA(),IF(A83>$A$8,"",OFFSET(InputPriceData!$C$15,CalculationsAndCharts!$A83+$A$11,IF($C$5,8,0),1,1))) -> 250.49 | E83: =IF(A83>$B$30,NA(),IF(A83>$A$8,"",OFFSET(InputPriceData!$D$15,CalculationsAndCharts!$A83+$A$11,IF($C$5,8,0),1,1))) -> 252.35 | F83: =IF(A83>$B$30,NA(),IF(A83>$A$8,"",OFFSET(InputPriceData!$E$15,CalculationsAndCharts!$A83+$A$11,IF($C$5,8,0),1,1))) -> 246.56 | G83: =IF(A83>$B$30,NA(),IF(A83>$A$8,"",OFFSET(InputPriceData!$F$15,CalculationsAndCharts!$A83+$A$11,IF($C$5,8,0),1,1))) -> 249.19 | H83: -6.312456467 | I83: -3.194169794 | J83: 81.6424311 | K83: 9.035620128 | L83: -0.3535086412 | M83: 1447239.741 | N83: 259227.4638 | O83: 2.773742336e+11 | P83: 526663.302 | Q83: 0.4922071897 | AX83: 3474500
A84: 52 | B84: =IF(A84>$B$30,NA(),IF($A84>$A$8,"",OFFSET(InputPriceData!$B$15,$A84+$A$11,0,1,1))) -> 2021-09-17 | C84: =IF(A84>$B$30,NA(),IF($A84>$A$8,"",OFFSET(InputPriceData!$G$15,CalculationsAndCharts!$A84+$A$11,IF($C$5,8,0),1,1))) -> 3082400 | D84: =IF(A84>$B$30,NA(),IF(A84>$A$8,"",OFFSET(InputPriceData!$C$15,CalculationsAndCharts!$A84+$A$11,IF($C$5,8,0),1,1))) -> 253.76 | E84: =IF(A84>$B$30,NA(),IF(A84>$A$8,"",OFFSET(InputPriceData!$D$15,CalculationsAndCharts!$A84+$A$11,IF($C$5,8,0),1,1))) -> 256.05 | F84: =IF(A84>$B$30,NA(),IF(A84>$A$8,"",OFFSET(InputPriceData!$E$15,CalculationsAndCharts!$A84+$A$11,IF($C$5,8,0),1,1))) -> 252.45 | G84: =IF(A84>$B$30,NA(),IF(A84>$A$8,"",OFFSET(InputPriceData!$F$15,CalculationsAndCharts!$A84+$A$11,IF($C$5,8,0),1,1))) -> 253.58 | H84: -3.026220732 | I84: -3.153002619 | J84: 83.41414763 | K84: 9.133134601 | L84: -0.3452267766 | M84: 1142579.874 | N84: 109706.2541 | O84: 2.825866169e+11 | P84: 531588.7667 | Q84: 0.2063742896 | AX84: 3082400
A85: 53 | B85: =IF(A85>$B$30,NA(),IF($A85>$A$8,"",OFFSET(InputPriceData!$B$15,$A85+$A$11,0,1,1))) -> 2021-09-16 | C85: =IF(A85>$B$30,NA(),IF($A85>$A$8,"",OFFSET(InputPriceData!$G$15,CalculationsAndCharts!$A85+$A$11,IF($C$5,8,0),1,1))) -> 1711900 | D85: =IF(A85>$B$30,NA(),IF(A85>$A$8,"",OFFSET(InputPriceData!$C$15,CalculationsAndCharts!$A85+$A$11,IF($C$5,8,0),1,1))) -> 256.31 | E85: =IF(A85>$B$30,NA(),IF(A85>$A$8,"",OFFSET(InputPriceData!$D$15,CalculationsAndCharts!$A85+$A$11,IF($C$5,8,0),1,1))) -> 257.74 | F85: =IF(A85>$B$30,NA(),IF(A85>$A$8,"",OFFSET(InputPriceData!$E$15,CalculationsAndCharts!$A85+$A$11,IF($C$5,8,0),1,1))) -> 254.39 | G85: =IF(A85>$B$30,NA(),IF(A85>$A$8,"",OFFSET(InputPriceData!$F$15,CalculationsAndCharts!$A85+$A$11,IF($C$5,8,0),1,1))) -> 256.72 | H85: -0.785214572 | I85: -3.275633631 | J85: 85.23628319 | K85: 9.232349819 | L85: -0.3547995575 | M85: -201307.6021 | N85: 22585.99522 | O85: 2.892963299e+11 | P85: 537862.7426 | Q85: 0.041992117 | AW85: 1711900
A86: 54 | B86: =IF(A86>$B$30,NA(),IF($A86>$A$8,"",OFFSET(InputPriceData!$B$15,$A86+$A$11,0,1,1))) -> 2021-09-15 | C86: =IF(A86>$B$30,NA(),IF($A86>$A$8,"",OFFSET(InputPriceData!$G$15,CalculationsAndCharts!$A86+$A$11,IF($C$5,8,0),1,1))) -> 2285900 | D86: =IF(A86>$B$30,NA(),IF(A86>$A$8,"",OFFSET(InputPriceData!$C$15,CalculationsAndCharts!$A86+$A$11,IF($C$5,8,0),1,1))) -> 254.66 | E86: =IF(A86>$B$30,NA(),IF(A86>$A$8,"",OFFSET(InputPriceData!$D$15,CalculationsAndCharts!$A86+$A$11,IF($C$5,8,0),1,1))) -> 257.98 | F86: =IF(A86>$B$30,NA(),IF(A86>$A$8,"",OFFSET(InputPriceData!$E$15,CalculationsAndCharts!$A86+$A$11,IF($C$5,8,0),1,1))) -> 253.24 | G86: =IF(A86>$B$30,NA(),IF(A86>$A$8,"",OFFSET(InputPriceData!$F$15,CalculationsAndCharts!$A86+$A$11,IF($C$5,8,0),1,1))) -> 254.94 | H86: -3.475065678 | I86: -3.298066972 | J86: 87.08405679 | K86: 9.331883882 | L86: -0.3534192039 | M86: 371183.8908 | N86: -58055.88458 | O86: 2.964582751e+11 | P86: 544479.8206 | Q86: -0.1066263292 | AW86: 2285900
A87: 55 | B87: =IF(A87>$B$30,NA(),IF($A87>$A$8,"",OFFSET(InputPriceData!$B$15,$A87+$A$11,0,1,1))) -> 2021-09-14 | C87: =IF(A87>$B$30,NA(),IF($A87>$A$8,"",OFFSET(InputPriceData!$G$15,CalculationsAndCharts!$A87+$A$11,IF($C$5,8,0),1,1))) -> 2583500 | D87: =IF(A87>$B$30,NA(),IF(A87>$A$8,"",OFFSET(InputPriceData!$C$15,CalculationsAndCharts!$A87+$A$11,IF($C$5,8,0),1,1))) -> 260.52 | E87: =IF(A87>$B$30,NA(),IF(A87>$A$8,"",OFFSET(InputPriceData!$D$15,CalculationsAndCharts!$A87+$A$11,IF($C$5,8,0),1,1))) -> 261.27 | F87: =IF(A87>$B$30,NA(),IF(A87>$A$8,"",OFFSET(InputPriceData!$E$15,CalculationsAndCharts!$A87+$A$11,IF($C$5,8,0),1,1))) -> 253.07 | G87: =IF(A87>$B$30,NA(),IF(A87>$A$8,"",OFFSET(InputPriceData!$F$15,CalculationsAndCharts!$A87+$A$11,IF($C$5,8,0),1,1))) -> 253.56 | H87: -5.939491129 | I87: -3.189150921 | J87: 88.9739982 | K87: 9.432602939 | L87: -0.3380987137 | M87: 698475.5857 | N87: -166180.9868 | O87: 3.037269003e+11 | P87: 551114.2353 | Q87: -0.3015363716 | AX87: 2583500
A88: 56 | B88: =IF(A88>$B$30,NA(),IF($A88>$A$8,"",OFFSET(InputPriceData!$B$15,$A88+$A$11,0,1,1))) -> 2021-09-13 | C88: =IF(A88>$B$30,NA(),IF($A88>$A$8,"",OFFSET(InputPriceData!$G$15,CalculationsAndCharts!$A88+$A$11,IF($C$5,8,0),1,1))) -> 1848000 | D88: =IF(A88>$B$30,NA(),IF(A88>$A$8,"",OFFSET(InputPriceData!$C$15,CalculationsAndCharts!$A88+$A$11,IF($C$5,8,0),1,1))) -> 257.79 | E88: =IF(A88>$B$30,NA(),IF(A88>$A$8,"",OFFSET(InputPriceData!$D$15,CalculationsAndCharts!$A88+$A$11,IF($C$5,8,0),1,1))) -> 260.21 | F88: =IF(A88>$B$30,NA(),IF(A88>$A$8,"",OFFSET(InputPriceData!$E$15,CalculationsAndCharts!$A88+$A$11,IF($C$5,8,0),1,1))) -> 256.09 | G88: =IF(A88>$B$30,NA(),IF(A88>$A$8,"",OFFSET(InputPriceData!$F$15,CalculationsAndCharts!$A88+$A$11,IF($C$5,8,0),1,1))) -> 260.17 | H88: -0.29085414 | I88: -3.206363543 | J88: 90.92833332 | K88: 9.53563492 | L88: -0.3362506608 | M88: -22425.99073 | N88: -248408.884 | O88: 3.105744929e+11 | P88: 557292.1074 | Q88: -0.4457426917 | AW88: 1848000
A89: 57 | B89: =IF(A89>$B$30,NA(),IF($A89>$A$8,"",OFFSET(InputPriceData!$B$15,$A89+$A$11,0,1,1))) -> 2021-09-10 | C89: =IF(A89>$B$30,NA(),IF($A89>$A$8,"",OFFSET(InputPriceData!$G$15,CalculationsAndCharts!$A89+$A$11,IF($C$5,8,0),1,1))) -> 1717500 | D89: =IF(A89>$B$30,NA(),IF(A89>$A$8,"",OFFSET(InputPriceData!$C$15,CalculationsAndCharts!$A89+$A$11,IF($C$5,8,0),1,1))) -> 259.86 | E89: =IF(A89>$B$30,NA(),IF(A89>$A$8,"",OFFSET(InputPriceData!$D$15,CalculationsAndCharts!$A89+$A$11,IF($C$5,8,0),1,1))) -> 260.53 | F89: =IF(A89>$B$30,NA(),IF(A89>$A$8,"",OFFSET(InputPriceData!$E$15,CalculationsAndCharts!$A89+$A$11,IF($C$5,8,0),1,1))) -> 255.58 | G89: =IF(A89>$B$30,NA(),IF(A89>$A$8,"",OFFSET(InputPriceData!$F$15,CalculationsAndCharts!$A89+$A$11,IF($C$5,8,0),1,1))) -> 255.89 | H89: -5.509330179 | I89: -3.221967469 | J89: 92.92840619 | K89: 9.63993808 | L89: -0.3342311374 | M89: -169485.0698 | N89: -304372.5214 | O89: 3.167464482e+11 | P89: 562802.3172 | Q89: -0.5408160415 | AX89: 1717500
A90: 58 | B90: =IF(A90>$B$30,NA(),IF($A90>$A$8,"",OFFSET(InputPriceData!$B$15,$A90+$A$11,0,1,1))) -> 2021-09-09 | C90: =IF(A90>$B$30,NA(),IF($A90>$A$8,"",OFFSET(InputPriceData!$G$15,CalculationsAndCharts!$A90+$A$11,IF($C$5,8,0),1,1))) -> 2132800 | D90: =IF(A90>$B$30,NA(),IF(A90>$A$8,"",OFFSET(InputPriceData!$C$15,CalculationsAndCharts!$A90+$A$11,IF($C$5,8,0),1,1))) -> 257.46 | E90: =IF(A90>$B$30,NA(),IF(A90>$A$8,"",OFFSET(InputPriceData!$D$15,CalculationsAndCharts!$A90+$A$11,IF($C$5,8,0),1,1))) -> 261.04 | F90: =IF(A90>$B$30,NA(),IF(A90>$A$8,"",OFFSET(InputPriceData!$E$15,CalculationsAndCharts!$A90+$A$11,IF($C$5,8,0),1,1))) -> 255.63 | G90: =IF(A90>$B$30,NA(),IF(A90>$A$8,"",OFFSET(InputPriceData!$F$15,CalculationsAndCharts!$A90+$A$11,IF($C$5,8,0),1,1))) -> 257.55 | H90: -4.942901094 | I90: -3.206641252 | J90: 94.97559355 | K90: 9.74554224 | L90: -0.3290367199 | M90: 238612.0185 | N90: -365956.95 | O90: 3.223042596e+11 | P90: 567718.4686 | Q90: -0.6446099083 | AW90: 2132800
A91: 59 | B91: =IF(A91>$B$30,NA(),IF($A91>$A$8,"",OFFSET(InputPriceData!$B$15,$A91+$A$11,0,1,1))) -> 2021-09-08 | C91: =IF(A91>$B$30,NA(),IF($A91>$A$8,"",OFFSET(InputPriceData!$G$15,CalculationsAndCharts!$A91+$A$11,IF($C$5,8,0),1,1))) -> 1963200 | D91: =IF(A91>$B$30,NA(),IF(A91>$A$8,"",OFFSET(InputPriceData!$C$15,CalculationsAndCharts!$A91+$A$11,IF($C$5,8,0),1,1))) -> 261.56 | E91: =IF(A91>$B$30,NA(),IF(A91>$A$8,"",OFFSET(InputPriceData!$D$15,CalculationsAndCharts!$A91+$A$11,IF($C$5,8,0),1,1))) -> 261.6 | F91: =IF(A91>$B$30,NA(),IF(A91>$A$8,"",OFFSET(InputPriceData!$E$15,CalculationsAndCharts!$A91+$A$11,IF($C$5,8,0),1,1))) -> 257.17 | G91: =IF(A91>$B$30,NA(),IF(A91>$A$8,"",OFFSET(InputPriceData!$F$15,CalculationsAndCharts!$A91+$A$11,IF($C$5,8,0),1,1))) -> 259.34 | H91: -4.187107962 | I91: -3.431555175 | J91: 97.07599497 | K91: 9.852715106 | L91: -0.3482852329 | M91: 70086.11659 | N91: -412637.4082 | O91: 3.269761088e+11 | P91: 571818.2481 | Q91: -0.7216233647 | AX91: 1963200
A92: 60 | B92: =IF(A92>$B$30,NA(),IF($A92>$A$8,"",OFFSET(InputPriceData!$B$15,$A92+$A$11,0,1,1))) -> 2021-09-07 | C92: =IF(A92>$B$30,NA(),IF($A92>$A$8,"",OFFSET(InputPriceData!$G$15,CalculationsAndCharts!$A92+$A$11,IF($C$5,8,0),1,1))) -> 1634500 | D92: =IF(A92>$B$30,NA(),IF(A92>$A$8,"",OFFSET(InputPriceData!$C$15,CalculationsAndCharts!$A92+$A$11,IF($C$5,8,0),1,1))) -> 264.6 | E92: =IF(A92>$B$30,NA(),IF(A92>$A$8,"",OFFSET(InputPriceData!$D$15,CalculationsAndCharts!$A92+$A$11,IF($C$5,8,0),1,1))) -> 265.65 | F92: =IF(A92>$B$30,NA(),IF(A92>$A$8,"",OFFSET(InputPriceData!$E$15,CalculationsAndCharts!$A92+$A$11,IF($C$5,8,0),1,1))) -> 261.27 | G92: =IF(A92>$B$30,NA(),IF(A92>$A$8,"",OFFSET(InputPriceData!$F$15,CalculationsAndCharts!$A92+$A$11,IF($C$5,8,0),1,1))) -> 261.94 | H92: -2.525379729 | I92: -3.921905738 | J92: 99.19145947 | K92: 9.959490924 | L92: -0.3937857635 | M92: -275892.9094 | N92: -415568.8363 | O92: 3.308624552e+11 | P92: 575206.4457 | Q92: -0.7224690187 | AX92: 1634500
A93: 61 | B93: =IF(A93>$B$30,NA(),IF($A93>$A$8,"",OFFSET(InputPriceData!$B$15,$A93+$A$11,0,1,1))) -> 2021-09-03 | C93: =IF(A93>$B$30,NA(),IF($A93>$A$8,"",OFFSET(InputPriceData!$G$15,CalculationsAndCharts!$A93+$A$11,IF($C$5,8,0),1,1))) -> 1524800 | D93: =IF(A93>$B$30,NA(),IF(A93>$A$8,"",OFFSET(InputPriceData!$C$15,CalculationsAndCharts!$A93+$A$11,IF($C$5,8,0),1,1))) -> 264.83 | E93: =IF(A93>$B$30,NA(),IF(A93>$A$8,"",OFFSET(InputPriceData!$D$15,CalculationsAndCharts!$A93+$A$11,IF($C$5,8,0),1,1))) -> 266.85 | F93: =IF(A93>$B$30,NA(),IF(A93>$A$8,"",OFFSET(InputPriceData!$E$15,CalculationsAndCharts!$A93+$A$11,IF($C$5,8,0),1,1))) -> 263.19 | G93: =IF(A93>$B$30,NA(),IF(A93>$A$8,"",OFFSET(InputPriceData!$F$15,CalculationsAndCharts!$A93+$A$11,IF($C$5,8,0),1,1))) -> 264.33 | H93: -0.9522327119 | I93: -4.616803965 | J93: 101.2699641 | K93: 10.06329787 | L93: -0.4587764393 | M93: -419712.6961 | N93: -381617.4266 | O93: 3.34784973e+11 | P93: 578606.0603 | Q93: -0.659546197 | AX93: 1524800
A94: 62 | B94: =IF(A94>$B$30,NA(),IF($A94>$A$8,"",OFFSET(InputPriceData!$B$15,$A94+$A$11,0,1,1))) -> 2021-09-02 | C94: =IF(A94>$B$30,NA(),IF($A94>$A$8,"",OFFSET(InputPriceData!$G$15,CalculationsAndCharts!$A94+$A$11,IF($C$5,8,0),1,1))) -> 1311300 | D94: =IF(A94>$B$30,NA(),IF(A94>$A$8,"",OFFSET(InputPriceData!$C$15,CalculationsAndCharts!$A94+$A$11,IF($C$5,8,0),1,1))) -> 264.6 | E94: =IF(A94>$B$30,NA(),IF(A94>$A$8,"",OFFSET(InputPriceData!$D$15,CalculationsAndCharts!$A94+$A$11,IF($C$5,8,0),1,1))) -> 267.25 | F94: =IF(A94>$B$30,NA(),IF(A94>$A$8,"",OFFSET(InputPriceData!$E$15,CalculationsAndCharts!$A94+$A$11,IF($C$5,8,0),1,1))) -> 264.54 | G94: =IF(A94>$B$30,NA(),IF(A94>$A$8,"",OFFSET(InputPriceData!$F$15,CalculationsAndCharts!$A94+$A$11,IF($C$5,8,0),1,1))) -> 265.37 | H94: -0.6595507684 | I94: -5.34575416 | J94: 103.2528633 | K94: 10.16134161 | L94: -0.5260874367 | M94: -680583.2121 | N94: -324511.6795 | O94: 3.394760012e+11 | P94: 582645.691 | Q94: -0.5569622921 | AW94: 1311300
A95: 63 | B95: =IF(A95>$B$30,NA(),IF($A95>$A$8,"",OFFSET(InputPriceData!$B$15,$A95+$A$11,0,1,1))) -> 2021-09-01 | C95: =IF(A95>$B$30,NA(),IF($A95>$A$8,"",OFFSET(InputPriceData!$G$15,CalculationsAndCharts!$A95+$A$11,IF($C$5,8,0),1,1))) -> 1760600 | D95: =IF(A95>$B$30,NA(),IF(A95>$A$8,"",OFFSET(InputPriceData!$C$15,CalculationsAndCharts!$A95+$A$11,IF($C$5,8,0),1,1))) -> 263.63 | E95: =IF(A95>$B$30,NA(),IF(A95>$A$8,"",OFFSET(InputPriceData!$D$15,CalculationsAndCharts!$A95+$A$11,IF($C$5,8,0),1,1))) -> 264.97 | F95: =IF(A95>$B$30,NA(),IF(A95>$A$8,"",OFFSET(InputPriceData!$E$15,CalculationsAndCharts!$A95+$A$11,IF($C$5,8,0),1,1))) -> 261.11 | G95: =IF(A95>$B$30,NA(),IF(A95>$A$8,"",OFFSET(InputPriceData!$F$15,CalculationsAndCharts!$A95+$A$11,IF($C$5,8,0),1,1))) -> 263.47 | H95: -3.389942689 | I95: -5.923048746 | J95: 105.1048348 | K95: 10.2520649 | L95: -0.5777420258 | M95: -272110.8098 | N95: -263267.91 | O95: 3.452834103e+11 | P95: 587608.2116 | Q95: -0.4480330683 | AX95: 1760600
A96: 64 | B96: =IF(A96>$B$30,NA(),IF($A96>$A$8,"",OFFSET(InputPriceData!$B$15,$A96+$A$11,0,1,1))) -> 2021-08-31 | C96: =IF(A96>$B$30,NA(),IF($A96>$A$8,"",OFFSET(InputPriceData!$G$15,CalculationsAndCharts!$A96+$A$11,IF($C$5,8,0),1,1))) -> 1637600 | D96: =IF(A96>$B$30,NA(),IF(A96>$A$8,"",OFFSET(InputPriceData!$C$15,CalculationsAndCharts!$A96+$A$11,IF($C$5,8,0),1,1))) -> 263.6 | E96: =IF(A96>$B$30,NA(),IF(A96>$A$8,"",OFFSET(InputPriceData!$D$15,CalculationsAndCharts!$A96+$A$11,IF($C$5,8,0),1,1))) -> 264.46 | F96: =IF(A96>$B$30,NA(),IF(A96>$A$8,"",OFFSET(InputPriceData!$E$15,CalculationsAndCharts!$A96+$A$11,IF($C$5,8,0),1,1))) -> 262.23 | G96: =IF(A96>$B$30,NA(),IF(A96>$A$8,"",OFFSET(InputPriceData!$F$15,CalculationsAndCharts!$A96+$A$11,IF($C$5,8,0),1,1))) -> 263.24 | H96: -4.582173599 | I96: -6.342914766 | J96: 106.8414 | K96: 10.33641137 | L96: -0.6136476713 | M96: -425841.245 | N96: -194024.7051 | O96: 3.521275963e+11 | P96: 593403.401 | Q96: -0.3269693177 | AX96: 1637600
A97: 65 | B97: =IF(A97>$B$30,NA(),IF($A97>$A$8,"",OFFSET(InputPriceData!$B$15,$A97+$A$11,0,1,1))) -> 2021-08-30 | C97: =IF(A97>$B$30,NA(),IF($A97>$A$8,"",OFFSET(InputPriceData!$G$15,CalculationsAndCharts!$A97+$A$11,IF($C$5,8,0),1,1))) -> 1761600 | D97: =IF(A97>$B$30,NA(),IF(A97>$A$8,"",OFFSET(InputPriceData!$C$15,CalculationsAndCharts!$A97+$A$11,IF($C$5,8,0),1,1))) -> 266.27 | E97: =IF(A97>$B$30,NA(),IF(A97>$A$8,"",OFFSET(InputPriceData!$D$15,CalculationsAndCharts!$A97+$A$11,IF($C$5,8,0),1,1))) -> 266.37 | F97: =IF(A97>$B$30,NA(),IF(A97>$A$8,"",OFFSET(InputPriceData!$E$15,CalculationsAndCharts!$A97+$A$11,IF($C$5,8,0),1,1))) -> 262.99 | G97: =IF(A97>$B$30,NA(),IF(A97>$A$8,"",OFFSET(InputPriceData!$F$15,CalculationsAndCharts!$A97+$A$11,IF($C$5,8,0),1,1))) -> 263.09 | H97: -5.767340002 | I97: -6.707221979 | J97: 108.49331 | K97: 10.41601219 | L97: -0.6439337682 | M97: -333845.6069 | N97: -105146.4815 | O97: 3.599268017e+11 | P97: 599938.9983 | Q97: -0.1752619547 | AW97: =IF(G97>=D97,C97,NA()) ->  | AX97: =IF(G97<D97,C97,NA()) -> 1761600
A98: 66 | B98: =IF(A98>$B$30,NA(),IF($A98>$A$8,"",OFFSET(InputPriceData!$B$15,$A98+$A$11,0,1,1))) -> 2021-08-27 | C98: =IF(A98>$B$30,NA(),IF($A98>$A$8,"",OFFSET(InputPriceData!$G$15,CalculationsAndCharts!$A98+$A$11,IF($C$5,8,0),1,1))) -> 1551700 | D98: =IF(A98>$B$30,NA(),IF(A98>$A$8,"",OFFSET(InputPriceData!$C$15,CalculationsAndCharts!$A98+$A$11,IF($C$5,8,0),1,1))) -> 264.98 | E98: =IF(A98>$B$30,NA(),IF(A98>$A$8,"",OFFSET(InputPriceData!$D$15,CalculationsAndCharts!$A98+$A$11,IF($C$5,8,0),1,1))) -> 266.76 | F98: =IF(A98>$B$30,NA(),IF(A98>$A$8,"",OFFSET(InputPriceData!$E$15,CalculationsAndCharts!$A98+$A$11,IF($C$5,8,0),1,1))) -> 264.44 | G98: =IF(A98>$B$30,NA(),IF(A98>$A$8,"",OFFSET(InputPriceData!$F$15,CalculationsAndCharts!$A98+$A$11,IF($C$5,8,0),1,1))) -> 265.42 | H98: =IF(A98>$H$30+2,NA(),IF(A98>$H$30,0,$C$19*(G98-2*G99+G100)+$D$19*H99+$E$19*H100)) -> -4.454995472 | I98: =IF(A98>$H$30+2,NA(),IF(A98>$H$30,0,$C$24*(H98+H99)/2+$D$24*I99+$E$24*I100)) -> -7.086467861 | J98: =IF($A98>$H$30,NA(),IF($A98=$H$30,I98*I98,0.0242*I98*I98+0.9758*J99)) -> 110.0682812 | K98: =IF(A98>$H$30,NA(),IF(J98=0,0,SQRT(J98))) -> 10.49134315 | L98: =IF(A98>$H$30,NA(),IF(J98=0,0,I98/K98)) -> -0.6754585908 | M98: =IF($A98>$M$30+2,NA(),IF($A98>$M$30,0,$C$19*($C98-2*$C99+$C100)+$D$19*M99+$E$19*M100)) -> -580179.0406 | N98: =IF($A98>$M$30+2,NA(),IF($A98>$M$30,0,$C$24*(M98+M99)/2+$D$24*N99+$E$24*N100)) -> -405.2681001 | O98: =IF($A98>$M$30,NA(),IF($A98=$M$30,N98*N98,0.0242*N98*N98+0.9758*O99)) -> 3.685788602e+11 | P98: =IF($A98>$M$30,NA(),IF(O98=0,0,SQRT(O98))) -> 607106.9594 | Q98: =IF($A98>$M$30,NA(),IF(O98=0,0,N98/P98)) -> -0.0006675398689 | AW98: 1551700
A99: 67 | B99: =IF(A99>$B$30,NA(),IF($A99>$A$8,"",OFFSET(InputPriceData!$B$15,$A99+$A$11,0,1,1))) -> 2021-08-26 | C99: =IF(A99>$B$30,NA(),IF($A99>$A$8,"",OFFSET(InputPriceData!$G$15,CalculationsAndCharts!$A99+$A$11,IF($C$5,8,0),1,1))) -> 1312100 | D99: =IF(A99>$B$30,NA(),IF(A99>$A$8,"",OFFSET(InputPriceData!$C$15,CalculationsAndCharts!$A99+$A$11,IF($C$5,8,0),1,1))) -> 267.45 | E99: =IF(A99>$B$30,NA(),IF(A99>$A$8,"",OFFSET(InputPriceData!$D$15,CalculationsAndCharts!$A99+$A$11,IF($C$5,8,0),1,1))) -> 267.45 | F99: =IF(A99>$B$30,NA(),IF(A99>$A$8,"",OFFSET(InputPriceData!$E$15,CalculationsAndCharts!$A99+$A$11,IF($C$5,8,0),1,1))) -> 264.33 | G99: =IF(A99>$B$30,NA(),IF(A99>$A$8,"",OFFSET(InputPriceData!$F$15,CalculationsAndCharts!$A99+$A$11,IF($C$5,8,0),1,1))) -> 264.99 | H99: -5.894168946 | I99: -7.434447233 | J99: 111.5525773 | K99: 10.56184535 | L99: -0.7038966189 | M99: -873913.9003 | N99: 106658.2569 | O99: 3.777196723e+11 | P99: 614589.0271 | Q99: 0.1735440306 | AX99: 1312100
A100: 68 | B100: =IF(A100>$B$30,NA(),IF($A100>$A$8,"",OFFSET(InputPriceData!$B$15,$A100+$A$11,0,1,1))) -> 2021-08-25 | C100: =IF(A100>$B$30,NA(),IF($A100>$A$8,"",OFFSET(InputPriceData!$G$15,CalculationsAndCharts!$A100+$A$11,IF($C$5,8,0),1,1))) -> 2116200 | D100: =IF(A100>$B$30,NA(),IF(A100>$A$8,"",OFFSET(InputPriceData!$C$15,CalculationsAndCharts!$A100+$A$11,IF($C$5,8,0),1,1))) -> 265.52 | E100: =IF(A100>$B$30,NA(),IF(A100>$A$8,"",OFFSET(InputPriceData!$D$15,CalculationsAndCharts!$A100+$A$11,IF($C$5,8,0),1,1))) -> 269.34 | F100: =IF(A100>$B$30,NA(),IF(A100>$A$8,"",OFFSET(InputPriceData!$E$15,CalculationsAndCharts!$A100+$A$11,IF($C$5,8,0),1,1))) -> 264.84 | G100: =IF(A100>$B$30,NA(),IF(A100>$A$8,"",OFFSET(InputPriceData!$F$15,CalculationsAndCharts!$A100+$A$11,IF($C$5,8,0),1,1))) -> 267.87 | H100: -3.994183544 | I100: -7.698613374 | J100: 112.9483695 | K100: 10.62771704 | L100: -0.7243901343 | M100: -105540.9855 | N100: 170882.1435 | O100: 3.868050558e+11 | P100: 621936.5368 | Q100: 0.2747581681 | AW100: 2116200
A101: 69 | B101: =IF(A101>$B$30,NA(),IF($A101>$A$8,"",OFFSET(InputPriceData!$B$15,$A101+$A$11,0,1,1))) -> 2021-08-24 | C101: =IF(A101>$B$30,NA(),IF($A101>$A$8,"",OFFSET(InputPriceData!$G$15,CalculationsAndCharts!$A101+$A$11,IF($C$5,8,0),1,1))) -> 2111700 | D101: =IF(A101>$B$30,NA(),IF(A101>$A$8,"",OFFSET(InputPriceData!$C$15,CalculationsAndCharts!$A101+$A$11,IF($C$5,8,0),1,1))) -> 264.32 | E101: =IF(A101>$B$30,NA(),IF(A101>$A$8,"",OFFSET(InputPriceData!$D$15,CalculationsAndCharts!$A101+$A$11,IF($C$5,8,0),1,1))) -> 266.59 | F101: =IF(A101>$B$30,NA(),IF(A101>$A$8,"",OFFSET(InputPriceData!$E$15,CalculationsAndCharts!$A101+$A$11,IF($C$5,8,0),1,1))) -> 263.84 | G101: =IF(A101>$B$30,NA(),IF(A101>$A$8,"",OFFSET(InputPriceData!$F$15,CalculationsAndCharts!$A101+$A$11,IF($C$5,8,0),1,1))) -> 265.34 | H101: -7.549503707 | I101: -7.771157321 | J101: 114.2796354 | K101: 10.69016536 | L101: -0.7269445383 | M101: -118144.3956 | N101: 189633.6522 | O101: 3.956737023e+11 | P101: 629025.9949 | Q101: 0.3014718846 | AW101: 2111700
A102: 70 | B102: =IF(A102>$B$30,NA(),IF($A102>$A$8,"",OFFSET(InputPriceData!$B$15,$A102+$A$11,0,1,1))) -> 2021-08-23 | C102: =IF(A102>$B$30,NA(),IF($A102>$A$8,"",OFFSET(InputPriceData!$G$15,CalculationsAndCharts!$A102+$A$11,IF($C$5,8,0),1,1))) -> 2041400 | D102: =IF(A102>$B$30,NA(),IF(A102>$A$8,"",OFFSET(InputPriceData!$C$15,CalculationsAndCharts!$A102+$A$11,IF($C$5,8,0),1,1))) -> 265.52 | E102: =IF(A102>$B$30,NA(),IF(A102>$A$8,"",OFFSET(InputPriceData!$D$15,CalculationsAndCharts!$A102+$A$11,IF($C$5,8,0),1,1))) -> 266.65 | F102: =IF(A102>$B$30,NA(),IF(A102>$A$8,"",OFFSET(InputPriceData!$E$15,CalculationsAndCharts!$A102+$A$11,IF($C$5,8,0),1,1))) -> 264.21 | G102: =IF(A102>$B$30,NA(),IF(A102>$A$8,"",OFFSET(InputPriceData!$F$15,CalculationsAndCharts!$A102+$A$11,IF($C$5,8,0),1,1))) -> 264.43 | H102: -9.668351116 | I102: -7.637945482 | J102: 115.6160852 | K102: 10.75249205 | L102: -0.7103418862 | M102: -199547.4179 | N102: 181728.6606 | O102: 4.045946382e+11 | P102: 636077.5411 | Q102: 0.285702055 | AX102: 2041400
A103: 71 | B103: =IF(A103>$B$30,NA(),IF($A103>$A$8,"",OFFSET(InputPriceData!$B$15,$A103+$A$11,0,1,1))) -> 2021-08-20 | C103: =IF(A103>$B$30,NA(),IF($A103>$A$8,"",OFFSET(InputPriceData!$G$15,CalculationsAndCharts!$A103+$A$11,IF($C$5,8,0),1,1))) -> 2404600 | D103: =IF(A103>$B$30,NA(),IF(A103>$A$8,"",OFFSET(InputPriceData!$C$15,CalculationsAndCharts!$A103+$A$11,IF($C$5,8,0),1,1))) -> 263.94 | E103: =IF(A103>$B$30,NA(),IF(A103>$A$8,"",OFFSET(InputPriceData!$D$15,CalculationsAndCharts!$A103+$A$11,IF($C$5,8,0),1,1))) -> 266.02 | F103: =IF(A103>$B$30,NA(),IF(A103>$A$8,"",OFFSET(InputPriceData!$E$15,CalculationsAndCharts!$A103+$A$11,IF($C$5,8,0),1,1))) -> 261.63 | G103: =IF(A103>$B$30,NA(),IF(A103>$A$8,"",OFFSET(InputPriceData!$F$15,CalculationsAndCharts!$A103+$A$11,IF($C$5,8,0),1,1))) -> 264.09 | H103: -11.32735224 | I103: -7.549862587 | J103: 117.0365859 | K103: 10.81834488 | L103: -0.6978759389 | M103: 162758.1221 | N103: 127441.7183 | O103: 4.138096186e+11 | P103: 643280.3577 | Q103: 0.1981122489 | AW103: 2404600
A104: 72 | B104: =IF(A104>$B$30,NA(),IF($A104>$A$8,"",OFFSET(InputPriceData!$B$15,$A104+$A$11,0,1,1))) -> 2021-08-19 | C104: =IF(A104>$B$30,NA(),IF($A104>$A$8,"",OFFSET(InputPriceData!$G$15,CalculationsAndCharts!$A104+$A$11,IF($C$5,8,0),1,1))) -> 3101100 | D104: =IF(A104>$B$30,NA(),IF(A104>$A$8,"",OFFSET(InputPriceData!$C$15,CalculationsAndCharts!$A104+$A$11,IF($C$5,8,0),1,1))) -> 267.51 | E104: =IF(A104>$B$30,NA(),IF(A104>$A$8,"",OFFSET(InputPriceData!$D$15,CalculationsAndCharts!$A104+$A$11,IF($C$5,8,0),1,1))) -> 268.23 | F104: =IF(A104>$B$30,NA(),IF(A104>$A$8,"",OFFSET(InputPriceData!$E$15,CalculationsAndCharts!$A104+$A$11,IF($C$5,8,0),1,1))) -> 262.59 | G104: =IF(A104>$B$30,NA(),IF(A104>$A$8,"",OFFSET(InputPriceData!$F$15,CalculationsAndCharts!$A104+$A$11,IF($C$5,8,0),1,1))) -> 265.09 | H104: -11.69043574 | I104: -7.7757276 | J104: 118.5254925 | K104: 10.88694137 | L104: -0.7142251743 | M104: 896683.5838 | N104: 24825.51818 | O104: 4.236693758e+11 | P104: 650898.8983 | Q104: 0.03814035981 | AX104: 3101100
A105: 73 | B105: =IF(A105>$B$30,NA(),IF($A105>$A$8,"",OFFSET(InputPriceData!$B$15,$A105+$A$11,0,1,1))) -> 2021-08-18 | C105: =IF(A105>$B$30,NA(),IF($A105>$A$8,"",OFFSET(InputPriceData!$G$15,CalculationsAndCharts!$A105+$A$11,IF($C$5,8,0),1,1))) -> 2136600 | D105: =IF(A105>$B$30,NA(),IF(A105>$A$8,"",OFFSET(InputPriceData!$C$15,CalculationsAndCharts!$A105+$A$11,IF($C$5,8,0),1,1))) -> 273.51 | E105: =IF(A105>$B$30,NA(),IF(A105>$A$8,"",OFFSET(InputPriceData!$D$15,CalculationsAndCharts!$A105+$A$11,IF($C$5,8,0),1,1))) -> 275.07 | F105: =IF(A105>$B$30,NA(),IF(A105>$A$8,"",OFFSET(InputPriceData!$E$15,CalculationsAndCharts!$A105+$A$11,IF($C$5,8,0),1,1))) -> 269.9 | G105: =IF(A105>$B$30,NA(),IF(A105>$A$8,"",OFFSET(InputPriceData!$F$15,CalculationsAndCharts!$A105+$A$11,IF($C$5,8,0),1,1))) -> 270.24 | H105: -7.749534682 | I105: -8.587862355 | J105: 119.9654781 | K105: 10.95287534 | L105: -0.784073779 | M105: -38764.86073 | N105: -72975.11326 | O105: 4.341611613e+11 | P105: 658909.0691 | Q105: -0.1107514173 | AX105: 2136600
A106: 74 | B106: =IF(A106>$B$30,NA(),IF($A106>$A$8,"",OFFSET(InputPriceData!$B$15,$A106+$A$11,0,1,1))) -> 2021-08-17 | C106: =IF(A106>$B$30,NA(),IF($A106>$A$8,"",OFFSET(InputPriceData!$G$15,CalculationsAndCharts!$A106+$A$11,IF($C$5,8,0),1,1))) -> 2939900 | D106: =IF(A106>$B$30,NA(),IF(A106>$A$8,"",OFFSET(InputPriceData!$C$15,CalculationsAndCharts!$A106+$A$11,IF($C$5,8,0),1,1))) -> 276.63 | E106: =IF(A106>$B$30,NA(),IF(A106>$A$8,"",OFFSET(InputPriceData!$D$15,CalculationsAndCharts!$A106+$A$11,IF($C$5,8,0),1,1))) -> 277.91 | F106: =IF(A106>$B$30,NA(),IF(A106>$A$8,"",OFFSET(InputPriceData!$E$15,CalculationsAndCharts!$A106+$A$11,IF($C$5,8,0),1,1))) -> 272.25 | G106: =IF(A106>$B$30,NA(),IF(A106>$A$8,"",OFFSET(InputPriceData!$F$15,CalculationsAndCharts!$A106+$A$11,IF($C$5,8,0),1,1))) -> 275.29 | H106: -3.601673917 | I106: -9.993688116 | J106: 121.1115953 | K106: 11.00507135 | L106: -0.9080984395 | M106: 788734.2993 | N106: -163631.7461 | O106: 4.447963593e+11 | P106: 666930.5506 | Q106: -0.245350503 | AX106: 2939900
A107: 75 | B107: =IF(A107>$B$30,NA(),IF($A107>$A$8,"",OFFSET(InputPriceData!$B$15,$A107+$A$11,0,1,1))) -> 2021-08-16 | C107: =IF(A107>$B$30,NA(),IF($A107>$A$8,"",OFFSET(InputPriceData!$G$15,CalculationsAndCharts!$A107+$A$11,IF($C$5,8,0),1,1))) -> 2757900 | D107: =IF(A107>$B$30,NA(),IF(A107>$A$8,"",OFFSET(InputPriceData!$C$15,CalculationsAndCharts!$A107+$A$11,IF($C$5,8,0),1,1))) -> 274.24 | E107: =IF(A107>$B$30,NA(),IF(A107>$A$8,"",OFFSET(InputPriceData!$D$15,CalculationsAndCharts!$A107+$A$11,IF($C$5,8,0),1,1))) -> 280.27 | F107: =IF(A107>$B$30,NA(),IF(A107>$A$8,"",OFFSET(InputPriceData!$E$15,CalculationsAndCharts!$A107+$A$11,IF($C$5,8,0),1,1))) -> 272.62 | G107: =IF(A107>$B$30,NA(),IF(A107>$A$8,"",OFFSET(InputPriceData!$F$15,CalculationsAndCharts!$A107+$A$11,IF($C$5,8,0),1,1))) -> 279.06 | H107: -0.4651528216 | I107: -11.65374219 | J107: 121.6382961 | K107: 11.0289753 | L107: -1.056647773 | M107: 654179.5429 | N107: -238629.4745 | O107: 4.551633489e+11 | P107: 674657.9496 | Q107: -0.353704384 | AW107: 2757900
A108: 76 | B108: =IF(A108>$B$30,NA(),IF($A108>$A$8,"",OFFSET(InputPriceData!$B$15,$A108+$A$11,0,1,1))) -> 2021-08-13 | C108: =IF(A108>$B$30,NA(),IF($A108>$A$8,"",OFFSET(InputPriceData!$G$15,CalculationsAndCharts!$A108+$A$11,IF($C$5,8,0),1,1))) -> 1946200 | D108: =IF(A108>$B$30,NA(),IF(A108>$A$8,"",OFFSET(InputPriceData!$C$15,CalculationsAndCharts!$A108+$A$11,IF($C$5,8,0),1,1))) -> 272.69 | E108: =IF(A108>$B$30,NA(),IF(A108>$A$8,"",OFFSET(InputPriceData!$D$15,CalculationsAndCharts!$A108+$A$11,IF($C$5,8,0),1,1))) -> 276.17 | F108: =IF(A108>$B$30,NA(),IF(A108>$A$8,"",OFFSET(InputPriceData!$E$15,CalculationsAndCharts!$A108+$A$11,IF($C$5,8,0),1,1))) -> 272.22 | G108: =IF(A108>$B$30,NA(),IF(A108>$A$8,"",OFFSET(InputPriceData!$F$15,CalculationsAndCharts!$A108+$A$11,IF($C$5,8,0),1,1))) -> 274.62 | H108: -5.603382642 | I108: -13.05693875 | J108: 121.2868428 | K108: 11.01303059 | L108: -1.185589983 | M108: -144479.4347 | N108: -237282.9718 | O108: 4.650392534e+11 | P108: 681937.8663 | Q108: -0.3479539464 | AW108: 1946200
A109: 77 | B109: =IF(A109>$B$30,NA(),IF($A109>$A$8,"",OFFSET(InputPriceData!$B$15,$A109+$A$11,0,1,1))) -> 2021-08-12 | C109: =IF(A109>$B$30,NA(),IF($A109>$A$8,"",OFFSET(InputPriceData!$G$15,CalculationsAndCharts!$A109+$A$11,IF($C$5,8,0),1,1))) -> 1211200 | D109: =IF(A109>$B$30,NA(),IF(A109>$A$8,"",OFFSET(InputPriceData!$C$15,CalculationsAndCharts!$A109+$A$11,IF($C$5,8,0),1,1))) -> 273.95 | E109: =IF(A109>$B$30,NA(),IF(A109>$A$8,"",OFFSET(InputPriceData!$D$15,CalculationsAndCharts!$A109+$A$11,IF($C$5,8,0),1,1))) -> 276.04 | F109: =IF(A109>$B$30,NA(),IF(A109>$A$8,"",OFFSET(InputPriceData!$E$15,CalculationsAndCharts!$A109+$A$11,IF($C$5,8,0),1,1))) -> 271.16 | G109: =IF(A109>$B$30,NA(),IF(A109>$A$8,"",OFFSET(InputPriceData!$F$15,CalculationsAndCharts!$A109+$A$11,IF($C$5,8,0),1,1))) -> 273.55 | H109: -7.61352431 | I109: -14.01005284 | J109: 120.0667539 | K109: 10.95749761 | L109: -1.278581419 | M109: -922116.4207 | N109: -174549.5783 | O109: 4.751759744e+11 | P109: 689330.091 | Q109: -0.2532162465 | AX109: 1211200
A110: 78 | B110: =IF(A110>$B$30,NA(),IF($A110>$A$8,"",OFFSET(InputPriceData!$B$15,$A110+$A$11,0,1,1))) -> 2021-08-11 | C110: =IF(A110>$B$30,NA(),IF($A110>$A$8,"",OFFSET(InputPriceData!$G$15,CalculationsAndCharts!$A110+$A$11,IF($C$5,8,0),1,1))) -> 2017800 | D110: =IF(A110>$B$30,NA(),IF(A110>$A$8,"",OFFSET(InputPriceData!$C$15,CalculationsAndCharts!$A110+$A$11,IF($C$5,8,0),1,1))) -> 269.9 | E110: =IF(A110>$B$30,NA(),IF(A110>$A$8,"",OFFSET(InputPriceData!$D$15,CalculationsAndCharts!$A110+$A$11,IF($C$5,8,0),1,1))) -> 274.6 | F110: =IF(A110>$B$30,NA(),IF(A110>$A$8,"",OFFSET(InputPriceData!$E$15,CalculationsAndCharts!$A110+$A$11,IF($C$5,8,0),1,1))) -> 268.75 | G110: =IF(A110>$B$30,NA(),IF(A110>$A$8,"",OFFSET(InputPriceData!$F$15,CalculationsAndCharts!$A110+$A$11,IF($C$5,8,0),1,1))) -> 273.72 | H110: -8.466951732 | I110: -14.58429687 | J110: 118.1766137 | K110: 10.87090676 | L110: -1.341589731 | M110: -157252.3229 | N110: -120930.9907 | O110: 4.862048161e+11 | P110: 697283.8849 | Q110: -0.1734315009 | AW110: 2017800
A111: 79 | B111: =IF(A111>$B$30,NA(),IF($A111>$A$8,"",OFFSET(InputPriceData!$B$15,$A111+$A$11,0,1,1))) -> 2021-08-10 | C111: =IF(A111>$B$30,NA(),IF($A111>$A$8,"",OFFSET(InputPriceData!$G$15,CalculationsAndCharts!$A111+$A$11,IF($C$5,8,0),1,1))) -> 2144700 | D111: =IF(A111>$B$30,NA(),IF(A111>$A$8,"",OFFSET(InputPriceData!$C$15,CalculationsAndCharts!$A111+$A$11,IF($C$5,8,0),1,1))) -> 269.98 | E111: =IF(A111>$B$30,NA(),IF(A111>$A$8,"",OFFSET(InputPriceData!$D$15,CalculationsAndCharts!$A111+$A$11,IF($C$5,8,0),1,1))) -> 271.84 | F111: =IF(A111>$B$30,NA(),IF(A111>$A$8,"",OFFSET(InputPriceData!$E$15,CalculationsAndCharts!$A111+$A$11,IF($C$5,8,0),1,1))) -> 268.46 | G111: =IF(A111>$B$30,NA(),IF(A111>$A$8,"",OFFSET(InputPriceData!$F$15,CalculationsAndCharts!$A111+$A$11,IF($C$5,8,0),1,1))) -> 268.75 | H111: -14.68703291 | I111: -14.67343268 | J111: 115.8323757 | K111: 10.76254504 | L111: -1.363379445 | M111: -39924.49386 | N111: -88917.88033 | O111: 4.979000901e+11 | P111: 705620.3583 | Q111: -0.1260137683 | AX111: 2144700
A112: 80 | B112: =IF(A112>$B$30,NA(),IF($A112>$A$8,"",OFFSET(InputPriceData!$B$15,$A112+$A$11,0,1,1))) -> 2021-08-09 | C112: =IF(A112>$B$30,NA(),IF($A112>$A$8,"",OFFSET(InputPriceData!$G$15,CalculationsAndCharts!$A112+$A$11,IF($C$5,8,0),1,1))) -> 1847600 | D112: =IF(A112>$B$30,NA(),IF(A112>$A$8,"",OFFSET(InputPriceData!$C$15,CalculationsAndCharts!$A112+$A$11,IF($C$5,8,0),1,1))) -> 272.51 | E112: =IF(A112>$B$30,NA(),IF(A112>$A$8,"",OFFSET(InputPriceData!$D$15,CalculationsAndCharts!$A112+$A$11,IF($C$5,8,0),1,1))) -> 273.43 | F112: =IF(A112>$B$30,NA(),IF(A112>$A$8,"",OFFSET(InputPriceData!$E$15,CalculationsAndCharts!$A112+$A$11,IF($C$5,8,0),1,1))) -> 270.04 | G112: =IF(A112>$B$30,NA(),IF(A112>$A$8,"",OFFSET(InputPriceData!$F$15,CalculationsAndCharts!$A112+$A$11,IF($C$5,8,0),1,1))) -> 270.15 | H112: -14.72641315 | I112: -14.43091933 | J112: 113.3653235 | K112: 10.64731532 | L112: -1.355357561 | M112: -353188.4981 | N112: -40192.11357 | O112: 5.100520142e+11 | P112: 714179.2592 | Q112: -0.05627734641 | AX112: 1847600
A113: 81 | B113: =IF(A113>$B$30,NA(),IF($A113>$A$8,"",OFFSET(InputPriceData!$B$15,$A113+$A$11,0,1,1))) -> 2021-08-06 | C113: =IF(A113>$B$30,NA(),IF($A113>$A$8,"",OFFSET(InputPriceData!$G$15,CalculationsAndCharts!$A113+$A$11,IF($C$5,8,0),1,1))) -> 1701800 | D113: =IF(A113>$B$30,NA(),IF(A113>$A$8,"",OFFSET(InputPriceData!$C$15,CalculationsAndCharts!$A113+$A$11,IF($C$5,8,0),1,1))) -> 274.11 | E113: =IF(A113>$B$30,NA(),IF(A113>$A$8,"",OFFSET(InputPriceData!$D$15,CalculationsAndCharts!$A113+$A$11,IF($C$5,8,0),1,1))) -> 275.88 | F113: =IF(A113>$B$30,NA(),IF(A113>$A$8,"",OFFSET(InputPriceData!$E$15,CalculationsAndCharts!$A113+$A$11,IF($C$5,8,0),1,1))) -> 272.49 | G113: =IF(A113>$B$30,NA(),IF(A113>$A$8,"",OFFSET(InputPriceData!$F$15,CalculationsAndCharts!$A113+$A$11,IF($C$5,8,0),1,1))) -> 273.72 | H113: -12.48164826 | I113: -14.0867551 | J113: 111.0121325 | K113: 10.53622952 | L113: -1.336982558 | M113: -531830.2709 | N113: 16519.68862 | O113: 5.226613255e+11 | P113: 722953.1973 | Q113: 0.0228502878 | AX113: 1701800
A114: 82 | B114: =IF(A114>$B$30,NA(),IF($A114>$A$8,"",OFFSET(InputPriceData!$B$15,$A114+$A$11,0,1,1))) -> 2021-08-05 | C114: =IF(A114>$B$30,NA(),IF($A114>$A$8,"",OFFSET(InputPriceData!$G$15,CalculationsAndCharts!$A114+$A$11,IF($C$5,8,0),1,1))) -> 2089700 | D114: =IF(A114>$B$30,NA(),IF(A114>$A$8,"",OFFSET(InputPriceData!$C$15,CalculationsAndCharts!$A114+$A$11,IF($C$5,8,0),1,1))) -> 273.35 | E114: =IF(A114>$B$30,NA(),IF(A114>$A$8,"",OFFSET(InputPriceData!$D$15,CalculationsAndCharts!$A114+$A$11,IF($C$5,8,0),1,1))) -> 275.21 | F114: =IF(A114>$B$30,NA(),IF(A114>$A$8,"",OFFSET(InputPriceData!$E$15,CalculationsAndCharts!$A114+$A$11,IF($C$5,8,0),1,1))) -> 272.13 | G114: =IF(A114>$B$30,NA(),IF(A114>$A$8,"",OFFSET(InputPriceData!$F$15,CalculationsAndCharts!$A114+$A$11,IF($C$5,8,0),1,1))) -> 273.25 | H114: -14.22501597 | I114: -13.49063387 | J114: 108.8439896 | K114: 10.43283229 | L114: -1.293094098 | M114: -169231.7216 | N114: 48393.7567 | O114: 5.356166441e+11 | P114: 731858.3497 | Q114: 0.06612448531 | AX114: 2089700
A115: 83 | B115: =IF(A115>$B$30,NA(),IF($A115>$A$8,"",OFFSET(InputPriceData!$B$15,$A115+$A$11,0,1,1))) -> 2021-08-04 | C115: =IF(A115>$B$30,NA(),IF($A115>$A$8,"",OFFSET(InputPriceData!$G$15,CalculationsAndCharts!$A115+$A$11,IF($C$5,8,0),1,1))) -> 1978800 | D115: =IF(A115>$B$30,NA(),IF(A115>$A$8,"",OFFSET(InputPriceData!$C$15,CalculationsAndCharts!$A115+$A$11,IF($C$5,8,0),1,1))) -> 276.75 | E115: =IF(A115>$B$30,NA(),IF(A115>$A$8,"",OFFSET(InputPriceData!$D$15,CalculationsAndCharts!$A115+$A$11,IF($C$5,8,0),1,1))) -> 277.7 | F115: =IF(A115>$B$30,NA(),IF(A115>$A$8,"",OFFSET(InputPriceData!$E$15,CalculationsAndCharts!$A115+$A$11,IF($C$5,8,0),1,1))) -> 272.54 | G115: =IF(A115>$B$30,NA(),IF(A115>$A$8,"",OFFSET(InputPriceData!$F$15,CalculationsAndCharts!$A115+$A$11,IF($C$5,8,0),1,1))) -> 272.58 | H115: -16.26680901 | I115: -12.54420065 | J115: 107.029778 | K115: 10.34551971 | L115: -1.212524939 | M115: -296325.4419 | N115: 48944.19565 | O115: 5.488419438e+11 | P115: 740838.676 | Q115: 0.06606592938 | AX115: 1978800
A116: 84 | B116: =IF(A116>$B$30,NA(),IF($A116>$A$8,"",OFFSET(InputPriceData!$B$15,$A116+$A$11,0,1,1))) -> 2021-08-03 | C116: =IF(A116>$B$30,NA(),IF($A116>$A$8,"",OFFSET(InputPriceData!$G$15,CalculationsAndCharts!$A116+$A$11,IF($C$5,8,0),1,1))) -> 2151100 | D116: =IF(A116>$B$30,NA(),IF(A116>$A$8,"",OFFSET(InputPriceData!$C$15,CalculationsAndCharts!$A116+$A$11,IF($C$5,8,0),1,1))) -> 273.73 | E116: =IF(A116>$B$30,NA(),IF(A116>$A$8,"",OFFSET(InputPriceData!$D$15,CalculationsAndCharts!$A116+$A$11,IF($C$5,8,0),1,1))) -> 279.11 | F116: =IF(A116>$B$30,NA(),IF(A116>$A$8,"",OFFSET(InputPriceData!$E$15,CalculationsAndCharts!$A116+$A$11,IF($C$5,8,0),1,1))) -> 271.72 | G116: =IF(A116>$B$30,NA(),IF(A116>$A$8,"",OFFSET(InputPriceData!$F$15,CalculationsAndCharts!$A116+$A$11,IF($C$5,8,0),1,1))) -> 278.22 | H116: -11.87815558 | I116: -11.40131877 | J116: 105.7816554 | K116: 10.28502092 | L116: -1.108536274 | M116: -138560.3471 | N116: 15092.49646 | O116: 5.623939043e+11 | P116: 749929.2662 | Q116: 0.02012522666 | AW116: 2151100
A117: 85 | B117: =IF(A117>$B$30,NA(),IF($A117>$A$8,"",OFFSET(InputPriceData!$B$15,$A117+$A$11,0,1,1))) -> 2021-08-02 | C117: =IF(A117>$B$30,NA(),IF($A117>$A$8,"",OFFSET(InputPriceData!$G$15,CalculationsAndCharts!$A117+$A$11,IF($C$5,8,0),1,1))) -> 2490400 | D117: =IF(A117>$B$30,NA(),IF(A117>$A$8,"",OFFSET(InputPriceData!$C$15,CalculationsAndCharts!$A117+$A$11,IF($C$5,8,0),1,1))) -> 278.2 | E117: =IF(A117>$B$30,NA(),IF(A117>$A$8,"",OFFSET(InputPriceData!$D$15,CalculationsAndCharts!$A117+$A$11,IF($C$5,8,0),1,1))) -> 280 | F117: =IF(A117>$B$30,NA(),IF(A117>$A$8,"",OFFSET(InputPriceData!$E$15,CalculationsAndCharts!$A117+$A$11,IF($C$5,8,0),1,1))) -> 272.85 | G117: =IF(A117>$B$30,NA(),IF(A117>$A$8,"",OFFSET(InputPriceData!$F$15,CalculationsAndCharts!$A117+$A$11,IF($C$5,8,0),1,1))) -> 273.61 | H117: -17.75594846 | I117: -9.948355727 | J117: 105.1812827 | K117: 10.25579264 | L117: -0.9700230956 | M117: 204230.2173 | N117: -66341.3994 | O117: 5.763357163e+11 | P117: 759167.7788 | Q117: -0.08738700621 | AX117: 2490400
A118: 86 | B118: =IF(A118>$B$30,NA(),IF($A118>$A$8,"",OFFSET(InputPriceData!$B$15,$A118+$A$11,0,1,1))) -> 2021-07-30 | C118: =IF(A118>$B$30,NA(),IF($A118>$A$8,"",OFFSET(InputPriceData!$G$15,CalculationsAndCharts!$A118+$A$11,IF($C$5,8,0),1,1))) -> 2337200 | D118: =IF(A118>$B$30,NA(),IF(A118>$A$8,"",OFFSET(InputPriceData!$C$15,CalculationsAndCharts!$A118+$A$11,IF($C$5,8,0),1,1))) -> 277.41 | E118: =IF(A118>$B$30,NA(),IF(A118>$A$8,"",OFFSET(InputPriceData!$D$15,CalculationsAndCharts!$A118+$A$11,IF($C$5,8,0),1,1))) -> 279.39 | F118: =IF(A118>$B$30,NA(),IF(A118>$A$8,"",OFFSET(InputPriceData!$E$15,CalculationsAndCharts!$A118+$A$11,IF($C$5,8,0),1,1))) -> 275.22 | G118: =IF(A118>$B$30,NA(),IF(A118>$A$8,"",OFFSET(InputPriceData!$F$15,CalculationsAndCharts!$A118+$A$11,IF($C$5,8,0),1,1))) -> 277.36 | H118: -15.35780293 | I118: -8.282640526 | J118: 105.335329 | K118: 10.2633001 | L118: -0.8070153308 | M118: 61419.89169 | N118: -181100.0827 | O118: 5.905197866e+11 | P118: 768452.8525 | Q118: -0.235668437 | AX118: 2337200
A119: 87 | B119: =IF(A119>$B$30,NA(),IF($A119>$A$8,"",OFFSET(InputPriceData!$B$15,$A119+$A$11,0,1,1))) -> 2021-07-29 | C119: =IF(A119>$B$30,NA(),IF($A119>$A$8,"",OFFSET(InputPriceData!$G$15,CalculationsAndCharts!$A119+$A$11,IF($C$5,8,0),1,1))) -> 1820800 | D119: =IF(A119>$B$30,NA(),IF(A119>$A$8,"",OFFSET(InputPriceData!$C$15,CalculationsAndCharts!$A119+$A$11,IF($C$5,8,0),1,1))) -> 279.23 | E119: =IF(A119>$B$30,NA(),IF(A119>$A$8,"",OFFSET(InputPriceData!$D$15,CalculationsAndCharts!$A119+$A$11,IF($C$5,8,0),1,1))) -> 282.02 | F119: =IF(A119>$B$30,NA(),IF(A119>$A$8,"",OFFSET(InputPriceData!$E$15,CalculationsAndCharts!$A119+$A$11,IF($C$5,8,0),1,1))) -> 278.59 | G119: =IF(A119>$B$30,NA(),IF(A119>$A$8,"",OFFSET(InputPriceData!$F$15,CalculationsAndCharts!$A119+$A$11,IF($C$5,8,0),1,1))) -> 279.32 | H119: -14.59756642 | I119: -6.704769665 | J119: 106.2463182 | K119: 10.30758547 | L119: -0.6504694707 | M119: -468410.2865 | N119: -321362.8886 | O119: 6.043513972e+11 | P119: 777400.4098 | Q119: -0.4133814243 | AW119: 1820800
A120: 88 | B120: =IF(A120>$B$30,NA(),IF($A120>$A$8,"",OFFSET(InputPriceData!$B$15,$A120+$A$11,0,1,1))) -> 2021-07-28 | C120: =IF(A120>$B$30,NA(),IF($A120>$A$8,"",OFFSET(InputPriceData!$G$15,CalculationsAndCharts!$A120+$A$11,IF($C$5,8,0),1,1))) -> 2732100 | D120: =IF(A120>$B$30,NA(),IF(A120>$A$8,"",OFFSET(InputPriceData!$C$15,CalculationsAndCharts!$A120+$A$11,IF($C$5,8,0),1,1))) -> 281.58 | E120: =IF(A120>$B$30,NA(),IF(A120>$A$8,"",OFFSET(InputPriceData!$D$15,CalculationsAndCharts!$A120+$A$11,IF($C$5,8,0),1,1))) -> 281.67 | F120: =IF(A120>$B$30,NA(),IF(A120>$A$8,"",OFFSET(InputPriceData!$E$15,CalculationsAndCharts!$A120+$A$11,IF($C$5,8,0),1,1))) -> 277.69 | G120: =IF(A120>$B$30,NA(),IF(A120>$A$8,"",OFFSET(InputPriceData!$F$15,CalculationsAndCharts!$A120+$A$11,IF($C$5,8,0),1,1))) -> 279.23 | H120: -15.86728643 | I120: -5.263709614 | J120: 107.7663793 | K120: 10.38105868 | L120: -0.5070494037 | M120: 443306.6052 | N120: -525549.1171 | O120: 6.167781961e+11 | P120: 785352.2752 | Q120: -0.669189017 | AX120: 2732100
A121: 89 | B121: =IF(A121>$B$30,NA(),IF($A121>$A$8,"",OFFSET(InputPriceData!$B$15,$A121+$A$11,0,1,1))) -> 2021-07-27 | C121: =IF(A121>$B$30,NA(),IF($A121>$A$8,"",OFFSET(InputPriceData!$G$15,CalculationsAndCharts!$A121+$A$11,IF($C$5,8,0),1,1))) -> 4837200 | D121: =IF(A121>$B$30,NA(),IF(A121>$A$8,"",OFFSET(InputPriceData!$C$15,CalculationsAndCharts!$A121+$A$11,IF($C$5,8,0),1,1))) -> 284.84 | E121: =IF(A121>$B$30,NA(),IF(A121>$A$8,"",OFFSET(InputPriceData!$D$15,CalculationsAndCharts!$A121+$A$11,IF($C$5,8,0),1,1))) -> 285.72 | F121: =IF(A121>$B$30,NA(),IF(A121>$A$8,"",OFFSET(InputPriceData!$E$15,CalculationsAndCharts!$A121+$A$11,IF($C$5,8,0),1,1))) -> 276.54 | G121: =IF(A121>$B$30,NA(),IF(A121>$A$8,"",OFFSET(InputPriceData!$F$15,CalculationsAndCharts!$A121+$A$11,IF($C$5,8,0),1,1))) -> 280.02 | H121: -16.27717279 | I121: -4.244908456 | J121: 109.751874 | K121: 10.47625286 | L121: -0.4051933942 | M121: 2658010.043 | N121: -780727.1224 | O121: 6.252245448e+11 | P121: 790711.4169 | Q121: -0.9873730235 | AX121: 4837200
A122: 90 | B122: =IF(A122>$B$30,NA(),IF($A122>$A$8,"",OFFSET(InputPriceData!$B$15,$A122+$A$11,0,1,1))) -> 2021-07-26 | C122: =IF(A122>$B$30,NA(),IF($A122>$A$8,"",OFFSET(InputPriceData!$G$15,CalculationsAndCharts!$A122+$A$11,IF($C$5,8,0),1,1))) -> 1205500 | D122: =IF(A122>$B$30,NA(),IF(A122>$A$8,"",OFFSET(InputPriceData!$C$15,CalculationsAndCharts!$A122+$A$11,IF($C$5,8,0),1,1))) -> 293.35 | E122: =IF(A122>$B$30,NA(),IF(A122>$A$8,"",OFFSET(InputPriceData!$D$15,CalculationsAndCharts!$A122+$A$11,IF($C$5,8,0),1,1))) -> 295.74 | F122: =IF(A122>$B$30,NA(),IF(A122>$A$8,"",OFFSET(InputPriceData!$E$15,CalculationsAndCharts!$A122+$A$11,IF($C$5,8,0),1,1))) -> 292.92 | G122: =IF(A122>$B$30,NA(),IF(A122>$A$8,"",OFFSET(InputPriceData!$F$15,CalculationsAndCharts!$A122+$A$11,IF($C$5,8,0),1,1))) -> 294.75 | H122: -2.230347317 | I122: -4.113516464 | J122: 112.0268582 | K122: 10.5842741 | L122: -0.388644174 | M122: -915442.1756 | N122: -891378.6749 | O122: 6.25613652e+11 | P122: 790957.4274 | Q122: -1.126961634 | AW122: 1205500
A123: 91 | B123: =IF(A123>$B$30,NA(),IF($A123>$A$8,"",OFFSET(InputPriceData!$B$15,$A123+$A$11,0,1,1))) -> 2021-07-23 | C123: =IF(A123>$B$30,NA(),IF($A123>$A$8,"",OFFSET(InputPriceData!$G$15,CalculationsAndCharts!$A123+$A$11,IF($C$5,8,0),1,1))) -> 1000600 | D123: =IF(A123>$B$30,NA(),IF(A123>$A$8,"",OFFSET(InputPriceData!$C$15,CalculationsAndCharts!$A123+$A$11,IF($C$5,8,0),1,1))) -> 295.05 | E123: =IF(A123>$B$30,NA(),IF(A123>$A$8,"",OFFSET(InputPriceData!$D$15,CalculationsAndCharts!$A123+$A$11,IF($C$5,8,0),1,1))) -> 295.9 | F123: =IF(A123>$B$30,NA(),IF(A123>$A$8,"",OFFSET(InputPriceData!$E$15,CalculationsAndCharts!$A123+$A$11,IF($C$5,8,0),1,1))) -> 293.35 | G123: =IF(A123>$B$30,NA(),IF(A123>$A$8,"",OFFSET(InputPriceData!$F$15,CalculationsAndCharts!$A123+$A$11,IF($C$5,8,0),1,1))) -> 294.33 | H123: -2.841043468 | I123: -4.541949977 | J123: 114.3854986 | K123: 10.69511564 | L123: -0.4246751628 | M123: -1198956.013 | N123: -846743.9386 | O123: 6.214238555e+11 | P123: 788304.4181 | Q123: -1.074133189 | AX123: 1000600
A124: 92 | B124: =IF(A124>$B$30,NA(),IF($A124>$A$8,"",OFFSET(InputPriceData!$B$15,$A124+$A$11,0,1,1))) -> 2021-07-22 | C124: =IF(A124>$B$30,NA(),IF($A124>$A$8,"",OFFSET(InputPriceData!$G$15,CalculationsAndCharts!$A124+$A$11,IF($C$5,8,0),1,1))) -> 981800 | D124: =IF(A124>$B$30,NA(),IF(A124>$A$8,"",OFFSET(InputPriceData!$C$15,CalculationsAndCharts!$A124+$A$11,IF($C$5,8,0),1,1))) -> 294.8 | E124: =IF(A124>$B$30,NA(),IF(A124>$A$8,"",OFFSET(InputPriceData!$D$15,CalculationsAndCharts!$A124+$A$11,IF($C$5,8,0),1,1))) -> 296.09 | F124: =IF(A124>$B$30,NA(),IF(A124>$A$8,"",OFFSET(InputPriceData!$E$15,CalculationsAndCharts!$A124+$A$11,IF($C$5,8,0),1,1))) -> 293.32 | G124: =IF(A124>$B$30,NA(),IF(A124>$A$8,"",OFFSET(InputPriceData!$F$15,CalculationsAndCharts!$A124+$A$11,IF($C$5,8,0),1,1))) -> 293.88 | H124: -3.520374418 | I124: -4.962812601 | J124: 116.7106675 | K124: 10.80327115 | L124: -0.4593805462 | M124: -1307383.64 | N124: -803075.4941 | O124: 6.190541641e+11 | P124: 786799.9518 | Q124: -1.020685744 | AX124: 981800
A125: 93 | B125: =IF(A125>$B$30,NA(),IF($A125>$A$8,"",OFFSET(InputPriceData!$B$15,$A125+$A$11,0,1,1))) -> 2021-07-21 | C125: =IF(A125>$B$30,NA(),IF($A125>$A$8,"",OFFSET(InputPriceData!$G$15,CalculationsAndCharts!$A125+$A$11,IF($C$5,8,0),1,1))) -> 1339000 | D125: =IF(A125>$B$30,NA(),IF(A125>$A$8,"",OFFSET(InputPriceData!$C$15,CalculationsAndCharts!$A125+$A$11,IF($C$5,8,0),1,1))) -> 294.76 | E125: =IF(A125>$B$30,NA(),IF(A125>$A$8,"",OFFSET(InputPriceData!$D$15,CalculationsAndCharts!$A125+$A$11,IF($C$5,8,0),1,1))) -> 299.16 | F125: =IF(A125>$B$30,NA(),IF(A125>$A$8,"",OFFSET(InputPriceData!$E$15,CalculationsAndCharts!$A125+$A$11,IF($C$5,8,0),1,1))) -> 294.58 | G125: =IF(A125>$B$30,NA(),IF(A125>$A$8,"",OFFSET(InputPriceData!$F$15,CalculationsAndCharts!$A125+$A$11,IF($C$5,8,0),1,1))) -> 295.59 | H125: -2.002390917 | I125: -5.399486906 | J125: 118.9942953 | K125: 10.90845064 | L125: -0.4949820176 | M125: -1030774.093 | N125: -790438.7893 | O125: 6.18412433e+11 | P125: 786392.0352 | Q125: -1.005145976 | AW125: 1339000
A126: 94 | B126: =IF(A126>$B$30,NA(),IF($A126>$A$8,"",OFFSET(InputPriceData!$B$15,$A126+$A$11,0,1,1))) -> 2021-07-20 | C126: =IF(A126>$B$30,NA(),IF($A126>$A$8,"",OFFSET(InputPriceData!$G$15,CalculationsAndCharts!$A126+$A$11,IF($C$5,8,0),1,1))) -> 1656400 | D126: =IF(A126>$B$30,NA(),IF(A126>$A$8,"",OFFSET(InputPriceData!$C$15,CalculationsAndCharts!$A126+$A$11,IF($C$5,8,0),1,1))) -> 292.68 | E126: =IF(A126>$B$30,NA(),IF(A126>$A$8,"",OFFSET(InputPriceData!$D$15,CalculationsAndCharts!$A126+$A$11,IF($C$5,8,0),1,1))) -> 296.28 | F126: =IF(A126>$B$30,NA(),IF(A126>$A$8,"",OFFSET(InputPriceData!$E$15,CalculationsAndCharts!$A126+$A$11,IF($C$5,8,0),1,1))) -> 291.73 | G126: =IF(A126>$B$30,NA(),IF(A126>$A$8,"",OFFSET(InputPriceData!$F$15,CalculationsAndCharts!$A126+$A$11,IF($C$5,8,0),1,1))) -> 295.27 | H126: -2.470787629 | I126: -5.755351413 | J126: 121.222338 | K126: 11.01010163 | L126: -0.5227337225 | M126: -772330.9667 | N126: -817385.4886 | O126: 6.182541819e+11 | P126: 786291.4103 | Q126: -1.039545235 | AW126: 1656400
A127: 95 | B127: =IF(A127>$B$30,NA(),IF($A127>$A$8,"",OFFSET(InputPriceData!$B$15,$A127+$A$11,0,1,1))) -> 2021-07-19 | C127: =IF(A127>$B$30,NA(),IF($A127>$A$8,"",OFFSET(InputPriceData!$G$15,CalculationsAndCharts!$A127+$A$11,IF($C$5,8,0),1,1))) -> 2853300 | D127: =IF(A127>$B$30,NA(),IF(A127>$A$8,"",OFFSET(InputPriceData!$C$15,CalculationsAndCharts!$A127+$A$11,IF($C$5,8,0),1,1))) -> 284.87 | E127: =IF(A127>$B$30,NA(),IF(A127>$A$8,"",OFFSET(InputPriceData!$D$15,CalculationsAndCharts!$A127+$A$11,IF($C$5,8,0),1,1))) -> 292.61 | F127: =IF(A127>$B$30,NA(),IF(A127>$A$8,"",OFFSET(InputPriceData!$E$15,CalculationsAndCharts!$A127+$A$11,IF($C$5,8,0),1,1))) -> 283.67 | G127: =IF(A127>$B$30,NA(),IF(A127>$A$8,"",OFFSET(InputPriceData!$F$15,CalculationsAndCharts!$A127+$A$11,IF($C$5,8,0),1,1))) -> 292.1 | H127: -5.920324529 | I127: -5.876708752 | J127: 123.4071895 | K127: 11.10887886 | L127: -0.5290100672 | M127: 418488.4394 | N127: -869772.6959 | O127: 6.170175254e+11 | P127: 785504.631 | Q127: -1.10727889 | AW127: 2853300
A128: 96 | B128: =IF(A128>$B$30,NA(),IF($A128>$A$8,"",OFFSET(InputPriceData!$B$15,$A128+$A$11,0,1,1))) -> 2021-07-16 | C128: =IF(A128>$B$30,NA(),IF($A128>$A$8,"",OFFSET(InputPriceData!$G$15,CalculationsAndCharts!$A128+$A$11,IF($C$5,8,0),1,1))) -> 1975800 | D128: =IF(A128>$B$30,NA(),IF(A128>$A$8,"",OFFSET(InputPriceData!$C$15,CalculationsAndCharts!$A128+$A$11,IF($C$5,8,0),1,1))) -> 293.96 | E128: =IF(A128>$B$30,NA(),IF(A128>$A$8,"",OFFSET(InputPriceData!$D$15,CalculationsAndCharts!$A128+$A$11,IF($C$5,8,0),1,1))) -> 294.26 | F128: =IF(A128>$B$30,NA(),IF(A128>$A$8,"",OFFSET(InputPriceData!$E$15,CalculationsAndCharts!$A128+$A$11,IF($C$5,8,0),1,1))) -> 289.39 | G128: =IF(A128>$B$30,NA(),IF(A128>$A$8,"",OFFSET(InputPriceData!$F$15,CalculationsAndCharts!$A128+$A$11,IF($C$5,8,0),1,1))) -> 289.79 | H128: -8.717354722 | I128: -5.858809805 | J128: 125.6112169 | K128: 11.207641 | L128: -0.5227513803 | M128: -453514.2108 | N128: -866095.1748 | O128: 6.135582245e+11 | P128: 783299.5752 | Q128: -1.105701065 | AX128: 1975800
A129: 97 | B129: =IF(A129>$B$30,NA(),IF($A129>$A$8,"",OFFSET(InputPriceData!$B$15,$A129+$A$11,0,1,1))) -> 2021-07-15 | C129: =IF(A129>$B$30,NA(),IF($A129>$A$8,"",OFFSET(InputPriceData!$G$15,CalculationsAndCharts!$A129+$A$11,IF($C$5,8,0),1,1))) -> 1166000 | D129: =IF(A129>$B$30,NA(),IF(A129>$A$8,"",OFFSET(InputPriceData!$C$15,CalculationsAndCharts!$A129+$A$11,IF($C$5,8,0),1,1))) -> 291.28 | E129: =IF(A129>$B$30,NA(),IF(A129>$A$8,"",OFFSET(InputPriceData!$D$15,CalculationsAndCharts!$A129+$A$11,IF($C$5,8,0),1,1))) -> 295.98 | F129: =IF(A129>$B$30,NA(),IF(A129>$A$8,"",OFFSET(InputPriceData!$E$15,CalculationsAndCharts!$A129+$A$11,IF($C$5,8,0),1,1))) -> 290.96 | G129: =IF(A129>$B$30,NA(),IF(A129>$A$8,"",OFFSET(InputPriceData!$F$15,CalculationsAndCharts!$A129+$A$11,IF($C$5,8,0),1,1))) -> 293.34 | H129: -5.625608994 | I129: -6.010785113 | J129: 127.8751138 | K129: 11.30818791 | L129: -0.5315427334 | M129: -1318414.294 | N129: -755810.334 | O129: 6.101714489e+11 | P129: 781134.7188 | Q129: -0.9675800035 | AW129: 1166000
A130: 98 | B130: =IF(A130>$B$30,NA(),IF($A130>$A$8,"",OFFSET(InputPriceData!$B$15,$A130+$A$11,0,1,1))) -> 2021-07-14 | C130: =IF(A130>$B$30,NA(),IF($A130>$A$8,"",OFFSET(InputPriceData!$G$15,CalculationsAndCharts!$A130+$A$11,IF($C$5,8,0),1,1))) -> 1431800 | D130: =IF(A130>$B$30,NA(),IF(A130>$A$8,"",OFFSET(InputPriceData!$C$15,CalculationsAndCharts!$A130+$A$11,IF($C$5,8,0),1,1))) -> 295.89 | E130: =IF(A130>$B$30,NA(),IF(A130>$A$8,"",OFFSET(InputPriceData!$D$15,CalculationsAndCharts!$A130+$A$11,IF($C$5,8,0),1,1))) -> 298.08 | F130: =IF(A130>$B$30,NA(),IF(A130>$A$8,"",OFFSET(InputPriceData!$E$15,CalculationsAndCharts!$A130+$A$11,IF($C$5,8,0),1,1))) -> 291.88 | G130: =IF(A130>$B$30,NA(),IF(A130>$A$8,"",OFFSET(InputPriceData!$F$15,CalculationsAndCharts!$A130+$A$11,IF($C$5,8,0),1,1))) -> 293.13 | H130: -6.187419813 | I130: -6.390761378 | J130: 130.1504192 | K130: 11.40834866 | L130: -0.5601828598 | M130: -1129062.437 | N130: -599881.7295 | O130: 6.111367256e+11 | P130: 781752.3429 | Q130: -0.7673552053 | AX130: 1431800
A131: 99 | B131: =IF(A131>$B$30,NA(),IF($A131>$A$8,"",OFFSET(InputPriceData!$B$15,$A131+$A$11,0,1,1))) -> 2021-07-13 | C131: =IF(A131>$B$30,NA(),IF($A131>$A$8,"",OFFSET(InputPriceData!$G$15,CalculationsAndCharts!$A131+$A$11,IF($C$5,8,0),1,1))) -> 1747700 | D131: =IF(A131>$B$30,NA(),IF(A131>$A$8,"",OFFSET(InputPriceData!$C$15,CalculationsAndCharts!$A131+$A$11,IF($C$5,8,0),1,1))) -> 296.23 | E131: =IF(A131>$B$30,NA(),IF(A131>$A$8,"",OFFSET(InputPriceData!$D$15,CalculationsAndCharts!$A131+$A$11,IF($C$5,8,0),1,1))) -> 299.85 | F131: =IF(A131>$B$30,NA(),IF(A131>$A$8,"",OFFSET(InputPriceData!$E$15,CalculationsAndCharts!$A131+$A$11,IF($C$5,8,0),1,1))) -> 295.93 | G131: =IF(A131>$B$30,NA(),IF(A131>$A$8,"",OFFSET(InputPriceData!$F$15,CalculationsAndCharts!$A131+$A$11,IF($C$5,8,0),1,1))) -> 296.32 | H131: -3.251419965 | I131: -6.923586569 | J131: 132.3652868 | K131: 11.50501138 | L131: -0.6017887633 | M131: -870895.0522 | N131: -433609.1773 | O131: 6.173684769e+11 | P131: 785727.9917 | Q131: -0.551856599 | AW131: 1747700
A132: 100 | B132: =IF(A132>$B$30,NA(),IF($A132>$A$8,"",OFFSET(InputPriceData!$B$15,$A132+$A$11,0,1,1))) -> 2021-07-12 | C132: =IF(A132>$B$30,NA(),IF($A132>$A$8,"",OFFSET(InputPriceData!$G$15,CalculationsAndCharts!$A132+$A$11,IF($C$5,8,0),1,1))) -> 1905400 | D132: =IF(A132>$B$30,NA(),IF(A132>$A$8,"",OFFSET(InputPriceData!$C$15,CalculationsAndCharts!$A132+$A$11,IF($C$5,8,0),1,1))) -> 294.53 | E132: =IF(A132>$B$30,NA(),IF(A132>$A$8,"",OFFSET(InputPriceData!$D$15,CalculationsAndCharts!$A132+$A$11,IF($C$5,8,0),1,1))) -> 299.45 | F132: =IF(A132>$B$30,NA(),IF(A132>$A$8,"",OFFSET(InputPriceData!$E$15,CalculationsAndCharts!$A132+$A$11,IF($C$5,8,0),1,1))) -> 291.88 | G132: =IF(A132>$B$30,NA(),IF(A132>$A$8,"",OFFSET(InputPriceData!$F$15,CalculationsAndCharts!$A132+$A$11,IF($C$5,8,0),1,1))) -> 296.9 | H132: -2.795059777 | I132: -7.482840512 | J132: 134.4591457 | K132: 11.59565202 | L132: -0.6453143386 | M132: -755354.3423 | N132: -244124.8065 | O132: 6.28016466e+11 | P132: 792474.8993 | Q132: -0.3080536768 | AW132: 1905400
A133: 101 | B133: =IF(A133>$B$30,NA(),IF($A133>$A$8,"",OFFSET(InputPriceData!$B$15,$A133+$A$11,0,1,1))) -> 2021-07-09 | C133: =IF(A133>$B$30,NA(),IF($A133>$A$8,"",OFFSET(InputPriceData!$G$15,CalculationsAndCharts!$A133+$A$11,IF($C$5,8,0),1,1))) -> 2317500 | D133: =IF(A133>$B$30,NA(),IF(A133>$A$8,"",OFFSET(InputPriceData!$C$15,CalculationsAndCharts!$A133+$A$11,IF($C$5,8,0),1,1))) -> 293.08 | E133: =IF(A133>$B$30,NA(),IF(A133>$A$8,"",OFFSET(InputPriceData!$D$15,CalculationsAndCharts!$A133+$A$11,IF($C$5,8,0),1,1))) -> 295.45 | F133: =IF(A133>$B$30,NA(),IF(A133>$A$8,"",OFFSET(InputPriceData!$E$15,CalculationsAndCharts!$A133+$A$11,IF($C$5,8,0),1,1))) -> 290.47 | G133: =IF(A133>$B$30,NA(),IF(A133>$A$8,"",OFFSET(InputPriceData!$F$15,CalculationsAndCharts!$A133+$A$11,IF($C$5,8,0),1,1))) -> 293.66 | H133: -6.255962985 | I133: -7.805420758 | J133: 136.4051214 | K133: 11.67926031 | L133: -0.6683146492 | M133: -365722.3604 | N133: -18770.90463 | O133: 6.421133639e+11 | P133: 801319.7638 | Q133: -0.02342498647 | AW133: 2317500
A134: 102 | B134: =IF(A134>$B$30,NA(),IF($A134>$A$8,"",OFFSET(InputPriceData!$B$15,$A134+$A$11,0,1,1))) -> 2021-07-08 | C134: =IF(A134>$B$30,NA(),IF($A134>$A$8,"",OFFSET(InputPriceData!$G$15,CalculationsAndCharts!$A134+$A$11,IF($C$5,8,0),1,1))) -> 1971400 | D134: =IF(A134>$B$30,NA(),IF(A134>$A$8,"",OFFSET(InputPriceData!$C$15,CalculationsAndCharts!$A134+$A$11,IF($C$5,8,0),1,1))) -> 284.51 | E134: =IF(A134>$B$30,NA(),IF(A134>$A$8,"",OFFSET(InputPriceData!$D$15,CalculationsAndCharts!$A134+$A$11,IF($C$5,8,0),1,1))) -> 291.9 | F134: =IF(A134>$B$30,NA(),IF(A134>$A$8,"",OFFSET(InputPriceData!$E$15,CalculationsAndCharts!$A134+$A$11,IF($C$5,8,0),1,1))) -> 283.21 | G134: =IF(A134>$B$30,NA(),IF(A134>$A$8,"",OFFSET(InputPriceData!$F$15,CalculationsAndCharts!$A134+$A$11,IF($C$5,8,0),1,1))) -> 290.53 | H134: -9.841450867 | I134: -7.904306922 | J134: 138.2770509 | K134: 11.75912628 | L134: -0.6721848829 | M134: -732061.2948 | N134: 265868.6574 | O134: 6.580291424e+11 | P134: 811189.9545 | Q134: 0.3277514174 | AW134: 1971400
A135: 103 | B135: =IF(A135>$B$30,NA(),IF($A135>$A$8,"",OFFSET(InputPriceData!$B$15,$A135+$A$11,0,1,1))) -> 2021-07-07 | C135: =IF(A135>$B$30,NA(),IF($A135>$A$8,"",OFFSET(InputPriceData!$G$15,CalculationsAndCharts!$A135+$A$11,IF($C$5,8,0),1,1))) -> 2293200 | D135: =IF(A135>$B$30,NA(),IF(A135>$A$8,"",OFFSET(InputPriceData!$C$15,CalculationsAndCharts!$A135+$A$11,IF($C$5,8,0),1,1))) -> 291.28 | E135: =IF(A135>$B$30,NA(),IF(A135>$A$8,"",OFFSET(InputPriceData!$D$15,CalculationsAndCharts!$A135+$A$11,IF($C$5,8,0),1,1))) -> 292.42 | F135: =IF(A135>$B$30,NA(),IF(A135>$A$8,"",OFFSET(InputPriceData!$E$15,CalculationsAndCharts!$A135+$A$11,IF($C$5,8,0),1,1))) -> 288.55 | G135: =IF(A135>$B$30,NA(),IF(A135>$A$8,"",OFFSET(InputPriceData!$F$15,CalculationsAndCharts!$A135+$A$11,IF($C$5,8,0),1,1))) -> 290.84 | H135: -10.10084798 | I135: -8.076288596 | J135: 140.1568781 | K135: 11.83878702 | L135: -0.6821888579 | M135: -431407.1051 | N135: 609316.4269 | O135: 6.72595345e+11 | P135: 820119.1042 | Q135: 0.742960899 | AX135: 2293200
A136: 104 | B136: =IF(A136>$B$30,NA(),IF($A136>$A$8,"",OFFSET(InputPriceData!$B$15,$A136+$A$11,0,1,1))) -> 2021-07-06 | C136: =IF(A136>$B$30,NA(),IF($A136>$A$8,"",OFFSET(InputPriceData!$G$15,CalculationsAndCharts!$A136+$A$11,IF($C$5,8,0),1,1))) -> 2282500 | D136: =IF(A136>$B$30,NA(),IF(A136>$A$8,"",OFFSET(InputPriceData!$C$15,CalculationsAndCharts!$A136+$A$11,IF($C$5,8,0),1,1))) -> 296.61 | E136: =IF(A136>$B$30,NA(),IF(A136>$A$8,"",OFFSET(InputPriceData!$D$15,CalculationsAndCharts!$A136+$A$11,IF($C$5,8,0),1,1))) -> 296.86 | F136: =IF(A136>$B$30,NA(),IF(A136>$A$8,"",OFFSET(InputPriceData!$E$15,CalculationsAndCharts!$A136+$A$11,IF($C$5,8,0),1,1))) -> 289.9 | G136: =IF(A136>$B$30,NA(),IF(A136>$A$8,"",OFFSET(InputPriceData!$F$15,CalculationsAndCharts!$A136+$A$11,IF($C$5,8,0),1,1))) -> 291.89 | H136: -9.586145798 | I136: -8.577913829 | J136: 142.0151653 | K136: 11.91701159 | L136: -0.7198041021 | M136: -452005.7708 | N136: 998101.0833 | O136: 6.800683496e+11 | P136: 824662.5671 | Q136: 1.210314525 | AX136: 2282500
A137: 105 | B137: =IF(A137>$B$30,NA(),IF($A137>$A$8,"",OFFSET(InputPriceData!$B$15,$A137+$A$11,0,1,1))) -> 2021-07-02 | C137: =IF(A137>$B$30,NA(),IF($A137>$A$8,"",OFFSET(InputPriceData!$G$15,CalculationsAndCharts!$A137+$A$11,IF($C$5,8,0),1,1))) -> 1335800 | D137: =IF(A137>$B$30,NA(),IF(A137>$A$8,"",OFFSET(InputPriceData!$C$15,CalculationsAndCharts!$A137+$A$11,IF($C$5,8,0),1,1))) -> 297.13 | E137: =IF(A137>$B$30,NA(),IF(A137>$A$8,"",OFFSET(InputPriceData!$D$15,CalculationsAndCharts!$A137+$A$11,IF($C$5,8,0),1,1))) -> 297.13 | F137: =IF(A137>$B$30,NA(),IF(A137>$A$8,"",OFFSET(InputPriceData!$E$15,CalculationsAndCharts!$A137+$A$11,IF($C$5,8,0),1,1))) -> 294.62 | G137: =IF(A137>$B$30,NA(),IF(A137>$A$8,"",OFFSET(InputPriceData!$F$15,CalculationsAndCharts!$A137+$A$11,IF($C$5,8,0),1,1))) -> 296.61 | H137: -5.205671762 | I137: -9.516013046 | J137: 143.7123536 | K137: 11.98800874 | L137: -0.7937943032 | M137: -1442800.207 | N137: 1426930.019 | O137: 6.722280897e+11 | P137: 819895.1699 | Q137: 1.740381053 | AX137: 1335800
A138: 106 | B138: =IF(A138>$B$30,NA(),IF($A138>$A$8,"",OFFSET(InputPriceData!$B$15,$A138+$A$11,0,1,1))) -> 2021-07-01 | C138: =IF(A138>$B$30,NA(),IF($A138>$A$8,"",OFFSET(InputPriceData!$G$15,CalculationsAndCharts!$A138+$A$11,IF($C$5,8,0),1,1))) -> 1749500 | D138: =IF(A138>$B$30,NA(),IF(A138>$A$8,"",OFFSET(InputPriceData!$C$15,CalculationsAndCharts!$A138+$A$11,IF($C$5,8,0),1,1))) -> 297.18 | E138: =IF(A138>$B$30,NA(),IF(A138>$A$8,"",OFFSET(InputPriceData!$D$15,CalculationsAndCharts!$A138+$A$11,IF($C$5,8,0),1,1))) -> 297.33 | F138: =IF(A138>$B$30,NA(),IF(A138>$A$8,"",OFFSET(InputPriceData!$E$15,CalculationsAndCharts!$A138+$A$11,IF($C$5,8,0),1,1))) -> 294.08 | G138: =IF(A138>$B$30,NA(),IF(A138>$A$8,"",OFFSET(InputPriceData!$F$15,CalculationsAndCharts!$A138+$A$11,IF($C$5,8,0),1,1))) -> 296.36 | H138: -5.638696767 | I138: -10.71755756 | J138: 145.030677 | K138: 12.0428683 | L138: -0.8899505743 | M138: -1093187.662 | N138: 1803059.684 | O138: 6.384031165e+11 | P138: 799001.3245 | Q138: 2.25664167 | AX138: 1749500
A139: 107 | B139: =IF(A139>$B$30,NA(),IF($A139>$A$8,"",OFFSET(InputPriceData!$B$15,$A139+$A$11,0,1,1))) -> 2021-06-30 | C139: =IF(A139>$B$30,NA(),IF($A139>$A$8,"",OFFSET(InputPriceData!$G$15,CalculationsAndCharts!$A139+$A$11,IF($C$5,8,0),1,1))) -> 1810900 | D139: =IF(A139>$B$30,NA(),IF(A139>$A$8,"",OFFSET(InputPriceData!$C$15,CalculationsAndCharts!$A139+$A$11,IF($C$5,8,0),1,1))) -> 293.3 | E139: =IF(A139>$B$30,NA(),IF(A139>$A$8,"",OFFSET(InputPriceData!$D$15,CalculationsAndCharts!$A139+$A$11,IF($C$5,8,0),1,1))) -> 295.86 | F139: =IF(A139>$B$30,NA(),IF(A139>$A$8,"",OFFSET(InputPriceData!$E$15,CalculationsAndCharts!$A139+$A$11,IF($C$5,8,0),1,1))) -> 292.27 | G139: =IF(A139>$B$30,NA(),IF(A139>$A$8,"",OFFSET(InputPriceData!$F$15,CalculationsAndCharts!$A139+$A$11,IF($C$5,8,0),1,1))) -> 295.57 | H139: -6.648396978 | I139: -11.93867295 | J139: 145.7787649 | K139: 12.07388773 | L139: -0.9888010571 | M139: -1080005.865 | N139: 2011176.423 | O139: 5.736096847e+11 | P139: 757370.2428 | Q139: 2.655473254 | AW139: 1810900
A140: 108 | B140: =IF(A140>$B$30,NA(),IF($A140>$A$8,"",OFFSET(InputPriceData!$B$15,$A140+$A$11,0,1,1))) -> 2021-06-29 | C140: =IF(A140>$B$30,NA(),IF($A140>$A$8,"",OFFSET(InputPriceData!$G$15,CalculationsAndCharts!$A140+$A$11,IF($C$5,8,0),1,1))) -> 3594500 | D140: =IF(A140>$B$30,NA(),IF(A140>$A$8,"",OFFSET(InputPriceData!$C$15,CalculationsAndCharts!$A140+$A$11,IF($C$5,8,0),1,1))) -> 293.27 | E140: =IF(A140>$B$30,NA(),IF(A140>$A$8,"",OFFSET(InputPriceData!$D$15,CalculationsAndCharts!$A140+$A$11,IF($C$5,8,0),1,1))) -> 296.73 | F140: =IF(A140>$B$30,NA(),IF(A140>$A$8,"",OFFSET(InputPriceData!$E$15,CalculationsAndCharts!$A140+$A$11,IF($C$5,8,0),1,1))) -> 292.13 | G140: =IF(A140>$B$30,NA(),IF(A140>$A$8,"",OFFSET(InputPriceData!$F$15,CalculationsAndCharts!$A140+$A$11,IF($C$5,8,0),1,1))) -> 295.14 | H140: -7.342049816 | I140: -13.12873208 | J140: 145.8592874 | K140: 12.07722184 | L140: -1.087065573 | M140: 721477.1451 | N140: 1954022.833 | O140: 4.875228367e+11 | P140: 698228.3557 | Q140: 2.798544082 | AW140: 3594500
A141: 109 | B141: =IF(A141>$B$30,NA(),IF($A141>$A$8,"",OFFSET(InputPriceData!$B$15,$A141+$A$11,0,1,1))) -> 2021-06-28 | C141: =IF(A141>$B$30,NA(),IF($A141>$A$8,"",OFFSET(InputPriceData!$G$15,CalculationsAndCharts!$A141+$A$11,IF($C$5,8,0),1,1))) -> 3537100 | D141: =IF(A141>$B$30,NA(),IF(A141>$A$8,"",OFFSET(InputPriceData!$C$15,CalculationsAndCharts!$A141+$A$11,IF($C$5,8,0),1,1))) -> 290.29 | E141: =IF(A141>$B$30,NA(),IF(A141>$A$8,"",OFFSET(InputPriceData!$D$15,CalculationsAndCharts!$A141+$A$11,IF($C$5,8,0),1,1))) -> 291.93 | F141: =IF(A141>$B$30,NA(),IF(A141>$A$8,"",OFFSET(InputPriceData!$E$15,CalculationsAndCharts!$A141+$A$11,IF($C$5,8,0),1,1))) -> 286.77 | G141: =IF(A141>$B$30,NA(),IF(A141>$A$8,"",OFFSET(InputPriceData!$F$15,CalculationsAndCharts!$A141+$A$11,IF($C$5,8,0),1,1))) -> 291.27 | H141: -11.63203074 | I141: -14.22867514 | J141: 145.201976 | K141: 12.04997826 | L141: -1.180805047 | M141: 746171.5256 | N141: 1602070.533 | O141: 4.049213672e+11 | P141: 636334.3203 | Q141: 2.517655393 | AW141: 3537100
A142: 110 | B142: =IF(A142>$B$30,NA(),IF($A142>$A$8,"",OFFSET(InputPriceData!$B$15,$A142+$A$11,0,1,1))) -> 2021-06-25 | C142: =IF(A142>$B$30,NA(),IF($A142>$A$8,"",OFFSET(InputPriceData!$G$15,CalculationsAndCharts!$A142+$A$11,IF($C$5,8,0),1,1))) -> 11622000 | D142: =IF(A142>$B$30,NA(),IF(A142>$A$8,"",OFFSET(InputPriceData!$C$15,CalculationsAndCharts!$A142+$A$11,IF($C$5,8,0),1,1))) -> 290.04 | E142: =IF(A142>$B$30,NA(),IF(A142>$A$8,"",OFFSET(InputPriceData!$D$15,CalculationsAndCharts!$A142+$A$11,IF($C$5,8,0),1,1))) -> 292.03 | F142: =IF(A142>$B$30,NA(),IF(A142>$A$8,"",OFFSET(InputPriceData!$E$15,CalculationsAndCharts!$A142+$A$11,IF($C$5,8,0),1,1))) -> 283.87 | G142: =IF(A142>$B$30,NA(),IF(A142>$A$8,"",OFFSET(InputPriceData!$F$15,CalculationsAndCharts!$A142+$A$11,IF($C$5,8,0),1,1))) -> 289.25 | H142: -14.29065001 | I142: -15.35958993 | J142: 143.7820867 | K142: 11.99091684 | L142: -1.280935406 | M142: 9207593.949 | N142: 946306.9005 | O142: 3.513106388e+11 | P142: 592714.6352 | Q142: 1.596564087 | AX142: 11622000
A143: 111 | B143: =IF(A143>$B$30,NA(),IF($A143>$A$8,"",OFFSET(InputPriceData!$B$15,$A143+$A$11,0,1,1))) -> 2021-06-24 | C143: =IF(A143>$B$30,NA(),IF($A143>$A$8,"",OFFSET(InputPriceData!$G$15,CalculationsAndCharts!$A143+$A$11,IF($C$5,8,0),1,1))) -> 5016400 | D143: =IF(A143>$B$30,NA(),IF(A143>$A$8,"",OFFSET(InputPriceData!$C$15,CalculationsAndCharts!$A143+$A$11,IF($C$5,8,0),1,1))) -> 298.17 | E143: =IF(A143>$B$30,NA(),IF(A143>$A$8,"",OFFSET(InputPriceData!$D$15,CalculationsAndCharts!$A143+$A$11,IF($C$5,8,0),1,1))) -> 301.03 | F143: =IF(A143>$B$30,NA(),IF(A143>$A$8,"",OFFSET(InputPriceData!$E$15,CalculationsAndCharts!$A143+$A$11,IF($C$5,8,0),1,1))) -> 295.49 | G143: =IF(A143>$B$30,NA(),IF(A143>$A$8,"",OFFSET(InputPriceData!$F$15,CalculationsAndCharts!$A143+$A$11,IF($C$5,8,0),1,1))) -> 300.14 | H143: -3.730665072 | I143: -16.82751769 | J143: 141.4971257 | K143: 11.89525644 | L143: -1.414641019 | M143: 3046249.692 | N143: 420383.0257 | O143: 3.37814734e+11 | P143: 581218.3187 | Q143: 0.7232790367 | AW143: 5016400
A144: 112 | B144: =IF(A144>$B$30,NA(),IF($A144>$A$8,"",OFFSET(InputPriceData!$B$15,$A144+$A$11,0,1,1))) -> 2021-06-23 | C144: =IF(A144>$B$30,NA(),IF($A144>$A$8,"",OFFSET(InputPriceData!$G$15,CalculationsAndCharts!$A144+$A$11,IF($C$5,8,0),1,1))) -> 2157400 | D144: =IF(A144>$B$30,NA(),IF(A144>$A$8,"",OFFSET(InputPriceData!$C$15,CalculationsAndCharts!$A144+$A$11,IF($C$5,8,0),1,1))) -> 296.49 | E144: =IF(A144>$B$30,NA(),IF(A144>$A$8,"",OFFSET(InputPriceData!$D$15,CalculationsAndCharts!$A144+$A$11,IF($C$5,8,0),1,1))) -> 297.14 | F144: =IF(A144>$B$30,NA(),IF(A144>$A$8,"",OFFSET(InputPriceData!$E$15,CalculationsAndCharts!$A144+$A$11,IF($C$5,8,0),1,1))) -> 292.7 | G144: =IF(A144>$B$30,NA(),IF(A144>$A$8,"",OFFSET(InputPriceData!$F$15,CalculationsAndCharts!$A144+$A$11,IF($C$5,8,0),1,1))) -> 293.9 | H144: -10.13275304 | I144: -18.15333501 | J144: 137.9837305 | K144: 11.74664763 | L144: -1.545405599 | M144: 305214.9064 | N144: 303403.9895 | O144: 3.41809863e+11 | P144: 584645.0744 | Q144: 0.5189541531 | AX144: 2157400
A145: 113 | B145: =IF(A145>$B$30,NA(),IF($A145>$A$8,"",OFFSET(InputPriceData!$B$15,$A145+$A$11,0,1,1))) -> 2021-06-22 | C145: =IF(A145>$B$30,NA(),IF($A145>$A$8,"",OFFSET(InputPriceData!$G$15,CalculationsAndCharts!$A145+$A$11,IF($C$5,8,0),1,1))) -> 2250100 | D145: =IF(A145>$B$30,NA(),IF(A145>$A$8,"",OFFSET(InputPriceData!$C$15,CalculationsAndCharts!$A145+$A$11,IF($C$5,8,0),1,1))) -> 291.47 | E145: =IF(A145>$B$30,NA(),IF(A145>$A$8,"",OFFSET(InputPriceData!$D$15,CalculationsAndCharts!$A145+$A$11,IF($C$5,8,0),1,1))) -> 295.62 | F145: =IF(A145>$B$30,NA(),IF(A145>$A$8,"",OFFSET(InputPriceData!$E$15,CalculationsAndCharts!$A145+$A$11,IF($C$5,8,0),1,1))) -> 290.42 | G145: =IF(A145>$B$30,NA(),IF(A145>$A$8,"",OFFSET(InputPriceData!$F$15,CalculationsAndCharts!$A145+$A$11,IF($C$5,8,0),1,1))) -> 294.21 | H145: -10.19295486 | I145: -18.83807495 | J145: 133.233015 | K145: 11.54266065 | L145: -1.632039225 | M145: 419953.8092 | N145: 290080.8457 | O145: 3.480038499e+11 | P145: 589918.5112 | Q145: 0.4917303664 | AW145: 2250100
A146: 114 | B146: =IF(A146>$B$30,NA(),IF($A146>$A$8,"",OFFSET(InputPriceData!$B$15,$A146+$A$11,0,1,1))) -> 2021-06-21 | C146: =IF(A146>$B$30,NA(),IF($A146>$A$8,"",OFFSET(InputPriceData!$G$15,CalculationsAndCharts!$A146+$A$11,IF($C$5,8,0),1,1))) -> 1922000 | D146: =IF(A146>$B$30,NA(),IF(A146>$A$8,"",OFFSET(InputPriceData!$C$15,CalculationsAndCharts!$A146+$A$11,IF($C$5,8,0),1,1))) -> 284.6 | E146: =IF(A146>$B$30,NA(),IF(A146>$A$8,"",OFFSET(InputPriceData!$D$15,CalculationsAndCharts!$A146+$A$11,IF($C$5,8,0),1,1))) -> 291.58 | F146: =IF(A146>$B$30,NA(),IF(A146>$A$8,"",OFFSET(InputPriceData!$E$15,CalculationsAndCharts!$A146+$A$11,IF($C$5,8,0),1,1))) -> 284.44 | G146: =IF(A146>$B$30,NA(),IF(A146>$A$8,"",OFFSET(InputPriceData!$F$15,CalculationsAndCharts!$A146+$A$11,IF($C$5,8,0),1,1))) -> 289.73 | H146: -15.19420056 | I146: -18.83693191 | J146: 127.7363053 | K146: 11.30204872 | L146: -1.66668295 | M146: 106022.3311 | N146: 278239.2838 | O146: 3.545475455e+11 | P146: 595438.952 | Q146: 0.4672843166 | AW146: 1922000
A147: 115 | B147: =IF(A147>$B$30,NA(),IF($A147>$A$8,"",OFFSET(InputPriceData!$B$15,$A147+$A$11,0,1,1))) -> 2021-06-18 | C147: =IF(A147>$B$30,NA(),IF($A147>$A$8,"",OFFSET(InputPriceData!$G$15,CalculationsAndCharts!$A147+$A$11,IF($C$5,8,0),1,1))) -> 2553800 | D147: =IF(A147>$B$30,NA(),IF(A147>$A$8,"",OFFSET(InputPriceData!$C$15,CalculationsAndCharts!$A147+$A$11,IF($C$5,8,0),1,1))) -> 280.83 | E147: =IF(A147>$B$30,NA(),IF(A147>$A$8,"",OFFSET(InputPriceData!$D$15,CalculationsAndCharts!$A147+$A$11,IF($C$5,8,0),1,1))) -> 286.15 | F147: =IF(A147>$B$30,NA(),IF(A147>$A$8,"",OFFSET(InputPriceData!$E$15,CalculationsAndCharts!$A147+$A$11,IF($C$5,8,0),1,1))) -> 278.71 | G147: =IF(A147>$B$30,NA(),IF(A147>$A$8,"",OFFSET(InputPriceData!$F$15,CalculationsAndCharts!$A147+$A$11,IF($C$5,8,0),1,1))) -> 281.99 | H147: -23.902018 | I147: -18.07825043 | J147: 122.1043444 | K147: 11.05008346 | L147: -1.636028407 | M147: 763314.5718 | N147: 257895.9913 | O147: 3.614204261e+11 | P147: 601182.5231 | Q147: 0.4289811852 | AW147: 2553800
A148: 116 | B148: =IF(A148>$B$30,NA(),IF($A148>$A$8,"",OFFSET(InputPriceData!$B$15,$A148+$A$11,0,1,1))) -> 2021-06-17 | C148: =IF(A148>$B$30,NA(),IF($A148>$A$8,"",OFFSET(InputPriceData!$G$15,CalculationsAndCharts!$A148+$A$11,IF($C$5,8,0),1,1))) -> 2369400 | D148: =IF(A148>$B$30,NA(),IF(A148>$A$8,"",OFFSET(InputPriceData!$C$15,CalculationsAndCharts!$A148+$A$11,IF($C$5,8,0),1,1))) -> 291.05 | E148: =IF(A148>$B$30,NA(),IF(A148>$A$8,"",OFFSET(InputPriceData!$D$15,CalculationsAndCharts!$A148+$A$11,IF($C$5,8,0),1,1))) -> 291.3 | F148: =IF(A148>$B$30,NA(),IF(A148>$A$8,"",OFFSET(InputPriceData!$E$15,CalculationsAndCharts!$A148+$A$11,IF($C$5,8,0),1,1))) -> 282.25 | G148: =IF(A148>$B$30,NA(),IF(A148>$A$8,"",OFFSET(InputPriceData!$F$15,CalculationsAndCharts!$A148+$A$11,IF($C$5,8,0),1,1))) -> 284.21 | H148: -22.86839413 | I148: -17.07635323 | J148: 117.0272847 | K148: 10.81791499 | L148: -1.578525367 | M148: 621299.113 | N148: 247954.6665 | O148: 3.687342445e+11 | P148: 607234.9171 | Q148: 0.4083340064 | AX148: 2369400
A149: 117 | B149: =IF(A149>$B$30,NA(),IF($A149>$A$8,"",OFFSET(InputPriceData!$B$15,$A149+$A$11,0,1,1))) -> 2021-06-16 | C149: =IF(A149>$B$30,NA(),IF($A149>$A$8,"",OFFSET(InputPriceData!$G$15,CalculationsAndCharts!$A149+$A$11,IF($C$5,8,0),1,1))) -> 1686100 | D149: =IF(A149>$B$30,NA(),IF(A149>$A$8,"",OFFSET(InputPriceData!$C$15,CalculationsAndCharts!$A149+$A$11,IF($C$5,8,0),1,1))) -> 294.98 | E149: =IF(A149>$B$30,NA(),IF(A149>$A$8,"",OFFSET(InputPriceData!$D$15,CalculationsAndCharts!$A149+$A$11,IF($C$5,8,0),1,1))) -> 295.89 | F149: =IF(A149>$B$30,NA(),IF(A149>$A$8,"",OFFSET(InputPriceData!$E$15,CalculationsAndCharts!$A149+$A$11,IF($C$5,8,0),1,1))) -> 289.05 | G149: =IF(A149>$B$30,NA(),IF(A149>$A$8,"",OFFSET(InputPriceData!$F$15,CalculationsAndCharts!$A149+$A$11,IF($C$5,8,0),1,1))) -> 291.24 | H149: -16.71476936 | I149: -16.29140979 | J149: 112.6978071 | K149: 10.61592234 | L149: -1.534620287 | M149: -49752.16418 | N149: 287200.3398 | O149: 3.763541625e+11 | P149: 613477.1084 | Q149: 0.4681516814 | AX149: 1686100
A150: 118 | B150: =IF(A150>$B$30,NA(),IF($A150>$A$8,"",OFFSET(InputPriceData!$B$15,$A150+$A$11,0,1,1))) -> 2021-06-15 | C150: =IF(A150>$B$30,NA(),IF($A150>$A$8,"",OFFSET(InputPriceData!$G$15,CalculationsAndCharts!$A150+$A$11,IF($C$5,8,0),1,1))) -> 1834000 | D150: =IF(A150>$B$30,NA(),IF(A150>$A$8,"",OFFSET(InputPriceData!$C$15,CalculationsAndCharts!$A150+$A$11,IF($C$5,8,0),1,1))) -> 291.54 | E150: =IF(A150>$B$30,NA(),IF(A150>$A$8,"",OFFSET(InputPriceData!$D$15,CalculationsAndCharts!$A150+$A$11,IF($C$5,8,0),1,1))) -> 296.38 | F150: =IF(A150>$B$30,NA(),IF(A150>$A$8,"",OFFSET(InputPriceData!$E$15,CalculationsAndCharts!$A150+$A$11,IF($C$5,8,0),1,1))) -> 290.47 | G150: =IF(A150>$B$30,NA(),IF(A150>$A$8,"",OFFSET(InputPriceData!$F$15,CalculationsAndCharts!$A150+$A$11,IF($C$5,8,0),1,1))) -> 295.8 | H150: -12.62346578 | I150: -15.49871008 | J150: 108.9105189 | K150: 10.43602026 | L150: -1.485116902 | M150: 91165.83248 | N150: 348219.3295 | O150: 3.836421899e+11 | P150: 619388.5613 | Q150: 0.5621985153 | AW150: 1834000
A151: 119 | B151: =IF(A151>$B$30,NA(),IF($A151>$A$8,"",OFFSET(InputPriceData!$B$15,$A151+$A$11,0,1,1))) -> 2021-06-14 | C151: =IF(A151>$B$30,NA(),IF($A151>$A$8,"",OFFSET(InputPriceData!$G$15,CalculationsAndCharts!$A151+$A$11,IF($C$5,8,0),1,1))) -> 1275600 | D151: =IF(A151>$B$30,NA(),IF(A151>$A$8,"",OFFSET(InputPriceData!$C$15,CalculationsAndCharts!$A151+$A$11,IF($C$5,8,0),1,1))) -> 293.25 | E151: =IF(A151>$B$30,NA(),IF(A151>$A$8,"",OFFSET(InputPriceData!$D$15,CalculationsAndCharts!$A151+$A$11,IF($C$5,8,0),1,1))) -> 293.7 | F151: =IF(A151>$B$30,NA(),IF(A151>$A$8,"",OFFSET(InputPriceData!$E$15,CalculationsAndCharts!$A151+$A$11,IF($C$5,8,0),1,1))) -> 288.63 | G151: =IF(A151>$B$30,NA(),IF(A151>$A$8,"",OFFSET(InputPriceData!$F$15,CalculationsAndCharts!$A151+$A$11,IF($C$5,8,0),1,1))) -> 289.57 | H151: -19.37809673 | I151: -14.16046249 | J151: 105.6542699 | K151: 10.27882629 | L151: -1.377634186 | M151: -489626.0913 | N151: 403013.1405 | O151: 3.90149393e+11 | P151: 624619.3985 | Q151: 0.6452139359 | AX151: 1275600
A152: 120 | B152: =IF(A152>$B$30,NA(),IF($A152>$A$8,"",OFFSET(InputPriceData!$B$15,$A152+$A$11,0,1,1))) -> 2021-06-11 | C152: =IF(A152>$B$30,NA(),IF($A152>$A$8,"",OFFSET(InputPriceData!$G$15,CalculationsAndCharts!$A152+$A$11,IF($C$5,8,0),1,1))) -> 1628900 | D152: =IF(A152>$B$30,NA(),IF(A152>$A$8,"",OFFSET(InputPriceData!$C$15,CalculationsAndCharts!$A152+$A$11,IF($C$5,8,0),1,1))) -> 289.83 | E152: =IF(A152>$B$30,NA(),IF(A152>$A$8,"",OFFSET(InputPriceData!$D$15,CalculationsAndCharts!$A152+$A$11,IF($C$5,8,0),1,1))) -> 292.71 | F152: =IF(A152>$B$30,NA(),IF(A152>$A$8,"",OFFSET(InputPriceData!$E$15,CalculationsAndCharts!$A152+$A$11,IF($C$5,8,0),1,1))) -> 289.83 | G152: =IF(A152>$B$30,NA(),IF(A152>$A$8,"",OFFSET(InputPriceData!$F$15,CalculationsAndCharts!$A152+$A$11,IF($C$5,8,0),1,1))) -> 292.63 | H152: -16.95348911 | I152: -12.30050541 | J152: 103.3016165 | K152: 10.16374028 | L152: -1.210234133 | M152: -167236.568 | N152: 414251.6605 | O152: 3.957971294e+11 | P152: 629124.097 | Q152: 0.6584577868 | AW152: 1628900
A153: 121 | B153: =IF(A153>$B$30,NA(),IF($A153>$A$8,"",OFFSET(InputPriceData!$B$15,$A153+$A$11,0,1,1))) -> 2021-06-10 | C153: =IF(A153>$B$30,NA(),IF($A153>$A$8,"",OFFSET(InputPriceData!$G$15,CalculationsAndCharts!$A153+$A$11,IF($C$5,8,0),1,1))) -> 1811800 | D153: =IF(A153>$B$30,NA(),IF(A153>$A$8,"",OFFSET(InputPriceData!$C$15,CalculationsAndCharts!$A153+$A$11,IF($C$5,8,0),1,1))) -> 290.16 | E153: =IF(A153>$B$30,NA(),IF(A153>$A$8,"",OFFSET(InputPriceData!$D$15,CalculationsAndCharts!$A153+$A$11,IF($C$5,8,0),1,1))) -> 292.14 | F153: =IF(A153>$B$30,NA(),IF(A153>$A$8,"",OFFSET(InputPriceData!$E$15,CalculationsAndCharts!$A153+$A$11,IF($C$5,8,0),1,1))) -> 287.81 | G153: =IF(A153>$B$30,NA(),IF(A153>$A$8,"",OFFSET(InputPriceData!$F$15,CalculationsAndCharts!$A153+$A$11,IF($C$5,8,0),1,1))) -> 289.42 | H153: -20.80273678 | I153: -10.12296087 | J153: 102.1111884 | K153: 10.10500808 | L153: -1.001776623 | M153: 2774.025357 | N153: 340272.4736 | O153: 4.013571449e+11 | P153: 633527.5408 | Q153: 0.5371076262 | AX153: 1811800
A154: 122 | B154: =IF(A154>$B$30,NA(),IF($A154>$A$8,"",OFFSET(InputPriceData!$B$15,$A154+$A$11,0,1,1))) -> 2021-06-09 | C154: =IF(A154>$B$30,NA(),IF($A154>$A$8,"",OFFSET(InputPriceData!$G$15,CalculationsAndCharts!$A154+$A$11,IF($C$5,8,0),1,1))) -> 4358600 | D154: =IF(A154>$B$30,NA(),IF(A154>$A$8,"",OFFSET(InputPriceData!$C$15,CalculationsAndCharts!$A154+$A$11,IF($C$5,8,0),1,1))) -> 299.04 | E154: =IF(A154>$B$30,NA(),IF(A154>$A$8,"",OFFSET(InputPriceData!$D$15,CalculationsAndCharts!$A154+$A$11,IF($C$5,8,0),1,1))) -> 299.08 | F154: =IF(A154>$B$30,NA(),IF(A154>$A$8,"",OFFSET(InputPriceData!$E$15,CalculationsAndCharts!$A154+$A$11,IF($C$5,8,0),1,1))) -> 287.07 | G154: =IF(A154>$B$30,NA(),IF(A154>$A$8,"",OFFSET(InputPriceData!$F$15,CalculationsAndCharts!$A154+$A$11,IF($C$5,8,0),1,1))) -> 289.68 | H154: -21.28554927 | I154: -7.806259362 | J154: 102.1021822 | K154: 10.10456245 | L154: -0.7725479856 | M154: 2634718.903 | N154: 172863.5247 | O154: 4.084393721e+11 | P154: 639092.6162 | Q154: 0.2704827443 | AX154: 4358600
A155: 123 | B155: =IF(A155>$B$30,NA(),IF($A155>$A$8,"",OFFSET(InputPriceData!$B$15,$A155+$A$11,0,1,1))) -> 2021-06-08 | C155: =IF(A155>$B$30,NA(),IF($A155>$A$8,"",OFFSET(InputPriceData!$G$15,CalculationsAndCharts!$A155+$A$11,IF($C$5,8,0),1,1))) -> 1499000 | D155: =IF(A155>$B$30,NA(),IF(A155>$A$8,"",OFFSET(InputPriceData!$C$15,CalculationsAndCharts!$A155+$A$11,IF($C$5,8,0),1,1))) -> 299.26 | E155: =IF(A155>$B$30,NA(),IF(A155>$A$8,"",OFFSET(InputPriceData!$D$15,CalculationsAndCharts!$A155+$A$11,IF($C$5,8,0),1,1))) -> 299.93 | F155: =IF(A155>$B$30,NA(),IF(A155>$A$8,"",OFFSET(InputPriceData!$E$15,CalculationsAndCharts!$A155+$A$11,IF($C$5,8,0),1,1))) -> 295.13 | G155: =IF(A155>$B$30,NA(),IF(A155>$A$8,"",OFFSET(InputPriceData!$F$15,CalculationsAndCharts!$A155+$A$11,IF($C$5,8,0),1,1))) -> 299.04 | H155: -12.31900919 | I155: -5.824874097 | J155: 103.1230685 | K155: 10.1549529 | L155: -0.5735993216 | M155: -148343.2404 | N155: 53006.82306 | O155: 4.17827662e+11 | P155: 646395.9019 | Q155: 0.08200364962 | AX155: 1499000
A156: 124 | B156: =IF(A156>$B$30,NA(),IF($A156>$A$8,"",OFFSET(InputPriceData!$B$15,$A156+$A$11,0,1,1))) -> 2021-06-07 | C156: =IF(A156>$B$30,NA(),IF($A156>$A$8,"",OFFSET(InputPriceData!$G$15,CalculationsAndCharts!$A156+$A$11,IF($C$5,8,0),1,1))) -> 1960400 | D156: =IF(A156>$B$30,NA(),IF(A156>$A$8,"",OFFSET(InputPriceData!$C$15,CalculationsAndCharts!$A156+$A$11,IF($C$5,8,0),1,1))) -> 299.46 | E156: =IF(A156>$B$30,NA(),IF(A156>$A$8,"",OFFSET(InputPriceData!$D$15,CalculationsAndCharts!$A156+$A$11,IF($C$5,8,0),1,1))) -> 300.66 | F156: =IF(A156>$B$30,NA(),IF(A156>$A$8,"",OFFSET(InputPriceData!$E$15,CalculationsAndCharts!$A156+$A$11,IF($C$5,8,0),1,1))) -> 295.71 | G156: =IF(A156>$B$30,NA(),IF(A156>$A$8,"",OFFSET(InputPriceData!$F$15,CalculationsAndCharts!$A156+$A$11,IF($C$5,8,0),1,1))) -> 299.8 | H156: -11.57085321 | I156: -4.087834088 | J156: 104.8390888 | K156: 10.23909609 | L156: -0.3992377892 | M156: 305119.6199 | N156: 12754.93649 | O156: 4.281201749e+11 | P156: 654308.9293 | Q156: 0.01949375275 | AW156: 1960400
A157: 125 | B157: =IF(A157>$B$30,NA(),IF($A157>$A$8,"",OFFSET(InputPriceData!$B$15,$A157+$A$11,0,1,1))) -> 2021-06-04 | C157: =IF(A157>$B$30,NA(),IF($A157>$A$8,"",OFFSET(InputPriceData!$G$15,CalculationsAndCharts!$A157+$A$11,IF($C$5,8,0),1,1))) -> 2111200 | D157: =IF(A157>$B$30,NA(),IF(A157>$A$8,"",OFFSET(InputPriceData!$C$15,CalculationsAndCharts!$A157+$A$11,IF($C$5,8,0),1,1))) -> 303.2 | E157: =IF(A157>$B$30,NA(),IF(A157>$A$8,"",OFFSET(InputPriceData!$D$15,CalculationsAndCharts!$A157+$A$11,IF($C$5,8,0),1,1))) -> 304.4 | F157: =IF(A157>$B$30,NA(),IF(A157>$A$8,"",OFFSET(InputPriceData!$E$15,CalculationsAndCharts!$A157+$A$11,IF($C$5,8,0),1,1))) -> 296.16 | G157: =IF(A157>$B$30,NA(),IF(A157>$A$8,"",OFFSET(InputPriceData!$F$15,CalculationsAndCharts!$A157+$A$11,IF($C$5,8,0),1,1))) -> 298.59 | H157: -12.77857108 | I157: -2.347354269 | J157: 107.0246951 | K157: 10.34527404 | L157: -0.2269011202 | M157: 469350.4434 | N157: -41922.39309 | O157: 4.387335908e+11 | P157: 662369.6783 | Q157: -0.06329153411 | AX157: 2111200
A158: 126 | B158: =IF(A158>$B$30,NA(),IF($A158>$A$8,"",OFFSET(InputPriceData!$B$15,$A158+$A$11,0,1,1))) -> 2021-06-03 | C158: =IF(A158>$B$30,NA(),IF($A158>$A$8,"",OFFSET(InputPriceData!$G$15,CalculationsAndCharts!$A158+$A$11,IF($C$5,8,0),1,1))) -> 1316300 | D158: =IF(A158>$B$30,NA(),IF(A158>$A$8,"",OFFSET(InputPriceData!$C$15,CalculationsAndCharts!$A158+$A$11,IF($C$5,8,0),1,1))) -> 301.82 | E158: =IF(A158>$B$30,NA(),IF(A158>$A$8,"",OFFSET(InputPriceData!$D$15,CalculationsAndCharts!$A158+$A$11,IF($C$5,8,0),1,1))) -> 304.18 | F158: =IF(A158>$B$30,NA(),IF(A158>$A$8,"",OFFSET(InputPriceData!$E$15,CalculationsAndCharts!$A158+$A$11,IF($C$5,8,0),1,1))) -> 298.65 | G158: =IF(A158>$B$30,NA(),IF(A158>$A$8,"",OFFSET(InputPriceData!$F$15,CalculationsAndCharts!$A158+$A$11,IF($C$5,8,0),1,1))) -> 302.73 | H158: -8.498261947 | I158: -0.8442591263 | J158: 109.5422744 | K158: 10.46624452 | L158: -0.08066495339 | M158: -335461.8905 | N158: -74304.53077 | O158: 4.495706698e+11 | P158: 670500.3131 | Q158: -0.1108195318 | AW158: 1316300
A159: 127 | B159: =IF(A159>$B$30,NA(),IF($A159>$A$8,"",OFFSET(InputPriceData!$B$15,$A159+$A$11,0,1,1))) -> 2021-06-02 | C159: =IF(A159>$B$30,NA(),IF($A159>$A$8,"",OFFSET(InputPriceData!$G$15,CalculationsAndCharts!$A159+$A$11,IF($C$5,8,0),1,1))) -> 2088400 | D159: =IF(A159>$B$30,NA(),IF(A159>$A$8,"",OFFSET(InputPriceData!$C$15,CalculationsAndCharts!$A159+$A$11,IF($C$5,8,0),1,1))) -> 309.34 | E159: =IF(A159>$B$30,NA(),IF(A159>$A$8,"",OFFSET(InputPriceData!$D$15,CalculationsAndCharts!$A159+$A$11,IF($C$5,8,0),1,1))) -> 309.34 | F159: =IF(A159>$B$30,NA(),IF(A159>$A$8,"",OFFSET(InputPriceData!$E$15,CalculationsAndCharts!$A159+$A$11,IF($C$5,8,0),1,1))) -> 300.28 | G159: =IF(A159>$B$30,NA(),IF(A159>$A$8,"",OFFSET(InputPriceData!$F$15,CalculationsAndCharts!$A159+$A$11,IF($C$5,8,0),1,1))) -> 302.99 | H159: -7.900780091 | I159: 0.2927785834 | J159: 112.2412638 | K159: 10.59439776 | L159: 0.02763522667 | M159: 425008.5452 | N159: -107394.4565 | O159: 4.605831704e+11 | P159: 678662.781 | Q159: -0.1582442113 | AX159: 2088400
A160: 128 | B160: =IF(A160>$B$30,NA(),IF($A160>$A$8,"",OFFSET(InputPriceData!$B$15,$A160+$A$11,0,1,1))) -> 2021-06-01 | C160: =IF(A160>$B$30,NA(),IF($A160>$A$8,"",OFFSET(InputPriceData!$G$15,CalculationsAndCharts!$A160+$A$11,IF($C$5,8,0),1,1))) -> 1282400 | D160: =IF(A160>$B$30,NA(),IF(A160>$A$8,"",OFFSET(InputPriceData!$C$15,CalculationsAndCharts!$A160+$A$11,IF($C$5,8,0),1,1))) -> 314.55 | E160: =IF(A160>$B$30,NA(),IF(A160>$A$8,"",OFFSET(InputPriceData!$D$15,CalculationsAndCharts!$A160+$A$11,IF($C$5,8,0),1,1))) -> 314.82 | F160: =IF(A160>$B$30,NA(),IF(A160>$A$8,"",OFFSET(InputPriceData!$E$15,CalculationsAndCharts!$A160+$A$11,IF($C$5,8,0),1,1))) -> 306.46 | G160: =IF(A160>$B$30,NA(),IF(A160>$A$8,"",OFFSET(InputPriceData!$F$15,CalculationsAndCharts!$A160+$A$11,IF($C$5,8,0),1,1))) -> 307.22 | H160: -3.124986626 | I160: 1.019429085 | J160: 115.0227397 | K160: 10.72486549 | L160: 0.09505285506 | M160: -394806.0324 | N160: -140242.7331 | O160: 4.717196741e+11 | P160: 686818.5161 | Q160: -0.2041918349 | AX160: 1282400
A161: 129 | B161: =IF(A161>$B$30,NA(),IF($A161>$A$8,"",OFFSET(InputPriceData!$B$15,$A161+$A$11,0,1,1))) -> 2021-05-28 | C161: =IF(A161>$B$30,NA(),IF($A161>$A$8,"",OFFSET(InputPriceData!$G$15,CalculationsAndCharts!$A161+$A$11,IF($C$5,8,0),1,1))) -> 1022700 | D161: =IF(A161>$B$30,NA(),IF(A161>$A$8,"",OFFSET(InputPriceData!$C$15,CalculationsAndCharts!$A161+$A$11,IF($C$5,8,0),1,1))) -> 312.31 | E161: =IF(A161>$B$30,NA(),IF(A161>$A$8,"",OFFSET(InputPriceData!$D$15,CalculationsAndCharts!$A161+$A$11,IF($C$5,8,0),1,1))) -> 313.05 | F161: =IF(A161>$B$30,NA(),IF(A161>$A$8,"",OFFSET(InputPriceData!$E$15,CalculationsAndCharts!$A161+$A$11,IF($C$5,8,0),1,1))) -> 309.35 | G161: =IF(A161>$B$30,NA(),IF(A161>$A$8,"",OFFSET(InputPriceData!$F$15,CalculationsAndCharts!$A161+$A$11,IF($C$5,8,0),1,1))) -> 311.13 | H161: 1.679204087 | I161: 1.347655677 | J161: 117.8495493 | K161: 10.85585323 | L161: 0.1241409265 | M161: -707913.2229 | N161: -172322.8839 | O161: 4.829306291e+11 | P161: 694932.104 | Q161: -0.2479708204 | AW161: =IF(G161>=D161,C161,NA()) ->  | AX161: =IF(G161<D161,C161,NA()) -> 1022700
A162: 130 | B162: =IF(A162>$B$30,NA(),IF($A162>$A$8,"",OFFSET(InputPriceData!$B$15,$A162+$A$11,0,1,1))) -> 2021-05-27 | C162: =IF(A162>$B$30,NA(),IF($A162>$A$8,"",OFFSET(InputPriceData!$G$15,CalculationsAndCharts!$A162+$A$11,IF($C$5,8,0),1,1))) -> 2657300 | D162: =IF(A162>$B$30,NA(),IF(A162>$A$8,"",OFFSET(InputPriceData!$C$15,CalculationsAndCharts!$A162+$A$11,IF($C$5,8,0),1,1))) -> 308.86 | E162: =IF(A162>$B$30,NA(),IF(A162>$A$8,"",OFFSET(InputPriceData!$D$15,CalculationsAndCharts!$A162+$A$11,IF($C$5,8,0),1,1))) -> 316.16 | F162: =IF(A162>$B$30,NA(),IF(A162>$A$8,"",OFFSET(InputPriceData!$E$15,CalculationsAndCharts!$A162+$A$11,IF($C$5,8,0),1,1))) -> 308.22 | G162: =IF(A162>$B$30,NA(),IF(A162>$A$8,"",OFFSET(InputPriceData!$F$15,CalculationsAndCharts!$A162+$A$11,IF($C$5,8,0),1,1))) -> 311.9 | H162: =IF(A162>$H$30+2,NA(),IF(A162>$H$30,0,$C$19*(G162-2*G163+G164)+$D$19*H163+$E$19*H164)) -> 3.579291755 | I162: =IF(A162>$H$30+2,NA(),IF(A162>$H$30,0,$C$24*(H162+H163)/2+$D$24*I163+$E$24*I164)) -> 1.604346962 | J162: =IF($A162>$H$30,NA(),IF($A162=$H$30,I162*I162,0.0242*I162*I162+0.9758*J163)) -> 120.727196 | K162: =IF(A162>$H$30,NA(),IF(J162=0,0,SQRT(J162))) -> 10.98759282 | L162: =IF(A162>$H$30,NA(),IF(J162=0,0,I162/K162)) -> 0.1460144172 | M162: =IF($A162>$M$30+2,NA(),IF($A162>$M$30,0,$C$19*($C162-2*$C163+$C164)+$D$19*M163+$E$19*M164)) -> 920597.8313 | N162: =IF($A162>$M$30+2,NA(),IF($A162>$M$30,0,$C$24*(M162+M163)/2+$D$24*N163+$E$24*N164)) -> -269044.3199 | O162: =IF($A162>$M$30,NA(),IF($A162=$M$30,N162*N162,0.0242*N162*N162+0.9758*O163)) -> 4.941709427e+11 | P162: =IF($A162>$M$30,NA(),IF(O162=0,0,SQRT(O162))) -> 702972.9317 | Q162: =IF($A162>$M$30,NA(),IF(O162=0,0,N162/P162)) -> -0.3827235841 | AW162: 2657300
A163: 131 | B163: =IF(A163>$B$30,NA(),IF($A163>$A$8,"",OFFSET(InputPriceData!$B$15,$A163+$A$11,0,1,1))) -> 2021-05-26 | C163: =IF(A163>$B$30,NA(),IF($A163>$A$8,"",OFFSET(InputPriceData!$G$15,CalculationsAndCharts!$A163+$A$11,IF($C$5,8,0),1,1))) -> 1695100 | D163: =IF(A163>$B$30,NA(),IF(A163>$A$8,"",OFFSET(InputPriceData!$C$15,CalculationsAndCharts!$A163+$A$11,IF($C$5,8,0),1,1))) -> 307.09 | E163: =IF(A163>$B$30,NA(),IF(A163>$A$8,"",OFFSET(InputPriceData!$D$15,CalculationsAndCharts!$A163+$A$11,IF($C$5,8,0),1,1))) -> 309.17 | F163: =IF(A163>$B$30,NA(),IF(A163>$A$8,"",OFFSET(InputPriceData!$E$15,CalculationsAndCharts!$A163+$A$11,IF($C$5,8,0),1,1))) -> 304.42 | G163: =IF(A163>$B$30,NA(),IF(A163>$A$8,"",OFFSET(InputPriceData!$F$15,CalculationsAndCharts!$A163+$A$11,IF($C$5,8,0),1,1))) -> 307.12 | H163: -0.140804885 | I163: 2.130873331 | J163: 123.6574164 | K163: 11.12013563 | L163: 0.1916229623 | M163: -24084.75043 | N163: -373609.6667 | O163: 5.046313071e+11 | P163: 710374.0614 | Q163: -0.5259337116 | AW163: 1695100
A164: 132 | B164: =IF(A164>$B$30,NA(),IF($A164>$A$8,"",OFFSET(InputPriceData!$B$15,$A164+$A$11,0,1,1))) -> 2021-05-25 | C164: =IF(A164>$B$30,NA(),IF($A164>$A$8,"",OFFSET(InputPriceData!$G$15,CalculationsAndCharts!$A164+$A$11,IF($C$5,8,0),1,1))) -> 1631800 | D164: =IF(A164>$B$30,NA(),IF(A164>$A$8,"",OFFSET(InputPriceData!$C$15,CalculationsAndCharts!$A164+$A$11,IF($C$5,8,0),1,1))) -> 309.34 | E164: =IF(A164>$B$30,NA(),IF(A164>$A$8,"",OFFSET(InputPriceData!$D$15,CalculationsAndCharts!$A164+$A$11,IF($C$5,8,0),1,1))) -> 309.72 | F164: =IF(A164>$B$30,NA(),IF(A164>$A$8,"",OFFSET(InputPriceData!$E$15,CalculationsAndCharts!$A164+$A$11,IF($C$5,8,0),1,1))) -> 304.11 | G164: =IF(A164>$B$30,NA(),IF(A164>$A$8,"",OFFSET(InputPriceData!$F$15,CalculationsAndCharts!$A164+$A$11,IF($C$5,8,0),1,1))) -> 304.98 | H164: -1.399056547 | I164: 2.901157273 | J164: 126.6115324 | K164: 11.25217901 | L164: 0.2578307073 | M164: -106872.3279 | N164: -435396.7858 | O164: 5.136845356e+11 | P164: 716717.8912 | Q164: -0.607486978 | AX164: 1631800
A165: 133 | B165: =IF(A165>$B$30,NA(),IF($A165>$A$8,"",OFFSET(InputPriceData!$B$15,$A165+$A$11,0,1,1))) -> 2021-05-24 | C165: =IF(A165>$B$30,NA(),IF($A165>$A$8,"",OFFSET(InputPriceData!$G$15,CalculationsAndCharts!$A165+$A$11,IF($C$5,8,0),1,1))) -> 1807900 | D165: =IF(A165>$B$30,NA(),IF(A165>$A$8,"",OFFSET(InputPriceData!$C$15,CalculationsAndCharts!$A165+$A$11,IF($C$5,8,0),1,1))) -> 309.86 | E165: =IF(A165>$B$30,NA(),IF(A165>$A$8,"",OFFSET(InputPriceData!$D$15,CalculationsAndCharts!$A165+$A$11,IF($C$5,8,0),1,1))) -> 309.86 | F165: =IF(A165>$B$30,NA(),IF(A165>$A$8,"",OFFSET(InputPriceData!$E$15,CalculationsAndCharts!$A165+$A$11,IF($C$5,8,0),1,1))) -> 305.64 | G165: =IF(A165>$B$30,NA(),IF(A165>$A$8,"",OFFSET(InputPriceData!$F$15,CalculationsAndCharts!$A165+$A$11,IF($C$5,8,0),1,1))) -> 308.2 | H165: 2.80757533 | I165: 3.649940899 | J165: 129.5427833 | K165: 11.38168631 | L165: 0.3206854238 | M165: 52582.20956 | N165: -486163.6712 | O165: 5.217226203e+11 | P165: 722303.6898 | Q165: -0.673073775 | AX165: 1807900
A166: 134 | B166: =IF(A166>$B$30,NA(),IF($A166>$A$8,"",OFFSET(InputPriceData!$B$15,$A166+$A$11,0,1,1))) -> 2021-05-21 | C166: =IF(A166>$B$30,NA(),IF($A166>$A$8,"",OFFSET(InputPriceData!$G$15,CalculationsAndCharts!$A166+$A$11,IF($C$5,8,0),1,1))) -> 1753600 | D166: =IF(A166>$B$30,NA(),IF(A166>$A$8,"",OFFSET(InputPriceData!$C$15,CalculationsAndCharts!$A166+$A$11,IF($C$5,8,0),1,1))) -> 306.8 | E166: =IF(A166>$B$30,NA(),IF(A166>$A$8,"",OFFSET(InputPriceData!$D$15,CalculationsAndCharts!$A166+$A$11,IF($C$5,8,0),1,1))) -> 311.61 | F166: =IF(A166>$B$30,NA(),IF(A166>$A$8,"",OFFSET(InputPriceData!$E$15,CalculationsAndCharts!$A166+$A$11,IF($C$5,8,0),1,1))) -> 305.77 | G166: =IF(A166>$B$30,NA(),IF(A166>$A$8,"",OFFSET(InputPriceData!$F$15,CalculationsAndCharts!$A166+$A$11,IF($C$5,8,0),1,1))) -> 305.98 | H166: 1.679927001 | I166: 4.454574179 | J166: 132.4250761 | K166: 11.50760949 | L166: 0.3870981357 | M166: -15090.2379 | N166: -508769.2693 | O166: 5.287997812e+11 | P166: 727186.208 | Q166: -0.6996409774 | AX166: 1753600
A167: 135 | B167: =IF(A167>$B$30,NA(),IF($A167>$A$8,"",OFFSET(InputPriceData!$B$15,$A167+$A$11,0,1,1))) -> 2021-05-20 | C167: =IF(A167>$B$30,NA(),IF($A167>$A$8,"",OFFSET(InputPriceData!$G$15,CalculationsAndCharts!$A167+$A$11,IF($C$5,8,0),1,1))) -> 1278100 | D167: =IF(A167>$B$30,NA(),IF(A167>$A$8,"",OFFSET(InputPriceData!$C$15,CalculationsAndCharts!$A167+$A$11,IF($C$5,8,0),1,1))) -> 305.53 | E167: =IF(A167>$B$30,NA(),IF(A167>$A$8,"",OFFSET(InputPriceData!$D$15,CalculationsAndCharts!$A167+$A$11,IF($C$5,8,0),1,1))) -> 308.3 | F167: =IF(A167>$B$30,NA(),IF(A167>$A$8,"",OFFSET(InputPriceData!$E$15,CalculationsAndCharts!$A167+$A$11,IF($C$5,8,0),1,1))) -> 303.18 | G167: =IF(A167>$B$30,NA(),IF(A167>$A$8,"",OFFSET(InputPriceData!$F$15,CalculationsAndCharts!$A167+$A$11,IF($C$5,8,0),1,1))) -> 305.44 | H167: 2.205593897 | I167: 5.436831519 | J167: 135.2171243 | K167: 11.62828983 | L167: 0.4675521164 | M167: -524145.7303 | N167: -479024.4735 | O167: 5.35494675e+11 | P167: 731775.0167 | Q167: -0.6546062144 | AX167: 1278100
A168: 136 | B168: =IF(A168>$B$30,NA(),IF($A168>$A$8,"",OFFSET(InputPriceData!$B$15,$A168+$A$11,0,1,1))) -> 2021-05-19 | C168: =IF(A168>$B$30,NA(),IF($A168>$A$8,"",OFFSET(InputPriceData!$G$15,CalculationsAndCharts!$A168+$A$11,IF($C$5,8,0),1,1))) -> 1734700 | D168: =IF(A168>$B$30,NA(),IF(A168>$A$8,"",OFFSET(InputPriceData!$C$15,CalculationsAndCharts!$A168+$A$11,IF($C$5,8,0),1,1))) -> 300.45 | E168: =IF(A168>$B$30,NA(),IF(A168>$A$8,"",OFFSET(InputPriceData!$D$15,CalculationsAndCharts!$A168+$A$11,IF($C$5,8,0),1,1))) -> 304.83 | F168: =IF(A168>$B$30,NA(),IF(A168>$A$8,"",OFFSET(InputPriceData!$E$15,CalculationsAndCharts!$A168+$A$11,IF($C$5,8,0),1,1))) -> 296.41 | G168: =IF(A168>$B$30,NA(),IF(A168>$A$8,"",OFFSET(InputPriceData!$F$15,CalculationsAndCharts!$A168+$A$11,IF($C$5,8,0),1,1))) -> 304.33 | H168: 2.173589231 | I168: 6.537949494 | J168: 137.8374597 | K168: 11.74041991 | L168: 0.5568752687 | M168: -103507.1678 | N168: -406843.9918 | O168: 5.430842749e+11 | P168: 736942.518 | Q168: -0.5520701844 | AW168: 1734700
A169: 137 | B169: =IF(A169>$B$30,NA(),IF($A169>$A$8,"",OFFSET(InputPriceData!$B$15,$A169+$A$11,0,1,1))) -> 2021-05-18 | C169: =IF(A169>$B$30,NA(),IF($A169>$A$8,"",OFFSET(InputPriceData!$G$15,CalculationsAndCharts!$A169+$A$11,IF($C$5,8,0),1,1))) -> 1046100 | D169: =IF(A169>$B$30,NA(),IF(A169>$A$8,"",OFFSET(InputPriceData!$C$15,CalculationsAndCharts!$A169+$A$11,IF($C$5,8,0),1,1))) -> 306.07 | E169: =IF(A169>$B$30,NA(),IF(A169>$A$8,"",OFFSET(InputPriceData!$D$15,CalculationsAndCharts!$A169+$A$11,IF($C$5,8,0),1,1))) -> 306.65 | F169: =IF(A169>$B$30,NA(),IF(A169>$A$8,"",OFFSET(InputPriceData!$E$15,CalculationsAndCharts!$A169+$A$11,IF($C$5,8,0),1,1))) -> 302.47 | G169: =IF(A169>$B$30,NA(),IF(A169>$A$8,"",OFFSET(InputPriceData!$F$15,CalculationsAndCharts!$A169+$A$11,IF($C$5,8,0),1,1))) -> 302.47 | H169: 1.356405691 | I169: 7.719150446 | J169: 140.1957737 | K169: 11.84042962 | L169: 0.6519316182 | M169: -838242.1892 | N169: -282834.4521 | O169: 5.524478804e+11 | P169: 743268.3771 | Q169: -0.3805280311 | AX169: 1046100
A170: 138 | B170: =IF(A170>$B$30,NA(),IF($A170>$A$8,"",OFFSET(InputPriceData!$B$15,$A170+$A$11,0,1,1))) -> 2021-05-17 | C170: =IF(A170>$B$30,NA(),IF($A170>$A$8,"",OFFSET(InputPriceData!$G$15,CalculationsAndCharts!$A170+$A$11,IF($C$5,8,0),1,1))) -> 940700 | D170: =IF(A170>$B$30,NA(),IF(A170>$A$8,"",OFFSET(InputPriceData!$C$15,CalculationsAndCharts!$A170+$A$11,IF($C$5,8,0),1,1))) -> 306.38 | E170: =IF(A170>$B$30,NA(),IF(A170>$A$8,"",OFFSET(InputPriceData!$D$15,CalculationsAndCharts!$A170+$A$11,IF($C$5,8,0),1,1))) -> 307.92 | F170: =IF(A170>$B$30,NA(),IF(A170>$A$8,"",OFFSET(InputPriceData!$E$15,CalculationsAndCharts!$A170+$A$11,IF($C$5,8,0),1,1))) -> 303.1 | G170: =IF(A170>$B$30,NA(),IF(A170>$A$8,"",OFFSET(InputPriceData!$F$15,CalculationsAndCharts!$A170+$A$11,IF($C$5,8,0),1,1))) -> 305.65 | H170: 5.697807458 | I170: 8.827378904 | J170: 142.1949271 | K170: 11.92455144 | L170: 0.7402692627 | M170: -1020607.188 | N170: -112637.2212 | O170: 5.641647811e+11 | P170: 751109.0341 | Q170: -0.1499612121 | AX170: 940700
A171: 139 | B171: =IF(A171>$B$30,NA(),IF($A171>$A$8,"",OFFSET(InputPriceData!$B$15,$A171+$A$11,0,1,1))) -> 2021-05-14 | C171: =IF(A171>$B$30,NA(),IF($A171>$A$8,"",OFFSET(InputPriceData!$G$15,CalculationsAndCharts!$A171+$A$11,IF($C$5,8,0),1,1))) -> 1455200 | D171: =IF(A171>$B$30,NA(),IF(A171>$A$8,"",OFFSET(InputPriceData!$C$15,CalculationsAndCharts!$A171+$A$11,IF($C$5,8,0),1,1))) -> 301.66 | E171: =IF(A171>$B$30,NA(),IF(A171>$A$8,"",OFFSET(InputPriceData!$D$15,CalculationsAndCharts!$A171+$A$11,IF($C$5,8,0),1,1))) -> 306.87 | F171: =IF(A171>$B$30,NA(),IF(A171>$A$8,"",OFFSET(InputPriceData!$E$15,CalculationsAndCharts!$A171+$A$11,IF($C$5,8,0),1,1))) -> 301.66 | G171: =IF(A171>$B$30,NA(),IF(A171>$A$8,"",OFFSET(InputPriceData!$F$15,CalculationsAndCharts!$A171+$A$11,IF($C$5,8,0),1,1))) -> 305.81 | H171: 7.21483977 | I171: 9.902385324 | J171: 143.7888909 | K171: 11.99120056 | L171: 0.8258043283 | M171: -571408.4479 | N171: 52113.77134 | O171: 5.77841517e+11 | P171: 760158.8761 | Q171: 0.06855642022 | AW171: 1455200
A172: 140 | B172: =IF(A172>$B$30,NA(),IF($A172>$A$8,"",OFFSET(InputPriceData!$B$15,$A172+$A$11,0,1,1))) -> 2021-05-13 | C172: =IF(A172>$B$30,NA(),IF($A172>$A$8,"",OFFSET(InputPriceData!$G$15,CalculationsAndCharts!$A172+$A$11,IF($C$5,8,0),1,1))) -> 1444300 | D172: =IF(A172>$B$30,NA(),IF(A172>$A$8,"",OFFSET(InputPriceData!$C$15,CalculationsAndCharts!$A172+$A$11,IF($C$5,8,0),1,1))) -> 293.59 | E172: =IF(A172>$B$30,NA(),IF(A172>$A$8,"",OFFSET(InputPriceData!$D$15,CalculationsAndCharts!$A172+$A$11,IF($C$5,8,0),1,1))) -> 301.75 | F172: =IF(A172>$B$30,NA(),IF(A172>$A$8,"",OFFSET(InputPriceData!$E$15,CalculationsAndCharts!$A172+$A$11,IF($C$5,8,0),1,1))) -> 293.03 | G172: =IF(A172>$B$30,NA(),IF(A172>$A$8,"",OFFSET(InputPriceData!$F$15,CalculationsAndCharts!$A172+$A$11,IF($C$5,8,0),1,1))) -> 299.85 | H172: 2.483335299 | I172: 11.15403965 | J172: 144.9230434 | K172: 12.03839871 | L172: 0.9265384808 | M172: -632032.5374 | N172: 204512.0246 | O172: 5.921047279e+11 | P172: 769483.4163 | Q172: 0.2657783394 | AW172: 1444300
A173: 141 | B173: =IF(A173>$B$30,NA(),IF($A173>$A$8,"",OFFSET(InputPriceData!$B$15,$A173+$A$11,0,1,1))) -> 2021-05-12 | C173: =IF(A173>$B$30,NA(),IF($A173>$A$8,"",OFFSET(InputPriceData!$G$15,CalculationsAndCharts!$A173+$A$11,IF($C$5,8,0),1,1))) -> 1949200 | D173: =IF(A173>$B$30,NA(),IF(A173>$A$8,"",OFFSET(InputPriceData!$C$15,CalculationsAndCharts!$A173+$A$11,IF($C$5,8,0),1,1))) -> 298.65 | E173: =IF(A173>$B$30,NA(),IF(A173>$A$8,"",OFFSET(InputPriceData!$D$15,CalculationsAndCharts!$A173+$A$11,IF($C$5,8,0),1,1))) -> 301.2 | F173: =IF(A173>$B$30,NA(),IF(A173>$A$8,"",OFFSET(InputPriceData!$E$15,CalculationsAndCharts!$A173+$A$11,IF($C$5,8,0),1,1))) -> 291.35 | G173: =IF(A173>$B$30,NA(),IF(A173>$A$8,"",OFFSET(InputPriceData!$F$15,CalculationsAndCharts!$A173+$A$11,IF($C$5,8,0),1,1))) -> 292.55 | H173: -3.991678045 | I173: 12.32890366 | J173: 145.4317058 | K173: 12.05950686 | L173: 1.022338956 | M173: -161008.1853 | N173: 342809.9553 | O173: 6.057517512e+11 | P173: 778300.5533 | Q173: 0.4404596063 | AX173: 1949200
A174: 142 | B174: =IF(A174>$B$30,NA(),IF($A174>$A$8,"",OFFSET(InputPriceData!$B$15,$A174+$A$11,0,1,1))) -> 2021-05-11 | C174: =IF(A174>$B$30,NA(),IF($A174>$A$8,"",OFFSET(InputPriceData!$G$15,CalculationsAndCharts!$A174+$A$11,IF($C$5,8,0),1,1))) -> 2170500 | D174: =IF(A174>$B$30,NA(),IF(A174>$A$8,"",OFFSET(InputPriceData!$C$15,CalculationsAndCharts!$A174+$A$11,IF($C$5,8,0),1,1))) -> 301.04 | E174: =IF(A174>$B$30,NA(),IF(A174>$A$8,"",OFFSET(InputPriceData!$D$15,CalculationsAndCharts!$A174+$A$11,IF($C$5,8,0),1,1))) -> 304.28 | F174: =IF(A174>$B$30,NA(),IF(A174>$A$8,"",OFFSET(InputPriceData!$E$15,CalculationsAndCharts!$A174+$A$11,IF($C$5,8,0),1,1))) -> 297.06 | G174: =IF(A174>$B$30,NA(),IF(A174>$A$8,"",OFFSET(InputPriceData!$F$15,CalculationsAndCharts!$A174+$A$11,IF($C$5,8,0),1,1))) -> 302.07 | H174: 6.495285486 | I174: 12.54892389 | J174: 145.2687647 | K174: 12.05274926 | L174: 1.041166925 | M174: 51274.48256 | N174: 467364.3725 | O174: 6.178600118e+11 | P174: 786040.7189 | Q174: 0.5945803586 | AW174: 2170500
A175: 143 | B175: =IF(A175>$B$30,NA(),IF($A175>$A$8,"",OFFSET(InputPriceData!$B$15,$A175+$A$11,0,1,1))) -> 2021-05-10 | C175: =IF(A175>$B$30,NA(),IF($A175>$A$8,"",OFFSET(InputPriceData!$G$15,CalculationsAndCharts!$A175+$A$11,IF($C$5,8,0),1,1))) -> 1733600 | D175: =IF(A175>$B$30,NA(),IF(A175>$A$8,"",OFFSET(InputPriceData!$C$15,CalculationsAndCharts!$A175+$A$11,IF($C$5,8,0),1,1))) -> 311 | E175: =IF(A175>$B$30,NA(),IF(A175>$A$8,"",OFFSET(InputPriceData!$D$15,CalculationsAndCharts!$A175+$A$11,IF($C$5,8,0),1,1))) -> 313.3 | F175: =IF(A175>$B$30,NA(),IF(A175>$A$8,"",OFFSET(InputPriceData!$E$15,CalculationsAndCharts!$A175+$A$11,IF($C$5,8,0),1,1))) -> 305.66 | G175: =IF(A175>$B$30,NA(),IF(A175>$A$8,"",OFFSET(InputPriceData!$F$15,CalculationsAndCharts!$A175+$A$11,IF($C$5,8,0),1,1))) -> 305.66 | H175: 11.59321306 | I175: 11.50012097 | J175: 144.9660359 | K175: 12.04018421 | L175: 0.9551449347 | M175: -402951.392 | N175: 597236.8241 | O175: 6.277659551e+11 | P175: 792316.8275 | Q175: 0.7537853588 | AX175: 1733600
A176: 144 | B176: =IF(A176>$B$30,NA(),IF($A176>$A$8,"",OFFSET(InputPriceData!$B$15,$A176+$A$11,0,1,1))) -> 2021-05-07 | C176: =IF(A176>$B$30,NA(),IF($A176>$A$8,"",OFFSET(InputPriceData!$G$15,CalculationsAndCharts!$A176+$A$11,IF($C$5,8,0),1,1))) -> 1826100 | D176: =IF(A176>$B$30,NA(),IF(A176>$A$8,"",OFFSET(InputPriceData!$C$15,CalculationsAndCharts!$A176+$A$11,IF($C$5,8,0),1,1))) -> 304.4 | E176: =IF(A176>$B$30,NA(),IF(A176>$A$8,"",OFFSET(InputPriceData!$D$15,CalculationsAndCharts!$A176+$A$11,IF($C$5,8,0),1,1))) -> 311.42 | F176: =IF(A176>$B$30,NA(),IF(A176>$A$8,"",OFFSET(InputPriceData!$E$15,CalculationsAndCharts!$A176+$A$11,IF($C$5,8,0),1,1))) -> 304.4 | G176: =IF(A176>$B$30,NA(),IF(A176>$A$8,"",OFFSET(InputPriceData!$F$15,CalculationsAndCharts!$A176+$A$11,IF($C$5,8,0),1,1))) -> 311.01 | H176: 18.85999367 | I176: 9.562170473 | J176: 145.2813267 | K176: 12.05327037 | L176: 0.7933258092 | M176: -341029.915 | N176: 704496.0167 | O176: 6.34488638e+11 | P176: 796547.9508 | Q176: 0.8844364183 | AW176: 1826100
A177: 145 | B177: =IF(A177>$B$30,NA(),IF($A177>$A$8,"",OFFSET(InputPriceData!$B$15,$A177+$A$11,0,1,1))) -> 2021-05-06 | C177: =IF(A177>$B$30,NA(),IF($A177>$A$8,"",OFFSET(InputPriceData!$G$15,CalculationsAndCharts!$A177+$A$11,IF($C$5,8,0),1,1))) -> 2561400 | D177: =IF(A177>$B$30,NA(),IF(A177>$A$8,"",OFFSET(InputPriceData!$C$15,CalculationsAndCharts!$A177+$A$11,IF($C$5,8,0),1,1))) -> 301.72 | E177: =IF(A177>$B$30,NA(),IF(A177>$A$8,"",OFFSET(InputPriceData!$D$15,CalculationsAndCharts!$A177+$A$11,IF($C$5,8,0),1,1))) -> 308.31 | F177: =IF(A177>$B$30,NA(),IF(A177>$A$8,"",OFFSET(InputPriceData!$E$15,CalculationsAndCharts!$A177+$A$11,IF($C$5,8,0),1,1))) -> 299.93 | G177: =IF(A177>$B$30,NA(),IF(A177>$A$8,"",OFFSET(InputPriceData!$F$15,CalculationsAndCharts!$A177+$A$11,IF($C$5,8,0),1,1))) -> 307.33 | H177: 17.25602367 | I177: 7.238266241 | J177: 146.6167219 | K177: 12.10853921 | L177: 0.5977819549 | M177: 392399.7935 | N177: 739112.7692 | O177: 6.379153759e+11 | P177: 798696.0472 | Q177: 0.9253993078 | AW177: 2561400
A178: 146 | B178: =IF(A178>$B$30,NA(),IF($A178>$A$8,"",OFFSET(InputPriceData!$B$15,$A178+$A$11,0,1,1))) -> 2021-05-05 | C178: =IF(A178>$B$30,NA(),IF($A178>$A$8,"",OFFSET(InputPriceData!$G$15,CalculationsAndCharts!$A178+$A$11,IF($C$5,8,0),1,1))) -> 2530100 | D178: =IF(A178>$B$30,NA(),IF(A178>$A$8,"",OFFSET(InputPriceData!$C$15,CalculationsAndCharts!$A178+$A$11,IF($C$5,8,0),1,1))) -> 302.32 | E178: =IF(A178>$B$30,NA(),IF(A178>$A$8,"",OFFSET(InputPriceData!$D$15,CalculationsAndCharts!$A178+$A$11,IF($C$5,8,0),1,1))) -> 306.37 | F178: =IF(A178>$B$30,NA(),IF(A178>$A$8,"",OFFSET(InputPriceData!$E$15,CalculationsAndCharts!$A178+$A$11,IF($C$5,8,0),1,1))) -> 298.72 | G178: =IF(A178>$B$30,NA(),IF(A178>$A$8,"",OFFSET(InputPriceData!$F$15,CalculationsAndCharts!$A178+$A$11,IF($C$5,8,0),1,1))) -> 302.95 | H178: 14.76341516 | I178: 4.947720029 | J178: 148.953498 | K178: 12.20465067 | L178: 0.4053962839 | M178: 384495.3846 | N178: 705191.0869 | O178: 6.401877576e+11 | P178: 800117.3399 | Q178: 0.8813595853 | AW178: 2530100
A179: 147 | B179: =IF(A179>$B$30,NA(),IF($A179>$A$8,"",OFFSET(InputPriceData!$B$15,$A179+$A$11,0,1,1))) -> 2021-05-04 | C179: =IF(A179>$B$30,NA(),IF($A179>$A$8,"",OFFSET(InputPriceData!$G$15,CalculationsAndCharts!$A179+$A$11,IF($C$5,8,0),1,1))) -> 2470500 | D179: =IF(A179>$B$30,NA(),IF(A179>$A$8,"",OFFSET(InputPriceData!$C$15,CalculationsAndCharts!$A179+$A$11,IF($C$5,8,0),1,1))) -> 299.16 | E179: =IF(A179>$B$30,NA(),IF(A179>$A$8,"",OFFSET(InputPriceData!$D$15,CalculationsAndCharts!$A179+$A$11,IF($C$5,8,0),1,1))) -> 301.63 | F179: =IF(A179>$B$30,NA(),IF(A179>$A$8,"",OFFSET(InputPriceData!$E$15,CalculationsAndCharts!$A179+$A$11,IF($C$5,8,0),1,1))) -> 295.82 | G179: =IF(A179>$B$30,NA(),IF(A179>$A$8,"",OFFSET(InputPriceData!$F$15,CalculationsAndCharts!$A179+$A$11,IF($C$5,8,0),1,1))) -> 300.72 | H179: 14.27633659 | I179: 2.739035688 | J179: 152.0404629 | K179: 12.33046888 | L179: 0.2221355663 | M179: 345678.6053 | N179: 613273.1097 | O179: 6.437315346e+11 | P179: 802328.8195 | Q179: 0.7643662982 | AW179: 2470500
A180: 148 | B180: =IF(A180>$B$30,NA(),IF($A180>$A$8,"",OFFSET(InputPriceData!$B$15,$A180+$A$11,0,1,1))) -> 2021-05-03 | C180: =IF(A180>$B$30,NA(),IF($A180>$A$8,"",OFFSET(InputPriceData!$G$15,CalculationsAndCharts!$A180+$A$11,IF($C$5,8,0),1,1))) -> 4580300 | D180: =IF(A180>$B$30,NA(),IF(A180>$A$8,"",OFFSET(InputPriceData!$C$15,CalculationsAndCharts!$A180+$A$11,IF($C$5,8,0),1,1))) -> 291.44 | E180: =IF(A180>$B$30,NA(),IF(A180>$A$8,"",OFFSET(InputPriceData!$D$15,CalculationsAndCharts!$A180+$A$11,IF($C$5,8,0),1,1))) -> 301.83 | F180: =IF(A180>$B$30,NA(),IF(A180>$A$8,"",OFFSET(InputPriceData!$E$15,CalculationsAndCharts!$A180+$A$11,IF($C$5,8,0),1,1))) -> 290.76 | G180: =IF(A180>$B$30,NA(),IF(A180>$A$8,"",OFFSET(InputPriceData!$F$15,CalculationsAndCharts!$A180+$A$11,IF($C$5,8,0),1,1))) -> 300.99 | H180: 16.3064562 | I180: 0.7465621196 | J180: 155.6250326 | K180: 12.47497626 | L180: 0.05984477279 | M180: 2550979.609 | N180: 439369.6654 | O180: 6.503687436e+11 | P180: 806454.4275 | Q180: 0.5448164837 | AW180: 4580300
A181: 149 | B181: =IF(A181>$B$30,NA(),IF($A181>$A$8,"",OFFSET(InputPriceData!$B$15,$A181+$A$11,0,1,1))) -> 2021-04-30 | C181: =IF(A181>$B$30,NA(),IF($A181>$A$8,"",OFFSET(InputPriceData!$G$15,CalculationsAndCharts!$A181+$A$11,IF($C$5,8,0),1,1))) -> 1821900 | D181: =IF(A181>$B$30,NA(),IF(A181>$A$8,"",OFFSET(InputPriceData!$C$15,CalculationsAndCharts!$A181+$A$11,IF($C$5,8,0),1,1))) -> 290.09 | E181: =IF(A181>$B$30,NA(),IF(A181>$A$8,"",OFFSET(InputPriceData!$D$15,CalculationsAndCharts!$A181+$A$11,IF($C$5,8,0),1,1))) -> 292.15 | F181: =IF(A181>$B$30,NA(),IF(A181>$A$8,"",OFFSET(InputPriceData!$E$15,CalculationsAndCharts!$A181+$A$11,IF($C$5,8,0),1,1))) -> 285.62 | G181: =IF(A181>$B$30,NA(),IF(A181>$A$8,"",OFFSET(InputPriceData!$F$15,CalculationsAndCharts!$A181+$A$11,IF($C$5,8,0),1,1))) -> 286.92 | H181: 3.584666409 | I181: -0.5682383151 | J181: 159.4707364 | K181: 12.62817233 | L181: -0.04499766872 | M181: -132264.4038 | N181: 292516.4411 | O181: 6.6171043e+11 | P181: 813455.8562 | Q181: 0.3595971912 | AX181: 1821900
A182: 150 | B182: =IF(A182>$B$30,NA(),IF($A182>$A$8,"",OFFSET(InputPriceData!$B$15,$A182+$A$11,0,1,1))) -> 2021-04-29 | C182: =IF(A182>$B$30,NA(),IF($A182>$A$8,"",OFFSET(InputPriceData!$G$15,CalculationsAndCharts!$A182+$A$11,IF($C$5,8,0),1,1))) -> 2472200 | D182: =IF(A182>$B$30,NA(),IF(A182>$A$8,"",OFFSET(InputPriceData!$C$15,CalculationsAndCharts!$A182+$A$11,IF($C$5,8,0),1,1))) -> 286.61 | E182: =IF(A182>$B$30,NA(),IF(A182>$A$8,"",OFFSET(InputPriceData!$D$15,CalculationsAndCharts!$A182+$A$11,IF($C$5,8,0),1,1))) -> 292.84 | F182: =IF(A182>$B$30,NA(),IF(A182>$A$8,"",OFFSET(InputPriceData!$E$15,CalculationsAndCharts!$A182+$A$11,IF($C$5,8,0),1,1))) -> 285.85 | G182: =IF(A182>$B$30,NA(),IF(A182>$A$8,"",OFFSET(InputPriceData!$F$15,CalculationsAndCharts!$A182+$A$11,IF($C$5,8,0),1,1))) -> 292.6 | H182: 10.38087162 | I182: -1.323008473 | J182: 163.417629 | K182: 12.78349049 | L182: -0.1034935235 | M182: 519200.0185 | N182: 176492.4017 | O182: 6.759989096e+11 | P182: 822191.5286 | Q182: 0.2146609343 | AW182: 2472200
A183: 151 | B183: =IF(A183>$B$30,NA(),IF($A183>$A$8,"",OFFSET(InputPriceData!$B$15,$A183+$A$11,0,1,1))) -> 2021-04-28 | C183: =IF(A183>$B$30,NA(),IF($A183>$A$8,"",OFFSET(InputPriceData!$G$15,CalculationsAndCharts!$A183+$A$11,IF($C$5,8,0),1,1))) -> 1783900 | D183: =IF(A183>$B$30,NA(),IF(A183>$A$8,"",OFFSET(InputPriceData!$C$15,CalculationsAndCharts!$A183+$A$11,IF($C$5,8,0),1,1))) -> 283.3 | E183: =IF(A183>$B$30,NA(),IF(A183>$A$8,"",OFFSET(InputPriceData!$D$15,CalculationsAndCharts!$A183+$A$11,IF($C$5,8,0),1,1))) -> 285.77 | F183: =IF(A183>$B$30,NA(),IF(A183>$A$8,"",OFFSET(InputPriceData!$E$15,CalculationsAndCharts!$A183+$A$11,IF($C$5,8,0),1,1))) -> 282.08 | G183: =IF(A183>$B$30,NA(),IF(A183>$A$8,"",OFFSET(InputPriceData!$F$15,CalculationsAndCharts!$A183+$A$11,IF($C$5,8,0),1,1))) -> 284.03 | H183: 2.885011867 | I183: -1.476579498 | J183: 167.427004 | K183: 12.93935872 | L183: -0.1141153538 | M183: -169732.3753 | N183: -2329.481627 | O183: 6.91991279e+11 | P183: 831860.1319 | Q183: -0.00280032849 | AW183: 1783900
A184: 152 | B184: =IF(A184>$B$30,NA(),IF($A184>$A$8,"",OFFSET(InputPriceData!$B$15,$A184+$A$11,0,1,1))) -> 2021-04-27 | C184: =IF(A184>$B$30,NA(),IF($A184>$A$8,"",OFFSET(InputPriceData!$G$15,CalculationsAndCharts!$A184+$A$11,IF($C$5,8,0),1,1))) -> 4961900 | D184: =IF(A184>$B$30,NA(),IF(A184>$A$8,"",OFFSET(InputPriceData!$C$15,CalculationsAndCharts!$A184+$A$11,IF($C$5,8,0),1,1))) -> 283.21 | E184: =IF(A184>$B$30,NA(),IF(A184>$A$8,"",OFFSET(InputPriceData!$D$15,CalculationsAndCharts!$A184+$A$11,IF($C$5,8,0),1,1))) -> 288.79 | F184: =IF(A184>$B$30,NA(),IF(A184>$A$8,"",OFFSET(InputPriceData!$E$15,CalculationsAndCharts!$A184+$A$11,IF($C$5,8,0),1,1))) -> 281.01 | G184: =IF(A184>$B$30,NA(),IF(A184>$A$8,"",OFFSET(InputPriceData!$F$15,CalculationsAndCharts!$A184+$A$11,IF($C$5,8,0),1,1))) -> 284.15 | H184: 3.833816479 | I184: -0.7168958611 | J184: 171.5251497 | K184: 13.09676104 | L184: -0.05473840891 | M184: 3097201.397 | N184: -259346.642 | O184: 7.091526416e+11 | P184: 842112.0125 | Q184: -0.307971669 | AW184: 4961900
A185: 153 | B185: =IF(A185>$B$30,NA(),IF($A185>$A$8,"",OFFSET(InputPriceData!$B$15,$A185+$A$11,0,1,1))) -> 2021-04-26 | C185: =IF(A185>$B$30,NA(),IF($A185>$A$8,"",OFFSET(InputPriceData!$G$15,CalculationsAndCharts!$A185+$A$11,IF($C$5,8,0),1,1))) -> 1747000 | D185: =IF(A185>$B$30,NA(),IF(A185>$A$8,"",OFFSET(InputPriceData!$C$15,CalculationsAndCharts!$A185+$A$11,IF($C$5,8,0),1,1))) -> 276.05 | E185: =IF(A185>$B$30,NA(),IF(A185>$A$8,"",OFFSET(InputPriceData!$D$15,CalculationsAndCharts!$A185+$A$11,IF($C$5,8,0),1,1))) -> 276.6 | F185: =IF(A185>$B$30,NA(),IF(A185>$A$8,"",OFFSET(InputPriceData!$E$15,CalculationsAndCharts!$A185+$A$11,IF($C$5,8,0),1,1))) -> 271 | G185: =IF(A185>$B$30,NA(),IF(A185>$A$8,"",OFFSET(InputPriceData!$F$15,CalculationsAndCharts!$A185+$A$11,IF($C$5,8,0),1,1))) -> 272.54 | H185: -7.311875158 | I185: 0.9698862235 | J185: 175.7662557 | K185: 13.25768666 | L185: 0.07315652029 | M185: -27496.01482 | N185: -447812.7857 | O185: 7.250716675e+11 | P185: 851511.4019 | Q185: -0.525903452 | AX185: 1747000
A186: 154 | B186: =IF(A186>$B$30,NA(),IF($A186>$A$8,"",OFFSET(InputPriceData!$B$15,$A186+$A$11,0,1,1))) -> 2021-04-23 | C186: =IF(A186>$B$30,NA(),IF($A186>$A$8,"",OFFSET(InputPriceData!$G$15,CalculationsAndCharts!$A186+$A$11,IF($C$5,8,0),1,1))) -> 1312800 | D186: =IF(A186>$B$30,NA(),IF(A186>$A$8,"",OFFSET(InputPriceData!$C$15,CalculationsAndCharts!$A186+$A$11,IF($C$5,8,0),1,1))) -> 275.27 | E186: =IF(A186>$B$30,NA(),IF(A186>$A$8,"",OFFSET(InputPriceData!$D$15,CalculationsAndCharts!$A186+$A$11,IF($C$5,8,0),1,1))) -> 275.93 | F186: =IF(A186>$B$30,NA(),IF(A186>$A$8,"",OFFSET(InputPriceData!$E$15,CalculationsAndCharts!$A186+$A$11,IF($C$5,8,0),1,1))) -> 273.73 | G186: =IF(A186>$B$30,NA(),IF(A186>$A$8,"",OFFSET(InputPriceData!$F$15,CalculationsAndCharts!$A186+$A$11,IF($C$5,8,0),1,1))) -> 274.49 | H186: -5.208888376 | I186: 3.266287866 | J186: 180.1019587 | K186: 13.4202071 | L186: 0.2433858018 | M186: -500996.5759 | N186: -497406.6675 | O186: 7.380802309e+11 | P186: 859115.9589 | Q186: -0.578975006 | AX186: 1312800
A187: 155 | B187: =IF(A187>$B$30,NA(),IF($A187>$A$8,"",OFFSET(InputPriceData!$B$15,$A187+$A$11,0,1,1))) -> 2021-04-22 | C187: =IF(A187>$B$30,NA(),IF($A187>$A$8,"",OFFSET(InputPriceData!$G$15,CalculationsAndCharts!$A187+$A$11,IF($C$5,8,0),1,1))) -> 1444800 | D187: =IF(A187>$B$30,NA(),IF(A187>$A$8,"",OFFSET(InputPriceData!$C$15,CalculationsAndCharts!$A187+$A$11,IF($C$5,8,0),1,1))) -> 274.09 | E187: =IF(A187>$B$30,NA(),IF(A187>$A$8,"",OFFSET(InputPriceData!$D$15,CalculationsAndCharts!$A187+$A$11,IF($C$5,8,0),1,1))) -> 277.79 | F187: =IF(A187>$B$30,NA(),IF(A187>$A$8,"",OFFSET(InputPriceData!$E$15,CalculationsAndCharts!$A187+$A$11,IF($C$5,8,0),1,1))) -> 273.15 | G187: =IF(A187>$B$30,NA(),IF(A187>$A$8,"",OFFSET(InputPriceData!$F$15,CalculationsAndCharts!$A187+$A$11,IF($C$5,8,0),1,1))) -> 273.31 | H187: -6.18059151 | I187: 5.673264533 | J187: 184.3039328 | K187: 13.57585846 | L187: 0.4178936125 | M187: -421381.6885 | N187: -546010.3596 | O187: 7.502488489e+11 | P187: 866169.0648 | Q187: -0.6303738863 | AX187: 1444800
A188: 156 | B188: =IF(A188>$B$30,NA(),IF($A188>$A$8,"",OFFSET(InputPriceData!$B$15,$A188+$A$11,0,1,1))) -> 2021-04-21 | C188: =IF(A188>$B$30,NA(),IF($A188>$A$8,"",OFFSET(InputPriceData!$G$15,CalculationsAndCharts!$A188+$A$11,IF($C$5,8,0),1,1))) -> 1861400 | D188: =IF(A188>$B$30,NA(),IF(A188>$A$8,"",OFFSET(InputPriceData!$C$15,CalculationsAndCharts!$A188+$A$11,IF($C$5,8,0),1,1))) -> 275.79 | E188: =IF(A188>$B$30,NA(),IF(A188>$A$8,"",OFFSET(InputPriceData!$D$15,CalculationsAndCharts!$A188+$A$11,IF($C$5,8,0),1,1))) -> 277.79 | F188: =IF(A188>$B$30,NA(),IF(A188>$A$8,"",OFFSET(InputPriceData!$E$15,CalculationsAndCharts!$A188+$A$11,IF($C$5,8,0),1,1))) -> 273.85 | G188: =IF(A188>$B$30,NA(),IF(A188>$A$8,"",OFFSET(InputPriceData!$F$15,CalculationsAndCharts!$A188+$A$11,IF($C$5,8,0),1,1))) -> 275.01 | H188: -4.223507285 | I188: 8.02579423 | J188: 188.0764842 | K188: 13.71409801 | L188: 0.5852221724 | M188: -39903.44637 | N188: -611346.3722 | O188: 7.614615371e+11 | P188: 872617.6351 | Q188: -0.700589064 | AX188: 1861400
A189: 157 | B189: =IF(A189>$B$30,NA(),IF($A189>$A$8,"",OFFSET(InputPriceData!$B$15,$A189+$A$11,0,1,1))) -> 2021-04-20 | C189: =IF(A189>$B$30,NA(),IF($A189>$A$8,"",OFFSET(InputPriceData!$G$15,CalculationsAndCharts!$A189+$A$11,IF($C$5,8,0),1,1))) -> 1425300 | D189: =IF(A189>$B$30,NA(),IF(A189>$A$8,"",OFFSET(InputPriceData!$C$15,CalculationsAndCharts!$A189+$A$11,IF($C$5,8,0),1,1))) -> 279.12 | E189: =IF(A189>$B$30,NA(),IF(A189>$A$8,"",OFFSET(InputPriceData!$D$15,CalculationsAndCharts!$A189+$A$11,IF($C$5,8,0),1,1))) -> 280.48 | F189: =IF(A189>$B$30,NA(),IF(A189>$A$8,"",OFFSET(InputPriceData!$E$15,CalculationsAndCharts!$A189+$A$11,IF($C$5,8,0),1,1))) -> 274.1 | G189: =IF(A189>$B$30,NA(),IF(A189>$A$8,"",OFFSET(InputPriceData!$F$15,CalculationsAndCharts!$A189+$A$11,IF($C$5,8,0),1,1))) -> 277.06 | H189: -1.748544366 | I189: 10.06428248 | J189: 191.1433497 | K189: 13.8254602 | L189: 0.7279528013 | M189: -513768.1877 | N189: -666318.1104 | O189: 7.71076986e+11 | P189: 878109.894 | Q189: -0.758809478 | AX189: 1425300
A190: 158 | B190: =IF(A190>$B$30,NA(),IF($A190>$A$8,"",OFFSET(InputPriceData!$B$15,$A190+$A$11,0,1,1))) -> 2021-04-19 | C190: =IF(A190>$B$30,NA(),IF($A190>$A$8,"",OFFSET(InputPriceData!$G$15,CalculationsAndCharts!$A190+$A$11,IF($C$5,8,0),1,1))) -> 1677000 | D190: =IF(A190>$B$30,NA(),IF(A190>$A$8,"",OFFSET(InputPriceData!$C$15,CalculationsAndCharts!$A190+$A$11,IF($C$5,8,0),1,1))) -> 282.72 | E190: =IF(A190>$B$30,NA(),IF(A190>$A$8,"",OFFSET(InputPriceData!$D$15,CalculationsAndCharts!$A190+$A$11,IF($C$5,8,0),1,1))) -> 283.32 | F190: =IF(A190>$B$30,NA(),IF(A190>$A$8,"",OFFSET(InputPriceData!$E$15,CalculationsAndCharts!$A190+$A$11,IF($C$5,8,0),1,1))) -> 278.79 | G190: =IF(A190>$B$30,NA(),IF(A190>$A$8,"",OFFSET(InputPriceData!$F$15,CalculationsAndCharts!$A190+$A$11,IF($C$5,8,0),1,1))) -> 279.94 | H190: 1.773332572 | I190: 11.63496727 | J190: 193.3717329 | K190: 13.90581651 | L190: 0.8366978853 | M190: -308511.7884 | N190: -704047.533 | O190: 7.791890493e+11 | P190: 882716.8568 | Q190: -0.7975915806 | AX190: 1677000
A191: 159 | B191: =IF(A191>$B$30,NA(),IF($A191>$A$8,"",OFFSET(InputPriceData!$B$15,$A191+$A$11,0,1,1))) -> 2021-04-16 | C191: =IF(A191>$B$30,NA(),IF($A191>$A$8,"",OFFSET(InputPriceData!$G$15,CalculationsAndCharts!$A191+$A$11,IF($C$5,8,0),1,1))) -> 1413000 | D191: =IF(A191>$B$30,NA(),IF(A191>$A$8,"",OFFSET(InputPriceData!$C$15,CalculationsAndCharts!$A191+$A$11,IF($C$5,8,0),1,1))) -> 289.48 | E191: =IF(A191>$B$30,NA(),IF(A191>$A$8,"",OFFSET(InputPriceData!$D$15,CalculationsAndCharts!$A191+$A$11,IF($C$5,8,0),1,1))) -> 289.58 | F191: =IF(A191>$B$30,NA(),IF(A191>$A$8,"",OFFSET(InputPriceData!$E$15,CalculationsAndCharts!$A191+$A$11,IF($C$5,8,0),1,1))) -> 283.77 | G191: =IF(A191>$B$30,NA(),IF(A191>$A$8,"",OFFSET(InputPriceData!$F$15,CalculationsAndCharts!$A191+$A$11,IF($C$5,8,0),1,1))) -> 284.23 | H191: 7.011006364 | I191: 12.6521237 | J191: 194.8101243 | K191: 13.95743975 | L191: 0.9064788338 | M191: -621684.6714 | N191: -726790.0529 | O191: 7.862200476e+11 | P191: 886690.5027 | Q191: -0.8196659947 | AX191: 1413000
A192: 160 | B192: =IF(A192>$B$30,NA(),IF($A192>$A$8,"",OFFSET(InputPriceData!$B$15,$A192+$A$11,0,1,1))) -> 2021-04-15 | C192: =IF(A192>$B$30,NA(),IF($A192>$A$8,"",OFFSET(InputPriceData!$G$15,CalculationsAndCharts!$A192+$A$11,IF($C$5,8,0),1,1))) -> 1389800 | D192: =IF(A192>$B$30,NA(),IF(A192>$A$8,"",OFFSET(InputPriceData!$C$15,CalculationsAndCharts!$A192+$A$11,IF($C$5,8,0),1,1))) -> 285.45 | E192: =IF(A192>$B$30,NA(),IF(A192>$A$8,"",OFFSET(InputPriceData!$D$15,CalculationsAndCharts!$A192+$A$11,IF($C$5,8,0),1,1))) -> 288.98 | F192: =IF(A192>$B$30,NA(),IF(A192>$A$8,"",OFFSET(InputPriceData!$E$15,CalculationsAndCharts!$A192+$A$11,IF($C$5,8,0),1,1))) -> 283.32 | G192: =IF(A192>$B$30,NA(),IF(A192>$A$8,"",OFFSET(InputPriceData!$F$15,CalculationsAndCharts!$A192+$A$11,IF($C$5,8,0),1,1))) -> 287.8 | H192: 11.87010155 | I192: 13.22047274 | J192: 195.6715305 | K192: 13.98826403 | L192: 0.9451117533 | M192: -706788.0758 | N192: -730009.843 | O192: 7.926183973e+11 | P192: 890291.1868 | Q192: -0.8199675048 | AW192: 1389800
A193: 161 | B193: =IF(A193>$B$30,NA(),IF($A193>$A$8,"",OFFSET(InputPriceData!$B$15,$A193+$A$11,0,1,1))) -> 2021-04-14 | C193: =IF(A193>$B$30,NA(),IF($A193>$A$8,"",OFFSET(InputPriceData!$G$15,CalculationsAndCharts!$A193+$A$11,IF($C$5,8,0),1,1))) -> 1099900 | D193: =IF(A193>$B$30,NA(),IF(A193>$A$8,"",OFFSET(InputPriceData!$C$15,CalculationsAndCharts!$A193+$A$11,IF($C$5,8,0),1,1))) -> 286.13 | E193: =IF(A193>$B$30,NA(),IF(A193>$A$8,"",OFFSET(InputPriceData!$D$15,CalculationsAndCharts!$A193+$A$11,IF($C$5,8,0),1,1))) -> 287.75 | F193: =IF(A193>$B$30,NA(),IF(A193>$A$8,"",OFFSET(InputPriceData!$E$15,CalculationsAndCharts!$A193+$A$11,IF($C$5,8,0),1,1))) -> 284.21 | G193: =IF(A193>$B$30,NA(),IF(A193>$A$8,"",OFFSET(InputPriceData!$F$15,CalculationsAndCharts!$A193+$A$11,IF($C$5,8,0),1,1))) -> 284.45 | H193: 9.885718053 | I193: 13.64097573 | J193: 196.1896215 | K193: 14.00677056 | L193: 0.9738844279 | M193: -1072658.886 | N193: -726926.6831 | O193: 7.990590997e+11 | P193: 893901.057 | Q193: -0.8132070965 | AX193: 1099900
A194: 162 | B194: =IF(A194>$B$30,NA(),IF($A194>$A$8,"",OFFSET(InputPriceData!$B$15,$A194+$A$11,0,1,1))) -> 2021-04-13 | C194: =IF(A194>$B$30,NA(),IF($A194>$A$8,"",OFFSET(InputPriceData!$G$15,CalculationsAndCharts!$A194+$A$11,IF($C$5,8,0),1,1))) -> 1713700 | D194: =IF(A194>$B$30,NA(),IF(A194>$A$8,"",OFFSET(InputPriceData!$C$15,CalculationsAndCharts!$A194+$A$11,IF($C$5,8,0),1,1))) -> 291.29 | E194: =IF(A194>$B$30,NA(),IF(A194>$A$8,"",OFFSET(InputPriceData!$D$15,CalculationsAndCharts!$A194+$A$11,IF($C$5,8,0),1,1))) -> 291.32 | F194: =IF(A194>$B$30,NA(),IF(A194>$A$8,"",OFFSET(InputPriceData!$E$15,CalculationsAndCharts!$A194+$A$11,IF($C$5,8,0),1,1))) -> 285.73 | G194: =IF(A194>$B$30,NA(),IF(A194>$A$8,"",OFFSET(InputPriceData!$F$15,CalculationsAndCharts!$A194+$A$11,IF($C$5,8,0),1,1))) -> 287.49 | H194: 14.35045688 | I194: 13.95622867 | J194: 196.4404356 | K194: 14.01572101 | L194: 0.9957553135 | M194: -526280.1912 | N194: -742176.7598 | O194: 8.057709342e+11 | P194: 897647.4442 | Q194: -0.8268020642 | AX194: 1713700
A195: 163 | B195: =IF(A195>$B$30,NA(),IF($A195>$A$8,"",OFFSET(InputPriceData!$B$15,$A195+$A$11,0,1,1))) -> 2021-04-12 | C195: =IF(A195>$B$30,NA(),IF($A195>$A$8,"",OFFSET(InputPriceData!$G$15,CalculationsAndCharts!$A195+$A$11,IF($C$5,8,0),1,1))) -> 1773300 | D195: =IF(A195>$B$30,NA(),IF(A195>$A$8,"",OFFSET(InputPriceData!$C$15,CalculationsAndCharts!$A195+$A$11,IF($C$5,8,0),1,1))) -> 282.29 | E195: =IF(A195>$B$30,NA(),IF(A195>$A$8,"",OFFSET(InputPriceData!$D$15,CalculationsAndCharts!$A195+$A$11,IF($C$5,8,0),1,1))) -> 289.67 | F195: =IF(A195>$B$30,NA(),IF(A195>$A$8,"",OFFSET(InputPriceData!$E$15,CalculationsAndCharts!$A195+$A$11,IF($C$5,8,0),1,1))) -> 281.81 | G195: =IF(A195>$B$30,NA(),IF(A195>$A$8,"",OFFSET(InputPriceData!$F$15,CalculationsAndCharts!$A195+$A$11,IF($C$5,8,0),1,1))) -> 287.39 | H195: 15.85292434 | I195: 14.22132429 | J195: 196.4817059 | K195: 14.01719323 | L195: 1.014562906 | M195: -512525.8468 | N195: -773014.6437 | O195: 8.120936018e+11 | P195: 901162.3615 | Q195: -0.8577973035 | AW195: 1773300
A196: 164 | B196: =IF(A196>$B$30,NA(),IF($A196>$A$8,"",OFFSET(InputPriceData!$B$15,$A196+$A$11,0,1,1))) -> 2021-04-09 | C196: =IF(A196>$B$30,NA(),IF($A196>$A$8,"",OFFSET(InputPriceData!$G$15,CalculationsAndCharts!$A196+$A$11,IF($C$5,8,0),1,1))) -> 2039400 | D196: =IF(A196>$B$30,NA(),IF(A196>$A$8,"",OFFSET(InputPriceData!$C$15,CalculationsAndCharts!$A196+$A$11,IF($C$5,8,0),1,1))) -> 279.59 | E196: =IF(A196>$B$30,NA(),IF(A196>$A$8,"",OFFSET(InputPriceData!$D$15,CalculationsAndCharts!$A196+$A$11,IF($C$5,8,0),1,1))) -> 283.65 | F196: =IF(A196>$B$30,NA(),IF(A196>$A$8,"",OFFSET(InputPriceData!$E$15,CalculationsAndCharts!$A196+$A$11,IF($C$5,8,0),1,1))) -> 278.49 | G196: =IF(A196>$B$30,NA(),IF(A196>$A$8,"",OFFSET(InputPriceData!$F$15,CalculationsAndCharts!$A196+$A$11,IF($C$5,8,0),1,1))) -> 283.23 | H196: 13.21769837 | I196: 14.74314776 | J196: 196.3387489 | K196: 14.01209295 | L196: 1.052173134 | M196: -282446.4324 | N196: -789852.861 | O196: 8.174142777e+11 | P196: 904109.6602 | Q196: -0.8736250653 | AW196: 2039400
A197: 165 | B197: =IF(A197>$B$30,NA(),IF($A197>$A$8,"",OFFSET(InputPriceData!$B$15,$A197+$A$11,0,1,1))) -> 2021-04-08 | C197: =IF(A197>$B$30,NA(),IF($A197>$A$8,"",OFFSET(InputPriceData!$G$15,CalculationsAndCharts!$A197+$A$11,IF($C$5,8,0),1,1))) -> 2276000 | D197: =IF(A197>$B$30,NA(),IF(A197>$A$8,"",OFFSET(InputPriceData!$C$15,CalculationsAndCharts!$A197+$A$11,IF($C$5,8,0),1,1))) -> 279.59 | E197: =IF(A197>$B$30,NA(),IF(A197>$A$8,"",OFFSET(InputPriceData!$D$15,CalculationsAndCharts!$A197+$A$11,IF($C$5,8,0),1,1))) -> 281.12 | F197: =IF(A197>$B$30,NA(),IF(A197>$A$8,"",OFFSET(InputPriceData!$E$15,CalculationsAndCharts!$A197+$A$11,IF($C$5,8,0),1,1))) -> 276.48 | G197: =IF(A197>$B$30,NA(),IF(A197>$A$8,"",OFFSET(InputPriceData!$F$15,CalculationsAndCharts!$A197+$A$11,IF($C$5,8,0),1,1))) -> 281.12 | H197: 12.47792467 | I197: 15.5312072 | J197: 195.8174084 | K197: 13.99347735 | L197: 1.109889044 | M197: -65246.87085 | N197: -767766.267 | O197: 8.222142685e+11 | P197: 906760.3148 | Q197: -0.8467135741 | AW197: 2276000
A198: 166 | B198: =IF(A198>$B$30,NA(),IF($A198>$A$8,"",OFFSET(InputPriceData!$B$15,$A198+$A$11,0,1,1))) -> 2021-04-07 | C198: =IF(A198>$B$30,NA(),IF($A198>$A$8,"",OFFSET(InputPriceData!$G$15,CalculationsAndCharts!$A198+$A$11,IF($C$5,8,0),1,1))) -> 1469200 | D198: =IF(A198>$B$30,NA(),IF(A198>$A$8,"",OFFSET(InputPriceData!$C$15,CalculationsAndCharts!$A198+$A$11,IF($C$5,8,0),1,1))) -> 278.2 | E198: =IF(A198>$B$30,NA(),IF(A198>$A$8,"",OFFSET(InputPriceData!$D$15,CalculationsAndCharts!$A198+$A$11,IF($C$5,8,0),1,1))) -> 279.14 | F198: =IF(A198>$B$30,NA(),IF(A198>$A$8,"",OFFSET(InputPriceData!$E$15,CalculationsAndCharts!$A198+$A$11,IF($C$5,8,0),1,1))) -> 273.46 | G198: =IF(A198>$B$30,NA(),IF(A198>$A$8,"",OFFSET(InputPriceData!$F$15,CalculationsAndCharts!$A198+$A$11,IF($C$5,8,0),1,1))) -> 275.85 | H198: 8.376681564 | I198: 16.42939751 | J198: 194.6914564 | K198: 13.95318804 | L198: 1.177465499 | M198: -913023.9816 | N198: -660152.6362 | O198: 8.279864875e+11 | P198: 909937.6283 | Q198: -0.7254921828 | AX198: 1469200
A199: 167 | B199: =IF(A199>$B$30,NA(),IF($A199>$A$8,"",OFFSET(InputPriceData!$B$15,$A199+$A$11,0,1,1))) -> 2021-04-06 | C199: =IF(A199>$B$30,NA(),IF($A199>$A$8,"",OFFSET(InputPriceData!$G$15,CalculationsAndCharts!$A199+$A$11,IF($C$5,8,0),1,1))) -> 1407200 | D199: =IF(A199>$B$30,NA(),IF(A199>$A$8,"",OFFSET(InputPriceData!$C$15,CalculationsAndCharts!$A199+$A$11,IF($C$5,8,0),1,1))) -> 278.37 | E199: =IF(A199>$B$30,NA(),IF(A199>$A$8,"",OFFSET(InputPriceData!$D$15,CalculationsAndCharts!$A199+$A$11,IF($C$5,8,0),1,1))) -> 281.12 | F199: =IF(A199>$B$30,NA(),IF(A199>$A$8,"",OFFSET(InputPriceData!$E$15,CalculationsAndCharts!$A199+$A$11,IF($C$5,8,0),1,1))) -> 277.42 | G199: =IF(A199>$B$30,NA(),IF(A199>$A$8,"",OFFSET(InputPriceData!$F$15,CalculationsAndCharts!$A199+$A$11,IF($C$5,8,0),1,1))) -> 278.87 | H199: 12.54131377 | I199: 17.09042793 | J199: 192.8256496 | K199: 13.88616756 | L199: 1.230751959 | M199: -1049116.105 | N199: -471283.0406 | O199: 8.377127394e+11 | P199: 915266.4855 | Q199: -0.5149134685 | AW199: 1407200
A200: 168 | B200: =IF(A200>$B$30,NA(),IF($A200>$A$8,"",OFFSET(InputPriceData!$B$15,$A200+$A$11,0,1,1))) -> 2021-04-05 | C200: =IF(A200>$B$30,NA(),IF($A200>$A$8,"",OFFSET(InputPriceData!$G$15,CalculationsAndCharts!$A200+$A$11,IF($C$5,8,0),1,1))) -> 1727200 | D200: =IF(A200>$B$30,NA(),IF(A200>$A$8,"",OFFSET(InputPriceData!$C$15,CalculationsAndCharts!$A200+$A$11,IF($C$5,8,0),1,1))) -> 282.66 | E200: =IF(A200>$B$30,NA(),IF(A200>$A$8,"",OFFSET(InputPriceData!$D$15,CalculationsAndCharts!$A200+$A$11,IF($C$5,8,0),1,1))) -> 283.26 | F200: =IF(A200>$B$30,NA(),IF(A200>$A$8,"",OFFSET(InputPriceData!$E$15,CalculationsAndCharts!$A200+$A$11,IF($C$5,8,0),1,1))) -> 277.29 | G200: =IF(A200>$B$30,NA(),IF(A200>$A$8,"",OFFSET(InputPriceData!$F$15,CalculationsAndCharts!$A200+$A$11,IF($C$5,8,0),1,1))) -> 278.28 | H200: 13.23929999 | I200: 17.30412286 | J200: 190.3640578 | K200: 13.7972482 | L200: 1.254172036 | M200: -796667.7646 | N200: -239592.3489 | O200: 8.529798452e+11 | P200: 923569.0798 | Q200: -0.259420063 | AX200: 1727200
A201: 169 | B201: =IF(A201>$B$30,NA(),IF($A201>$A$8,"",OFFSET(InputPriceData!$B$15,$A201+$A$11,0,1,1))) -> 2021-04-01 | C201: =IF(A201>$B$30,NA(),IF($A201>$A$8,"",OFFSET(InputPriceData!$G$15,CalculationsAndCharts!$A201+$A$11,IF($C$5,8,0),1,1))) -> 1443500 | D201: =IF(A201>$B$30,NA(),IF(A201>$A$8,"",OFFSET(InputPriceData!$C$15,CalculationsAndCharts!$A201+$A$11,IF($C$5,8,0),1,1))) -> 280.23 | E201: =IF(A201>$B$30,NA(),IF(A201>$A$8,"",OFFSET(InputPriceData!$D$15,CalculationsAndCharts!$A201+$A$11,IF($C$5,8,0),1,1))) -> 281.67 | F201: =IF(A201>$B$30,NA(),IF(A201>$A$8,"",OFFSET(InputPriceData!$E$15,CalculationsAndCharts!$A201+$A$11,IF($C$5,8,0),1,1))) -> 278.5 | G201: =IF(A201>$B$30,NA(),IF(A201>$A$8,"",OFFSET(InputPriceData!$F$15,CalculationsAndCharts!$A201+$A$11,IF($C$5,8,0),1,1))) -> 280.23 | H201: 16.58593997 | I201: 17.09352261 | J201: 187.6591384 | K201: 13.69887362 | L201: 1.247804972 | M201: -1149078.386 | N201: 37490.37674 | O201: 8.727102444e+11 | P201: 934189.6191 | Q201: 0.04013144224 | AW201: 1443500
A202: 170 | B202: =IF(A202>$B$30,NA(),IF($A202>$A$8,"",OFFSET(InputPriceData!$B$15,$A202+$A$11,0,1,1))) -> 2021-03-31 | C202: =IF(A202>$B$30,NA(),IF($A202>$A$8,"",OFFSET(InputPriceData!$G$15,CalculationsAndCharts!$A202+$A$11,IF($C$5,8,0),1,1))) -> 2026000 | D202: =IF(A202>$B$30,NA(),IF(A202>$A$8,"",OFFSET(InputPriceData!$C$15,CalculationsAndCharts!$A202+$A$11,IF($C$5,8,0),1,1))) -> 282.66 | E202: =IF(A202>$B$30,NA(),IF(A202>$A$8,"",OFFSET(InputPriceData!$D$15,CalculationsAndCharts!$A202+$A$11,IF($C$5,8,0),1,1))) -> 284.52 | F202: =IF(A202>$B$30,NA(),IF(A202>$A$8,"",OFFSET(InputPriceData!$E$15,CalculationsAndCharts!$A202+$A$11,IF($C$5,8,0),1,1))) -> 279.52 | G202: =IF(A202>$B$30,NA(),IF(A202>$A$8,"",OFFSET(InputPriceData!$F$15,CalculationsAndCharts!$A202+$A$11,IF($C$5,8,0),1,1))) -> 280.72 | H202: 18.62287322 | I202: 16.49643828 | J202: 185.0667927 | K202: 13.60392564 | L202: 1.21262338 | M202: -626904.6165 | N202: 345055.4692 | O202: 8.943187442e+11 | P202: 945684.273 | Q202: 0.3648738581 | AX202: 2026000
A203: 171 | B203: =IF(A203>$B$30,NA(),IF($A203>$A$8,"",OFFSET(InputPriceData!$B$15,$A203+$A$11,0,1,1))) -> 2021-03-30 | C203: =IF(A203>$B$30,NA(),IF($A203>$A$8,"",OFFSET(InputPriceData!$G$15,CalculationsAndCharts!$A203+$A$11,IF($C$5,8,0),1,1))) -> 2724700 | D203: =IF(A203>$B$30,NA(),IF(A203>$A$8,"",OFFSET(InputPriceData!$C$15,CalculationsAndCharts!$A203+$A$11,IF($C$5,8,0),1,1))) -> 276.11 | E203: =IF(A203>$B$30,NA(),IF(A203>$A$8,"",OFFSET(InputPriceData!$D$15,CalculationsAndCharts!$A203+$A$11,IF($C$5,8,0),1,1))) -> 284.78 | F203: =IF(A203>$B$30,NA(),IF(A203>$A$8,"",OFFSET(InputPriceData!$E$15,CalculationsAndCharts!$A203+$A$11,IF($C$5,8,0),1,1))) -> 275.06 | G203: =IF(A203>$B$30,NA(),IF(A203>$A$8,"",OFFSET(InputPriceData!$F$15,CalculationsAndCharts!$A203+$A$11,IF($C$5,8,0),1,1))) -> 282.58 | H203: 22.18067304 | I203: 15.70192829 | J203: 182.9075495 | K203: 13.52433176 | L203: 1.161013244 | M203: 55778.06336 | N203: 672714.9638 | O203: 9.135452069e+11 | P203: 955795.5885 | Q203: 0.7038272325 | AW203: 2724700
... 922 more rows

Sheet Follow
A1: Stocks and Indexes I wish to follow
A3: To ease following a stock, enter a Yahoo Finance acceptable symbol in column "A" anywhere below cell "A9".
A4: Thereafter you may doubleclick the cell containing a symbol of interest to initiate data retrieval and charting for that symbol.
A7: Symbol
A8: To | B8: Description | C8: Last Trade as of most recent check
A9: Follow | C9: Date | D9: Time | E9: Open | F9: High | G9: Low | H9: Close | I9: Volume | J9: Change | K9: Retrieved @
A10: A | B10: Agilent Technologies, Inc. (A) -NYSE (Daily) | C10: 2020-03-09 | D10: 16:04:00 | E10: 72.589996 | F10: 74.190002 | G10: 70.169998 | H10: 70.75 | I10: 4591093 | J10: -7.809998 | K10: 2020-03-09T16:59:21
A11: AA | B11: Alcoa Corporation (AA) -NYSE (Daily) | C11: 2020-01-31 | D11: 16:04:00 | E11: 14.01 | F11: 14.24 | G11: 13.62 | H11: 13.95 | I11: 9931500 | J11: -0.34 | K11: 2020-02-02T15:07:13
A12: AAL | B12: American Airlines Group Inc. (AAL) -NasdaqGS (Daily) | C12: 2020-03-09 | D12: 16:00:00 | E12: 14.87 | F12: 15.79 | G12: 14.46 | H12: 14.75 | I12: 41078614 | J12: -1.22 | K12: 2020-03-09T17:00:15
A13: AAPL | B13: Apple Inc. (AAPL) -NasdaqGS (Daily) | C13: 2020-06-17 | D13: 16:00:00 | E13: 355.149994 | F13: 355.369995 | G13: 351.089996 | H13: 351.589996 | I13: 27604481 | J13: -0.489991 | K13: 2020-06-17T17:45:34
A14: ADM | B14: Archer-Daniels-Midland Company (ADM) -NYSE (Weekly) | C14: 2018-07-13 | D14: 16:00:00 | E14: 47.5 | F14: 47.84 | G14: 47.169998 | H14: 47.57 | I14: 2402809 | J14: 0
A15: ADBE | B15: Adobe Inc. (ADBE) -NasdaqGS (Daily) | C15: 2020-06-17 | D15: 16:00:00 | E15: 414 | F15: 417.425995 | G15: 411.429993 | H15: 413.48999 | I15: 2026063 | J15: 1.819977 | K15: 2020-06-17T17:42:59
A16: ALGN | B16: Align Technology, Inc. (ALGN) -NasdaqGS (Daily) | C16: 2020-01-30 | D16: 16:00:00 | E16: 248.740005 | F16: 264.450012 | G16: 248.350006 | H16: 262.890015 | I16: 1833160 | J16: 1.290009
A17: AMC | B17: AMC Entertainment Holdings, Inc. (AMC) -NYSE (Weekly) | C17: 2018-07-13 | D17: 16:02:00 | E17: 17.049999 | F17: 17.15 | G17: 16.525 | H17: 17.049999 | I17: 1442776 | J17: 0
A18: AMD | B18: Advanced Micro Devices, Inc. (AMD) -NasdaqGS (Daily) | C18: 2020-08-19 | D18: 12:40:00 | E18: 81.775703 | F18: 81.849998 | G18: 80.449997 | H18: 80.760002 | I18: 18434143 | J18: -0.900002 | K18: 2020-08-19T12:40:49
A19: BSX | B19: Boston Scientific Corporation C (BSX) -NYQ (Daily) | C19: 2015-03-13 | D19: 16:01:00 | E19: 16.84 | F19: 16.91 | G19: 16.44 | H19: 16.61 | I19: 7262460 | J19: -0.28
A20: CASY | B20: Casey's General Stores, Inc. (CASY) -NasdaqGS (Daily) | C20: 2019-04-10 | D20: 16:00:00 | E20: 128.979996 | F20: 130.330002 | G20: 128.779999 | H20: 130.179993 | I20: 351300 | J20: 1.489991
A21: CAT | B21: Caterpillar Inc. (CAT) -NYSE (Daily) | C21: 2022-03-15 | D21: 15:43:00 | E21: 216.119995 | F21: 217.190002 | G21: 210.514999 | H21: 217.070007 | I21: 3247033 | J21: 1.630005 | K21: 2022-03-15T15:44:21
A22: CSCO | B22: Cisco Systems, In (CSCO) -NasdaqNM (Daily) | C22: 2015-02-19 | D22: 16:00:00 | E22: 29.32 | F22: 29.39 | G22: 29.13 | H22: 29.31 | I22: 21469012 | J22: -0.18
A23: CVS | B23: CVS Health Corporation (CVS) -NYSE (Daily) | C23: 2020-03-09 | D23: 16:07:00 | E23: 59.75 | F23: 63 | G23: 59.599998 | H23: 61.299999 | I23: 13065424 | J23: -2.850003 | K23: 2020-03-09T17:51:54
A24: DIS | B24: The Walt Disney Company (DIS) -NYSE (Daily) | C24: 2020-03-09 | D24: 16:07:00 | E24: 108.690002 | F24: 110.43 | G24: 104.279999 | H24: 104.349998 | I24: 26101127 | J24: -10.919999 | K24: 2020-03-09T16:59:51
A25: F | B25: Ford Motor Company (F) -NYSE (Daily) | C25: 2020-01-31 | D25: 16:03:00 | E25: 8.78 | F25: 8.84 | G25: 8.74 | H25: 8.82 | I25: 59781000 | J25: -0.02 | K25: 2020-02-02T15:09:03
A26: FAS | B26: Direxion Daily Financial Bull 3X ETF (FAS) -NYSEArca (Daily) | C26: 2017-10-13 | D26: 16:00:00 | E26: 58.099998 | F26: 58.939999 | G26: 57.43 | H26: 58.450001 | I26: 1709300 | J26: 0.07
A27: FB | B27: Facebook, Inc. (FB) -NasdaqGS (Daily) | C27: 2020-02-14 | D27: 16:00:00 | E27: 214 | F27: 214.929993 | G27: 212.649994 | H27: 214.179993 | I27: 10727400 | J27: 1.039994 | K27: 2020-02-15T17:19:34
A28: FDX | B28: FedEx Corporation (FDX) -NYSE (Daily) | C28: 2022-04-12 | D28: 12:53:00 | E28: 204.130005 | F28: 207.169998 | G28: 203.580093 | H28: 204.649994 | I28: 699435 | J28: 0.529999 | K28: 2022-04-12T12:54:11
A29: GSK | B29: GlaxoSmithKline plc (GSK) -NYSE (Daily) | C29: 2021-01-15 | D29: 16:00:00 | E29: 38.41 | F29: 38.66 | G29: 38.209999 | H29: 38.470001 | I29: 3100400 | J29: 0.310001 | K29: 2021-01-17T18:07:58
A30: GDX | B30: VanEck Vectors Gold Miners ETF (GDX) -NYSEArca (Daily) | C30: 2020-01-31 | D30: 16:00:00 | E30: 28.799999 | F30: 29.24 | G30: 28.76 | H30: 28.99 | I30: 41946000 | J30: 0.26 | K30: 2020-02-02T15:11:17
A31: GOOG | B31: Alphabet Inc. (GOOG) -NasdaqGS (Daily) | C31: 2021-06-10 | D31: 16:00:00 | E31: 2494.01001 | F31: 2523.26001 | G31: 2494.01001 | H31: 2521.600098 | I31: 1390763 | J31: 30.200196 | K31: 2021-06-10T16:45:42
A32: HAL | B32: Halliburton Company (HAL) -NYSE (Daily) | C32: 2020-09-17 | D32: 11:11:00 | E32: 14.73 | F32: 14.945 | G32: 14.57 | H32: 14.91 | I32: 4265279 | J32: -0.16 | K32: 2020-09-17T11:11:52
A33: HD | B33: The Home Depot, Inc. (HD) -NYSE (Daily) | C33: 2020-03-13 | D33: 11:54:00 | E33: 200.449997 | F33: 201.179993 | G33: 192.270096 | H33: 193.449997 | I33: 3274582 | J33: 2.860001 | K33: 2020-03-13T11:54:29
A34: HSY | B34: The Hershey Company (HSY) -NYSE (Daily) | C34: 2021-01-15 | D34: 16:00:00 | E34: 147.089996 | F34: 149.490005 | G34: 146.880005 | H34: 148.460007 | I34: 1193700 | J34: 1.040009 | K34: 2021-01-17T18:06:10
A35: HTLD | B35: Heartland Express, Inc. (HTLD) -NasdaqGS (Daily) | C35: 2020-03-09 | D35: 16:00:00 | E35: 17.33 | F35: 17.690001 | G35: 16.82 | H35: 16.879999 | I35: 284762 | J35: -1.280001 | K35: 2020-03-09T17:00:56
A36: IDEX | B36: Ideanomics, Inc. (IDEX) -NasdaqGS (Daily) | C36: 2021-02-19 | D36: 10:11:00 | E36: 3.99 | F36: 4.15 | G36: 3.88 | H36: 3.92 | I36: 8623006 | J36: 0.19 | K36: 2021-02-19T10:11:40
A37: IBM | B37: International Business Machines Corporation (IBM) -NYSE (Daily) | C37: 2021-02-09 | D37: 16:00:00 | E37: 121.900002 | F37: 122.565002 | G37: 121.050003 | H37: 122.099998 | I37: 4173266 | J37: -1.510003 | K37: 2021-02-09T17:01:49
A38: INTC | B38: Intel Corporation (INTC) -NasdaqGS (Daily) | C38: 2020-02-14 | D38: 16:00:00 | E38: 67.519997 | F38: 67.860001 | G38: 66.82 | H38: 67.269997 | I38: 13402800 | J38: -0.170005 | K38: 2020-02-15T17:21:41
A39: JAH | B39: Jarden Corporation Common Stock (JAH) -NYQ (Daily) | C39: 2016-01-08 | D39: 16:02:00 | E39: 53.82 | F39: 53.88 | G39: 52.65 | H39: 52.73 | I39: 4519480 | J39: -0.81
A40: JNJ | B40: Johnson & Johnson (JNJ) -NYSE (Daily) | C40: 2019-08-14 | D40: 10:33:00 | E40: 132.529999 | F40: 132.539993 | G40: 131.419998 | H40: 131.759995 | I40: 870520 | J40: -0.169998
A41: KO | B41: The Coca-Cola Company (KO) -NYSE (Daily) | C41: 2020-03-09 | D41: 16:07:00 | E41: 52.049999 | F41: 53.580002 | G41: 51.474998 | H41: 51.860001 | I41: 27771279 | J41: -3.399997 | K41: 2020-03-09T17:05:43
A42: LOW | B42: Lowe's Companies, Inc. (LOW) -NYSE (Daily) | C42: 2020-03-09 | D42: 16:03:00 | E42: 97.82 | F42: 99.82 | G42: 93.150101 | H42: 94.220001 | I42: 8167579 | J42: -11.089997 | K42: 2020-03-09T16:57:19
A43: LMT | B43: Lockheed Martin Corporation (LMT) -NYSE (Daily) | C43: 2021-02-09 | D43: 16:04:00 | E43: 338.540009 | F43: 344.48999 | G43: 336.570007 | H43: 342.339996 | I43: 1545066 | J43: 4.5 | K43: 2021-02-09T16:56:05
A44: MCD | B44: McDonald's Corporation (MCD) -NYSE (Daily) | C44: 2022-03-15 | D44: 16:00:00 | E44: 227.979996 | F44: 234.565002 | G44: 227.979996 | H44: 232.570007 | I44: 4989454 | J44: 6.390014 | K44: 2022-03-15T20:08:37
A45: MDT | B45: Medtronic plc (MDT) -NYSE (Daily) | C45: 2020-03-09 | D45: 16:07:00 | E45: 94.019997 | F45: 95.470001 | G45: 91.709999 | H45: 92.400002 | I45: 9000931 | J45: -6.659996 | K45: 2020-03-09T17:48:45
A46: MGM | B46: MGM Resorts International (MGM) -NYSE (Daily) | C46: 2020-03-09 | D46: 16:02:00 | E46: 18.6 | F46: 19.58 | G46: 17.530001 | H46: 17.879999 | I46: 26050818 | J46: -2.51 | K46: 2020-03-09T17:13:53
A47: MO | B47: Altria Group, Inc. (MO) -NYSE (Daily) | C47: 2020-01-31 | D47: 16:05:00 | E47: 48.25 | F47: 48.799999 | G47: 47.240002 | H47: 47.529999 | I47: 11790800 | J47: -0.470001 | K47: 2020-02-02T15:20:55
A48: MSFT | B48: Microsoft Corporation (MSFT) -NasdaqGS (Daily) | C48: 2020-03-09 | D48: 16:00:00 | E48: 151 | F48: 157.75 | G48: 150 | H48: 150.619995 | I48: 69167627 | J48: -10.950012 | K48: 2020-03-09T17:06:41
A49: NFLX | B49: Netflix, Inc. (NFLX) -NasdaqGS (Daily) | C49: 2020-03-09 | D49: 16:00:00 | E49: 343.859985 | F49: 357.470001 | G49: 341.720886 | H49: 346.48999 | I49: 6746188 | J49: -22.480011 | K49: 2020-03-09T17:23:37
A50: NUGT | B50: Direxion Daily Gold Miners Index Bull 3X Shares (NUGT) -NYSEArca (Daily) | C50: 2020-01-31 | D50: 16:00:00 | E50: 32.439999 | F50: 33.830002 | G50: 32.240002 | H50: 33.02 | I50: 11325200 | J50: 0.84 | K50: 2020-02-02T15:21:51
A51: NVS | B51: Novartis AG (NVS) -NYSE (Daily) | C51: 2020-03-06 | D51: 16:02:00 | E51: 84.330002 | F51: 85.830002 | G51: 83.970001 | H51: 85.720001 | I51: 5624700 | J51: -0.089997 | K51: 2020-03-08T16:56:35
A52: NVDA | B52: html id="atomic" class="NoJs chrome desktop" lang="en-US"> -html id="atomic" class="NoJs chrome desktop" lang="en (Daily) | C52: 2022-01-14 | D52: 16:00:00 | E52: 263 | F52: 271.970001 | G52: 262.100006 | H52: 269.420013 | I52: 39522800 | J52: 3.670013 | K52: 2022-01-17T20:12:45
A53: PRU | B53: Prudential Financial, Inc. (PRU) -NYSE (Daily) | C53: 2020-03-09 | D53: 16:02:00 | E53: 63.75 | F53: 65.830002 | G53: 57.375 | H53: 58.240002 | I53: 7614493 | J53: -11.569996 | K53: 2020-03-09T17:11:43
A54: PSEC | B54: Prospect Capital Corporation (PSEC) -NasdaqGS (Daily) | C54: 2020-02-14 | D54: 16:00:00 | E54: 6.53 | F54: 6.56 | G54: 6.51 | H54: 6.52 | I54: 1235500 | J54: -0.04 | K54: 2020-02-15T14:43:16
A55: RPM | B55: RPM International Inc. (RPM) -NYSE (Daily) | C55: 2020-03-09 | D55: 16:02:00 | E55: 64.470001 | F55: 66.730003 | G55: 63.5 | H55: 65.290001 | I55: 1115882 | J55: -2.919998 | K55: 2020-03-09T17:10:08
A56: RSP | B56: Invesco S&P 500 Equal Weight ETF (RSP) -NYSEArca (Daily) | C56: 2020-01-31 | D56: 16:00:00 | E56: 115.279999 | F56: 115.32 | G56: 113.230003 | H56: 113.540001 | I56: 747600 | J56: -2.309997 | K56: 2020-02-02T15:28:52
A57: RY | B57: Royal Bank of Canada (RY) -NYSE (Daily) | C57: 2022-02-15 | D57: 16:00:00 | E57: 114.610001 | F57: 114.75 | G57: 113.550003 | H57: 113.910004 | I57: 906101 | J57: 0.010002 | K57: 2022-02-15T16:32:43
A58: SPR | B58: Spirit AeroSystems Holdings, Inc. (SPR) -NYSE (Daily) | C58: 2020-03-09 | D58: 16:06:00 | E58: 43.700001 | F58: 43.880001 | G58: 41.5 | H58: 42.139999 | I58: 2091368 | J58: -5.23 | K58: 2020-03-09T17:09:37
A59: SQ | B59: Square, Inc. (SQ) -NYSE (Daily) | C59: 2020-10-02 | D59: 16:00:00 | E59: 164.050003 | F59: 171.240005 | G59: 163.800995 | H59: 169.610001 | I59: 11150500 | J59: 1.119996 | K59: 2020-10-04T20:00:52
A60: SWKS | B60: Skyworks Solutions, Inc. (SWKS) -NasdaqGS (Daily) | C60: 2020-01-31 | D60: 16:00:00 | E60: 115.5 | F60: 115.739998 | G60: 112.720001 | H60: 113.150002 | I60: 2444600 | J60: -3.080001 | K60: 2020-02-02T15:26:46
A61: TOL | B61: Toll Brothers, Inc. (TOL) -NYSE (Daily) | C61: 2020-03-09 | D61: 16:07:00 | E61: 34.759998 | F61: 35.314999 | G61: 32.060001 | H61: 34.110001 | I61: 3127968 | J61: -2.86 | K61: 2020-03-09T17:12:09
A62: TSLA | B62: Tesla, Inc. (TSLA) -NasdaqGS (Daily) | C62: 2020-03-13 | D62: 12:08:00 | E62: 595 | F62: 607.570007 | G62: 502.01001 | H62: 510 | I62: 12224537 | J62: -50.549988 | K62: 2020-03-13T12:08:39
A63: TXN | B63: Texas Instruments Incorporated (TXN) -NasdaqGS (Daily) | C63: 2020-06-19 | D63: 11:30:00 | E63: 128.059998 | F63: 128.179993 | G63: 126.07 | H63: 126.370003 | I63: 2078988 | J63: 0.39 | K63: 2020-06-19T11:31:00
A64: UNP | B64: Union Pacific Corporation (UNP) -NYSE (Daily) | C64: 2020-03-09 | D64: 16:07:00 | E64: 145.199997 | F64: 145.580002 | G64: 133.179993 | H64: 135.839996 | I64: 9380024 | J64: -20.25 | K64: 2020-03-09T17:11:21
A65: VZ | B65: Verizon Communications Inc. (VZ) -NYSE (Daily) | C65: 2019-04-10 | D65: 16:00:00 | E65: 58.400002 | F65: 58.700001 | G65: 58.360001 | H65: 58.610001 | I65: 8022000 | J65: 0.209999
A66: WBA | B66: Walgreens Boots Alliance, Inc. (WBA) -NasdaqGS (Daily) | C66: 2020-01-31 | D66: 16:00:00 | E66: 51.709999 | F66: 51.919998 | G66: 50.66 | H66: 50.849998 | I66: 6532300 | J66: -1.100003 | K66: 2020-02-02T15:28:06
A67: WMT | B67: Walmart Inc. (WMT) -NYSE (Daily) | C67: 2020-03-09 | D67: 16:01:00 | E67: 113.82 | F67: 120.629997 | G67: 112.730003 | H67: 117.160004 | I67: 19567750 | J67: -0.069999 | K67: 2020-03-09T17:10:39
A69: ^AEX | B69: AEX-INDEX (^AEX) -Amsterdam (Daily) | C69: 2020-03-09 | D69: 18:05:00 | E69: 506.950012 | F69: 506.950012 | G69: 485.730011 | H69: 490.660004 | I69: 0 | J69: -40.629974 | K69: 2020-03-09T17:41:58
A70: ^AORD | B70: ALL ORDINARIES (^AORD) -ASX (Daily) | C70: 2020-03-09 | D70: 16:17:00 | E70: 6472.399902 | F70: 6287.299805 | G70: 5822.399902 | H70: 5822.399902 | I70: 0 | J70: -465.100098 | K70: 2020-03-09T17:45:59
A71: ^DJI | B71: Dow Jones Industrial Average (^DJI) -DJI (Daily) | C71: 2021-01-15 | D71: 17:18:00 | E71: 30926.76953 | F71: 30941.98047 | G71: 30612.66992 | H71: 30814.25977 | I71: 433000000 | J71: -177.259765 | K71: 2021-01-18T09:45:18
A72: ^FTSE | B72: FTSE 100 (^FTSE) -FTSE Index (Daily) | C72: 2022-03-15 | D72: 16:50:00 | E72: 7193.470215 | F72: 7193.470215 | G72: 7075.819824 | H72: 7175.700195 | I72: 0 | J72: -17.799805 | K72: 2022-03-15T20:53:13
A73: ^GSPC | B73: S&P 500 (^GSPC) -SNP (Daily) | C73: 2022-03-15 | D73: 17:28:00 | E73: 4188.819824 | F73: 4271.049805 | G73: 4187.899902 | H73: 4262.450195 | I73: 2636945000 | J73: 89.340332 | K73: 2022-03-15T21:04:33
A74: ^HSI | B74: HANG SENG INDEX (^HSI) -HKSE (Daily) | C74: 2020-03-09 | D74: 16:08:00 | E74: 25134.01953 | F74: 25321.2793 | G74: 24948.38086 | H74: 25040.46094 | I74: 0 | J74: -1106.208984 | K74: 2020-03-09T17:39:06
A75: ^MID | B75: S&P MID CAP 400 INDEX (^MID) -NYSE (Daily) | C75: 2022-04-08 | D75: 16:00:00 | E75: 2619.169922 | F75: 2641.689941 | G75: 2607.01001 | H75: 2617.090088 | I75: 0 | J75: -2.079834 | K75: 2022-04-10T15:01:59
A76: ^NDX | B76: NASDAQ 100 (^NDX) -Nasdaq GIDS (Weekly) | C76: 2022-03-15 | D76: 13:30:00 | E76: 13175 | F76: 13402.97754 | G76: 13092.45019 | H76: 13290.41406 | I76: 520738514 | J76: 243.774415 | K76: 2022-03-15T13:30:48
A77: ^NYA | B77: NYSE COMPOSITE (DJ) (^NYA) -NYSE (Daily) | C77: 2022-03-15 | D77: 12:28:00 | E77: 15694.40039 | F77: 15839.09863 | G77: 15694.35059 | H77: 15825.58691 | I77: 0 | J77: 131.237305 | K77: 2022-03-15T12:43:18
A78: ^OEX | B78: S&P 100 INDEX (^OEX) -Chicago Options (Daily) | C78: 2019-09-13 | D78: 16:56:00 | E78: 1332.27002 | F78: 1334.420044 | G78: 1328.73999 | H78: 1330.969971 | I78: 3520060000 | J78: -1.010009
A79: ^RUT | B79: Russell 2000 (^RUT) -Chicago Options (Daily) | C79: 2022-03-15 | D79: 11:22:00 | E79: 1979.785767 | F79: 1983.430908 | G79: 1932.708618 | H79: 1954.294556 | I79: 0 | J79: 12.574585 | K79: 2022-03-15T11:37:16
A80: ^SSEC | B80: SSE Composite Index (^SSEC) -Shanghai (Daily) | C80: 2020-03-09 | D80: 15:00:00 | E80: 3039.939453 | F80: 2989.205078 | G80: 2940.713867 | H80: 2943.290771 | I80: 2801367936 | J80: -388.231202 | K80: 2020-03-09T17:38:09
A81: ^VIX | B81: CBOE Volatility Index (^VIX) -Chicago Options (Daily) | C81: 2022-02-15 | D81: 16:15:00 | E81: 28.09 | F81: 28.09 | G81: 25.33 | H81: 25.700001 | I81: 0 | J81: -2.629999 | K81: 2022-02-15T16:45:54
A82: IWM | B82: iShares Russell 2000 ETF (IWM) -NYSEArca (Daily) | C82: 2021-02-19 | D82: 09:56:00 | E82: 222.460007 | F82: 223.080002 | G82: 222.169998 | H82: 222.970001 | I82: 3614630 | J82: 2.380005 | K82: 2021-02-19T09:56:07
A83: QQQ | B83: Invesco QQQ Trust (QQQ) -NasdaqGM (Daily) | C83: 2020-08-27 | D83: 15:01:00 | E83: 293.079987 | F83: 293.851013 | G83: 288.704987 | H83: 291.994995 | I83: 41822663 | J83: 0.035004 | K83: 2020-08-27T15:02:03
A84: XLE | B84: Energy Select Sector SPDR Fund (XLE) -NYSEArca (Daily) | C84: 2020-07-10 | D84: 16:00:00 | E84: 34.240002 | F84: 35.580002 | G84: 34.240002 | H84: 35.540001 | I84: 25223900 | J84: 1.100002 | K84: 2020-07-11T16:34:13
A85: SPY | B85: SPDR S&P 500 ETF Trust (SPY) -NYSEArca (Daily) | C85: 2022-02-15 | D85: 16:00:00 | E85: 443.730011 | F85: 446.279999 | G85: 443.179993 | H85: 446.100006 | I85: 85650218 | J85: 7.080017 | K85: 2022-02-15T16:45:36
A87: ACAD | B87: ACADIA Pharmaceut (ACAD) -NasdaqNM (Daily) | C87: 2014-07-21 | D87: 16:00:00 | E87: 20.13 | F87: 20.55 | G87: 19.8101 | H87: 20.31 | I87: 691016
A88: CLDX | B88: Celldex Therapeut (CLDX) -NasdaqNM (Daily) | C88: 2015-02-02 | D88: 16:00:00 | E88: 21.47 | F88: 21.69 | G88: 20.11 | H88: 21.02 | I88: 1570418 | J88: -0.4
A89: ICPT | B89: Intercept Pharmac (ICPT) -NasdaqNM (Daily) | C89: 2014-07-21 | D89: 16:00:00 | E89: 215.97 | F89: 218.43 | G89: 213.05 | H89: 218.14 | I89: 191276
A90: INO | B90: Inovio Pharmaceut (INO) -AMEX (Daily) | C90: 2014-07-21 | D90: 16:00:00 | E90: 10.3 | F90: 11.08 | G90: 10.1 | H90: 11.01 | I90: 1800796
A91: JCP | B91: J. C. Penney Company, Inc. (JCP) -NYSE (Daily) | C91: 2017-12-07 | D91: 16:01:00 | E91: 3.34 | F91: 3.4 | G91: 3.25 | H91: 3.27 | I91: 14485464 | J91: -0.07
A92: LCI | B92: Lannett Co Inc Co (LCI) -NYSE (Daily) | C92: 2014-07-21 | D92: 16:02:00 | E92: 38.09 | F92: 38.803 | G92: 36.5101 | H92: 37.76 | I92: 611367
A93: NPSP | B93: NPS Pharmaceutica (NPSP) -NasdaqNM (Daily) | C93: 2014-07-21 | D93: 15:59:00 | E93: 28.75 | F93: 29.43 | G93: 28.31 | H93: 29.29 | I93: 1126758
A94: PBYI | B94: Puma Biotechnolog (PBYI) -NYSE (Daily) | C94: 2014-07-21 | D94: 16:02:00 | E94: 58.27 | F94: 59.46 | G94: 57.39 | H94: 58.98 | I94: 348030
